Workbook

Sheet steel
B1: version: 2.2. - FREE LITE VERSION | Q1: © 2010-2019 Damian Janicki
D2: YourSpreadsheets™ Your Office Address Goes Here www.YourSpreadsheets.co.uk Tel: 010 1234 567890 (example only) | Q2: TEST PROJECT NAME | AG2: 123459 | AH2: 1
U3: Revision | W3: A | AG3: 123458 | AH3: 2
Q4: Job No: | S4: 22190 | U4: Page: | W4: 01
C5: Member: | D5: test member (this is unlicensed version of the spreadsheet) | Q5: Prepared By: | S5: DJ | U5: Date: | W5: =TODAY() -> 2019-08-26 | AG5: fy
AE6: Steel grade: | AF6: S275 | AG6: =IF(OR(tw>100,Tf>100),225,IF(OR(tw>80,Tf>80),235,IF(OR(tw>63,Tf>63),245,IF(OR(tw>40,Tf>40),255,IF(OR(tw>16,Tf>16),265,275))))) -> 275 | AI6: Reaction: | AJ6: =(UDL1d*8+PUDL1d*3+PUDL2d*LePUDL2+PLa1d+PLb1d)-AK6 -> 19.42 | AK6: =(UDL1d*8^2/2+PUDL1d*3*(PosPUDL1+3/2)+PUDL2d*LePUDL2*(PosPUDL2+LePUDL2/2)+PLa1d*PosPLa1+PLb1d*PosPLb1)/8 -> 16.67
C7: GENERAL DATA | H7: SELECTED SECTION | R7: SECTION PROPERTIES | AA7: SUMMARY: | AF7: S355 | AG7: =IF(OR(tw>100,Tf>100),295,IF(OR(tw>80,Tf>80),315,IF(OR(tw>63,Tf>63),325,IF(OR(tw>40,Tf>40),335,IF(OR(tw>16,Tf>16),345,355))))) -> 355 | AJ7: =(2*8+PUDL1l*3+PUDL2l*LePUDL2+PLa1l+PLb1l)-AK7 -> 11.31 | AK7: =(2*8^2/2+PUDL1l*3*(PosPUDL1+3/2)+PUDL2l*LePUDL2*(PosPUDL2+LePUDL2/2)+PLa1l*PosPLa1+PLb1l*PosPLb1)/8 -> 9.69
C8: Steel Grade: | E8: S460 | I8: =IF(AF12>155,"PFC",IF(AF12>107,"UC","UB")) -> UB | R8: D = | S8: =VLOOKUP(AF12,calculations!B92:Y262,4) -> 355.0 | T8: mm | V8: rx = | W8: =VLOOKUP(AF12,calculations!B92:Y262,14) -> 14.8 | X8: cm | AA8: =I51 -> 0.83 | AB8: moment | AF8: S460 | AG8: =IF(OR(tw>80,Tf>80),400,IF(OR(tw>63,Tf>63),410,IF(OR(tw>40,Tf>40),430,IF(OR(tw>16,Tf>16),440,460)))) -> 460
C9: py [MPa] = | E9: =AG10 -> 460 | R9: B = | S9: =VLOOKUP(AF12,calculations!B92:Y262,5) -> 171.5 | T9: mm | V9: ry = | W9: =VLOOKUP(AF12,calculations!B92:Y262,15) -> 3.9 | X9: cm | AA9: =I57 -> 0.06 | AB9: shear
C10: E [GPa] = | E10: 205 | H10: ="Classification: "&IF(AL20=1,"plastic",IF(AL20=2,"compact",IF(AL20=3,"semi-compact","slender"))) -> Classification: compact | R10: t = | S10: =VLOOKUP(AF12,calculations!B92:Y262,6) -> 7.4 | T10: mm | V10: Ixx = | W10: =VLOOKUP(AF12,calculations!B92:Y262,12) -> 14100 | X10: cm4 | AA10: =I64 -> 0.23 | AB10: LL | AE10: Selected: | AG10: =$AG$8 -> 460
R11: T = | S11: =VLOOKUP(AF12,calculations!B92:Y262,7) -> 11.5 | T11: mm | V11: Iyy = | W11: =VLOOKUP(AF12,calculations!B92:Y262,13) -> 968 | X11: cm4 | AA11: =I69 -> 0.56 | AB11: DL+LL
C12: SPAN [m] = | E12: 8.00 | H12: INCLUDE S/W | R12: r = | S12: =VLOOKUP(AF12,calculations!B92:Y262,8) -> 10.2 | T12: mm | V12: Zx = | W12: =VLOOKUP(AF12,calculations!B92:Y262,16) -> 796.0 | X12: cm3 | AE12: Selected Section: | AF12: 83
R13: d = | S13: =VLOOKUP(AF12,calculations!B92:Y262,9) -> 311.6 | T13: mm | V13: Zy = | W13: =VLOOKUP(AF12,calculations!B92:Y262,17) -> 113.0 | X13: cm3
R14: A = | S14: =VLOOKUP(AF12,calculations!B92:Y262,24) -> 64.9 | T14: cm2 | V14: Sx = | W14: =VLOOKUP(AF12,calculations!B92:Y262,18) -> 896.0 | X14: cm3 | AE14: Destabilizing load: | AF14: TRUE | AG14: =IF(AF14=TRUE,1,0.925) -> 1 | AI14: UDL1d | AJ14: =3+IF(AG15=1,0.01*VLOOKUP(AF12,calculations!B92:Y262,3),0) -> 3.51
C15: EFFECTIVE LENGTH [m] = | E15: 6.00 | H15: SAFETY FACTORS | R15: weight = | S15: =VLOOKUP(AF12,calculations!B92:Y262,3) -> 51.0 | T15: kg/m | V15: Sy = | W15: =VLOOKUP(AF12,calculations!B92:Y262,19) -> 174.0 | X15: cm3 | AE15: Include s/w: | AF15: TRUE | AG15: =IF(AF15=TRUE,1,0) -> 1
I16: γLL = | K16: 1.60 | AH16: 1 | AI16: 2 | AJ16: 3 | AK16: 4
C17: Destabilizing load: | I17: γDL = | K17: 1.40 | AE17: Classification: | AF17: ε | AG17: =(275/fy)^0.5 -> 0.77 | AH17: plastic | AI17: compact | AJ17: semi-compact | AK17: slender
AF18: b/T | AG18: =B/2/Tf -> 7.46 | AH18: =9*AG17 -> 6.958729269 | AI18: =10*AG17 -> 7.73192141 | AJ18: =15*AG17 -> 11.59788212 | AL18: =IF(AG18>AJ18,4,IF(AG18>AI18,3,IF(AG18>AH18,2,1))) -> 2
AF19: d/t | AG19: =de/tw -> 42.11 | AH19: =IF(I8="PFC",40,80)*AG17 -> 61.85537128 | AI19: =IF(I8="PFC",40,100)*AG17 -> 77.3192141 | AJ19: =IF(I8="PFC",40,120)*AG17 -> 92.78305692 | AL19: =IF(AG19>AJ19,4,IF(AG19>AI19,3,IF(AG19>AH19,2,1))) -> 1
AF20: b/T | AG20: checks are in the hidden row! | AK20: Selected: | AL20: =MAX(AL18,AL19) -> 2
AE21: Applied shear: | AF21: =AF60 -> 45.28
C22: LOADING | AE22: Shear capacity: | AF22: =0.6*fy*tw*D/1000 -> 725.05
E23: Dead | G23: Imposed | K23: position from left | M23: length
C24: UDL = | E24: 3.00 | G24: 2.00 | I24: kN/m
C25: Partial UDL 'a' = | E25: 2.00 | G25: 1.00 | I25: kN/m | K25: 1.00 | L25: m | M25: 3.00 | N25: m | AE25: Applied moment: | AF25: =AF59 -> 92.03
C26: Partial UDL 'b' = | I26: kN/m | L26: m | N26: m | AF26: 1 | AG26: 2 | AH26: 3 | AI26: 4
C27: Point Load 'a' = | E27: 2.00 | G27: 2.00 | I27: kN | K27: 3.00 | L27: m | M27: ~~~~ | AE27: Moment Capacity: | AF27: plastic | AG27: compact | AH27: semi-compact | AI27: slender
C28: Point Load 'b' = | I28: kN | L28: m | M28: ~~~~ | AE28: Low shear | AF28: =IF(AF21<(AF22*0.6),fy*Sx/1000,"") -> 412.16 | AG28: =AF28 -> 412.16 | AH28: =IF(AF21<(AF22*0.6),fy*Zx/1000,"") -> 366.16 | AI28: ERROR | AJ28: =HLOOKUP(AL20,AF26:AI29,3) -> 412.16
AE29: High shear | AF29: =IF(AF21>(AF22*0.6),fy*(Sx-AF30*tw*D^2/4000)/1000,"") ->  | AG29: =AF29 ->  | AH29: =IF(AF21>(AF22*0.6),fy*(Zx-AF30*tw*D^2/4000/1.5)/1000,"") ->  | AI29: ERROR | AJ29: =HLOOKUP(AL20,AF26:AI29,4) -> 
AE30: ρ | AF30: =IF(AF21<0.6*AF22,"",IF(((2*AF21/AF22)-1)^2>1,1,((2*AF21/AF22)-1)^2)) ->  | AI30: limiting Mc: | AJ30: =1.2*fy*Zx/1000 -> 439.392
AI31: selected: | AJ31: =MIN(AJ30,AJ28:AJ29) -> 412.16
C34: SUMMARY OF RESULTS | P34: REACTIONS | S34: Dead | T34: Imposed | U34: Total
C35: Max Applied Moment = | G35: =ROUND(AF59,2)&" kNm" -> 92.03 kNm | J35: =IF(AF59>I50,"> "&ROUND(I50,2),"< "&ROUND(I50,2))&" kNm" -> < 111.05 kNm | M35: =IF(I50>AF59,"OK","NOT OK") -> OK | P35: Left Reaction = | S35: =RL1d -> 19.42 | T35: =RL1l -> 11.31 | U35: =S35+T35 -> 30.73 | W35: kN | AE35: Laterl torsional buckling
C36: Max Applied Shear = | G36: =AF60&" kN" -> 45.28 kN | J36: =IF(AF60>AF22,"> "&ROUND(AF22,2),"< "&ROUND(AF22,2))&" kN" -> < 725.05 kN | M36: =IF(AF22>AF21,"OK","NOT OK") -> OK | P36: Right Reaction = | S36: =RR1d -> 16.67 | T36: =RR1l -> 9.69 | U36: =S36+T36 -> 26.35 | W36: kN
C37: Max Deflection LL = | G37: =AF61&" mm" -> 5.22 mm | J37: =IF(AF61>I63,"> "&ROUND(I63,2),"< "&ROUND(I63,2))&" mm" -> < 22.22 mm | M37: =IF(AF61<I63,"OK","NOT OK") -> OK | P37: Left Reaction = | S37: =RL1d*K17 -> 27.18 | T37: =RL1l*K16 -> 18.10 | U37: =S37+T37 -> 45.28 | W37: kN | AE37: constants:
C38: Max Deflection LL + DL= | G38: =AF62&" mm" -> 14.09 mm | J38: =IF(AF62>I68,"> "&ROUND(I68,2),"< "&ROUND(I68,2))&" mm" -> < 25 mm | M38: =IF(AF62<I68,"OK","NOT OK") -> OK | P38: Right Reaction = | S38: =RR1d*K17 -> 23.33 | T38: =RR1l*K16 -> 15.50 | U38: =S38+T38 -> 38.83 | W38: kN | AE38: J | AF38: =VLOOKUP(AF12,calculations!B92:Y262,23) -> 23.80 | AG38: not used
AE39: H | AF39: =VLOOKUP(AF12,calculations!B92:Y262,22) -> 0.29 | AG39: not used
AE40: x | AF40: =VLOOKUP(AF12,calculations!B92:Y262,21) -> 32.10 | AG40: calcs for u and βw are in the hidden rows!
AE41: u | AF41: =VLOOKUP(AF12,calculations!B92:Y262,20) -> 0.88
AE43: βw | AF43: =IF(OR(AL20=1,AL20=2),1,Zx/Sx) -> 1.00
AE44: λ | AF44: =_Le1*100/ry -> 155.44
C45: DETAILED RESULTS: | I45: MOMENT (ULS) | AE45: v | AF45: =1/((1+0.05*(AF44/x)^2)^(0.25)) -> 0.82
C46: Maximum applied moment Mmax = | I46: =AF59 -> 92.03 | K46: kNm | AE46: λLT | AF46: =u*v*AF44*(AF43^0.5) -> 112.67
C47: Moment capacity Mc = | I47: =$AJ$31 -> 412.16 | K47: kNm | AE47: λ0 | AF47: =0.4*(PI()^2*E*1000/fy)^0.5 -> 26.53
C48: =IF(AND(_Le1>0,AF46>AF47),"-- LTB considered as λLT > λ0 --",IF(AND(_Le1>0,AF46<=AF47),"-- LTB not considered as λLT < λ0 --","-- LTB not considered --")) -> -- LTB considered as λLT > λ0 -- | AE48: pE | AF48: =PI()^2*E*1000/(AF46^2) -> 159.38
C49: Buckling resistance moment Mb = | I49: =IF(AND(_Le1>0,AF46>AF47),$AJ$56,IF(AND(_Le1>0,AF46<=AF47),"N/A","N/A")) -> 111.05 | K49: =IF(I49="N/A","","kNm") -> kNm | AE49: ŋLT | AF49: =IF(7*(AF46-AF47)/1000<0,0,7*(AF46-AF47)/1000) -> 0.60
C50: Allowable moment = | I50: =IF(AND(_Le1>0,AF46>AF47),AJ56,AJ31) -> 111.05 | K50: kNm | AE50: ΦLT | AF50: =(fy+(AF49+1)*AF48)/2 -> 357.74
C51: Usage factor = | I51: =I46/I50 -> 0.83 | AE51: pb | AF51: =AF48*fy/(AF50+(AF50^2-AF48*fy)^(0.5)) -> 123.94
AE52: mLT | AF52: =AG14 -> 1.000 | AG52: for destabilizing load
C53: DETAILED RESULTS: | I53: SHEAR (ULS)
C54: Maximum applied shear force Fv = | I54: =AF60 -> 45.28 | K54: kN | AF54: 1 | AG54: 2 | AH54: 3 | AI54: 4
C55: Shear capacity Pv = | I55: =AF22 -> 725.05 | K55: kN | AF55: plastic | AG55: compact | AH55: semi-compact | AI55: slender
C56: =IF(I57<0.6,"-- Low shear present --","-- High shear present --") -> -- Low shear present -- | AE56: Mb: | AF56: =AF51*Sx/(1000*mLT) -> 111.05 | AG56: =AF56 -> 111.05 | AH56: =AF51*Zx/(1000*mLT) -> 98.65 | AI56: ERROR | AJ56: =HLOOKUP(AL20,AF54:AI56,3) -> 111.05
C57: Usage factor = | I57: =I54/I55 -> 0.06
AE59: Max Moment: | AF59: =ROUND(-MIN(calculations!C81:CY81),2) -> 92.03
AE60: Max Shear: | AF60: =ABS(ROUND(IF(MAX(calculations!C83:CY83)>ABS(MIN(calculations!C83:CY83)),MAX(calculations!C83:CY83),MIN(calculations!C83:CY83)),2)) -> 45.28
C61: DETAILED RESULTS: | I61: DEFLECTION (SLS) | AE61: Max Deflection LL: | AF61: =ROUND(-MIN(calculations!C84:CY84),2) -> 5.22
C62: Actual deflection LL = | I62: =AF61 -> 5.22 | K62: mm | L62: ="(L/"&ROUND(8*1000/I62,0)&")" -> (L/1533) | AE62: Max Deflection LL + DL: | AF62: =ROUND(-MIN(calculations!C85:CY85),2) -> 14.09
C63: Allowable deflection LL = | I63: =8*1000/360 -> 22.22 | K63: mm | L63: (L/360) | AG63: Selected:
C64: Usage factor = | I64: =I62/I63 -> 0.23 | AE64: deflection diagram: | AF64: LL | AG64: =S68 -> LL+DL | AH64: =IF(AG64="LL+DL",1,0) -> 1
AF65: LL+DL
C66: DETAILED RESULTS: | I66: DEFLECTION (SLS)
C67: Actual deflection LL+DL= | I67: =AF62 -> 14.09 | K67: mm | L67: ="(L/"&ROUND(8*1000/I67,0)&")" -> (L/568)
C68: Allowable deflection LL+DL = | I68: =IF(L68="(L/200)",8*1000/200,IF(L68="(L/250)",8*1000/250,IF(L68="(L/200) or 25",MIN((8*1000/200),25),MIN((8*1000/250),25)))) -> 25.00 | K68: mm | L68: (L/250) or 25 | R68: show | S68: LL+DL | T68: deflection diagram
C69: Usage factor = | I69: =I67/I68 -> 0.56
C71: Spreadsheet provided by: www.YourSpreadsheets.co.uk | X71: calculations are based on BS5950:1-2000

Sheet calculations (hidden)
C2: LOADING DIAGRAM
B4: Beam | C4: 0.1 | D4: =0.1+8 -> 8.1
C5: 0 | D5: 0
B7: Supports | C7: 0.1 | D7: =C7 -> 0.1 | E7: =0.1+8 -> 8.1 | F7: =E7 -> 8.1
C8: =C9 -> -1.902 | D8: 0 | E8: =C8 -> -1.902 | F8: 0
C9: =-0.2*MAX(SUM(UDL1d,2,PUDL1d,PUDL1l),SUM(UDL1d,2,PLa1d,PLa1l),SUM(UDL1d,2,PLb1d,PLb1l)) -> -1.902
B10: UDL | C10: 0.1 | D10: 0.1 | E10: =IF(OR(UDL1d>0,2>0),0.1+8,0) -> 8.1 | F10: =IF(OR(UDL1d>0,2>0),0.1+8,0) -> 8.1
B11: Dead | C11: 0 | D11: =UDL1d -> 3.51 | E11: =UDL1d -> 3.51 | F11: 0
B12: Live | C12: =IF(2>0,UDL1d,0) -> 3.51 | D12: =IF(2>0,UDL1d+2,0) -> 5.51 | E12: =IF(2>0,UDL1d+2,0) -> 5.51 | F12: =IF(2>0,UDL1d,0) -> 3.51
B14: PUDL a | C14: =IF(OR(PUDL1d>0,PUDL1l>0),0.1+PosPUDL1,0) -> 1.1 | D14: =IF(OR(PUDL1d>0,PUDL1l>0),0.1+PosPUDL1,0) -> 1.1 | E14: =IF(OR(PUDL1d>0,PUDL1l>0),0.1+PosPUDL1+3,0) -> 4.1 | F14: =IF(OR(PUDL1d>0,PUDL1l>0),0.1+PosPUDL1+3,0) -> 4.1
B15: Dead | C15: =UDL1d+2 -> 5.51 | D15: =UDL1d+2+PUDL1d -> 7.51 | E15: =UDL1d+2+PUDL1d -> 7.51 | F15: =UDL1d+2 -> 5.51
B16: Live | C16: =UDL1d+2+PUDL1d -> 7.51 | D16: =UDL1d+2+PUDL1d+PUDL1l -> 8.51 | E16: =UDL1d+2+PUDL1d+PUDL1l -> 8.51 | F16: =UDL1d+2+PUDL1d -> 7.51
B18: PUDL b | C18: =IF(OR(PUDL2d>0,PUDL2l>0),0.1+PosPUDL2,0) -> 0 | D18: =IF(OR(PUDL2d>0,PUDL2l>0),0.1+PosPUDL2,0) -> 0 | E18: =IF(OR(PUDL2d>0,PUDL2l>0),0.1+PosPUDL2+LePUDL2,0) -> 0 | F18: =IF(OR(PUDL2d>0,PUDL2l>0),0.1+PosPUDL2+LePUDL2,0) -> 0
B19: Dead | C19: =UDL1d+2 -> 5.51 | D19: =UDL1d+2+PUDL2d -> 5.51 | E19: =UDL1d+2+PUDL2d -> 5.51 | F19: =UDL1d+2 -> 5.51
B20: Live | C20: =UDL1d+2+PUDL2d -> 5.51 | D20: =UDL1d+2+PUDL2d+PUDL2l -> 5.51 | E20: =UDL1d+2+PUDL2d+PUDL2l -> 5.51 | F20: =UDL1d+2+PUDL2d -> 5.51
B22: LL a | C22: =IF(OR(PLa1d>0,PLa1l>0),0.1+PosPLa1,0) -> 3.1 | D22: =IF(OR(PLa1d>0,PLa1l>0),0.1+PosPLa1,0) -> 3.1
B23: Dead | C23: =IF(PLa1d>0,UDL1d+2,0) -> 5.51 | D23: =IF(PLa1d>0,UDL1d+2+PLa1d,0) -> 7.51
B24: Live | C24: =IF(PLa1l>0,UDL1d+2+PLa1d,0) -> 7.51 | D24: =IF(PLa1l>0,UDL1d+2+PLa1d+PLa1l,0) -> 9.51
B26: LL b | C26: =IF(OR(PLb1d>0,PLb1l>0),0.1+PosPLb1,0) -> 0 | D26: =IF(OR(PLb1d>0,PLb1l>0),0.1+PosPLb1,0) -> 0
B27: Dead | C27: =IF(PLb1d>0,UDL1d+2,0) -> 0 | D27: =IF(PLb1d>0,UDL1d+2+PLb1d,0) -> 0
B28: Live | C28: =IF(PLb1l>0,UDL1d+2+PLb1d,0) -> 0 | D28: =IF(PLb1l>0,UDL1d+2+PLb1d+PLb1l,0) -> 0
C31: MOMENT AND SHEAR CALCULATIONS
B33: Step | C33: 0.0 | D33: =8/100 -> 0.1 | E33: =D33+8/100 -> 0.2 | F33: =E33+8/100 -> 0.2 | G33: =F33+8/100 -> 0.3 | H33: =G33+8/100 -> 0.4 | I33: =H33+8/100 -> 0.5 | J33: =I33+8/100 -> 0.6 | K33: =J33+8/100 -> 0.6 | L33: =K33+8/100 -> 0.7 | M33: =L33+8/100 -> 0.8 | N33: =M33+8/100 -> 0.9 | O33: =N33+8/100 -> 1.0 | P33: =O33+8/100 -> 1.0 | Q33: =P33+8/100 -> 1.1 | R33: =Q33+8/100 -> 1.2 | S33: =R33+8/100 -> 1.3 | T33: =S33+8/100 -> 1.4 | U33: =T33+8/100 -> 1.4 | V33: =U33+8/100 -> 1.5 | W33: =V33+8/100 -> 1.6 | X33: =W33+8/100 -> 1.7 | Y33: =X33+8/100 -> 1.8 | Z33: =Y33+8/100 -> 1.8 | AA33: =Z33+8/100 -> 1.9 | AB33: =AA33+8/100 -> 2.0 | AC33: =AB33+8/100 -> 2.1 | AD33: =AC33+8/100 -> 2.2 | AE33: =AD33+8/100 -> 2.2 | AF33: =AE33+8/100 -> 2.3 | AG33: =AF33+8/100 -> 2.4 | AH33: =AG33+8/100 -> 2.5 | AI33: =AH33+8/100 -> 2.6 | AJ33: =AI33+8/100 -> 2.6 | AK33: =AJ33+8/100 -> 2.7 | AL33: =AK33+8/100 -> 2.8 | AM33: =AL33+8/100 -> 2.9 | AN33: =AM33+8/100 -> 3.0 | AO33: =AN33+8/100 -> 3.0 | AP33: =AO33+8/100 -> 3.1 | AQ33: =AP33+8/100 -> 3.2 | AR33: =AQ33+8/100 -> 3.3 | AS33: =AR33+8/100 -> 3.4 | AT33: =AS33+8/100 -> 3.4 | AU33: =AT33+8/100 -> 3.5 | AV33: =AU33+8/100 -> 3.6 | AW33: =AV33+8/100 -> 3.7 | AX33: =AW33+8/100 -> 3.8 | AY33: =AX33+8/100 -> 3.8 | AZ33: =AY33+8/100 -> 3.9 | BA33: =AZ33+8/100 -> 4.0 | BB33: =BA33+8/100 -> 4.1 | BC33: =BB33+8/100 -> 4.2 | BD33: =BC33+8/100 -> 4.2 | BE33: =BD33+8/100 -> 4.3 | BF33: =BE33+8/100 -> 4.4 | BG33: =BF33+8/100 -> 4.5 | BH33: =BG33+8/100 -> 4.6 | BI33: =BH33+8/100 -> 4.6 | BJ33: =BI33+8/100 -> 4.7 | BK33: =BJ33+8/100 -> 4.8 | BL33: =BK33+8/100 -> 4.9 | BM33: =BL33+8/100 -> 5.0 | BN33: =BM33+8/100 -> 5.0 | BO33: =BN33+8/100 -> 5.1 | BP33: =BO33+8/100 -> 5.2 | BQ33: =BP33+8/100 -> 5.3 | BR33: =BQ33+8/100 -> 5.4 | BS33: =BR33+8/100 -> 5.4 | BT33: =BS33+8/100 -> 5.5 | BU33: =BT33+8/100 -> 5.6 | BV33: =BU33+8/100 -> 5.7 | BW33: =BV33+8/100 -> 5.8 | BX33: =BW33+8/100 -> 5.8 | BY33: =BX33+8/100 -> 5.9 | BZ33: =BY33+8/100 -> 6.0 | CA33: =BZ33+8/100 -> 6.1 | CB33: =CA33+8/100 -> 6.2 | CC33: =CB33+8/100 -> 6.2 | CD33: =CC33+8/100 -> 6.3 | CE33: =CD33+8/100 -> 6.4 | CF33: =CE33+8/100 -> 6.5 | CG33: =CF33+8/100 -> 6.6 | CH33: =CG33+8/100 -> 6.6 | CI33: =CH33+8/100 -> 6.7 | CJ33: =CI33+8/100 -> 6.8 | CK33: =CJ33+8/100 -> 6.9 | CL33: =CK33+8/100 -> 7.0 | CM33: =CL33+8/100 -> 7.0 | CN33: =CM33+8/100 -> 7.1 | CO33: =CN33+8/100 -> 7.2 | CP33: =CO33+8/100 -> 7.3 | CQ33: =CP33+8/100 -> 7.4 | CR33: =CQ33+8/100 -> 7.4 | CS33: =CR33+8/100 -> 7.5 | CT33: =CS33+8/100 -> 7.6 | CU33: =CT33+8/100 -> 7.7 | CV33: =CU33+8/100 -> 7.8 | CW33: =CV33+8/100 -> 7.8 | CX33: =CW33+8/100 -> 7.9 | CY33: =CX33+8/100 -> 8.0
B34: Moment dead [kNm] | C34: 0.00 | D34: =-RL1d*D33+UDL1d*D33^2/2+IF(D33>PosPUDL1,PUDL1d*(D33-PosPUDL1)^2/2,0)+IF(D33>(PosPUDL1+3),-PUDL1d*(D33-PosPUDL1-3)^2/2,0)+IF(D33>PosPUDL2,PUDL2d*(D33-PosPUDL2)^2/2,0)+IF(D33>(PosPUDL2+LePUDL2),-PUDL2d*(D33-PosPUDL2-LePUDL2)^2/2,0)+IF(D33>PosPLa1,PLa1d*(D33-PosPLa1),0)+IF(D33>PosPLb1,PLb1d*(D33-PosPLb1),0) -> -1.54 | E34: =-RL1d*E33+UDL1d*E33^2/2+IF(E33>PosPUDL1,PUDL1d*(E33-PosPUDL1)^2/2,0)+IF(E33>(PosPUDL1+3),-PUDL1d*(E33-PosPUDL1-3)^2/2,0)+IF(E33>PosPUDL2,PUDL2d*(E33-PosPUDL2)^2/2,0)+IF(E33>(PosPUDL2+LePUDL2),-PUDL2d*(E33-PosPUDL2-LePUDL2)^2/2,0)+IF(E33>PosPLa1,PLa1d*(E33-PosPLa1),0)+IF(E33>PosPLb1,PLb1d*(E33-PosPLb1),0) -> -3.06 | F34: =-RL1d*F33+UDL1d*F33^2/2+IF(F33>PosPUDL1,PUDL1d*(F33-PosPUDL1)^2/2,0)+IF(F33>(PosPUDL1+3),-PUDL1d*(F33-PosPUDL1-3)^2/2,0)+IF(F33>PosPUDL2,PUDL2d*(F33-PosPUDL2)^2/2,0)+IF(F33>(PosPUDL2+LePUDL2),-PUDL2d*(F33-PosPUDL2-LePUDL2)^2/2,0)+IF(F33>PosPLa1,PLa1d*(F33-PosPLa1),0)+IF(F33>PosPLb1,PLb1d*(F33-PosPLb1),0) -> -4.56 | G34: =-RL1d*G33+UDL1d*G33^2/2+IF(G33>PosPUDL1,PUDL1d*(G33-PosPUDL1)^2/2,0)+IF(G33>(PosPUDL1+3),-PUDL1d*(G33-PosPUDL1-3)^2/2,0)+IF(G33>PosPUDL2,PUDL2d*(G33-PosPUDL2)^2/2,0)+IF(G33>(PosPUDL2+LePUDL2),-PUDL2d*(G33-PosPUDL2-LePUDL2)^2/2,0)+IF(G33>PosPLa1,PLa1d*(G33-PosPLa1),0)+IF(G33>PosPLb1,PLb1d*(G33-PosPLb1),0) -> -6.03 | H34: =-RL1d*H33+UDL1d*H33^2/2+IF(H33>PosPUDL1,PUDL1d*(H33-PosPUDL1)^2/2,0)+IF(H33>(PosPUDL1+3),-PUDL1d*(H33-PosPUDL1-3)^2/2,0)+IF(H33>PosPUDL2,PUDL2d*(H33-PosPUDL2)^2/2,0)+IF(H33>(PosPUDL2+LePUDL2),-PUDL2d*(H33-PosPUDL2-LePUDL2)^2/2,0)+IF(H33>PosPLa1,PLa1d*(H33-PosPLa1),0)+IF(H33>PosPLb1,PLb1d*(H33-PosPLb1),0) -> -7.49 | I34: =-RL1d*I33+UDL1d*I33^2/2+IF(I33>PosPUDL1,PUDL1d*(I33-PosPUDL1)^2/2,0)+IF(I33>(PosPUDL1+3),-PUDL1d*(I33-PosPUDL1-3)^2/2,0)+IF(I33>PosPUDL2,PUDL2d*(I33-PosPUDL2)^2/2,0)+IF(I33>(PosPUDL2+LePUDL2),-PUDL2d*(I33-PosPUDL2-LePUDL2)^2/2,0)+IF(I33>PosPLa1,PLa1d*(I33-PosPLa1),0)+IF(I33>PosPLb1,PLb1d*(I33-PosPLb1),0) -> -8.91 | J34: =-RL1d*J33+UDL1d*J33^2/2+IF(J33>PosPUDL1,PUDL1d*(J33-PosPUDL1)^2/2,0)+IF(J33>(PosPUDL1+3),-PUDL1d*(J33-PosPUDL1-3)^2/2,0)+IF(J33>PosPUDL2,PUDL2d*(J33-PosPUDL2)^2/2,0)+IF(J33>(PosPUDL2+LePUDL2),-PUDL2d*(J33-PosPUDL2-LePUDL2)^2/2,0)+IF(J33>PosPLa1,PLa1d*(J33-PosPLa1),0)+IF(J33>PosPLb1,PLb1d*(J33-PosPLb1),0) -> -10.32 | K34: =-RL1d*K33+UDL1d*K33^2/2+IF(K33>PosPUDL1,PUDL1d*(K33-PosPUDL1)^2/2,0)+IF(K33>(PosPUDL1+3),-PUDL1d*(K33-PosPUDL1-3)^2/2,0)+IF(K33>PosPUDL2,PUDL2d*(K33-PosPUDL2)^2/2,0)+IF(K33>(PosPUDL2+LePUDL2),-PUDL2d*(K33-PosPUDL2-LePUDL2)^2/2,0)+IF(K33>PosPLa1,PLa1d*(K33-PosPLa1),0)+IF(K33>PosPLb1,PLb1d*(K33-PosPLb1),0) -> -11.71 | L34: =-RL1d*L33+UDL1d*L33^2/2+IF(L33>PosPUDL1,PUDL1d*(L33-PosPUDL1)^2/2,0)+IF(L33>(PosPUDL1+3),-PUDL1d*(L33-PosPUDL1-3)^2/2,0)+IF(L33>PosPUDL2,PUDL2d*(L33-PosPUDL2)^2/2,0)+IF(L33>(PosPUDL2+LePUDL2),-PUDL2d*(L33-PosPUDL2-LePUDL2)^2/2,0)+IF(L33>PosPLa1,PLa1d*(L33-PosPLa1),0)+IF(L33>PosPLb1,PLb1d*(L33-PosPLb1),0) -> -13.07 | M34: =-RL1d*M33+UDL1d*M33^2/2+IF(M33>PosPUDL1,PUDL1d*(M33-PosPUDL1)^2/2,0)+IF(M33>(PosPUDL1+3),-PUDL1d*(M33-PosPUDL1-3)^2/2,0)+IF(M33>PosPUDL2,PUDL2d*(M33-PosPUDL2)^2/2,0)+IF(M33>(PosPUDL2+LePUDL2),-PUDL2d*(M33-PosPUDL2-LePUDL2)^2/2,0)+IF(M33>PosPLa1,PLa1d*(M33-PosPLa1),0)+IF(M33>PosPLb1,PLb1d*(M33-PosPLb1),0) -> -14.41 | N34: =-RL1d*N33+UDL1d*N33^2/2+IF(N33>PosPUDL1,PUDL1d*(N33-PosPUDL1)^2/2,0)+IF(N33>(PosPUDL1+3),-PUDL1d*(N33-PosPUDL1-3)^2/2,0)+IF(N33>PosPUDL2,PUDL2d*(N33-PosPUDL2)^2/2,0)+IF(N33>(PosPUDL2+LePUDL2),-PUDL2d*(N33-PosPUDL2-LePUDL2)^2/2,0)+IF(N33>PosPLa1,PLa1d*(N33-PosPLa1),0)+IF(N33>PosPLb1,PLb1d*(N33-PosPLb1),0) -> -15.73 | O34: =-RL1d*O33+UDL1d*O33^2/2+IF(O33>PosPUDL1,PUDL1d*(O33-PosPUDL1)^2/2,0)+IF(O33>(PosPUDL1+3),-PUDL1d*(O33-PosPUDL1-3)^2/2,0)+IF(O33>PosPUDL2,PUDL2d*(O33-PosPUDL2)^2/2,0)+IF(O33>(PosPUDL2+LePUDL2),-PUDL2d*(O33-PosPUDL2-LePUDL2)^2/2,0)+IF(O33>PosPLa1,PLa1d*(O33-PosPLa1),0)+IF(O33>PosPLb1,PLb1d*(O33-PosPLb1),0) -> -17.02 | P34: =-RL1d*P33+UDL1d*P33^2/2+IF(P33>PosPUDL1,PUDL1d*(P33-PosPUDL1)^2/2,0)+IF(P33>(PosPUDL1+3),-PUDL1d*(P33-PosPUDL1-3)^2/2,0)+IF(P33>PosPUDL2,PUDL2d*(P33-PosPUDL2)^2/2,0)+IF(P33>(PosPUDL2+LePUDL2),-PUDL2d*(P33-PosPUDL2-LePUDL2)^2/2,0)+IF(P33>PosPLa1,PLa1d*(P33-PosPLa1),0)+IF(P33>PosPLb1,PLb1d*(P33-PosPLb1),0) -> -18.29 | Q34: =-RL1d*Q33+UDL1d*Q33^2/2+IF(Q33>PosPUDL1,PUDL1d*(Q33-PosPUDL1)^2/2,0)+IF(Q33>(PosPUDL1+3),-PUDL1d*(Q33-PosPUDL1-3)^2/2,0)+IF(Q33>PosPUDL2,PUDL2d*(Q33-PosPUDL2)^2/2,0)+IF(Q33>(PosPUDL2+LePUDL2),-PUDL2d*(Q33-PosPUDL2-LePUDL2)^2/2,0)+IF(Q33>PosPLa1,PLa1d*(Q33-PosPLa1),0)+IF(Q33>PosPLb1,PLb1d*(Q33-PosPLb1),0) -> -19.53 | R34: =-RL1d*R33+UDL1d*R33^2/2+IF(R33>PosPUDL1,PUDL1d*(R33-PosPUDL1)^2/2,0)+IF(R33>(PosPUDL1+3),-PUDL1d*(R33-PosPUDL1-3)^2/2,0)+IF(R33>PosPUDL2,PUDL2d*(R33-PosPUDL2)^2/2,0)+IF(R33>(PosPUDL2+LePUDL2),-PUDL2d*(R33-PosPUDL2-LePUDL2)^2/2,0)+IF(R33>PosPLa1,PLa1d*(R33-PosPLa1),0)+IF(R33>PosPLb1,PLb1d*(R33-PosPLb1),0) -> -20.73 | S34: =-RL1d*S33+UDL1d*S33^2/2+IF(S33>PosPUDL1,PUDL1d*(S33-PosPUDL1)^2/2,0)+IF(S33>(PosPUDL1+3),-PUDL1d*(S33-PosPUDL1-3)^2/2,0)+IF(S33>PosPUDL2,PUDL2d*(S33-PosPUDL2)^2/2,0)+IF(S33>(PosPUDL2+LePUDL2),-PUDL2d*(S33-PosPUDL2-LePUDL2)^2/2,0)+IF(S33>PosPLa1,PLa1d*(S33-PosPLa1),0)+IF(S33>PosPLb1,PLb1d*(S33-PosPLb1),0) -> -21.90 | T34: =-RL1d*T33+UDL1d*T33^2/2+IF(T33>PosPUDL1,PUDL1d*(T33-PosPUDL1)^2/2,0)+IF(T33>(PosPUDL1+3),-PUDL1d*(T33-PosPUDL1-3)^2/2,0)+IF(T33>PosPUDL2,PUDL2d*(T33-PosPUDL2)^2/2,0)+IF(T33>(PosPUDL2+LePUDL2),-PUDL2d*(T33-PosPUDL2-LePUDL2)^2/2,0)+IF(T33>PosPLa1,PLa1d*(T33-PosPLa1),0)+IF(T33>PosPLb1,PLb1d*(T33-PosPLb1),0) -> -23.03 | U34: =-RL1d*U33+UDL1d*U33^2/2+IF(U33>PosPUDL1,PUDL1d*(U33-PosPUDL1)^2/2,0)+IF(U33>(PosPUDL1+3),-PUDL1d*(U33-PosPUDL1-3)^2/2,0)+IF(U33>PosPUDL2,PUDL2d*(U33-PosPUDL2)^2/2,0)+IF(U33>(PosPUDL2+LePUDL2),-PUDL2d*(U33-PosPUDL2-LePUDL2)^2/2,0)+IF(U33>PosPLa1,PLa1d*(U33-PosPLa1),0)+IF(U33>PosPLb1,PLb1d*(U33-PosPLb1),0) -> -24.12 | V34: =-RL1d*V33+UDL1d*V33^2/2+IF(V33>PosPUDL1,PUDL1d*(V33-PosPUDL1)^2/2,0)+IF(V33>(PosPUDL1+3),-PUDL1d*(V33-PosPUDL1-3)^2/2,0)+IF(V33>PosPUDL2,PUDL2d*(V33-PosPUDL2)^2/2,0)+IF(V33>(PosPUDL2+LePUDL2),-PUDL2d*(V33-PosPUDL2-LePUDL2)^2/2,0)+IF(V33>PosPLa1,PLa1d*(V33-PosPLa1),0)+IF(V33>PosPLb1,PLb1d*(V33-PosPLb1),0) -> -25.19 | W34: =-RL1d*W33+UDL1d*W33^2/2+IF(W33>PosPUDL1,PUDL1d*(W33-PosPUDL1)^2/2,0)+IF(W33>(PosPUDL1+3),-PUDL1d*(W33-PosPUDL1-3)^2/2,0)+IF(W33>PosPUDL2,PUDL2d*(W33-PosPUDL2)^2/2,0)+IF(W33>(PosPUDL2+LePUDL2),-PUDL2d*(W33-PosPUDL2-LePUDL2)^2/2,0)+IF(W33>PosPLa1,PLa1d*(W33-PosPLa1),0)+IF(W33>PosPLb1,PLb1d*(W33-PosPLb1),0) -> -26.21 | X34: =-RL1d*X33+UDL1d*X33^2/2+IF(X33>PosPUDL1,PUDL1d*(X33-PosPUDL1)^2/2,0)+IF(X33>(PosPUDL1+3),-PUDL1d*(X33-PosPUDL1-3)^2/2,0)+IF(X33>PosPUDL2,PUDL2d*(X33-PosPUDL2)^2/2,0)+IF(X33>(PosPUDL2+LePUDL2),-PUDL2d*(X33-PosPUDL2-LePUDL2)^2/2,0)+IF(X33>PosPLa1,PLa1d*(X33-PosPLa1),0)+IF(X33>PosPLb1,PLb1d*(X33-PosPLb1),0) -> -27.20 | Y34: =-RL1d*Y33+UDL1d*Y33^2/2+IF(Y33>PosPUDL1,PUDL1d*(Y33-PosPUDL1)^2/2,0)+IF(Y33>(PosPUDL1+3),-PUDL1d*(Y33-PosPUDL1-3)^2/2,0)+IF(Y33>PosPUDL2,PUDL2d*(Y33-PosPUDL2)^2/2,0)+IF(Y33>(PosPUDL2+LePUDL2),-PUDL2d*(Y33-PosPUDL2-LePUDL2)^2/2,0)+IF(Y33>PosPLa1,PLa1d*(Y33-PosPLa1),0)+IF(Y33>PosPLb1,PLb1d*(Y33-PosPLb1),0) -> -28.16 | Z34: =-RL1d*Z33+UDL1d*Z33^2/2+IF(Z33>PosPUDL1,PUDL1d*(Z33-PosPUDL1)^2/2,0)+IF(Z33>(PosPUDL1+3),-PUDL1d*(Z33-PosPUDL1-3)^2/2,0)+IF(Z33>PosPUDL2,PUDL2d*(Z33-PosPUDL2)^2/2,0)+IF(Z33>(PosPUDL2+LePUDL2),-PUDL2d*(Z33-PosPUDL2-LePUDL2)^2/2,0)+IF(Z33>PosPLa1,PLa1d*(Z33-PosPLa1),0)+IF(Z33>PosPLb1,PLb1d*(Z33-PosPLb1),0) -> -29.08 | AA34: =-RL1d*AA33+UDL1d*AA33^2/2+IF(AA33>PosPUDL1,PUDL1d*(AA33-PosPUDL1)^2/2,0)+IF(AA33>(PosPUDL1+3),-PUDL1d*(AA33-PosPUDL1-3)^2/2,0)+IF(AA33>PosPUDL2,PUDL2d*(AA33-PosPUDL2)^2/2,0)+IF(AA33>(PosPUDL2+LePUDL2),-PUDL2d*(AA33-PosPUDL2-LePUDL2)^2/2,0)+IF(AA33>PosPLa1,PLa1d*(AA33-PosPLa1),0)+IF(AA33>PosPLb1,PLb1d*(AA33-PosPLb1),0) -> -29.96 | AB34: =-RL1d*AB33+UDL1d*AB33^2/2+IF(AB33>PosPUDL1,PUDL1d*(AB33-PosPUDL1)^2/2,0)+IF(AB33>(PosPUDL1+3),-PUDL1d*(AB33-PosPUDL1-3)^2/2,0)+IF(AB33>PosPUDL2,PUDL2d*(AB33-PosPUDL2)^2/2,0)+IF(AB33>(PosPUDL2+LePUDL2),-PUDL2d*(AB33-PosPUDL2-LePUDL2)^2/2,0)+IF(AB33>PosPLa1,PLa1d*(AB33-PosPLa1),0)+IF(AB33>PosPLb1,PLb1d*(AB33-PosPLb1),0) -> -30.81 | AC34: =-RL1d*AC33+UDL1d*AC33^2/2+IF(AC33>PosPUDL1,PUDL1d*(AC33-PosPUDL1)^2/2,0)+IF(AC33>(PosPUDL1+3),-PUDL1d*(AC33-PosPUDL1-3)^2/2,0)+IF(AC33>PosPUDL2,PUDL2d*(AC33-PosPUDL2)^2/2,0)+IF(AC33>(PosPUDL2+LePUDL2),-PUDL2d*(AC33-PosPUDL2-LePUDL2)^2/2,0)+IF(AC33>PosPLa1,PLa1d*(AC33-PosPLa1),0)+IF(AC33>PosPLb1,PLb1d*(AC33-PosPLb1),0) -> -31.62 | AD34: =-RL1d*AD33+UDL1d*AD33^2/2+IF(AD33>PosPUDL1,PUDL1d*(AD33-PosPUDL1)^2/2,0)+IF(AD33>(PosPUDL1+3),-PUDL1d*(AD33-PosPUDL1-3)^2/2,0)+IF(AD33>PosPUDL2,PUDL2d*(AD33-PosPUDL2)^2/2,0)+IF(AD33>(PosPUDL2+LePUDL2),-PUDL2d*(AD33-PosPUDL2-LePUDL2)^2/2,0)+IF(AD33>PosPLa1,PLa1d*(AD33-PosPLa1),0)+IF(AD33>PosPLb1,PLb1d*(AD33-PosPLb1),0) -> -32.40 | AE34: =-RL1d*AE33+UDL1d*AE33^2/2+IF(AE33>PosPUDL1,PUDL1d*(AE33-PosPUDL1)^2/2,0)+IF(AE33>(PosPUDL1+3),-PUDL1d*(AE33-PosPUDL1-3)^2/2,0)+IF(AE33>PosPUDL2,PUDL2d*(AE33-PosPUDL2)^2/2,0)+IF(AE33>(PosPUDL2+LePUDL2),-PUDL2d*(AE33-PosPUDL2-LePUDL2)^2/2,0)+IF(AE33>PosPLa1,PLa1d*(AE33-PosPLa1),0)+IF(AE33>PosPLb1,PLb1d*(AE33-PosPLb1),0) -> -33.15 | AF34: =-RL1d*AF33+UDL1d*AF33^2/2+IF(AF33>PosPUDL1,PUDL1d*(AF33-PosPUDL1)^2/2,0)+IF(AF33>(PosPUDL1+3),-PUDL1d*(AF33-PosPUDL1-3)^2/2,0)+IF(AF33>PosPUDL2,PUDL2d*(AF33-PosPUDL2)^2/2,0)+IF(AF33>(PosPUDL2+LePUDL2),-PUDL2d*(AF33-PosPUDL2-LePUDL2)^2/2,0)+IF(AF33>PosPLa1,PLa1d*(AF33-PosPLa1),0)+IF(AF33>PosPLb1,PLb1d*(AF33-PosPLb1),0) -> -33.85 | AG34: =-RL1d*AG33+UDL1d*AG33^2/2+IF(AG33>PosPUDL1,PUDL1d*(AG33-PosPUDL1)^2/2,0)+IF(AG33>(PosPUDL1+3),-PUDL1d*(AG33-PosPUDL1-3)^2/2,0)+IF(AG33>PosPUDL2,PUDL2d*(AG33-PosPUDL2)^2/2,0)+IF(AG33>(PosPUDL2+LePUDL2),-PUDL2d*(AG33-PosPUDL2-LePUDL2)^2/2,0)+IF(AG33>PosPLa1,PLa1d*(AG33-PosPLa1),0)+IF(AG33>PosPLb1,PLb1d*(AG33-PosPLb1),0) -> -34.53 | AH34: =-RL1d*AH33+UDL1d*AH33^2/2+IF(AH33>PosPUDL1,PUDL1d*(AH33-PosPUDL1)^2/2,0)+IF(AH33>(PosPUDL1+3),-PUDL1d*(AH33-PosPUDL1-3)^2/2,0)+IF(AH33>PosPUDL2,PUDL2d*(AH33-PosPUDL2)^2/2,0)+IF(AH33>(PosPUDL2+LePUDL2),-PUDL2d*(AH33-PosPUDL2-LePUDL2)^2/2,0)+IF(AH33>PosPLa1,PLa1d*(AH33-PosPLa1),0)+IF(AH33>PosPLb1,PLb1d*(AH33-PosPLb1),0) -> -35.16 | AI34: =-RL1d*AI33+UDL1d*AI33^2/2+IF(AI33>PosPUDL1,PUDL1d*(AI33-PosPUDL1)^2/2,0)+IF(AI33>(PosPUDL1+3),-PUDL1d*(AI33-PosPUDL1-3)^2/2,0)+IF(AI33>PosPUDL2,PUDL2d*(AI33-PosPUDL2)^2/2,0)+IF(AI33>(PosPUDL2+LePUDL2),-PUDL2d*(AI33-PosPUDL2-LePUDL2)^2/2,0)+IF(AI33>PosPLa1,PLa1d*(AI33-PosPLa1),0)+IF(AI33>PosPLb1,PLb1d*(AI33-PosPLb1),0) -> -35.77 | AJ34: =-RL1d*AJ33+UDL1d*AJ33^2/2+IF(AJ33>PosPUDL1,PUDL1d*(AJ33-PosPUDL1)^2/2,0)+IF(AJ33>(PosPUDL1+3),-PUDL1d*(AJ33-PosPUDL1-3)^2/2,0)+IF(AJ33>PosPUDL2,PUDL2d*(AJ33-PosPUDL2)^2/2,0)+IF(AJ33>(PosPUDL2+LePUDL2),-PUDL2d*(AJ33-PosPUDL2-LePUDL2)^2/2,0)+IF(AJ33>PosPLa1,PLa1d*(AJ33-PosPLa1),0)+IF(AJ33>PosPLb1,PLb1d*(AJ33-PosPLb1),0) -> -36.33 | AK34: =-RL1d*AK33+UDL1d*AK33^2/2+IF(AK33>PosPUDL1,PUDL1d*(AK33-PosPUDL1)^2/2,0)+IF(AK33>(PosPUDL1+3),-PUDL1d*(AK33-PosPUDL1-3)^2/2,0)+IF(AK33>PosPUDL2,PUDL2d*(AK33-PosPUDL2)^2/2,0)+IF(AK33>(PosPUDL2+LePUDL2),-PUDL2d*(AK33-PosPUDL2-LePUDL2)^2/2,0)+IF(AK33>PosPLa1,PLa1d*(AK33-PosPLa1),0)+IF(AK33>PosPLb1,PLb1d*(AK33-PosPLb1),0) -> -36.87 | AL34: =-RL1d*AL33+UDL1d*AL33^2/2+IF(AL33>PosPUDL1,PUDL1d*(AL33-PosPUDL1)^2/2,0)+IF(AL33>(PosPUDL1+3),-PUDL1d*(AL33-PosPUDL1-3)^2/2,0)+IF(AL33>PosPUDL2,PUDL2d*(AL33-PosPUDL2)^2/2,0)+IF(AL33>(PosPUDL2+LePUDL2),-PUDL2d*(AL33-PosPUDL2-LePUDL2)^2/2,0)+IF(AL33>PosPLa1,PLa1d*(AL33-PosPLa1),0)+IF(AL33>PosPLb1,PLb1d*(AL33-PosPLb1),0) -> -37.36 | AM34: =-RL1d*AM33+UDL1d*AM33^2/2+IF(AM33>PosPUDL1,PUDL1d*(AM33-PosPUDL1)^2/2,0)+IF(AM33>(PosPUDL1+3),-PUDL1d*(AM33-PosPUDL1-3)^2/2,0)+IF(AM33>PosPUDL2,PUDL2d*(AM33-PosPUDL2)^2/2,0)+IF(AM33>(PosPUDL2+LePUDL2),-PUDL2d*(AM33-PosPUDL2-LePUDL2)^2/2,0)+IF(AM33>PosPLa1,PLa1d*(AM33-PosPLa1),0)+IF(AM33>PosPLb1,PLb1d*(AM33-PosPLb1),0) -> -37.82 | AN34: =-RL1d*AN33+UDL1d*AN33^2/2+IF(AN33>PosPUDL1,PUDL1d*(AN33-PosPUDL1)^2/2,0)+IF(AN33>(PosPUDL1+3),-PUDL1d*(AN33-PosPUDL1-3)^2/2,0)+IF(AN33>PosPUDL2,PUDL2d*(AN33-PosPUDL2)^2/2,0)+IF(AN33>(PosPUDL2+LePUDL2),-PUDL2d*(AN33-PosPUDL2-LePUDL2)^2/2,0)+IF(AN33>PosPLa1,PLa1d*(AN33-PosPLa1),0)+IF(AN33>PosPLb1,PLb1d*(AN33-PosPLb1),0) -> -38.25 | AO34: =-RL1d*AO33+UDL1d*AO33^2/2+IF(AO33>PosPUDL1,PUDL1d*(AO33-PosPUDL1)^2/2,0)+IF(AO33>(PosPUDL1+3),-PUDL1d*(AO33-PosPUDL1-3)^2/2,0)+IF(AO33>PosPUDL2,PUDL2d*(AO33-PosPUDL2)^2/2,0)+IF(AO33>(PosPUDL2+LePUDL2),-PUDL2d*(AO33-PosPUDL2-LePUDL2)^2/2,0)+IF(AO33>PosPLa1,PLa1d*(AO33-PosPLa1),0)+IF(AO33>PosPLb1,PLb1d*(AO33-PosPLb1),0) -> -38.56 | AP34: =-RL1d*AP33+UDL1d*AP33^2/2+IF(AP33>PosPUDL1,PUDL1d*(AP33-PosPUDL1)^2/2,0)+IF(AP33>(PosPUDL1+3),-PUDL1d*(AP33-PosPUDL1-3)^2/2,0)+IF(AP33>PosPUDL2,PUDL2d*(AP33-PosPUDL2)^2/2,0)+IF(AP33>(PosPUDL2+LePUDL2),-PUDL2d*(AP33-PosPUDL2-LePUDL2)^2/2,0)+IF(AP33>PosPLa1,PLa1d*(AP33-PosPLa1),0)+IF(AP33>PosPLb1,PLb1d*(AP33-PosPLb1),0) -> -38.76 | AQ34: =-RL1d*AQ33+UDL1d*AQ33^2/2+IF(AQ33>PosPUDL1,PUDL1d*(AQ33-PosPUDL1)^2/2,0)+IF(AQ33>(PosPUDL1+3),-PUDL1d*(AQ33-PosPUDL1-3)^2/2,0)+IF(AQ33>PosPUDL2,PUDL2d*(AQ33-PosPUDL2)^2/2,0)+IF(AQ33>(PosPUDL2+LePUDL2),-PUDL2d*(AQ33-PosPUDL2-LePUDL2)^2/2,0)+IF(AQ33>PosPLa1,PLa1d*(AQ33-PosPLa1),0)+IF(AQ33>PosPLb1,PLb1d*(AQ33-PosPLb1),0) -> -38.92 | AR34: =-RL1d*AR33+UDL1d*AR33^2/2+IF(AR33>PosPUDL1,PUDL1d*(AR33-PosPUDL1)^2/2,0)+IF(AR33>(PosPUDL1+3),-PUDL1d*(AR33-PosPUDL1-3)^2/2,0)+IF(AR33>PosPUDL2,PUDL2d*(AR33-PosPUDL2)^2/2,0)+IF(AR33>(PosPUDL2+LePUDL2),-PUDL2d*(AR33-PosPUDL2-LePUDL2)^2/2,0)+IF(AR33>PosPLa1,PLa1d*(AR33-PosPLa1),0)+IF(AR33>PosPLb1,PLb1d*(AR33-PosPLb1),0) -> -39.04 | AS34: =-RL1d*AS33+UDL1d*AS33^2/2+IF(AS33>PosPUDL1,PUDL1d*(AS33-PosPUDL1)^2/2,0)+IF(AS33>(PosPUDL1+3),-PUDL1d*(AS33-PosPUDL1-3)^2/2,0)+IF(AS33>PosPUDL2,PUDL2d*(AS33-PosPUDL2)^2/2,0)+IF(AS33>(PosPUDL2+LePUDL2),-PUDL2d*(AS33-PosPUDL2-LePUDL2)^2/2,0)+IF(AS33>PosPLa1,PLa1d*(AS33-PosPLa1),0)+IF(AS33>PosPLb1,PLb1d*(AS33-PosPLb1),0) -> -39.13 | AT34: =-RL1d*AT33+UDL1d*AT33^2/2+IF(AT33>PosPUDL1,PUDL1d*(AT33-PosPUDL1)^2/2,0)+IF(AT33>(PosPUDL1+3),-PUDL1d*(AT33-PosPUDL1-3)^2/2,0)+IF(AT33>PosPUDL2,PUDL2d*(AT33-PosPUDL2)^2/2,0)+IF(AT33>(PosPUDL2+LePUDL2),-PUDL2d*(AT33-PosPUDL2-LePUDL2)^2/2,0)+IF(AT33>PosPLa1,PLa1d*(AT33-PosPLa1),0)+IF(AT33>PosPLb1,PLb1d*(AT33-PosPLb1),0) -> -39.19 | AU34: =-RL1d*AU33+UDL1d*AU33^2/2+IF(AU33>PosPUDL1,PUDL1d*(AU33-PosPUDL1)^2/2,0)+IF(AU33>(PosPUDL1+3),-PUDL1d*(AU33-PosPUDL1-3)^2/2,0)+IF(AU33>PosPUDL2,PUDL2d*(AU33-PosPUDL2)^2/2,0)+IF(AU33>(PosPUDL2+LePUDL2),-PUDL2d*(AU33-PosPUDL2-LePUDL2)^2/2,0)+IF(AU33>PosPLa1,PLa1d*(AU33-PosPLa1),0)+IF(AU33>PosPLb1,PLb1d*(AU33-PosPLb1),0) -> -39.21 | AV34: =-RL1d*AV33+UDL1d*AV33^2/2+IF(AV33>PosPUDL1,PUDL1d*(AV33-PosPUDL1)^2/2,0)+IF(AV33>(PosPUDL1+3),-PUDL1d*(AV33-PosPUDL1-3)^2/2,0)+IF(AV33>PosPUDL2,PUDL2d*(AV33-PosPUDL2)^2/2,0)+IF(AV33>(PosPUDL2+LePUDL2),-PUDL2d*(AV33-PosPUDL2-LePUDL2)^2/2,0)+IF(AV33>PosPLa1,PLa1d*(AV33-PosPLa1),0)+IF(AV33>PosPLb1,PLb1d*(AV33-PosPLb1),0) -> -39.19 | AW34: =-RL1d*AW33+UDL1d*AW33^2/2+IF(AW33>PosPUDL1,PUDL1d*(AW33-PosPUDL1)^2/2,0)+IF(AW33>(PosPUDL1+3),-PUDL1d*(AW33-PosPUDL1-3)^2/2,0)+IF(AW33>PosPUDL2,PUDL2d*(AW33-PosPUDL2)^2/2,0)+IF(AW33>(PosPUDL2+LePUDL2),-PUDL2d*(AW33-PosPUDL2-LePUDL2)^2/2,0)+IF(AW33>PosPLa1,PLa1d*(AW33-PosPLa1),0)+IF(AW33>PosPLb1,PLb1d*(AW33-PosPLb1),0) -> -39.14 | AX34: =-RL1d*AX33+UDL1d*AX33^2/2+IF(AX33>PosPUDL1,PUDL1d*(AX33-PosPUDL1)^2/2,0)+IF(AX33>(PosPUDL1+3),-PUDL1d*(AX33-PosPUDL1-3)^2/2,0)+IF(AX33>PosPUDL2,PUDL2d*(AX33-PosPUDL2)^2/2,0)+IF(AX33>(PosPUDL2+LePUDL2),-PUDL2d*(AX33-PosPUDL2-LePUDL2)^2/2,0)+IF(AX33>PosPLa1,PLa1d*(AX33-PosPLa1),0)+IF(AX33>PosPLb1,PLb1d*(AX33-PosPLb1),0) -> -39.05 | AY34: =-RL1d*AY33+UDL1d*AY33^2/2+IF(AY33>PosPUDL1,PUDL1d*(AY33-PosPUDL1)^2/2,0)+IF(AY33>(PosPUDL1+3),-PUDL1d*(AY33-PosPUDL1-3)^2/2,0)+IF(AY33>PosPUDL2,PUDL2d*(AY33-PosPUDL2)^2/2,0)+IF(AY33>(PosPUDL2+LePUDL2),-PUDL2d*(AY33-PosPUDL2-LePUDL2)^2/2,0)+IF(AY33>PosPLa1,PLa1d*(AY33-PosPLa1),0)+IF(AY33>PosPLb1,PLb1d*(AY33-PosPLb1),0) -> -38.93 | AZ34: =-RL1d*AZ33+UDL1d*AZ33^2/2+IF(AZ33>PosPUDL1,PUDL1d*(AZ33-PosPUDL1)^2/2,0)+IF(AZ33>(PosPUDL1+3),-PUDL1d*(AZ33-PosPUDL1-3)^2/2,0)+IF(AZ33>PosPUDL2,PUDL2d*(AZ33-PosPUDL2)^2/2,0)+IF(AZ33>(PosPUDL2+LePUDL2),-PUDL2d*(AZ33-PosPUDL2-LePUDL2)^2/2,0)+IF(AZ33>PosPLa1,PLa1d*(AZ33-PosPLa1),0)+IF(AZ33>PosPLb1,PLb1d*(AZ33-PosPLb1),0) -> -38.77 | BA34: =-RL1d*BA33+UDL1d*BA33^2/2+IF(BA33>PosPUDL1,PUDL1d*(BA33-PosPUDL1)^2/2,0)+IF(BA33>(PosPUDL1+3),-PUDL1d*(BA33-PosPUDL1-3)^2/2,0)+IF(BA33>PosPUDL2,PUDL2d*(BA33-PosPUDL2)^2/2,0)+IF(BA33>(PosPUDL2+LePUDL2),-PUDL2d*(BA33-PosPUDL2-LePUDL2)^2/2,0)+IF(BA33>PosPLa1,PLa1d*(BA33-PosPLa1),0)+IF(BA33>PosPLb1,PLb1d*(BA33-PosPLb1),0) -> -38.58 | BB34: =-RL1d*BB33+UDL1d*BB33^2/2+IF(BB33>PosPUDL1,PUDL1d*(BB33-PosPUDL1)^2/2,0)+IF(BB33>(PosPUDL1+3),-PUDL1d*(BB33-PosPUDL1-3)^2/2,0)+IF(BB33>PosPUDL2,PUDL2d*(BB33-PosPUDL2)^2/2,0)+IF(BB33>(PosPUDL2+LePUDL2),-PUDL2d*(BB33-PosPUDL2-LePUDL2)^2/2,0)+IF(BB33>PosPLa1,PLa1d*(BB33-PosPLa1),0)+IF(BB33>PosPLb1,PLb1d*(BB33-PosPLb1),0) -> -38.36 | BC34: =-RL1d*BC33+UDL1d*BC33^2/2+IF(BC33>PosPUDL1,PUDL1d*(BC33-PosPUDL1)^2/2,0)+IF(BC33>(PosPUDL1+3),-PUDL1d*(BC33-PosPUDL1-3)^2/2,0)+IF(BC33>PosPUDL2,PUDL2d*(BC33-PosPUDL2)^2/2,0)+IF(BC33>(PosPUDL2+LePUDL2),-PUDL2d*(BC33-PosPUDL2-LePUDL2)^2/2,0)+IF(BC33>PosPLa1,PLa1d*(BC33-PosPLa1),0)+IF(BC33>PosPLb1,PLb1d*(BC33-PosPLb1),0) -> -38.12 | BD34: =-RL1d*BD33+UDL1d*BD33^2/2+IF(BD33>PosPUDL1,PUDL1d*(BD33-PosPUDL1)^2/2,0)+IF(BD33>(PosPUDL1+3),-PUDL1d*(BD33-PosPUDL1-3)^2/2,0)+IF(BD33>PosPUDL2,PUDL2d*(BD33-PosPUDL2)^2/2,0)+IF(BD33>(PosPUDL2+LePUDL2),-PUDL2d*(BD33-PosPUDL2-LePUDL2)^2/2,0)+IF(BD33>PosPLa1,PLa1d*(BD33-PosPLa1),0)+IF(BD33>PosPLb1,PLb1d*(BD33-PosPLb1),0) -> -37.85 | BE34: =-RL1d*BE33+UDL1d*BE33^2/2+IF(BE33>PosPUDL1,PUDL1d*(BE33-PosPUDL1)^2/2,0)+IF(BE33>(PosPUDL1+3),-PUDL1d*(BE33-PosPUDL1-3)^2/2,0)+IF(BE33>PosPUDL2,PUDL2d*(BE33-PosPUDL2)^2/2,0)+IF(BE33>(PosPUDL2+LePUDL2),-PUDL2d*(BE33-PosPUDL2-LePUDL2)^2/2,0)+IF(BE33>PosPLa1,PLa1d*(BE33-PosPLa1),0)+IF(BE33>PosPLb1,PLb1d*(BE33-PosPLb1),0) -> -37.56 | BF34: =-RL1d*BF33+UDL1d*BF33^2/2+IF(BF33>PosPUDL1,PUDL1d*(BF33-PosPUDL1)^2/2,0)+IF(BF33>(PosPUDL1+3),-PUDL1d*(BF33-PosPUDL1-3)^2/2,0)+IF(BF33>PosPUDL2,PUDL2d*(BF33-PosPUDL2)^2/2,0)+IF(BF33>(PosPUDL2+LePUDL2),-PUDL2d*(BF33-PosPUDL2-LePUDL2)^2/2,0)+IF(BF33>PosPLa1,PLa1d*(BF33-PosPLa1),0)+IF(BF33>PosPLb1,PLb1d*(BF33-PosPLb1),0) -> -37.25 | BG34: =-RL1d*BG33+UDL1d*BG33^2/2+IF(BG33>PosPUDL1,PUDL1d*(BG33-PosPUDL1)^2/2,0)+IF(BG33>(PosPUDL1+3),-PUDL1d*(BG33-PosPUDL1-3)^2/2,0)+IF(BG33>PosPUDL2,PUDL2d*(BG33-PosPUDL2)^2/2,0)+IF(BG33>(PosPUDL2+LePUDL2),-PUDL2d*(BG33-PosPUDL2-LePUDL2)^2/2,0)+IF(BG33>PosPLa1,PLa1d*(BG33-PosPLa1),0)+IF(BG33>PosPLb1,PLb1d*(BG33-PosPLb1),0) -> -36.92 | BH34: =-RL1d*BH33+UDL1d*BH33^2/2+IF(BH33>PosPUDL1,PUDL1d*(BH33-PosPUDL1)^2/2,0)+IF(BH33>(PosPUDL1+3),-PUDL1d*(BH33-PosPUDL1-3)^2/2,0)+IF(BH33>PosPUDL2,PUDL2d*(BH33-PosPUDL2)^2/2,0)+IF(BH33>(PosPUDL2+LePUDL2),-PUDL2d*(BH33-PosPUDL2-LePUDL2)^2/2,0)+IF(BH33>PosPLa1,PLa1d*(BH33-PosPLa1),0)+IF(BH33>PosPLb1,PLb1d*(BH33-PosPLb1),0) -> -36.56 | BI34: =-RL1d*BI33+UDL1d*BI33^2/2+IF(BI33>PosPUDL1,PUDL1d*(BI33-PosPUDL1)^2/2,0)+IF(BI33>(PosPUDL1+3),-PUDL1d*(BI33-PosPUDL1-3)^2/2,0)+IF(BI33>PosPUDL2,PUDL2d*(BI33-PosPUDL2)^2/2,0)+IF(BI33>(PosPUDL2+LePUDL2),-PUDL2d*(BI33-PosPUDL2-LePUDL2)^2/2,0)+IF(BI33>PosPLa1,PLa1d*(BI33-PosPLa1),0)+IF(BI33>PosPLb1,PLb1d*(BI33-PosPLb1),0) -> -36.18 | BJ34: =-RL1d*BJ33+UDL1d*BJ33^2/2+IF(BJ33>PosPUDL1,PUDL1d*(BJ33-PosPUDL1)^2/2,0)+IF(BJ33>(PosPUDL1+3),-PUDL1d*(BJ33-PosPUDL1-3)^2/2,0)+IF(BJ33>PosPUDL2,PUDL2d*(BJ33-PosPUDL2)^2/2,0)+IF(BJ33>(PosPUDL2+LePUDL2),-PUDL2d*(BJ33-PosPUDL2-LePUDL2)^2/2,0)+IF(BJ33>PosPLa1,PLa1d*(BJ33-PosPLa1),0)+IF(BJ33>PosPLb1,PLb1d*(BJ33-PosPLb1),0) -> -35.78 | BK34: =-RL1d*BK33+UDL1d*BK33^2/2+IF(BK33>PosPUDL1,PUDL1d*(BK33-PosPUDL1)^2/2,0)+IF(BK33>(PosPUDL1+3),-PUDL1d*(BK33-PosPUDL1-3)^2/2,0)+IF(BK33>PosPUDL2,PUDL2d*(BK33-PosPUDL2)^2/2,0)+IF(BK33>(PosPUDL2+LePUDL2),-PUDL2d*(BK33-PosPUDL2-LePUDL2)^2/2,0)+IF(BK33>PosPLa1,PLa1d*(BK33-PosPLa1),0)+IF(BK33>PosPLb1,PLb1d*(BK33-PosPLb1),0) -> -35.36 | BL34: =-RL1d*BL33+UDL1d*BL33^2/2+IF(BL33>PosPUDL1,PUDL1d*(BL33-PosPUDL1)^2/2,0)+IF(BL33>(PosPUDL1+3),-PUDL1d*(BL33-PosPUDL1-3)^2/2,0)+IF(BL33>PosPUDL2,PUDL2d*(BL33-PosPUDL2)^2/2,0)+IF(BL33>(PosPUDL2+LePUDL2),-PUDL2d*(BL33-PosPUDL2-LePUDL2)^2/2,0)+IF(BL33>PosPLa1,PLa1d*(BL33-PosPLa1),0)+IF(BL33>PosPLb1,PLb1d*(BL33-PosPLb1),0) -> -34.91 | BM34: =-RL1d*BM33+UDL1d*BM33^2/2+IF(BM33>PosPUDL1,PUDL1d*(BM33-PosPUDL1)^2/2,0)+IF(BM33>(PosPUDL1+3),-PUDL1d*(BM33-PosPUDL1-3)^2/2,0)+IF(BM33>PosPUDL2,PUDL2d*(BM33-PosPUDL2)^2/2,0)+IF(BM33>(PosPUDL2+LePUDL2),-PUDL2d*(BM33-PosPUDL2-LePUDL2)^2/2,0)+IF(BM33>PosPLa1,PLa1d*(BM33-PosPLa1),0)+IF(BM33>PosPLb1,PLb1d*(BM33-PosPLb1),0) -> -34.44 | BN34: =-RL1d*BN33+UDL1d*BN33^2/2+IF(BN33>PosPUDL1,PUDL1d*(BN33-PosPUDL1)^2/2,0)+IF(BN33>(PosPUDL1+3),-PUDL1d*(BN33-PosPUDL1-3)^2/2,0)+IF(BN33>PosPUDL2,PUDL2d*(BN33-PosPUDL2)^2/2,0)+IF(BN33>(PosPUDL2+LePUDL2),-PUDL2d*(BN33-PosPUDL2-LePUDL2)^2/2,0)+IF(BN33>PosPLa1,PLa1d*(BN33-PosPLa1),0)+IF(BN33>PosPLb1,PLb1d*(BN33-PosPLb1),0) -> -33.95 | BO34: =-RL1d*BO33+UDL1d*BO33^2/2+IF(BO33>PosPUDL1,PUDL1d*(BO33-PosPUDL1)^2/2,0)+IF(BO33>(PosPUDL1+3),-PUDL1d*(BO33-PosPUDL1-3)^2/2,0)+IF(BO33>PosPUDL2,PUDL2d*(BO33-PosPUDL2)^2/2,0)+IF(BO33>(PosPUDL2+LePUDL2),-PUDL2d*(BO33-PosPUDL2-LePUDL2)^2/2,0)+IF(BO33>PosPLa1,PLa1d*(BO33-PosPLa1),0)+IF(BO33>PosPLb1,PLb1d*(BO33-PosPLb1),0) -> -33.44 | BP34: =-RL1d*BP33+UDL1d*BP33^2/2+IF(BP33>PosPUDL1,PUDL1d*(BP33-PosPUDL1)^2/2,0)+IF(BP33>(PosPUDL1+3),-PUDL1d*(BP33-PosPUDL1-3)^2/2,0)+IF(BP33>PosPUDL2,PUDL2d*(BP33-PosPUDL2)^2/2,0)+IF(BP33>(PosPUDL2+LePUDL2),-PUDL2d*(BP33-PosPUDL2-LePUDL2)^2/2,0)+IF(BP33>PosPLa1,PLa1d*(BP33-PosPLa1),0)+IF(BP33>PosPLb1,PLb1d*(BP33-PosPLb1),0) -> -32.90 | BQ34: =-RL1d*BQ33+UDL1d*BQ33^2/2+IF(BQ33>PosPUDL1,PUDL1d*(BQ33-PosPUDL1)^2/2,0)+IF(BQ33>(PosPUDL1+3),-PUDL1d*(BQ33-PosPUDL1-3)^2/2,0)+IF(BQ33>PosPUDL2,PUDL2d*(BQ33-PosPUDL2)^2/2,0)+IF(BQ33>(PosPUDL2+LePUDL2),-PUDL2d*(BQ33-PosPUDL2-LePUDL2)^2/2,0)+IF(BQ33>PosPLa1,PLa1d*(BQ33-PosPLa1),0)+IF(BQ33>PosPLb1,PLb1d*(BQ33-PosPLb1),0) -> -32.34 | BR34: =-RL1d*BR33+UDL1d*BR33^2/2+IF(BR33>PosPUDL1,PUDL1d*(BR33-PosPUDL1)^2/2,0)+IF(BR33>(PosPUDL1+3),-PUDL1d*(BR33-PosPUDL1-3)^2/2,0)+IF(BR33>PosPUDL2,PUDL2d*(BR33-PosPUDL2)^2/2,0)+IF(BR33>(PosPUDL2+LePUDL2),-PUDL2d*(BR33-PosPUDL2-LePUDL2)^2/2,0)+IF(BR33>PosPLa1,PLa1d*(BR33-PosPLa1),0)+IF(BR33>PosPLb1,PLb1d*(BR33-PosPLb1),0) -> -31.76 | BS34: =-RL1d*BS33+UDL1d*BS33^2/2+IF(BS33>PosPUDL1,PUDL1d*(BS33-PosPUDL1)^2/2,0)+IF(BS33>(PosPUDL1+3),-PUDL1d*(BS33-PosPUDL1-3)^2/2,0)+IF(BS33>PosPUDL2,PUDL2d*(BS33-PosPUDL2)^2/2,0)+IF(BS33>(PosPUDL2+LePUDL2),-PUDL2d*(BS33-PosPUDL2-LePUDL2)^2/2,0)+IF(BS33>PosPLa1,PLa1d*(BS33-PosPLa1),0)+IF(BS33>PosPLb1,PLb1d*(BS33-PosPLb1),0) -> -31.16 | BT34: =-RL1d*BT33+UDL1d*BT33^2/2+IF(BT33>PosPUDL1,PUDL1d*(BT33-PosPUDL1)^2/2,0)+IF(BT33>(PosPUDL1+3),-PUDL1d*(BT33-PosPUDL1-3)^2/2,0)+IF(BT33>PosPUDL2,PUDL2d*(BT33-PosPUDL2)^2/2,0)+IF(BT33>(PosPUDL2+LePUDL2),-PUDL2d*(BT33-PosPUDL2-LePUDL2)^2/2,0)+IF(BT33>PosPLa1,PLa1d*(BT33-PosPLa1),0)+IF(BT33>PosPLb1,PLb1d*(BT33-PosPLb1),0) -> -30.54 | BU34: =-RL1d*BU33+UDL1d*BU33^2/2+IF(BU33>PosPUDL1,PUDL1d*(BU33-PosPUDL1)^2/2,0)+IF(BU33>(PosPUDL1+3),-PUDL1d*(BU33-PosPUDL1-3)^2/2,0)+IF(BU33>PosPUDL2,PUDL2d*(BU33-PosPUDL2)^2/2,0)+IF(BU33>(PosPUDL2+LePUDL2),-PUDL2d*(BU33-PosPUDL2-LePUDL2)^2/2,0)+IF(BU33>PosPLa1,PLa1d*(BU33-PosPLa1),0)+IF(BU33>PosPLb1,PLb1d*(BU33-PosPLb1),0) -> -29.89 | BV34: =-RL1d*BV33+UDL1d*BV33^2/2+IF(BV33>PosPUDL1,PUDL1d*(BV33-PosPUDL1)^2/2,0)+IF(BV33>(PosPUDL1+3),-PUDL1d*(BV33-PosPUDL1-3)^2/2,0)+IF(BV33>PosPUDL2,PUDL2d*(BV33-PosPUDL2)^2/2,0)+IF(BV33>(PosPUDL2+LePUDL2),-PUDL2d*(BV33-PosPUDL2-LePUDL2)^2/2,0)+IF(BV33>PosPLa1,PLa1d*(BV33-PosPLa1),0)+IF(BV33>PosPLb1,PLb1d*(BV33-PosPLb1),0) -> -29.22 | BW34: =-RL1d*BW33+UDL1d*BW33^2/2+IF(BW33>PosPUDL1,PUDL1d*(BW33-PosPUDL1)^2/2,0)+IF(BW33>(PosPUDL1+3),-PUDL1d*(BW33-PosPUDL1-3)^2/2,0)+IF(BW33>PosPUDL2,PUDL2d*(BW33-PosPUDL2)^2/2,0)+IF(BW33>(PosPUDL2+LePUDL2),-PUDL2d*(BW33-PosPUDL2-LePUDL2)^2/2,0)+IF(BW33>PosPLa1,PLa1d*(BW33-PosPLa1),0)+IF(BW33>PosPLb1,PLb1d*(BW33-PosPLb1),0) -> -28.52 | BX34: =-RL1d*BX33+UDL1d*BX33^2/2+IF(BX33>PosPUDL1,PUDL1d*(BX33-PosPUDL1)^2/2,0)+IF(BX33>(PosPUDL1+3),-PUDL1d*(BX33-PosPUDL1-3)^2/2,0)+IF(BX33>PosPUDL2,PUDL2d*(BX33-PosPUDL2)^2/2,0)+IF(BX33>(PosPUDL2+LePUDL2),-PUDL2d*(BX33-PosPUDL2-LePUDL2)^2/2,0)+IF(BX33>PosPLa1,PLa1d*(BX33-PosPLa1),0)+IF(BX33>PosPLb1,PLb1d*(BX33-PosPLb1),0) -> -27.81 | BY34: =-RL1d*BY33+UDL1d*BY33^2/2+IF(BY33>PosPUDL1,PUDL1d*(BY33-PosPUDL1)^2/2,0)+IF(BY33>(PosPUDL1+3),-PUDL1d*(BY33-PosPUDL1-3)^2/2,0)+IF(BY33>PosPUDL2,PUDL2d*(BY33-PosPUDL2)^2/2,0)+IF(BY33>(PosPUDL2+LePUDL2),-PUDL2d*(BY33-PosPUDL2-LePUDL2)^2/2,0)+IF(BY33>PosPLa1,PLa1d*(BY33-PosPLa1),0)+IF(BY33>PosPLb1,PLb1d*(BY33-PosPLb1),0) -> -27.07 | BZ34: =-RL1d*BZ33+UDL1d*BZ33^2/2+IF(BZ33>PosPUDL1,PUDL1d*(BZ33-PosPUDL1)^2/2,0)+IF(BZ33>(PosPUDL1+3),-PUDL1d*(BZ33-PosPUDL1-3)^2/2,0)+IF(BZ33>PosPUDL2,PUDL2d*(BZ33-PosPUDL2)^2/2,0)+IF(BZ33>(PosPUDL2+LePUDL2),-PUDL2d*(BZ33-PosPUDL2-LePUDL2)^2/2,0)+IF(BZ33>PosPLa1,PLa1d*(BZ33-PosPLa1),0)+IF(BZ33>PosPLb1,PLb1d*(BZ33-PosPLb1),0) -> -26.31 | CA34: =-RL1d*CA33+UDL1d*CA33^2/2+IF(CA33>PosPUDL1,PUDL1d*(CA33-PosPUDL1)^2/2,0)+IF(CA33>(PosPUDL1+3),-PUDL1d*(CA33-PosPUDL1-3)^2/2,0)+IF(CA33>PosPUDL2,PUDL2d*(CA33-PosPUDL2)^2/2,0)+IF(CA33>(PosPUDL2+LePUDL2),-PUDL2d*(CA33-PosPUDL2-LePUDL2)^2/2,0)+IF(CA33>PosPLa1,PLa1d*(CA33-PosPLa1),0)+IF(CA33>PosPLb1,PLb1d*(CA33-PosPLb1),0) -> -25.53 | CB34: =-RL1d*CB33+UDL1d*CB33^2/2+IF(CB33>PosPUDL1,PUDL1d*(CB33-PosPUDL1)^2/2,0)+IF(CB33>(PosPUDL1+3),-PUDL1d*(CB33-PosPUDL1-3)^2/2,0)+IF(CB33>PosPUDL2,PUDL2d*(CB33-PosPUDL2)^2/2,0)+IF(CB33>(PosPUDL2+LePUDL2),-PUDL2d*(CB33-PosPUDL2-LePUDL2)^2/2,0)+IF(CB33>PosPLa1,PLa1d*(CB33-PosPLa1),0)+IF(CB33>PosPLb1,PLb1d*(CB33-PosPLb1),0) -> -24.72 | CC34: =-RL1d*CC33+UDL1d*CC33^2/2+IF(CC33>PosPUDL1,PUDL1d*(CC33-PosPUDL1)^2/2,0)+IF(CC33>(PosPUDL1+3),-PUDL1d*(CC33-PosPUDL1-3)^2/2,0)+IF(CC33>PosPUDL2,PUDL2d*(CC33-PosPUDL2)^2/2,0)+IF(CC33>(PosPUDL2+LePUDL2),-PUDL2d*(CC33-PosPUDL2-LePUDL2)^2/2,0)+IF(CC33>PosPLa1,PLa1d*(CC33-PosPLa1),0)+IF(CC33>PosPLb1,PLb1d*(CC33-PosPLb1),0) -> -23.89 | CD34: =-RL1d*CD33+UDL1d*CD33^2/2+IF(CD33>PosPUDL1,PUDL1d*(CD33-PosPUDL1)^2/2,0)+IF(CD33>(PosPUDL1+3),-PUDL1d*(CD33-PosPUDL1-3)^2/2,0)+IF(CD33>PosPUDL2,PUDL2d*(CD33-PosPUDL2)^2/2,0)+IF(CD33>(PosPUDL2+LePUDL2),-PUDL2d*(CD33-PosPUDL2-LePUDL2)^2/2,0)+IF(CD33>PosPLa1,PLa1d*(CD33-PosPLa1),0)+IF(CD33>PosPLb1,PLb1d*(CD33-PosPLb1),0) -> -23.04 | CE34: =-RL1d*CE33+UDL1d*CE33^2/2+IF(CE33>PosPUDL1,PUDL1d*(CE33-PosPUDL1)^2/2,0)+IF(CE33>(PosPUDL1+3),-PUDL1d*(CE33-PosPUDL1-3)^2/2,0)+IF(CE33>PosPUDL2,PUDL2d*(CE33-PosPUDL2)^2/2,0)+IF(CE33>(PosPUDL2+LePUDL2),-PUDL2d*(CE33-PosPUDL2-LePUDL2)^2/2,0)+IF(CE33>PosPLa1,PLa1d*(CE33-PosPLa1),0)+IF(CE33>PosPLb1,PLb1d*(CE33-PosPLb1),0) -> -22.17 | CF34: =-RL1d*CF33+UDL1d*CF33^2/2+IF(CF33>PosPUDL1,PUDL1d*(CF33-PosPUDL1)^2/2,0)+IF(CF33>(PosPUDL1+3),-PUDL1d*(CF33-PosPUDL1-3)^2/2,0)+IF(CF33>PosPUDL2,PUDL2d*(CF33-PosPUDL2)^2/2,0)+IF(CF33>(PosPUDL2+LePUDL2),-PUDL2d*(CF33-PosPUDL2-LePUDL2)^2/2,0)+IF(CF33>PosPLa1,PLa1d*(CF33-PosPLa1),0)+IF(CF33>PosPLb1,PLb1d*(CF33-PosPLb1),0) -> -21.28 | CG34: =-RL1d*CG33+UDL1d*CG33^2/2+IF(CG33>PosPUDL1,PUDL1d*(CG33-PosPUDL1)^2/2,0)+IF(CG33>(PosPUDL1+3),-PUDL1d*(CG33-PosPUDL1-3)^2/2,0)+IF(CG33>PosPUDL2,PUDL2d*(CG33-PosPUDL2)^2/2,0)+IF(CG33>(PosPUDL2+LePUDL2),-PUDL2d*(CG33-PosPUDL2-LePUDL2)^2/2,0)+IF(CG33>PosPLa1,PLa1d*(CG33-PosPLa1),0)+IF(CG33>PosPLb1,PLb1d*(CG33-PosPLb1),0) -> -20.36 | CH34: =-RL1d*CH33+UDL1d*CH33^2/2+IF(CH33>PosPUDL1,PUDL1d*(CH33-PosPUDL1)^2/2,0)+IF(CH33>(PosPUDL1+3),-PUDL1d*(CH33-PosPUDL1-3)^2/2,0)+IF(CH33>PosPUDL2,PUDL2d*(CH33-PosPUDL2)^2/2,0)+IF(CH33>(PosPUDL2+LePUDL2),-PUDL2d*(CH33-PosPUDL2-LePUDL2)^2/2,0)+IF(CH33>PosPLa1,PLa1d*(CH33-PosPLa1),0)+IF(CH33>PosPLb1,PLb1d*(CH33-PosPLb1),0) -> -19.42 | CI34: =-RL1d*CI33+UDL1d*CI33^2/2+IF(CI33>PosPUDL1,PUDL1d*(CI33-PosPUDL1)^2/2,0)+IF(CI33>(PosPUDL1+3),-PUDL1d*(CI33-PosPUDL1-3)^2/2,0)+IF(CI33>PosPUDL2,PUDL2d*(CI33-PosPUDL2)^2/2,0)+IF(CI33>(PosPUDL2+LePUDL2),-PUDL2d*(CI33-PosPUDL2-LePUDL2)^2/2,0)+IF(CI33>PosPLa1,PLa1d*(CI33-PosPLa1),0)+IF(CI33>PosPLb1,PLb1d*(CI33-PosPLb1),0) -> -18.46 | CJ34: =-RL1d*CJ33+UDL1d*CJ33^2/2+IF(CJ33>PosPUDL1,PUDL1d*(CJ33-PosPUDL1)^2/2,0)+IF(CJ33>(PosPUDL1+3),-PUDL1d*(CJ33-PosPUDL1-3)^2/2,0)+IF(CJ33>PosPUDL2,PUDL2d*(CJ33-PosPUDL2)^2/2,0)+IF(CJ33>(PosPUDL2+LePUDL2),-PUDL2d*(CJ33-PosPUDL2-LePUDL2)^2/2,0)+IF(CJ33>PosPLa1,PLa1d*(CJ33-PosPLa1),0)+IF(CJ33>PosPLb1,PLb1d*(CJ33-PosPLb1),0) -> -17.47 | CK34: =-RL1d*CK33+UDL1d*CK33^2/2+IF(CK33>PosPUDL1,PUDL1d*(CK33-PosPUDL1)^2/2,0)+IF(CK33>(PosPUDL1+3),-PUDL1d*(CK33-PosPUDL1-3)^2/2,0)+IF(CK33>PosPUDL2,PUDL2d*(CK33-PosPUDL2)^2/2,0)+IF(CK33>(PosPUDL2+LePUDL2),-PUDL2d*(CK33-PosPUDL2-LePUDL2)^2/2,0)+IF(CK33>PosPLa1,PLa1d*(CK33-PosPLa1),0)+IF(CK33>PosPLb1,PLb1d*(CK33-PosPLb1),0) -> -16.46 | CL34: =-RL1d*CL33+UDL1d*CL33^2/2+IF(CL33>PosPUDL1,PUDL1d*(CL33-PosPUDL1)^2/2,0)+IF(CL33>(PosPUDL1+3),-PUDL1d*(CL33-PosPUDL1-3)^2/2,0)+IF(CL33>PosPUDL2,PUDL2d*(CL33-PosPUDL2)^2/2,0)+IF(CL33>(PosPUDL2+LePUDL2),-PUDL2d*(CL33-PosPUDL2-LePUDL2)^2/2,0)+IF(CL33>PosPLa1,PLa1d*(CL33-PosPLa1),0)+IF(CL33>PosPLb1,PLb1d*(CL33-PosPLb1),0) -> -15.43 | CM34: =-RL1d*CM33+UDL1d*CM33^2/2+IF(CM33>PosPUDL1,PUDL1d*(CM33-PosPUDL1)^2/2,0)+IF(CM33>(PosPUDL1+3),-PUDL1d*(CM33-PosPUDL1-3)^2/2,0)+IF(CM33>PosPUDL2,PUDL2d*(CM33-PosPUDL2)^2/2,0)+IF(CM33>(PosPUDL2+LePUDL2),-PUDL2d*(CM33-PosPUDL2-LePUDL2)^2/2,0)+IF(CM33>PosPLa1,PLa1d*(CM33-PosPLa1),0)+IF(CM33>PosPLb1,PLb1d*(CM33-PosPLb1),0) -> -14.38 | CN34: =-RL1d*CN33+UDL1d*CN33^2/2+IF(CN33>PosPUDL1,PUDL1d*(CN33-PosPUDL1)^2/2,0)+IF(CN33>(PosPUDL1+3),-PUDL1d*(CN33-PosPUDL1-3)^2/2,0)+IF(CN33>PosPUDL2,PUDL2d*(CN33-PosPUDL2)^2/2,0)+IF(CN33>(PosPUDL2+LePUDL2),-PUDL2d*(CN33-PosPUDL2-LePUDL2)^2/2,0)+IF(CN33>PosPLa1,PLa1d*(CN33-PosPLa1),0)+IF(CN33>PosPLb1,PLb1d*(CN33-PosPLb1),0) -> -13.31 | CO34: =-RL1d*CO33+UDL1d*CO33^2/2+IF(CO33>PosPUDL1,PUDL1d*(CO33-PosPUDL1)^2/2,0)+IF(CO33>(PosPUDL1+3),-PUDL1d*(CO33-PosPUDL1-3)^2/2,0)+IF(CO33>PosPUDL2,PUDL2d*(CO33-PosPUDL2)^2/2,0)+IF(CO33>(PosPUDL2+LePUDL2),-PUDL2d*(CO33-PosPUDL2-LePUDL2)^2/2,0)+IF(CO33>PosPLa1,PLa1d*(CO33-PosPLa1),0)+IF(CO33>PosPLb1,PLb1d*(CO33-PosPLb1),0) -> -12.21 | CP34: =-RL1d*CP33+UDL1d*CP33^2/2+IF(CP33>PosPUDL1,PUDL1d*(CP33-PosPUDL1)^2/2,0)+IF(CP33>(PosPUDL1+3),-PUDL1d*(CP33-PosPUDL1-3)^2/2,0)+IF(CP33>PosPUDL2,PUDL2d*(CP33-PosPUDL2)^2/2,0)+IF(CP33>(PosPUDL2+LePUDL2),-PUDL2d*(CP33-PosPUDL2-LePUDL2)^2/2,0)+IF(CP33>PosPLa1,PLa1d*(CP33-PosPLa1),0)+IF(CP33>PosPLb1,PLb1d*(CP33-PosPLb1),0) -> -11.09 | CQ34: =-RL1d*CQ33+UDL1d*CQ33^2/2+IF(CQ33>PosPUDL1,PUDL1d*(CQ33-PosPUDL1)^2/2,0)+IF(CQ33>(PosPUDL1+3),-PUDL1d*(CQ33-PosPUDL1-3)^2/2,0)+IF(CQ33>PosPUDL2,PUDL2d*(CQ33-PosPUDL2)^2/2,0)+IF(CQ33>(PosPUDL2+LePUDL2),-PUDL2d*(CQ33-PosPUDL2-LePUDL2)^2/2,0)+IF(CQ33>PosPLa1,PLa1d*(CQ33-PosPLa1),0)+IF(CQ33>PosPLb1,PLb1d*(CQ33-PosPLb1),0) -> -9.95 | CR34: =-RL1d*CR33+UDL1d*CR33^2/2+IF(CR33>PosPUDL1,PUDL1d*(CR33-PosPUDL1)^2/2,0)+IF(CR33>(PosPUDL1+3),-PUDL1d*(CR33-PosPUDL1-3)^2/2,0)+IF(CR33>PosPUDL2,PUDL2d*(CR33-PosPUDL2)^2/2,0)+IF(CR33>(PosPUDL2+LePUDL2),-PUDL2d*(CR33-PosPUDL2-LePUDL2)^2/2,0)+IF(CR33>PosPLa1,PLa1d*(CR33-PosPLa1),0)+IF(CR33>PosPLb1,PLb1d*(CR33-PosPLb1),0) -> -8.78 | CS34: =-RL1d*CS33+UDL1d*CS33^2/2+IF(CS33>PosPUDL1,PUDL1d*(CS33-PosPUDL1)^2/2,0)+IF(CS33>(PosPUDL1+3),-PUDL1d*(CS33-PosPUDL1-3)^2/2,0)+IF(CS33>PosPUDL2,PUDL2d*(CS33-PosPUDL2)^2/2,0)+IF(CS33>(PosPUDL2+LePUDL2),-PUDL2d*(CS33-PosPUDL2-LePUDL2)^2/2,0)+IF(CS33>PosPLa1,PLa1d*(CS33-PosPLa1),0)+IF(CS33>PosPLb1,PLb1d*(CS33-PosPLb1),0) -> -7.59 | CT34: =-RL1d*CT33+UDL1d*CT33^2/2+IF(CT33>PosPUDL1,PUDL1d*(CT33-PosPUDL1)^2/2,0)+IF(CT33>(PosPUDL1+3),-PUDL1d*(CT33-PosPUDL1-3)^2/2,0)+IF(CT33>PosPUDL2,PUDL2d*(CT33-PosPUDL2)^2/2,0)+IF(CT33>(PosPUDL2+LePUDL2),-PUDL2d*(CT33-PosPUDL2-LePUDL2)^2/2,0)+IF(CT33>PosPLa1,PLa1d*(CT33-PosPLa1),0)+IF(CT33>PosPLb1,PLb1d*(CT33-PosPLb1),0) -> -6.39 | CU34: =-RL1d*CU33+UDL1d*CU33^2/2+IF(CU33>PosPUDL1,PUDL1d*(CU33-PosPUDL1)^2/2,0)+IF(CU33>(PosPUDL1+3),-PUDL1d*(CU33-PosPUDL1-3)^2/2,0)+IF(CU33>PosPUDL2,PUDL2d*(CU33-PosPUDL2)^2/2,0)+IF(CU33>(PosPUDL2+LePUDL2),-PUDL2d*(CU33-PosPUDL2-LePUDL2)^2/2,0)+IF(CU33>PosPLa1,PLa1d*(CU33-PosPLa1),0)+IF(CU33>PosPLb1,PLb1d*(CU33-PosPLb1),0) -> -5.15 | CV34: =-RL1d*CV33+UDL1d*CV33^2/2+IF(CV33>PosPUDL1,PUDL1d*(CV33-PosPUDL1)^2/2,0)+IF(CV33>(PosPUDL1+3),-PUDL1d*(CV33-PosPUDL1-3)^2/2,0)+IF(CV33>PosPUDL2,PUDL2d*(CV33-PosPUDL2)^2/2,0)+IF(CV33>(PosPUDL2+LePUDL2),-PUDL2d*(CV33-PosPUDL2-LePUDL2)^2/2,0)+IF(CV33>PosPLa1,PLa1d*(CV33-PosPLa1),0)+IF(CV33>PosPLb1,PLb1d*(CV33-PosPLb1),0) -> -3.90 | CW34: =-RL1d*CW33+UDL1d*CW33^2/2+IF(CW33>PosPUDL1,PUDL1d*(CW33-PosPUDL1)^2/2,0)+IF(CW33>(PosPUDL1+3),-PUDL1d*(CW33-PosPUDL1-3)^2/2,0)+IF(CW33>PosPUDL2,PUDL2d*(CW33-PosPUDL2)^2/2,0)+IF(CW33>(PosPUDL2+LePUDL2),-PUDL2d*(CW33-PosPUDL2-LePUDL2)^2/2,0)+IF(CW33>PosPLa1,PLa1d*(CW33-PosPLa1),0)+IF(CW33>PosPLb1,PLb1d*(CW33-PosPLb1),0) -> -2.62 | CX34: =-RL1d*CX33+UDL1d*CX33^2/2+IF(CX33>PosPUDL1,PUDL1d*(CX33-PosPUDL1)^2/2,0)+IF(CX33>(PosPUDL1+3),-PUDL1d*(CX33-PosPUDL1-3)^2/2,0)+IF(CX33>PosPUDL2,PUDL2d*(CX33-PosPUDL2)^2/2,0)+IF(CX33>(PosPUDL2+LePUDL2),-PUDL2d*(CX33-PosPUDL2-LePUDL2)^2/2,0)+IF(CX33>PosPLa1,PLa1d*(CX33-PosPLa1),0)+IF(CX33>PosPLb1,PLb1d*(CX33-PosPLb1),0) -> -1.32 | CY34: =-RL1d*CY33+UDL1d*CY33^2/2+IF(CY33>PosPUDL1,PUDL1d*(CY33-PosPUDL1)^2/2,0)+IF(CY33>(PosPUDL1+3),-PUDL1d*(CY33-PosPUDL1-3)^2/2,0)+IF(CY33>PosPUDL2,PUDL2d*(CY33-PosPUDL2)^2/2,0)+IF(CY33>(PosPUDL2+LePUDL2),-PUDL2d*(CY33-PosPUDL2-LePUDL2)^2/2,0)+IF(CY33>PosPLa1,PLa1d*(CY33-PosPLa1),0)+IF(CY33>PosPLb1,PLb1d*(CY33-PosPLb1),0) -> 0.00
B35: Moment live [kNm] | C35: 0.00 | D35: =-RL1l*D33+2*D33^2/2+IF(D33>PosPUDL1,PUDL1l*(D33-PosPUDL1)^2/2,0)+IF(D33>(PosPUDL1+3),-PUDL1l*(D33-PosPUDL1-3)^2/2,0)+IF(D33>PosPUDL2,PUDL2l*(D33-PosPUDL2)^2/2,0)+IF(D33>(PosPUDL2+LePUDL2),-PUDL2l*(D33-PosPUDL2-LePUDL2)^2/2,0)+IF(D33>PosPLa1,PLa1l*(D33-PosPLa1),0)+IF(D33>PosPLb1,PLb1l*(D33-PosPLb1),0) -> -0.90 | E35: =-RL1l*E33+2*E33^2/2+IF(E33>PosPUDL1,PUDL1l*(E33-PosPUDL1)^2/2,0)+IF(E33>(PosPUDL1+3),-PUDL1l*(E33-PosPUDL1-3)^2/2,0)+IF(E33>PosPUDL2,PUDL2l*(E33-PosPUDL2)^2/2,0)+IF(E33>(PosPUDL2+LePUDL2),-PUDL2l*(E33-PosPUDL2-LePUDL2)^2/2,0)+IF(E33>PosPLa1,PLa1l*(E33-PosPLa1),0)+IF(E33>PosPLb1,PLb1l*(E33-PosPLb1),0) -> -1.78 | F35: =-RL1l*F33+2*F33^2/2+IF(F33>PosPUDL1,PUDL1l*(F33-PosPUDL1)^2/2,0)+IF(F33>(PosPUDL1+3),-PUDL1l*(F33-PosPUDL1-3)^2/2,0)+IF(F33>PosPUDL2,PUDL2l*(F33-PosPUDL2)^2/2,0)+IF(F33>(PosPUDL2+LePUDL2),-PUDL2l*(F33-PosPUDL2-LePUDL2)^2/2,0)+IF(F33>PosPLa1,PLa1l*(F33-PosPLa1),0)+IF(F33>PosPLb1,PLb1l*(F33-PosPLb1),0) -> -2.66 | G35: =-RL1l*G33+2*G33^2/2+IF(G33>PosPUDL1,PUDL1l*(G33-PosPUDL1)^2/2,0)+IF(G33>(PosPUDL1+3),-PUDL1l*(G33-PosPUDL1-3)^2/2,0)+IF(G33>PosPUDL2,PUDL2l*(G33-PosPUDL2)^2/2,0)+IF(G33>(PosPUDL2+LePUDL2),-PUDL2l*(G33-PosPUDL2-LePUDL2)^2/2,0)+IF(G33>PosPLa1,PLa1l*(G33-PosPLa1),0)+IF(G33>PosPLb1,PLb1l*(G33-PosPLb1),0) -> -3.52 | H35: =-RL1l*H33+2*H33^2/2+IF(H33>PosPUDL1,PUDL1l*(H33-PosPUDL1)^2/2,0)+IF(H33>(PosPUDL1+3),-PUDL1l*(H33-PosPUDL1-3)^2/2,0)+IF(H33>PosPUDL2,PUDL2l*(H33-PosPUDL2)^2/2,0)+IF(H33>(PosPUDL2+LePUDL2),-PUDL2l*(H33-PosPUDL2-LePUDL2)^2/2,0)+IF(H33>PosPLa1,PLa1l*(H33-PosPLa1),0)+IF(H33>PosPLb1,PLb1l*(H33-PosPLb1),0) -> -4.37 | I35: =-RL1l*I33+2*I33^2/2+IF(I33>PosPUDL1,PUDL1l*(I33-PosPUDL1)^2/2,0)+IF(I33>(PosPUDL1+3),-PUDL1l*(I33-PosPUDL1-3)^2/2,0)+IF(I33>PosPUDL2,PUDL2l*(I33-PosPUDL2)^2/2,0)+IF(I33>(PosPUDL2+LePUDL2),-PUDL2l*(I33-PosPUDL2-LePUDL2)^2/2,0)+IF(I33>PosPLa1,PLa1l*(I33-PosPLa1),0)+IF(I33>PosPLb1,PLb1l*(I33-PosPLb1),0) -> -5.20 | J35: =-RL1l*J33+2*J33^2/2+IF(J33>PosPUDL1,PUDL1l*(J33-PosPUDL1)^2/2,0)+IF(J33>(PosPUDL1+3),-PUDL1l*(J33-PosPUDL1-3)^2/2,0)+IF(J33>PosPUDL2,PUDL2l*(J33-PosPUDL2)^2/2,0)+IF(J33>(PosPUDL2+LePUDL2),-PUDL2l*(J33-PosPUDL2-LePUDL2)^2/2,0)+IF(J33>PosPLa1,PLa1l*(J33-PosPLa1),0)+IF(J33>PosPLb1,PLb1l*(J33-PosPLb1),0) -> -6.02 | K35: =-RL1l*K33+2*K33^2/2+IF(K33>PosPUDL1,PUDL1l*(K33-PosPUDL1)^2/2,0)+IF(K33>(PosPUDL1+3),-PUDL1l*(K33-PosPUDL1-3)^2/2,0)+IF(K33>PosPUDL2,PUDL2l*(K33-PosPUDL2)^2/2,0)+IF(K33>(PosPUDL2+LePUDL2),-PUDL2l*(K33-PosPUDL2-LePUDL2)^2/2,0)+IF(K33>PosPLa1,PLa1l*(K33-PosPLa1),0)+IF(K33>PosPLb1,PLb1l*(K33-PosPLb1),0) -> -6.83 | L35: =-RL1l*L33+2*L33^2/2+IF(L33>PosPUDL1,PUDL1l*(L33-PosPUDL1)^2/2,0)+IF(L33>(PosPUDL1+3),-PUDL1l*(L33-PosPUDL1-3)^2/2,0)+IF(L33>PosPUDL2,PUDL2l*(L33-PosPUDL2)^2/2,0)+IF(L33>(PosPUDL2+LePUDL2),-PUDL2l*(L33-PosPUDL2-LePUDL2)^2/2,0)+IF(L33>PosPLa1,PLa1l*(L33-PosPLa1),0)+IF(L33>PosPLb1,PLb1l*(L33-PosPLb1),0) -> -7.63 | M35: =-RL1l*M33+2*M33^2/2+IF(M33>PosPUDL1,PUDL1l*(M33-PosPUDL1)^2/2,0)+IF(M33>(PosPUDL1+3),-PUDL1l*(M33-PosPUDL1-3)^2/2,0)+IF(M33>PosPUDL2,PUDL2l*(M33-PosPUDL2)^2/2,0)+IF(M33>(PosPUDL2+LePUDL2),-PUDL2l*(M33-PosPUDL2-LePUDL2)^2/2,0)+IF(M33>PosPLa1,PLa1l*(M33-PosPLa1),0)+IF(M33>PosPLb1,PLb1l*(M33-PosPLb1),0) -> -8.41 | N35: =-RL1l*N33+2*N33^2/2+IF(N33>PosPUDL1,PUDL1l*(N33-PosPUDL1)^2/2,0)+IF(N33>(PosPUDL1+3),-PUDL1l*(N33-PosPUDL1-3)^2/2,0)+IF(N33>PosPUDL2,PUDL2l*(N33-PosPUDL2)^2/2,0)+IF(N33>(PosPUDL2+LePUDL2),-PUDL2l*(N33-PosPUDL2-LePUDL2)^2/2,0)+IF(N33>PosPLa1,PLa1l*(N33-PosPLa1),0)+IF(N33>PosPLb1,PLb1l*(N33-PosPLb1),0) -> -9.18 | O35: =-RL1l*O33+2*O33^2/2+IF(O33>PosPUDL1,PUDL1l*(O33-PosPUDL1)^2/2,0)+IF(O33>(PosPUDL1+3),-PUDL1l*(O33-PosPUDL1-3)^2/2,0)+IF(O33>PosPUDL2,PUDL2l*(O33-PosPUDL2)^2/2,0)+IF(O33>(PosPUDL2+LePUDL2),-PUDL2l*(O33-PosPUDL2-LePUDL2)^2/2,0)+IF(O33>PosPLa1,PLa1l*(O33-PosPLa1),0)+IF(O33>PosPLb1,PLb1l*(O33-PosPLb1),0) -> -9.94 | P35: =-RL1l*P33+2*P33^2/2+IF(P33>PosPUDL1,PUDL1l*(P33-PosPUDL1)^2/2,0)+IF(P33>(PosPUDL1+3),-PUDL1l*(P33-PosPUDL1-3)^2/2,0)+IF(P33>PosPUDL2,PUDL2l*(P33-PosPUDL2)^2/2,0)+IF(P33>(PosPUDL2+LePUDL2),-PUDL2l*(P33-PosPUDL2-LePUDL2)^2/2,0)+IF(P33>PosPLa1,PLa1l*(P33-PosPLa1),0)+IF(P33>PosPLb1,PLb1l*(P33-PosPLb1),0) -> -10.68 | Q35: =-RL1l*Q33+2*Q33^2/2+IF(Q33>PosPUDL1,PUDL1l*(Q33-PosPUDL1)^2/2,0)+IF(Q33>(PosPUDL1+3),-PUDL1l*(Q33-PosPUDL1-3)^2/2,0)+IF(Q33>PosPUDL2,PUDL2l*(Q33-PosPUDL2)^2/2,0)+IF(Q33>(PosPUDL2+LePUDL2),-PUDL2l*(Q33-PosPUDL2-LePUDL2)^2/2,0)+IF(Q33>PosPLa1,PLa1l*(Q33-PosPLa1),0)+IF(Q33>PosPLb1,PLb1l*(Q33-PosPLb1),0) -> -11.41 | R35: =-RL1l*R33+2*R33^2/2+IF(R33>PosPUDL1,PUDL1l*(R33-PosPUDL1)^2/2,0)+IF(R33>(PosPUDL1+3),-PUDL1l*(R33-PosPUDL1-3)^2/2,0)+IF(R33>PosPUDL2,PUDL2l*(R33-PosPUDL2)^2/2,0)+IF(R33>(PosPUDL2+LePUDL2),-PUDL2l*(R33-PosPUDL2-LePUDL2)^2/2,0)+IF(R33>PosPLa1,PLa1l*(R33-PosPLa1),0)+IF(R33>PosPLb1,PLb1l*(R33-PosPLb1),0) -> -12.12 | S35: =-RL1l*S33+2*S33^2/2+IF(S33>PosPUDL1,PUDL1l*(S33-PosPUDL1)^2/2,0)+IF(S33>(PosPUDL1+3),-PUDL1l*(S33-PosPUDL1-3)^2/2,0)+IF(S33>PosPUDL2,PUDL2l*(S33-PosPUDL2)^2/2,0)+IF(S33>(PosPUDL2+LePUDL2),-PUDL2l*(S33-PosPUDL2-LePUDL2)^2/2,0)+IF(S33>PosPLa1,PLa1l*(S33-PosPLa1),0)+IF(S33>PosPLb1,PLb1l*(S33-PosPLb1),0) -> -12.80 | T35: =-RL1l*T33+2*T33^2/2+IF(T33>PosPUDL1,PUDL1l*(T33-PosPUDL1)^2/2,0)+IF(T33>(PosPUDL1+3),-PUDL1l*(T33-PosPUDL1-3)^2/2,0)+IF(T33>PosPUDL2,PUDL2l*(T33-PosPUDL2)^2/2,0)+IF(T33>(PosPUDL2+LePUDL2),-PUDL2l*(T33-PosPUDL2-LePUDL2)^2/2,0)+IF(T33>PosPLa1,PLa1l*(T33-PosPLa1),0)+IF(T33>PosPLb1,PLb1l*(T33-PosPLb1),0) -> -13.47 | U35: =-RL1l*U33+2*U33^2/2+IF(U33>PosPUDL1,PUDL1l*(U33-PosPUDL1)^2/2,0)+IF(U33>(PosPUDL1+3),-PUDL1l*(U33-PosPUDL1-3)^2/2,0)+IF(U33>PosPUDL2,PUDL2l*(U33-PosPUDL2)^2/2,0)+IF(U33>(PosPUDL2+LePUDL2),-PUDL2l*(U33-PosPUDL2-LePUDL2)^2/2,0)+IF(U33>PosPLa1,PLa1l*(U33-PosPLa1),0)+IF(U33>PosPLb1,PLb1l*(U33-PosPLb1),0) -> -14.12 | V35: =-RL1l*V33+2*V33^2/2+IF(V33>PosPUDL1,PUDL1l*(V33-PosPUDL1)^2/2,0)+IF(V33>(PosPUDL1+3),-PUDL1l*(V33-PosPUDL1-3)^2/2,0)+IF(V33>PosPUDL2,PUDL2l*(V33-PosPUDL2)^2/2,0)+IF(V33>(PosPUDL2+LePUDL2),-PUDL2l*(V33-PosPUDL2-LePUDL2)^2/2,0)+IF(V33>PosPLa1,PLa1l*(V33-PosPLa1),0)+IF(V33>PosPLb1,PLb1l*(V33-PosPLb1),0) -> -14.75 | W35: =-RL1l*W33+2*W33^2/2+IF(W33>PosPUDL1,PUDL1l*(W33-PosPUDL1)^2/2,0)+IF(W33>(PosPUDL1+3),-PUDL1l*(W33-PosPUDL1-3)^2/2,0)+IF(W33>PosPUDL2,PUDL2l*(W33-PosPUDL2)^2/2,0)+IF(W33>(PosPUDL2+LePUDL2),-PUDL2l*(W33-PosPUDL2-LePUDL2)^2/2,0)+IF(W33>PosPLa1,PLa1l*(W33-PosPLa1),0)+IF(W33>PosPLb1,PLb1l*(W33-PosPLb1),0) -> -15.36 | X35: =-RL1l*X33+2*X33^2/2+IF(X33>PosPUDL1,PUDL1l*(X33-PosPUDL1)^2/2,0)+IF(X33>(PosPUDL1+3),-PUDL1l*(X33-PosPUDL1-3)^2/2,0)+IF(X33>PosPUDL2,PUDL2l*(X33-PosPUDL2)^2/2,0)+IF(X33>(PosPUDL2+LePUDL2),-PUDL2l*(X33-PosPUDL2-LePUDL2)^2/2,0)+IF(X33>PosPLa1,PLa1l*(X33-PosPLa1),0)+IF(X33>PosPLb1,PLb1l*(X33-PosPLb1),0) -> -15.95 | Y35: =-RL1l*Y33+2*Y33^2/2+IF(Y33>PosPUDL1,PUDL1l*(Y33-PosPUDL1)^2/2,0)+IF(Y33>(PosPUDL1+3),-PUDL1l*(Y33-PosPUDL1-3)^2/2,0)+IF(Y33>PosPUDL2,PUDL2l*(Y33-PosPUDL2)^2/2,0)+IF(Y33>(PosPUDL2+LePUDL2),-PUDL2l*(Y33-PosPUDL2-LePUDL2)^2/2,0)+IF(Y33>PosPLa1,PLa1l*(Y33-PosPLa1),0)+IF(Y33>PosPLb1,PLb1l*(Y33-PosPLb1),0) -> -16.52 | Z35: =-RL1l*Z33+2*Z33^2/2+IF(Z33>PosPUDL1,PUDL1l*(Z33-PosPUDL1)^2/2,0)+IF(Z33>(PosPUDL1+3),-PUDL1l*(Z33-PosPUDL1-3)^2/2,0)+IF(Z33>PosPUDL2,PUDL2l*(Z33-PosPUDL2)^2/2,0)+IF(Z33>(PosPUDL2+LePUDL2),-PUDL2l*(Z33-PosPUDL2-LePUDL2)^2/2,0)+IF(Z33>PosPLa1,PLa1l*(Z33-PosPLa1),0)+IF(Z33>PosPLb1,PLb1l*(Z33-PosPLb1),0) -> -17.08 | AA35: =-RL1l*AA33+2*AA33^2/2+IF(AA33>PosPUDL1,PUDL1l*(AA33-PosPUDL1)^2/2,0)+IF(AA33>(PosPUDL1+3),-PUDL1l*(AA33-PosPUDL1-3)^2/2,0)+IF(AA33>PosPUDL2,PUDL2l*(AA33-PosPUDL2)^2/2,0)+IF(AA33>(PosPUDL2+LePUDL2),-PUDL2l*(AA33-PosPUDL2-LePUDL2)^2/2,0)+IF(AA33>PosPLa1,PLa1l*(AA33-PosPLa1),0)+IF(AA33>PosPLb1,PLb1l*(AA33-PosPLb1),0) -> -17.61 | AB35: =-RL1l*AB33+2*AB33^2/2+IF(AB33>PosPUDL1,PUDL1l*(AB33-PosPUDL1)^2/2,0)+IF(AB33>(PosPUDL1+3),-PUDL1l*(AB33-PosPUDL1-3)^2/2,0)+IF(AB33>PosPUDL2,PUDL2l*(AB33-PosPUDL2)^2/2,0)+IF(AB33>(PosPUDL2+LePUDL2),-PUDL2l*(AB33-PosPUDL2-LePUDL2)^2/2,0)+IF(AB33>PosPLa1,PLa1l*(AB33-PosPLa1),0)+IF(AB33>PosPLb1,PLb1l*(AB33-PosPLb1),0) -> -18.13 | AC35: =-RL1l*AC33+2*AC33^2/2+IF(AC33>PosPUDL1,PUDL1l*(AC33-PosPUDL1)^2/2,0)+IF(AC33>(PosPUDL1+3),-PUDL1l*(AC33-PosPUDL1-3)^2/2,0)+IF(AC33>PosPUDL2,PUDL2l*(AC33-PosPUDL2)^2/2,0)+IF(AC33>(PosPUDL2+LePUDL2),-PUDL2l*(AC33-PosPUDL2-LePUDL2)^2/2,0)+IF(AC33>PosPLa1,PLa1l*(AC33-PosPLa1),0)+IF(AC33>PosPLb1,PLb1l*(AC33-PosPLb1),0) -> -18.62 | AD35: =-RL1l*AD33+2*AD33^2/2+IF(AD33>PosPUDL1,PUDL1l*(AD33-PosPUDL1)^2/2,0)+IF(AD33>(PosPUDL1+3),-PUDL1l*(AD33-PosPUDL1-3)^2/2,0)+IF(AD33>PosPUDL2,PUDL2l*(AD33-PosPUDL2)^2/2,0)+IF(AD33>(PosPUDL2+LePUDL2),-PUDL2l*(AD33-PosPUDL2-LePUDL2)^2/2,0)+IF(AD33>PosPLa1,PLa1l*(AD33-PosPLa1),0)+IF(AD33>PosPLb1,PLb1l*(AD33-PosPLb1),0) -> -19.10 | AE35: =-RL1l*AE33+2*AE33^2/2+IF(AE33>PosPUDL1,PUDL1l*(AE33-PosPUDL1)^2/2,0)+IF(AE33>(PosPUDL1+3),-PUDL1l*(AE33-PosPUDL1-3)^2/2,0)+IF(AE33>PosPUDL2,PUDL2l*(AE33-PosPUDL2)^2/2,0)+IF(AE33>(PosPUDL2+LePUDL2),-PUDL2l*(AE33-PosPUDL2-LePUDL2)^2/2,0)+IF(AE33>PosPLa1,PLa1l*(AE33-PosPLa1),0)+IF(AE33>PosPLb1,PLb1l*(AE33-PosPLb1),0) -> -19.55 | AF35: =-RL1l*AF33+2*AF33^2/2+IF(AF33>PosPUDL1,PUDL1l*(AF33-PosPUDL1)^2/2,0)+IF(AF33>(PosPUDL1+3),-PUDL1l*(AF33-PosPUDL1-3)^2/2,0)+IF(AF33>PosPUDL2,PUDL2l*(AF33-PosPUDL2)^2/2,0)+IF(AF33>(PosPUDL2+LePUDL2),-PUDL2l*(AF33-PosPUDL2-LePUDL2)^2/2,0)+IF(AF33>PosPLa1,PLa1l*(AF33-PosPLa1),0)+IF(AF33>PosPLb1,PLb1l*(AF33-PosPLb1),0) -> -19.99 | AG35: =-RL1l*AG33+2*AG33^2/2+IF(AG33>PosPUDL1,PUDL1l*(AG33-PosPUDL1)^2/2,0)+IF(AG33>(PosPUDL1+3),-PUDL1l*(AG33-PosPUDL1-3)^2/2,0)+IF(AG33>PosPUDL2,PUDL2l*(AG33-PosPUDL2)^2/2,0)+IF(AG33>(PosPUDL2+LePUDL2),-PUDL2l*(AG33-PosPUDL2-LePUDL2)^2/2,0)+IF(AG33>PosPLa1,PLa1l*(AG33-PosPLa1),0)+IF(AG33>PosPLb1,PLb1l*(AG33-PosPLb1),0) -> -20.41 | AH35: =-RL1l*AH33+2*AH33^2/2+IF(AH33>PosPUDL1,PUDL1l*(AH33-PosPUDL1)^2/2,0)+IF(AH33>(PosPUDL1+3),-PUDL1l*(AH33-PosPUDL1-3)^2/2,0)+IF(AH33>PosPUDL2,PUDL2l*(AH33-PosPUDL2)^2/2,0)+IF(AH33>(PosPUDL2+LePUDL2),-PUDL2l*(AH33-PosPUDL2-LePUDL2)^2/2,0)+IF(AH33>PosPLa1,PLa1l*(AH33-PosPLa1),0)+IF(AH33>PosPLb1,PLb1l*(AH33-PosPLb1),0) -> -20.81 | AI35: =-RL1l*AI33+2*AI33^2/2+IF(AI33>PosPUDL1,PUDL1l*(AI33-PosPUDL1)^2/2,0)+IF(AI33>(PosPUDL1+3),-PUDL1l*(AI33-PosPUDL1-3)^2/2,0)+IF(AI33>PosPUDL2,PUDL2l*(AI33-PosPUDL2)^2/2,0)+IF(AI33>(PosPUDL2+LePUDL2),-PUDL2l*(AI33-PosPUDL2-LePUDL2)^2/2,0)+IF(AI33>PosPLa1,PLa1l*(AI33-PosPLa1),0)+IF(AI33>PosPLb1,PLb1l*(AI33-PosPLb1),0) -> -21.19 | AJ35: =-RL1l*AJ33+2*AJ33^2/2+IF(AJ33>PosPUDL1,PUDL1l*(AJ33-PosPUDL1)^2/2,0)+IF(AJ33>(PosPUDL1+3),-PUDL1l*(AJ33-PosPUDL1-3)^2/2,0)+IF(AJ33>PosPUDL2,PUDL2l*(AJ33-PosPUDL2)^2/2,0)+IF(AJ33>(PosPUDL2+LePUDL2),-PUDL2l*(AJ33-PosPUDL2-LePUDL2)^2/2,0)+IF(AJ33>PosPLa1,PLa1l*(AJ33-PosPLa1),0)+IF(AJ33>PosPLb1,PLb1l*(AJ33-PosPLb1),0) -> -21.55 | AK35: =-RL1l*AK33+2*AK33^2/2+IF(AK33>PosPUDL1,PUDL1l*(AK33-PosPUDL1)^2/2,0)+IF(AK33>(PosPUDL1+3),-PUDL1l*(AK33-PosPUDL1-3)^2/2,0)+IF(AK33>PosPUDL2,PUDL2l*(AK33-PosPUDL2)^2/2,0)+IF(AK33>(PosPUDL2+LePUDL2),-PUDL2l*(AK33-PosPUDL2-LePUDL2)^2/2,0)+IF(AK33>PosPLa1,PLa1l*(AK33-PosPLa1),0)+IF(AK33>PosPLb1,PLb1l*(AK33-PosPLb1),0) -> -21.89 | AL35: =-RL1l*AL33+2*AL33^2/2+IF(AL33>PosPUDL1,PUDL1l*(AL33-PosPUDL1)^2/2,0)+IF(AL33>(PosPUDL1+3),-PUDL1l*(AL33-PosPUDL1-3)^2/2,0)+IF(AL33>PosPUDL2,PUDL2l*(AL33-PosPUDL2)^2/2,0)+IF(AL33>(PosPUDL2+LePUDL2),-PUDL2l*(AL33-PosPUDL2-LePUDL2)^2/2,0)+IF(AL33>PosPLa1,PLa1l*(AL33-PosPLa1),0)+IF(AL33>PosPLb1,PLb1l*(AL33-PosPLb1),0) -> -22.22 | AM35: =-RL1l*AM33+2*AM33^2/2+IF(AM33>PosPUDL1,PUDL1l*(AM33-PosPUDL1)^2/2,0)+IF(AM33>(PosPUDL1+3),-PUDL1l*(AM33-PosPUDL1-3)^2/2,0)+IF(AM33>PosPUDL2,PUDL2l*(AM33-PosPUDL2)^2/2,0)+IF(AM33>(PosPUDL2+LePUDL2),-PUDL2l*(AM33-PosPUDL2-LePUDL2)^2/2,0)+IF(AM33>PosPLa1,PLa1l*(AM33-PosPLa1),0)+IF(AM33>PosPLb1,PLb1l*(AM33-PosPLb1),0) -> -22.52 | AN35: =-RL1l*AN33+2*AN33^2/2+IF(AN33>PosPUDL1,PUDL1l*(AN33-PosPUDL1)^2/2,0)+IF(AN33>(PosPUDL1+3),-PUDL1l*(AN33-PosPUDL1-3)^2/2,0)+IF(AN33>PosPUDL2,PUDL2l*(AN33-PosPUDL2)^2/2,0)+IF(AN33>(PosPUDL2+LePUDL2),-PUDL2l*(AN33-PosPUDL2-LePUDL2)^2/2,0)+IF(AN33>PosPLa1,PLa1l*(AN33-PosPLa1),0)+IF(AN33>PosPLb1,PLb1l*(AN33-PosPLb1),0) -> -22.80 | AO35: =-RL1l*AO33+2*AO33^2/2+IF(AO33>PosPUDL1,PUDL1l*(AO33-PosPUDL1)^2/2,0)+IF(AO33>(PosPUDL1+3),-PUDL1l*(AO33-PosPUDL1-3)^2/2,0)+IF(AO33>PosPUDL2,PUDL2l*(AO33-PosPUDL2)^2/2,0)+IF(AO33>(PosPUDL2+LePUDL2),-PUDL2l*(AO33-PosPUDL2-LePUDL2)^2/2,0)+IF(AO33>PosPLa1,PLa1l*(AO33-PosPLa1),0)+IF(AO33>PosPLb1,PLb1l*(AO33-PosPLb1),0) -> -22.99 | AP35: =-RL1l*AP33+2*AP33^2/2+IF(AP33>PosPUDL1,PUDL1l*(AP33-PosPUDL1)^2/2,0)+IF(AP33>(PosPUDL1+3),-PUDL1l*(AP33-PosPUDL1-3)^2/2,0)+IF(AP33>PosPUDL2,PUDL2l*(AP33-PosPUDL2)^2/2,0)+IF(AP33>(PosPUDL2+LePUDL2),-PUDL2l*(AP33-PosPUDL2-LePUDL2)^2/2,0)+IF(AP33>PosPLa1,PLa1l*(AP33-PosPLa1),0)+IF(AP33>PosPLb1,PLb1l*(AP33-PosPLb1),0) -> -23.07 | AQ35: =-RL1l*AQ33+2*AQ33^2/2+IF(AQ33>PosPUDL1,PUDL1l*(AQ33-PosPUDL1)^2/2,0)+IF(AQ33>(PosPUDL1+3),-PUDL1l*(AQ33-PosPUDL1-3)^2/2,0)+IF(AQ33>PosPUDL2,PUDL2l*(AQ33-PosPUDL2)^2/2,0)+IF(AQ33>(PosPUDL2+LePUDL2),-PUDL2l*(AQ33-PosPUDL2-LePUDL2)^2/2,0)+IF(AQ33>PosPLa1,PLa1l*(AQ33-PosPLa1),0)+IF(AQ33>PosPLb1,PLb1l*(AQ33-PosPLb1),0) -> -23.14 | AR35: =-RL1l*AR33+2*AR33^2/2+IF(AR33>PosPUDL1,PUDL1l*(AR33-PosPUDL1)^2/2,0)+IF(AR33>(PosPUDL1+3),-PUDL1l*(AR33-PosPUDL1-3)^2/2,0)+IF(AR33>PosPUDL2,PUDL2l*(AR33-PosPUDL2)^2/2,0)+IF(AR33>(PosPUDL2+LePUDL2),-PUDL2l*(AR33-PosPUDL2-LePUDL2)^2/2,0)+IF(AR33>PosPLa1,PLa1l*(AR33-PosPLa1),0)+IF(AR33>PosPLb1,PLb1l*(AR33-PosPLb1),0) -> -23.19 | AS35: =-RL1l*AS33+2*AS33^2/2+IF(AS33>PosPUDL1,PUDL1l*(AS33-PosPUDL1)^2/2,0)+IF(AS33>(PosPUDL1+3),-PUDL1l*(AS33-PosPUDL1-3)^2/2,0)+IF(AS33>PosPUDL2,PUDL2l*(AS33-PosPUDL2)^2/2,0)+IF(AS33>(PosPUDL2+LePUDL2),-PUDL2l*(AS33-PosPUDL2-LePUDL2)^2/2,0)+IF(AS33>PosPLa1,PLa1l*(AS33-PosPLa1),0)+IF(AS33>PosPLb1,PLb1l*(AS33-PosPLb1),0) -> -23.22 | AT35: =-RL1l*AT33+2*AT33^2/2+IF(AT33>PosPUDL1,PUDL1l*(AT33-PosPUDL1)^2/2,0)+IF(AT33>(PosPUDL1+3),-PUDL1l*(AT33-PosPUDL1-3)^2/2,0)+IF(AT33>PosPUDL2,PUDL2l*(AT33-PosPUDL2)^2/2,0)+IF(AT33>(PosPUDL2+LePUDL2),-PUDL2l*(AT33-PosPUDL2-LePUDL2)^2/2,0)+IF(AT33>PosPLa1,PLa1l*(AT33-PosPLa1),0)+IF(AT33>PosPLb1,PLb1l*(AT33-PosPLb1),0) -> -23.22 | AU35: =-RL1l*AU33+2*AU33^2/2+IF(AU33>PosPUDL1,PUDL1l*(AU33-PosPUDL1)^2/2,0)+IF(AU33>(PosPUDL1+3),-PUDL1l*(AU33-PosPUDL1-3)^2/2,0)+IF(AU33>PosPUDL2,PUDL2l*(AU33-PosPUDL2)^2/2,0)+IF(AU33>(PosPUDL2+LePUDL2),-PUDL2l*(AU33-PosPUDL2-LePUDL2)^2/2,0)+IF(AU33>PosPLa1,PLa1l*(AU33-PosPLa1),0)+IF(AU33>PosPLb1,PLb1l*(AU33-PosPLb1),0) -> -23.21 | AV35: =-RL1l*AV33+2*AV33^2/2+IF(AV33>PosPUDL1,PUDL1l*(AV33-PosPUDL1)^2/2,0)+IF(AV33>(PosPUDL1+3),-PUDL1l*(AV33-PosPUDL1-3)^2/2,0)+IF(AV33>PosPUDL2,PUDL2l*(AV33-PosPUDL2)^2/2,0)+IF(AV33>(PosPUDL2+LePUDL2),-PUDL2l*(AV33-PosPUDL2-LePUDL2)^2/2,0)+IF(AV33>PosPLa1,PLa1l*(AV33-PosPLa1),0)+IF(AV33>PosPLb1,PLb1l*(AV33-PosPLb1),0) -> -23.19 | AW35: =-RL1l*AW33+2*AW33^2/2+IF(AW33>PosPUDL1,PUDL1l*(AW33-PosPUDL1)^2/2,0)+IF(AW33>(PosPUDL1+3),-PUDL1l*(AW33-PosPUDL1-3)^2/2,0)+IF(AW33>PosPUDL2,PUDL2l*(AW33-PosPUDL2)^2/2,0)+IF(AW33>(PosPUDL2+LePUDL2),-PUDL2l*(AW33-PosPUDL2-LePUDL2)^2/2,0)+IF(AW33>PosPLa1,PLa1l*(AW33-PosPLa1),0)+IF(AW33>PosPLb1,PLb1l*(AW33-PosPLb1),0) -> -23.14 | AX35: =-RL1l*AX33+2*AX33^2/2+IF(AX33>PosPUDL1,PUDL1l*(AX33-PosPUDL1)^2/2,0)+IF(AX33>(PosPUDL1+3),-PUDL1l*(AX33-PosPUDL1-3)^2/2,0)+IF(AX33>PosPUDL2,PUDL2l*(AX33-PosPUDL2)^2/2,0)+IF(AX33>(PosPUDL2+LePUDL2),-PUDL2l*(AX33-PosPUDL2-LePUDL2)^2/2,0)+IF(AX33>PosPLa1,PLa1l*(AX33-PosPLa1),0)+IF(AX33>PosPLb1,PLb1l*(AX33-PosPLb1),0) -> -23.07 | AY35: =-RL1l*AY33+2*AY33^2/2+IF(AY33>PosPUDL1,PUDL1l*(AY33-PosPUDL1)^2/2,0)+IF(AY33>(PosPUDL1+3),-PUDL1l*(AY33-PosPUDL1-3)^2/2,0)+IF(AY33>PosPUDL2,PUDL2l*(AY33-PosPUDL2)^2/2,0)+IF(AY33>(PosPUDL2+LePUDL2),-PUDL2l*(AY33-PosPUDL2-LePUDL2)^2/2,0)+IF(AY33>PosPLa1,PLa1l*(AY33-PosPLa1),0)+IF(AY33>PosPLb1,PLb1l*(AY33-PosPLb1),0) -> -22.98 | AZ35: =-RL1l*AZ33+2*AZ33^2/2+IF(AZ33>PosPUDL1,PUDL1l*(AZ33-PosPUDL1)^2/2,0)+IF(AZ33>(PosPUDL1+3),-PUDL1l*(AZ33-PosPUDL1-3)^2/2,0)+IF(AZ33>PosPUDL2,PUDL2l*(AZ33-PosPUDL2)^2/2,0)+IF(AZ33>(PosPUDL2+LePUDL2),-PUDL2l*(AZ33-PosPUDL2-LePUDL2)^2/2,0)+IF(AZ33>PosPLa1,PLa1l*(AZ33-PosPLa1),0)+IF(AZ33>PosPLb1,PLb1l*(AZ33-PosPLb1),0) -> -22.88 | BA35: =-RL1l*BA33+2*BA33^2/2+IF(BA33>PosPUDL1,PUDL1l*(BA33-PosPUDL1)^2/2,0)+IF(BA33>(PosPUDL1+3),-PUDL1l*(BA33-PosPUDL1-3)^2/2,0)+IF(BA33>PosPUDL2,PUDL2l*(BA33-PosPUDL2)^2/2,0)+IF(BA33>(PosPUDL2+LePUDL2),-PUDL2l*(BA33-PosPUDL2-LePUDL2)^2/2,0)+IF(BA33>PosPLa1,PLa1l*(BA33-PosPLa1),0)+IF(BA33>PosPLb1,PLb1l*(BA33-PosPLb1),0) -> -22.75 | BB35: =-RL1l*BB33+2*BB33^2/2+IF(BB33>PosPUDL1,PUDL1l*(BB33-PosPUDL1)^2/2,0)+IF(BB33>(PosPUDL1+3),-PUDL1l*(BB33-PosPUDL1-3)^2/2,0)+IF(BB33>PosPUDL2,PUDL2l*(BB33-PosPUDL2)^2/2,0)+IF(BB33>(PosPUDL2+LePUDL2),-PUDL2l*(BB33-PosPUDL2-LePUDL2)^2/2,0)+IF(BB33>PosPLa1,PLa1l*(BB33-PosPLa1),0)+IF(BB33>PosPLb1,PLb1l*(BB33-PosPLb1),0) -> -22.61 | BC35: =-RL1l*BC33+2*BC33^2/2+IF(BC33>PosPUDL1,PUDL1l*(BC33-PosPUDL1)^2/2,0)+IF(BC33>(PosPUDL1+3),-PUDL1l*(BC33-PosPUDL1-3)^2/2,0)+IF(BC33>PosPUDL2,PUDL2l*(BC33-PosPUDL2)^2/2,0)+IF(BC33>(PosPUDL2+LePUDL2),-PUDL2l*(BC33-PosPUDL2-LePUDL2)^2/2,0)+IF(BC33>PosPLa1,PLa1l*(BC33-PosPLa1),0)+IF(BC33>PosPLb1,PLb1l*(BC33-PosPLb1),0) -> -22.45 | BD35: =-RL1l*BD33+2*BD33^2/2+IF(BD33>PosPUDL1,PUDL1l*(BD33-PosPUDL1)^2/2,0)+IF(BD33>(PosPUDL1+3),-PUDL1l*(BD33-PosPUDL1-3)^2/2,0)+IF(BD33>PosPUDL2,PUDL2l*(BD33-PosPUDL2)^2/2,0)+IF(BD33>(PosPUDL2+LePUDL2),-PUDL2l*(BD33-PosPUDL2-LePUDL2)^2/2,0)+IF(BD33>PosPLa1,PLa1l*(BD33-PosPLa1),0)+IF(BD33>PosPLb1,PLb1l*(BD33-PosPLb1),0) -> -22.29 | BE35: =-RL1l*BE33+2*BE33^2/2+IF(BE33>PosPUDL1,PUDL1l*(BE33-PosPUDL1)^2/2,0)+IF(BE33>(PosPUDL1+3),-PUDL1l*(BE33-PosPUDL1-3)^2/2,0)+IF(BE33>PosPUDL2,PUDL2l*(BE33-PosPUDL2)^2/2,0)+IF(BE33>(PosPUDL2+LePUDL2),-PUDL2l*(BE33-PosPUDL2-LePUDL2)^2/2,0)+IF(BE33>PosPLa1,PLa1l*(BE33-PosPLa1),0)+IF(BE33>PosPLb1,PLb1l*(BE33-PosPLb1),0) -> -22.11 | BF35: =-RL1l*BF33+2*BF33^2/2+IF(BF33>PosPUDL1,PUDL1l*(BF33-PosPUDL1)^2/2,0)+IF(BF33>(PosPUDL1+3),-PUDL1l*(BF33-PosPUDL1-3)^2/2,0)+IF(BF33>PosPUDL2,PUDL2l*(BF33-PosPUDL2)^2/2,0)+IF(BF33>(PosPUDL2+LePUDL2),-PUDL2l*(BF33-PosPUDL2-LePUDL2)^2/2,0)+IF(BF33>PosPLa1,PLa1l*(BF33-PosPLa1),0)+IF(BF33>PosPLb1,PLb1l*(BF33-PosPLb1),0) -> -21.92 | BG35: =-RL1l*BG33+2*BG33^2/2+IF(BG33>PosPUDL1,PUDL1l*(BG33-PosPUDL1)^2/2,0)+IF(BG33>(PosPUDL1+3),-PUDL1l*(BG33-PosPUDL1-3)^2/2,0)+IF(BG33>PosPUDL2,PUDL2l*(BG33-PosPUDL2)^2/2,0)+IF(BG33>(PosPUDL2+LePUDL2),-PUDL2l*(BG33-PosPUDL2-LePUDL2)^2/2,0)+IF(BG33>PosPLa1,PLa1l*(BG33-PosPLa1),0)+IF(BG33>PosPLb1,PLb1l*(BG33-PosPLb1),0) -> -21.71 | BH35: =-RL1l*BH33+2*BH33^2/2+IF(BH33>PosPUDL1,PUDL1l*(BH33-PosPUDL1)^2/2,0)+IF(BH33>(PosPUDL1+3),-PUDL1l*(BH33-PosPUDL1-3)^2/2,0)+IF(BH33>PosPUDL2,PUDL2l*(BH33-PosPUDL2)^2/2,0)+IF(BH33>(PosPUDL2+LePUDL2),-PUDL2l*(BH33-PosPUDL2-LePUDL2)^2/2,0)+IF(BH33>PosPLa1,PLa1l*(BH33-PosPLa1),0)+IF(BH33>PosPLb1,PLb1l*(BH33-PosPLb1),0) -> -21.49 | BI35: =-RL1l*BI33+2*BI33^2/2+IF(BI33>PosPUDL1,PUDL1l*(BI33-PosPUDL1)^2/2,0)+IF(BI33>(PosPUDL1+3),-PUDL1l*(BI33-PosPUDL1-3)^2/2,0)+IF(BI33>PosPUDL2,PUDL2l*(BI33-PosPUDL2)^2/2,0)+IF(BI33>(PosPUDL2+LePUDL2),-PUDL2l*(BI33-PosPUDL2-LePUDL2)^2/2,0)+IF(BI33>PosPLa1,PLa1l*(BI33-PosPLa1),0)+IF(BI33>PosPLb1,PLb1l*(BI33-PosPLb1),0) -> -21.26 | BJ35: =-RL1l*BJ33+2*BJ33^2/2+IF(BJ33>PosPUDL1,PUDL1l*(BJ33-PosPUDL1)^2/2,0)+IF(BJ33>(PosPUDL1+3),-PUDL1l*(BJ33-PosPUDL1-3)^2/2,0)+IF(BJ33>PosPUDL2,PUDL2l*(BJ33-PosPUDL2)^2/2,0)+IF(BJ33>(PosPUDL2+LePUDL2),-PUDL2l*(BJ33-PosPUDL2-LePUDL2)^2/2,0)+IF(BJ33>PosPLa1,PLa1l*(BJ33-PosPLa1),0)+IF(BJ33>PosPLb1,PLb1l*(BJ33-PosPLb1),0) -> -21.02 | BK35: =-RL1l*BK33+2*BK33^2/2+IF(BK33>PosPUDL1,PUDL1l*(BK33-PosPUDL1)^2/2,0)+IF(BK33>(PosPUDL1+3),-PUDL1l*(BK33-PosPUDL1-3)^2/2,0)+IF(BK33>PosPUDL2,PUDL2l*(BK33-PosPUDL2)^2/2,0)+IF(BK33>(PosPUDL2+LePUDL2),-PUDL2l*(BK33-PosPUDL2-LePUDL2)^2/2,0)+IF(BK33>PosPLa1,PLa1l*(BK33-PosPLa1),0)+IF(BK33>PosPLb1,PLb1l*(BK33-PosPLb1),0) -> -20.76 | BL35: =-RL1l*BL33+2*BL33^2/2+IF(BL33>PosPUDL1,PUDL1l*(BL33-PosPUDL1)^2/2,0)+IF(BL33>(PosPUDL1+3),-PUDL1l*(BL33-PosPUDL1-3)^2/2,0)+IF(BL33>PosPUDL2,PUDL2l*(BL33-PosPUDL2)^2/2,0)+IF(BL33>(PosPUDL2+LePUDL2),-PUDL2l*(BL33-PosPUDL2-LePUDL2)^2/2,0)+IF(BL33>PosPLa1,PLa1l*(BL33-PosPLa1),0)+IF(BL33>PosPLb1,PLb1l*(BL33-PosPLb1),0) -> -20.49 | BM35: =-RL1l*BM33+2*BM33^2/2+IF(BM33>PosPUDL1,PUDL1l*(BM33-PosPUDL1)^2/2,0)+IF(BM33>(PosPUDL1+3),-PUDL1l*(BM33-PosPUDL1-3)^2/2,0)+IF(BM33>PosPUDL2,PUDL2l*(BM33-PosPUDL2)^2/2,0)+IF(BM33>(PosPUDL2+LePUDL2),-PUDL2l*(BM33-PosPUDL2-LePUDL2)^2/2,0)+IF(BM33>PosPLa1,PLa1l*(BM33-PosPLa1),0)+IF(BM33>PosPLb1,PLb1l*(BM33-PosPLb1),0) -> -20.21 | BN35: =-RL1l*BN33+2*BN33^2/2+IF(BN33>PosPUDL1,PUDL1l*(BN33-PosPUDL1)^2/2,0)+IF(BN33>(PosPUDL1+3),-PUDL1l*(BN33-PosPUDL1-3)^2/2,0)+IF(BN33>PosPUDL2,PUDL2l*(BN33-PosPUDL2)^2/2,0)+IF(BN33>(PosPUDL2+LePUDL2),-PUDL2l*(BN33-PosPUDL2-LePUDL2)^2/2,0)+IF(BN33>PosPLa1,PLa1l*(BN33-PosPLa1),0)+IF(BN33>PosPLb1,PLb1l*(BN33-PosPLb1),0) -> -19.91 | BO35: =-RL1l*BO33+2*BO33^2/2+IF(BO33>PosPUDL1,PUDL1l*(BO33-PosPUDL1)^2/2,0)+IF(BO33>(PosPUDL1+3),-PUDL1l*(BO33-PosPUDL1-3)^2/2,0)+IF(BO33>PosPUDL2,PUDL2l*(BO33-PosPUDL2)^2/2,0)+IF(BO33>(PosPUDL2+LePUDL2),-PUDL2l*(BO33-PosPUDL2-LePUDL2)^2/2,0)+IF(BO33>PosPLa1,PLa1l*(BO33-PosPLa1),0)+IF(BO33>PosPLb1,PLb1l*(BO33-PosPLb1),0) -> -19.61 | BP35: =-RL1l*BP33+2*BP33^2/2+IF(BP33>PosPUDL1,PUDL1l*(BP33-PosPUDL1)^2/2,0)+IF(BP33>(PosPUDL1+3),-PUDL1l*(BP33-PosPUDL1-3)^2/2,0)+IF(BP33>PosPUDL2,PUDL2l*(BP33-PosPUDL2)^2/2,0)+IF(BP33>(PosPUDL2+LePUDL2),-PUDL2l*(BP33-PosPUDL2-LePUDL2)^2/2,0)+IF(BP33>PosPLa1,PLa1l*(BP33-PosPLa1),0)+IF(BP33>PosPLb1,PLb1l*(BP33-PosPLb1),0) -> -19.29 | BQ35: =-RL1l*BQ33+2*BQ33^2/2+IF(BQ33>PosPUDL1,PUDL1l*(BQ33-PosPUDL1)^2/2,0)+IF(BQ33>(PosPUDL1+3),-PUDL1l*(BQ33-PosPUDL1-3)^2/2,0)+IF(BQ33>PosPUDL2,PUDL2l*(BQ33-PosPUDL2)^2/2,0)+IF(BQ33>(PosPUDL2+LePUDL2),-PUDL2l*(BQ33-PosPUDL2-LePUDL2)^2/2,0)+IF(BQ33>PosPLa1,PLa1l*(BQ33-PosPLa1),0)+IF(BQ33>PosPLb1,PLb1l*(BQ33-PosPLb1),0) -> -18.95 | BR35: =-RL1l*BR33+2*BR33^2/2+IF(BR33>PosPUDL1,PUDL1l*(BR33-PosPUDL1)^2/2,0)+IF(BR33>(PosPUDL1+3),-PUDL1l*(BR33-PosPUDL1-3)^2/2,0)+IF(BR33>PosPUDL2,PUDL2l*(BR33-PosPUDL2)^2/2,0)+IF(BR33>(PosPUDL2+LePUDL2),-PUDL2l*(BR33-PosPUDL2-LePUDL2)^2/2,0)+IF(BR33>PosPLa1,PLa1l*(BR33-PosPLa1),0)+IF(BR33>PosPLb1,PLb1l*(BR33-PosPLb1),0) -> -18.61 | BS35: =-RL1l*BS33+2*BS33^2/2+IF(BS33>PosPUDL1,PUDL1l*(BS33-PosPUDL1)^2/2,0)+IF(BS33>(PosPUDL1+3),-PUDL1l*(BS33-PosPUDL1-3)^2/2,0)+IF(BS33>PosPUDL2,PUDL2l*(BS33-PosPUDL2)^2/2,0)+IF(BS33>(PosPUDL2+LePUDL2),-PUDL2l*(BS33-PosPUDL2-LePUDL2)^2/2,0)+IF(BS33>PosPLa1,PLa1l*(BS33-PosPLa1),0)+IF(BS33>PosPLb1,PLb1l*(BS33-PosPLb1),0) -> -18.25 | BT35: =-RL1l*BT33+2*BT33^2/2+IF(BT33>PosPUDL1,PUDL1l*(BT33-PosPUDL1)^2/2,0)+IF(BT33>(PosPUDL1+3),-PUDL1l*(BT33-PosPUDL1-3)^2/2,0)+IF(BT33>PosPUDL2,PUDL2l*(BT33-PosPUDL2)^2/2,0)+IF(BT33>(PosPUDL2+LePUDL2),-PUDL2l*(BT33-PosPUDL2-LePUDL2)^2/2,0)+IF(BT33>PosPLa1,PLa1l*(BT33-PosPLa1),0)+IF(BT33>PosPLb1,PLb1l*(BT33-PosPLb1),0) -> -17.87 | BU35: =-RL1l*BU33+2*BU33^2/2+IF(BU33>PosPUDL1,PUDL1l*(BU33-PosPUDL1)^2/2,0)+IF(BU33>(PosPUDL1+3),-PUDL1l*(BU33-PosPUDL1-3)^2/2,0)+IF(BU33>PosPUDL2,PUDL2l*(BU33-PosPUDL2)^2/2,0)+IF(BU33>(PosPUDL2+LePUDL2),-PUDL2l*(BU33-PosPUDL2-LePUDL2)^2/2,0)+IF(BU33>PosPLa1,PLa1l*(BU33-PosPLa1),0)+IF(BU33>PosPLb1,PLb1l*(BU33-PosPLb1),0) -> -17.49 | BV35: =-RL1l*BV33+2*BV33^2/2+IF(BV33>PosPUDL1,PUDL1l*(BV33-PosPUDL1)^2/2,0)+IF(BV33>(PosPUDL1+3),-PUDL1l*(BV33-PosPUDL1-3)^2/2,0)+IF(BV33>PosPUDL2,PUDL2l*(BV33-PosPUDL2)^2/2,0)+IF(BV33>(PosPUDL2+LePUDL2),-PUDL2l*(BV33-PosPUDL2-LePUDL2)^2/2,0)+IF(BV33>PosPLa1,PLa1l*(BV33-PosPLa1),0)+IF(BV33>PosPLb1,PLb1l*(BV33-PosPLb1),0) -> -17.09 | BW35: =-RL1l*BW33+2*BW33^2/2+IF(BW33>PosPUDL1,PUDL1l*(BW33-PosPUDL1)^2/2,0)+IF(BW33>(PosPUDL1+3),-PUDL1l*(BW33-PosPUDL1-3)^2/2,0)+IF(BW33>PosPUDL2,PUDL2l*(BW33-PosPUDL2)^2/2,0)+IF(BW33>(PosPUDL2+LePUDL2),-PUDL2l*(BW33-PosPUDL2-LePUDL2)^2/2,0)+IF(BW33>PosPLa1,PLa1l*(BW33-PosPLa1),0)+IF(BW33>PosPLb1,PLb1l*(BW33-PosPLb1),0) -> -16.68 | BX35: =-RL1l*BX33+2*BX33^2/2+IF(BX33>PosPUDL1,PUDL1l*(BX33-PosPUDL1)^2/2,0)+IF(BX33>(PosPUDL1+3),-PUDL1l*(BX33-PosPUDL1-3)^2/2,0)+IF(BX33>PosPUDL2,PUDL2l*(BX33-PosPUDL2)^2/2,0)+IF(BX33>(PosPUDL2+LePUDL2),-PUDL2l*(BX33-PosPUDL2-LePUDL2)^2/2,0)+IF(BX33>PosPLa1,PLa1l*(BX33-PosPLa1),0)+IF(BX33>PosPLb1,PLb1l*(BX33-PosPLb1),0) -> -16.26 | BY35: =-RL1l*BY33+2*BY33^2/2+IF(BY33>PosPUDL1,PUDL1l*(BY33-PosPUDL1)^2/2,0)+IF(BY33>(PosPUDL1+3),-PUDL1l*(BY33-PosPUDL1-3)^2/2,0)+IF(BY33>PosPUDL2,PUDL2l*(BY33-PosPUDL2)^2/2,0)+IF(BY33>(PosPUDL2+LePUDL2),-PUDL2l*(BY33-PosPUDL2-LePUDL2)^2/2,0)+IF(BY33>PosPLa1,PLa1l*(BY33-PosPLa1),0)+IF(BY33>PosPLb1,PLb1l*(BY33-PosPLb1),0) -> -15.82 | BZ35: =-RL1l*BZ33+2*BZ33^2/2+IF(BZ33>PosPUDL1,PUDL1l*(BZ33-PosPUDL1)^2/2,0)+IF(BZ33>(PosPUDL1+3),-PUDL1l*(BZ33-PosPUDL1-3)^2/2,0)+IF(BZ33>PosPUDL2,PUDL2l*(BZ33-PosPUDL2)^2/2,0)+IF(BZ33>(PosPUDL2+LePUDL2),-PUDL2l*(BZ33-PosPUDL2-LePUDL2)^2/2,0)+IF(BZ33>PosPLa1,PLa1l*(BZ33-PosPLa1),0)+IF(BZ33>PosPLb1,PLb1l*(BZ33-PosPLb1),0) -> -15.38 | CA35: =-RL1l*CA33+2*CA33^2/2+IF(CA33>PosPUDL1,PUDL1l*(CA33-PosPUDL1)^2/2,0)+IF(CA33>(PosPUDL1+3),-PUDL1l*(CA33-PosPUDL1-3)^2/2,0)+IF(CA33>PosPUDL2,PUDL2l*(CA33-PosPUDL2)^2/2,0)+IF(CA33>(PosPUDL2+LePUDL2),-PUDL2l*(CA33-PosPUDL2-LePUDL2)^2/2,0)+IF(CA33>PosPLa1,PLa1l*(CA33-PosPLa1),0)+IF(CA33>PosPLb1,PLb1l*(CA33-PosPLb1),0) -> -14.91 | CB35: =-RL1l*CB33+2*CB33^2/2+IF(CB33>PosPUDL1,PUDL1l*(CB33-PosPUDL1)^2/2,0)+IF(CB33>(PosPUDL1+3),-PUDL1l*(CB33-PosPUDL1-3)^2/2,0)+IF(CB33>PosPUDL2,PUDL2l*(CB33-PosPUDL2)^2/2,0)+IF(CB33>(PosPUDL2+LePUDL2),-PUDL2l*(CB33-PosPUDL2-LePUDL2)^2/2,0)+IF(CB33>PosPLa1,PLa1l*(CB33-PosPLa1),0)+IF(CB33>PosPLb1,PLb1l*(CB33-PosPLb1),0) -> -14.44 | CC35: =-RL1l*CC33+2*CC33^2/2+IF(CC33>PosPUDL1,PUDL1l*(CC33-PosPUDL1)^2/2,0)+IF(CC33>(PosPUDL1+3),-PUDL1l*(CC33-PosPUDL1-3)^2/2,0)+IF(CC33>PosPUDL2,PUDL2l*(CC33-PosPUDL2)^2/2,0)+IF(CC33>(PosPUDL2+LePUDL2),-PUDL2l*(CC33-PosPUDL2-LePUDL2)^2/2,0)+IF(CC33>PosPLa1,PLa1l*(CC33-PosPLa1),0)+IF(CC33>PosPLb1,PLb1l*(CC33-PosPLb1),0) -> -13.95 | CD35: =-RL1l*CD33+2*CD33^2/2+IF(CD33>PosPUDL1,PUDL1l*(CD33-PosPUDL1)^2/2,0)+IF(CD33>(PosPUDL1+3),-PUDL1l*(CD33-PosPUDL1-3)^2/2,0)+IF(CD33>PosPUDL2,PUDL2l*(CD33-PosPUDL2)^2/2,0)+IF(CD33>(PosPUDL2+LePUDL2),-PUDL2l*(CD33-PosPUDL2-LePUDL2)^2/2,0)+IF(CD33>PosPLa1,PLa1l*(CD33-PosPLa1),0)+IF(CD33>PosPLb1,PLb1l*(CD33-PosPLb1),0) -> -13.45 | CE35: =-RL1l*CE33+2*CE33^2/2+IF(CE33>PosPUDL1,PUDL1l*(CE33-PosPUDL1)^2/2,0)+IF(CE33>(PosPUDL1+3),-PUDL1l*(CE33-PosPUDL1-3)^2/2,0)+IF(CE33>PosPUDL2,PUDL2l*(CE33-PosPUDL2)^2/2,0)+IF(CE33>(PosPUDL2+LePUDL2),-PUDL2l*(CE33-PosPUDL2-LePUDL2)^2/2,0)+IF(CE33>PosPLa1,PLa1l*(CE33-PosPLa1),0)+IF(CE33>PosPLb1,PLb1l*(CE33-PosPLb1),0) -> -12.94 | CF35: =-RL1l*CF33+2*CF33^2/2+IF(CF33>PosPUDL1,PUDL1l*(CF33-PosPUDL1)^2/2,0)+IF(CF33>(PosPUDL1+3),-PUDL1l*(CF33-PosPUDL1-3)^2/2,0)+IF(CF33>PosPUDL2,PUDL2l*(CF33-PosPUDL2)^2/2,0)+IF(CF33>(PosPUDL2+LePUDL2),-PUDL2l*(CF33-PosPUDL2-LePUDL2)^2/2,0)+IF(CF33>PosPLa1,PLa1l*(CF33-PosPLa1),0)+IF(CF33>PosPLb1,PLb1l*(CF33-PosPLb1),0) -> -12.41 | CG35: =-RL1l*CG33+2*CG33^2/2+IF(CG33>PosPUDL1,PUDL1l*(CG33-PosPUDL1)^2/2,0)+IF(CG33>(PosPUDL1+3),-PUDL1l*(CG33-PosPUDL1-3)^2/2,0)+IF(CG33>PosPUDL2,PUDL2l*(CG33-PosPUDL2)^2/2,0)+IF(CG33>(PosPUDL2+LePUDL2),-PUDL2l*(CG33-PosPUDL2-LePUDL2)^2/2,0)+IF(CG33>PosPLa1,PLa1l*(CG33-PosPLa1),0)+IF(CG33>PosPLb1,PLb1l*(CG33-PosPLb1),0) -> -11.88 | CH35: =-RL1l*CH33+2*CH33^2/2+IF(CH33>PosPUDL1,PUDL1l*(CH33-PosPUDL1)^2/2,0)+IF(CH33>(PosPUDL1+3),-PUDL1l*(CH33-PosPUDL1-3)^2/2,0)+IF(CH33>PosPUDL2,PUDL2l*(CH33-PosPUDL2)^2/2,0)+IF(CH33>(PosPUDL2+LePUDL2),-PUDL2l*(CH33-PosPUDL2-LePUDL2)^2/2,0)+IF(CH33>PosPLa1,PLa1l*(CH33-PosPLa1),0)+IF(CH33>PosPLb1,PLb1l*(CH33-PosPLb1),0) -> -11.33 | CI35: =-RL1l*CI33+2*CI33^2/2+IF(CI33>PosPUDL1,PUDL1l*(CI33-PosPUDL1)^2/2,0)+IF(CI33>(PosPUDL1+3),-PUDL1l*(CI33-PosPUDL1-3)^2/2,0)+IF(CI33>PosPUDL2,PUDL2l*(CI33-PosPUDL2)^2/2,0)+IF(CI33>(PosPUDL2+LePUDL2),-PUDL2l*(CI33-PosPUDL2-LePUDL2)^2/2,0)+IF(CI33>PosPLa1,PLa1l*(CI33-PosPLa1),0)+IF(CI33>PosPLb1,PLb1l*(CI33-PosPLb1),0) -> -10.76 | CJ35: =-RL1l*CJ33+2*CJ33^2/2+IF(CJ33>PosPUDL1,PUDL1l*(CJ33-PosPUDL1)^2/2,0)+IF(CJ33>(PosPUDL1+3),-PUDL1l*(CJ33-PosPUDL1-3)^2/2,0)+IF(CJ33>PosPUDL2,PUDL2l*(CJ33-PosPUDL2)^2/2,0)+IF(CJ33>(PosPUDL2+LePUDL2),-PUDL2l*(CJ33-PosPUDL2-LePUDL2)^2/2,0)+IF(CJ33>PosPLa1,PLa1l*(CJ33-PosPLa1),0)+IF(CJ33>PosPLb1,PLb1l*(CJ33-PosPLb1),0) -> -10.19 | CK35: =-RL1l*CK33+2*CK33^2/2+IF(CK33>PosPUDL1,PUDL1l*(CK33-PosPUDL1)^2/2,0)+IF(CK33>(PosPUDL1+3),-PUDL1l*(CK33-PosPUDL1-3)^2/2,0)+IF(CK33>PosPUDL2,PUDL2l*(CK33-PosPUDL2)^2/2,0)+IF(CK33>(PosPUDL2+LePUDL2),-PUDL2l*(CK33-PosPUDL2-LePUDL2)^2/2,0)+IF(CK33>PosPLa1,PLa1l*(CK33-PosPLa1),0)+IF(CK33>PosPLb1,PLb1l*(CK33-PosPLb1),0) -> -9.60 | CL35: =-RL1l*CL33+2*CL33^2/2+IF(CL33>PosPUDL1,PUDL1l*(CL33-PosPUDL1)^2/2,0)+IF(CL33>(PosPUDL1+3),-PUDL1l*(CL33-PosPUDL1-3)^2/2,0)+IF(CL33>PosPUDL2,PUDL2l*(CL33-PosPUDL2)^2/2,0)+IF(CL33>(PosPUDL2+LePUDL2),-PUDL2l*(CL33-PosPUDL2-LePUDL2)^2/2,0)+IF(CL33>PosPLa1,PLa1l*(CL33-PosPLa1),0)+IF(CL33>PosPLb1,PLb1l*(CL33-PosPLb1),0) -> -8.99 | CM35: =-RL1l*CM33+2*CM33^2/2+IF(CM33>PosPUDL1,PUDL1l*(CM33-PosPUDL1)^2/2,0)+IF(CM33>(PosPUDL1+3),-PUDL1l*(CM33-PosPUDL1-3)^2/2,0)+IF(CM33>PosPUDL2,PUDL2l*(CM33-PosPUDL2)^2/2,0)+IF(CM33>(PosPUDL2+LePUDL2),-PUDL2l*(CM33-PosPUDL2-LePUDL2)^2/2,0)+IF(CM33>PosPLa1,PLa1l*(CM33-PosPLa1),0)+IF(CM33>PosPLb1,PLb1l*(CM33-PosPLb1),0) -> -8.38 | CN35: =-RL1l*CN33+2*CN33^2/2+IF(CN33>PosPUDL1,PUDL1l*(CN33-PosPUDL1)^2/2,0)+IF(CN33>(PosPUDL1+3),-PUDL1l*(CN33-PosPUDL1-3)^2/2,0)+IF(CN33>PosPUDL2,PUDL2l*(CN33-PosPUDL2)^2/2,0)+IF(CN33>(PosPUDL2+LePUDL2),-PUDL2l*(CN33-PosPUDL2-LePUDL2)^2/2,0)+IF(CN33>PosPLa1,PLa1l*(CN33-PosPLa1),0)+IF(CN33>PosPLb1,PLb1l*(CN33-PosPLb1),0) -> -7.75 | CO35: =-RL1l*CO33+2*CO33^2/2+IF(CO33>PosPUDL1,PUDL1l*(CO33-PosPUDL1)^2/2,0)+IF(CO33>(PosPUDL1+3),-PUDL1l*(CO33-PosPUDL1-3)^2/2,0)+IF(CO33>PosPUDL2,PUDL2l*(CO33-PosPUDL2)^2/2,0)+IF(CO33>(PosPUDL2+LePUDL2),-PUDL2l*(CO33-PosPUDL2-LePUDL2)^2/2,0)+IF(CO33>PosPLa1,PLa1l*(CO33-PosPLa1),0)+IF(CO33>PosPLb1,PLb1l*(CO33-PosPLb1),0) -> -7.11 | CP35: =-RL1l*CP33+2*CP33^2/2+IF(CP33>PosPUDL1,PUDL1l*(CP33-PosPUDL1)^2/2,0)+IF(CP33>(PosPUDL1+3),-PUDL1l*(CP33-PosPUDL1-3)^2/2,0)+IF(CP33>PosPUDL2,PUDL2l*(CP33-PosPUDL2)^2/2,0)+IF(CP33>(PosPUDL2+LePUDL2),-PUDL2l*(CP33-PosPUDL2-LePUDL2)^2/2,0)+IF(CP33>PosPLa1,PLa1l*(CP33-PosPLa1),0)+IF(CP33>PosPLb1,PLb1l*(CP33-PosPLb1),0) -> -6.46 | CQ35: =-RL1l*CQ33+2*CQ33^2/2+IF(CQ33>PosPUDL1,PUDL1l*(CQ33-PosPUDL1)^2/2,0)+IF(CQ33>(PosPUDL1+3),-PUDL1l*(CQ33-PosPUDL1-3)^2/2,0)+IF(CQ33>PosPUDL2,PUDL2l*(CQ33-PosPUDL2)^2/2,0)+IF(CQ33>(PosPUDL2+LePUDL2),-PUDL2l*(CQ33-PosPUDL2-LePUDL2)^2/2,0)+IF(CQ33>PosPLa1,PLa1l*(CQ33-PosPLa1),0)+IF(CQ33>PosPLb1,PLb1l*(CQ33-PosPLb1),0) -> -5.79 | CR35: =-RL1l*CR33+2*CR33^2/2+IF(CR33>PosPUDL1,PUDL1l*(CR33-PosPUDL1)^2/2,0)+IF(CR33>(PosPUDL1+3),-PUDL1l*(CR33-PosPUDL1-3)^2/2,0)+IF(CR33>PosPUDL2,PUDL2l*(CR33-PosPUDL2)^2/2,0)+IF(CR33>(PosPUDL2+LePUDL2),-PUDL2l*(CR33-PosPUDL2-LePUDL2)^2/2,0)+IF(CR33>PosPLa1,PLa1l*(CR33-PosPLa1),0)+IF(CR33>PosPLb1,PLb1l*(CR33-PosPLb1),0) -> -5.11 | CS35: =-RL1l*CS33+2*CS33^2/2+IF(CS33>PosPUDL1,PUDL1l*(CS33-PosPUDL1)^2/2,0)+IF(CS33>(PosPUDL1+3),-PUDL1l*(CS33-PosPUDL1-3)^2/2,0)+IF(CS33>PosPUDL2,PUDL2l*(CS33-PosPUDL2)^2/2,0)+IF(CS33>(PosPUDL2+LePUDL2),-PUDL2l*(CS33-PosPUDL2-LePUDL2)^2/2,0)+IF(CS33>PosPLa1,PLa1l*(CS33-PosPLa1),0)+IF(CS33>PosPLb1,PLb1l*(CS33-PosPLb1),0) -> -4.42 | CT35: =-RL1l*CT33+2*CT33^2/2+IF(CT33>PosPUDL1,PUDL1l*(CT33-PosPUDL1)^2/2,0)+IF(CT33>(PosPUDL1+3),-PUDL1l*(CT33-PosPUDL1-3)^2/2,0)+IF(CT33>PosPUDL2,PUDL2l*(CT33-PosPUDL2)^2/2,0)+IF(CT33>(PosPUDL2+LePUDL2),-PUDL2l*(CT33-PosPUDL2-LePUDL2)^2/2,0)+IF(CT33>PosPLa1,PLa1l*(CT33-PosPLa1),0)+IF(CT33>PosPLb1,PLb1l*(CT33-PosPLb1),0) -> -3.71 | CU35: =-RL1l*CU33+2*CU33^2/2+IF(CU33>PosPUDL1,PUDL1l*(CU33-PosPUDL1)^2/2,0)+IF(CU33>(PosPUDL1+3),-PUDL1l*(CU33-PosPUDL1-3)^2/2,0)+IF(CU33>PosPUDL2,PUDL2l*(CU33-PosPUDL2)^2/2,0)+IF(CU33>(PosPUDL2+LePUDL2),-PUDL2l*(CU33-PosPUDL2-LePUDL2)^2/2,0)+IF(CU33>PosPLa1,PLa1l*(CU33-PosPLa1),0)+IF(CU33>PosPLb1,PLb1l*(CU33-PosPLb1),0) -> -3.00 | CV35: =-RL1l*CV33+2*CV33^2/2+IF(CV33>PosPUDL1,PUDL1l*(CV33-PosPUDL1)^2/2,0)+IF(CV33>(PosPUDL1+3),-PUDL1l*(CV33-PosPUDL1-3)^2/2,0)+IF(CV33>PosPUDL2,PUDL2l*(CV33-PosPUDL2)^2/2,0)+IF(CV33>(PosPUDL2+LePUDL2),-PUDL2l*(CV33-PosPUDL2-LePUDL2)^2/2,0)+IF(CV33>PosPLa1,PLa1l*(CV33-PosPLa1),0)+IF(CV33>PosPLb1,PLb1l*(CV33-PosPLb1),0) -> -2.27 | CW35: =-RL1l*CW33+2*CW33^2/2+IF(CW33>PosPUDL1,PUDL1l*(CW33-PosPUDL1)^2/2,0)+IF(CW33>(PosPUDL1+3),-PUDL1l*(CW33-PosPUDL1-3)^2/2,0)+IF(CW33>PosPUDL2,PUDL2l*(CW33-PosPUDL2)^2/2,0)+IF(CW33>(PosPUDL2+LePUDL2),-PUDL2l*(CW33-PosPUDL2-LePUDL2)^2/2,0)+IF(CW33>PosPLa1,PLa1l*(CW33-PosPLa1),0)+IF(CW33>PosPLb1,PLb1l*(CW33-PosPLb1),0) -> -1.52 | CX35: =-RL1l*CX33+2*CX33^2/2+IF(CX33>PosPUDL1,PUDL1l*(CX33-PosPUDL1)^2/2,0)+IF(CX33>(PosPUDL1+3),-PUDL1l*(CX33-PosPUDL1-3)^2/2,0)+IF(CX33>PosPUDL2,PUDL2l*(CX33-PosPUDL2)^2/2,0)+IF(CX33>(PosPUDL2+LePUDL2),-PUDL2l*(CX33-PosPUDL2-LePUDL2)^2/2,0)+IF(CX33>PosPLa1,PLa1l*(CX33-PosPLa1),0)+IF(CX33>PosPLb1,PLb1l*(CX33-PosPLb1),0) -> -0.77 | CY35: =-RL1l*CY33+2*CY33^2/2+IF(CY33>PosPUDL1,PUDL1l*(CY33-PosPUDL1)^2/2,0)+IF(CY33>(PosPUDL1+3),-PUDL1l*(CY33-PosPUDL1-3)^2/2,0)+IF(CY33>PosPUDL2,PUDL2l*(CY33-PosPUDL2)^2/2,0)+IF(CY33>(PosPUDL2+LePUDL2),-PUDL2l*(CY33-PosPUDL2-LePUDL2)^2/2,0)+IF(CY33>PosPLa1,PLa1l*(CY33-PosPLa1),0)+IF(CY33>PosPLb1,PLb1l*(CY33-PosPLb1),0) -> 0.00
B36: Shear dead [kN] | C36: =RL1d -> 19.42 | D36: =RL1d-UDL1d*D33-IF(D33>PosPUDL1,PUDL1d*(D33-PosPUDL1),0)-IF(D33>(PosPUDL1+3),-PUDL1d*(D33-PosPUDL1-3),0)-IF(D33>PosPUDL2,PUDL2d*(D33-PosPUDL2),0)-IF(D33>(PosPUDL2+LePUDL2),-PUDL2d*(D33-PosPUDL2-LePUDL2),0)-IF(D33>PosPLa1,PLa1d,0)-IF(D33>PosPLb1,PLb1d,0) -> 19.13 | E36: =RL1d-UDL1d*E33-IF(E33>PosPUDL1,PUDL1d*(E33-PosPUDL1),0)-IF(E33>(PosPUDL1+3),-PUDL1d*(E33-PosPUDL1-3),0)-IF(E33>PosPUDL2,PUDL2d*(E33-PosPUDL2),0)-IF(E33>(PosPUDL2+LePUDL2),-PUDL2d*(E33-PosPUDL2-LePUDL2),0)-IF(E33>PosPLa1,PLa1d,0)-IF(E33>PosPLb1,PLb1d,0) -> 18.85 | F36: =RL1d-UDL1d*F33-IF(F33>PosPUDL1,PUDL1d*(F33-PosPUDL1),0)-IF(F33>(PosPUDL1+3),-PUDL1d*(F33-PosPUDL1-3),0)-IF(F33>PosPUDL2,PUDL2d*(F33-PosPUDL2),0)-IF(F33>(PosPUDL2+LePUDL2),-PUDL2d*(F33-PosPUDL2-LePUDL2),0)-IF(F33>PosPLa1,PLa1d,0)-IF(F33>PosPLb1,PLb1d,0) -> 18.57 | G36: =RL1d-UDL1d*G33-IF(G33>PosPUDL1,PUDL1d*(G33-PosPUDL1),0)-IF(G33>(PosPUDL1+3),-PUDL1d*(G33-PosPUDL1-3),0)-IF(G33>PosPUDL2,PUDL2d*(G33-PosPUDL2),0)-IF(G33>(PosPUDL2+LePUDL2),-PUDL2d*(G33-PosPUDL2-LePUDL2),0)-IF(G33>PosPLa1,PLa1d,0)-IF(G33>PosPLb1,PLb1d,0) -> 18.29 | H36: =RL1d-UDL1d*H33-IF(H33>PosPUDL1,PUDL1d*(H33-PosPUDL1),0)-IF(H33>(PosPUDL1+3),-PUDL1d*(H33-PosPUDL1-3),0)-IF(H33>PosPUDL2,PUDL2d*(H33-PosPUDL2),0)-IF(H33>(PosPUDL2+LePUDL2),-PUDL2d*(H33-PosPUDL2-LePUDL2),0)-IF(H33>PosPLa1,PLa1d,0)-IF(H33>PosPLb1,PLb1d,0) -> 18.01 | I36: =RL1d-UDL1d*I33-IF(I33>PosPUDL1,PUDL1d*(I33-PosPUDL1),0)-IF(I33>(PosPUDL1+3),-PUDL1d*(I33-PosPUDL1-3),0)-IF(I33>PosPUDL2,PUDL2d*(I33-PosPUDL2),0)-IF(I33>(PosPUDL2+LePUDL2),-PUDL2d*(I33-PosPUDL2-LePUDL2),0)-IF(I33>PosPLa1,PLa1d,0)-IF(I33>PosPLb1,PLb1d,0) -> 17.73 | J36: =RL1d-UDL1d*J33-IF(J33>PosPUDL1,PUDL1d*(J33-PosPUDL1),0)-IF(J33>(PosPUDL1+3),-PUDL1d*(J33-PosPUDL1-3),0)-IF(J33>PosPUDL2,PUDL2d*(J33-PosPUDL2),0)-IF(J33>(PosPUDL2+LePUDL2),-PUDL2d*(J33-PosPUDL2-LePUDL2),0)-IF(J33>PosPLa1,PLa1d,0)-IF(J33>PosPLb1,PLb1d,0) -> 17.45 | K36: =RL1d-UDL1d*K33-IF(K33>PosPUDL1,PUDL1d*(K33-PosPUDL1),0)-IF(K33>(PosPUDL1+3),-PUDL1d*(K33-PosPUDL1-3),0)-IF(K33>PosPUDL2,PUDL2d*(K33-PosPUDL2),0)-IF(K33>(PosPUDL2+LePUDL2),-PUDL2d*(K33-PosPUDL2-LePUDL2),0)-IF(K33>PosPLa1,PLa1d,0)-IF(K33>PosPLb1,PLb1d,0) -> 17.17 | L36: =RL1d-UDL1d*L33-IF(L33>PosPUDL1,PUDL1d*(L33-PosPUDL1),0)-IF(L33>(PosPUDL1+3),-PUDL1d*(L33-PosPUDL1-3),0)-IF(L33>PosPUDL2,PUDL2d*(L33-PosPUDL2),0)-IF(L33>(PosPUDL2+LePUDL2),-PUDL2d*(L33-PosPUDL2-LePUDL2),0)-IF(L33>PosPLa1,PLa1d,0)-IF(L33>PosPLb1,PLb1d,0) -> 16.89 | M36: =RL1d-UDL1d*M33-IF(M33>PosPUDL1,PUDL1d*(M33-PosPUDL1),0)-IF(M33>(PosPUDL1+3),-PUDL1d*(M33-PosPUDL1-3),0)-IF(M33>PosPUDL2,PUDL2d*(M33-PosPUDL2),0)-IF(M33>(PosPUDL2+LePUDL2),-PUDL2d*(M33-PosPUDL2-LePUDL2),0)-IF(M33>PosPLa1,PLa1d,0)-IF(M33>PosPLb1,PLb1d,0) -> 16.61 | N36: =RL1d-UDL1d*N33-IF(N33>PosPUDL1,PUDL1d*(N33-PosPUDL1),0)-IF(N33>(PosPUDL1+3),-PUDL1d*(N33-PosPUDL1-3),0)-IF(N33>PosPUDL2,PUDL2d*(N33-PosPUDL2),0)-IF(N33>(PosPUDL2+LePUDL2),-PUDL2d*(N33-PosPUDL2-LePUDL2),0)-IF(N33>PosPLa1,PLa1d,0)-IF(N33>PosPLb1,PLb1d,0) -> 16.33 | O36: =RL1d-UDL1d*O33-IF(O33>PosPUDL1,PUDL1d*(O33-PosPUDL1),0)-IF(O33>(PosPUDL1+3),-PUDL1d*(O33-PosPUDL1-3),0)-IF(O33>PosPUDL2,PUDL2d*(O33-PosPUDL2),0)-IF(O33>(PosPUDL2+LePUDL2),-PUDL2d*(O33-PosPUDL2-LePUDL2),0)-IF(O33>PosPLa1,PLa1d,0)-IF(O33>PosPLb1,PLb1d,0) -> 16.05 | P36: =RL1d-UDL1d*P33-IF(P33>PosPUDL1,PUDL1d*(P33-PosPUDL1),0)-IF(P33>(PosPUDL1+3),-PUDL1d*(P33-PosPUDL1-3),0)-IF(P33>PosPUDL2,PUDL2d*(P33-PosPUDL2),0)-IF(P33>(PosPUDL2+LePUDL2),-PUDL2d*(P33-PosPUDL2-LePUDL2),0)-IF(P33>PosPLa1,PLa1d,0)-IF(P33>PosPLb1,PLb1d,0) -> 15.68 | Q36: =RL1d-UDL1d*Q33-IF(Q33>PosPUDL1,PUDL1d*(Q33-PosPUDL1),0)-IF(Q33>(PosPUDL1+3),-PUDL1d*(Q33-PosPUDL1-3),0)-IF(Q33>PosPUDL2,PUDL2d*(Q33-PosPUDL2),0)-IF(Q33>(PosPUDL2+LePUDL2),-PUDL2d*(Q33-PosPUDL2-LePUDL2),0)-IF(Q33>PosPLa1,PLa1d,0)-IF(Q33>PosPLb1,PLb1d,0) -> 15.24 | R36: =RL1d-UDL1d*R33-IF(R33>PosPUDL1,PUDL1d*(R33-PosPUDL1),0)-IF(R33>(PosPUDL1+3),-PUDL1d*(R33-PosPUDL1-3),0)-IF(R33>PosPUDL2,PUDL2d*(R33-PosPUDL2),0)-IF(R33>(PosPUDL2+LePUDL2),-PUDL2d*(R33-PosPUDL2-LePUDL2),0)-IF(R33>PosPLa1,PLa1d,0)-IF(R33>PosPLb1,PLb1d,0) -> 14.80 | S36: =RL1d-UDL1d*S33-IF(S33>PosPUDL1,PUDL1d*(S33-PosPUDL1),0)-IF(S33>(PosPUDL1+3),-PUDL1d*(S33-PosPUDL1-3),0)-IF(S33>PosPUDL2,PUDL2d*(S33-PosPUDL2),0)-IF(S33>(PosPUDL2+LePUDL2),-PUDL2d*(S33-PosPUDL2-LePUDL2),0)-IF(S33>PosPLa1,PLa1d,0)-IF(S33>PosPLb1,PLb1d,0) -> 14.36 | T36: =RL1d-UDL1d*T33-IF(T33>PosPUDL1,PUDL1d*(T33-PosPUDL1),0)-IF(T33>(PosPUDL1+3),-PUDL1d*(T33-PosPUDL1-3),0)-IF(T33>PosPUDL2,PUDL2d*(T33-PosPUDL2),0)-IF(T33>(PosPUDL2+LePUDL2),-PUDL2d*(T33-PosPUDL2-LePUDL2),0)-IF(T33>PosPLa1,PLa1d,0)-IF(T33>PosPLb1,PLb1d,0) -> 13.92 | U36: =RL1d-UDL1d*U33-IF(U33>PosPUDL1,PUDL1d*(U33-PosPUDL1),0)-IF(U33>(PosPUDL1+3),-PUDL1d*(U33-PosPUDL1-3),0)-IF(U33>PosPUDL2,PUDL2d*(U33-PosPUDL2),0)-IF(U33>(PosPUDL2+LePUDL2),-PUDL2d*(U33-PosPUDL2-LePUDL2),0)-IF(U33>PosPLa1,PLa1d,0)-IF(U33>PosPLb1,PLb1d,0) -> 13.48 | V36: =RL1d-UDL1d*V33-IF(V33>PosPUDL1,PUDL1d*(V33-PosPUDL1),0)-IF(V33>(PosPUDL1+3),-PUDL1d*(V33-PosPUDL1-3),0)-IF(V33>PosPUDL2,PUDL2d*(V33-PosPUDL2),0)-IF(V33>(PosPUDL2+LePUDL2),-PUDL2d*(V33-PosPUDL2-LePUDL2),0)-IF(V33>PosPLa1,PLa1d,0)-IF(V33>PosPLb1,PLb1d,0) -> 13.04 | W36: =RL1d-UDL1d*W33-IF(W33>PosPUDL1,PUDL1d*(W33-PosPUDL1),0)-IF(W33>(PosPUDL1+3),-PUDL1d*(W33-PosPUDL1-3),0)-IF(W33>PosPUDL2,PUDL2d*(W33-PosPUDL2),0)-IF(W33>(PosPUDL2+LePUDL2),-PUDL2d*(W33-PosPUDL2-LePUDL2),0)-IF(W33>PosPLa1,PLa1d,0)-IF(W33>PosPLb1,PLb1d,0) -> 12.60 | X36: =RL1d-UDL1d*X33-IF(X33>PosPUDL1,PUDL1d*(X33-PosPUDL1),0)-IF(X33>(PosPUDL1+3),-PUDL1d*(X33-PosPUDL1-3),0)-IF(X33>PosPUDL2,PUDL2d*(X33-PosPUDL2),0)-IF(X33>(PosPUDL2+LePUDL2),-PUDL2d*(X33-PosPUDL2-LePUDL2),0)-IF(X33>PosPLa1,PLa1d,0)-IF(X33>PosPLb1,PLb1d,0) -> 12.16 | Y36: =RL1d-UDL1d*Y33-IF(Y33>PosPUDL1,PUDL1d*(Y33-PosPUDL1),0)-IF(Y33>(PosPUDL1+3),-PUDL1d*(Y33-PosPUDL1-3),0)-IF(Y33>PosPUDL2,PUDL2d*(Y33-PosPUDL2),0)-IF(Y33>(PosPUDL2+LePUDL2),-PUDL2d*(Y33-PosPUDL2-LePUDL2),0)-IF(Y33>PosPLa1,PLa1d,0)-IF(Y33>PosPLb1,PLb1d,0) -> 11.72 | Z36: =RL1d-UDL1d*Z33-IF(Z33>PosPUDL1,PUDL1d*(Z33-PosPUDL1),0)-IF(Z33>(PosPUDL1+3),-PUDL1d*(Z33-PosPUDL1-3),0)-IF(Z33>PosPUDL2,PUDL2d*(Z33-PosPUDL2),0)-IF(Z33>(PosPUDL2+LePUDL2),-PUDL2d*(Z33-PosPUDL2-LePUDL2),0)-IF(Z33>PosPLa1,PLa1d,0)-IF(Z33>PosPLb1,PLb1d,0) -> 11.28 | AA36: =RL1d-UDL1d*AA33-IF(AA33>PosPUDL1,PUDL1d*(AA33-PosPUDL1),0)-IF(AA33>(PosPUDL1+3),-PUDL1d*(AA33-PosPUDL1-3),0)-IF(AA33>PosPUDL2,PUDL2d*(AA33-PosPUDL2),0)-IF(AA33>(PosPUDL2+LePUDL2),-PUDL2d*(AA33-PosPUDL2-LePUDL2),0)-IF(AA33>PosPLa1,PLa1d,0)-IF(AA33>PosPLb1,PLb1d,0) -> 10.84 | AB36: =RL1d-UDL1d*AB33-IF(AB33>PosPUDL1,PUDL1d*(AB33-PosPUDL1),0)-IF(AB33>(PosPUDL1+3),-PUDL1d*(AB33-PosPUDL1-3),0)-IF(AB33>PosPUDL2,PUDL2d*(AB33-PosPUDL2),0)-IF(AB33>(PosPUDL2+LePUDL2),-PUDL2d*(AB33-PosPUDL2-LePUDL2),0)-IF(AB33>PosPLa1,PLa1d,0)-IF(AB33>PosPLb1,PLb1d,0) -> 10.40 | AC36: =RL1d-UDL1d*AC33-IF(AC33>PosPUDL1,PUDL1d*(AC33-PosPUDL1),0)-IF(AC33>(PosPUDL1+3),-PUDL1d*(AC33-PosPUDL1-3),0)-IF(AC33>PosPUDL2,PUDL2d*(AC33-PosPUDL2),0)-IF(AC33>(PosPUDL2+LePUDL2),-PUDL2d*(AC33-PosPUDL2-LePUDL2),0)-IF(AC33>PosPLa1,PLa1d,0)-IF(AC33>PosPLb1,PLb1d,0) -> 9.95 | AD36: =RL1d-UDL1d*AD33-IF(AD33>PosPUDL1,PUDL1d*(AD33-PosPUDL1),0)-IF(AD33>(PosPUDL1+3),-PUDL1d*(AD33-PosPUDL1-3),0)-IF(AD33>PosPUDL2,PUDL2d*(AD33-PosPUDL2),0)-IF(AD33>(PosPUDL2+LePUDL2),-PUDL2d*(AD33-PosPUDL2-LePUDL2),0)-IF(AD33>PosPLa1,PLa1d,0)-IF(AD33>PosPLb1,PLb1d,0) -> 9.51 | AE36: =RL1d-UDL1d*AE33-IF(AE33>PosPUDL1,PUDL1d*(AE33-PosPUDL1),0)-IF(AE33>(PosPUDL1+3),-PUDL1d*(AE33-PosPUDL1-3),0)-IF(AE33>PosPUDL2,PUDL2d*(AE33-PosPUDL2),0)-IF(AE33>(PosPUDL2+LePUDL2),-PUDL2d*(AE33-PosPUDL2-LePUDL2),0)-IF(AE33>PosPLa1,PLa1d,0)-IF(AE33>PosPLb1,PLb1d,0) -> 9.07 | AF36: =RL1d-UDL1d*AF33-IF(AF33>PosPUDL1,PUDL1d*(AF33-PosPUDL1),0)-IF(AF33>(PosPUDL1+3),-PUDL1d*(AF33-PosPUDL1-3),0)-IF(AF33>PosPUDL2,PUDL2d*(AF33-PosPUDL2),0)-IF(AF33>(PosPUDL2+LePUDL2),-PUDL2d*(AF33-PosPUDL2-LePUDL2),0)-IF(AF33>PosPLa1,PLa1d,0)-IF(AF33>PosPLb1,PLb1d,0) -> 8.63 | AG36: =RL1d-UDL1d*AG33-IF(AG33>PosPUDL1,PUDL1d*(AG33-PosPUDL1),0)-IF(AG33>(PosPUDL1+3),-PUDL1d*(AG33-PosPUDL1-3),0)-IF(AG33>PosPUDL2,PUDL2d*(AG33-PosPUDL2),0)-IF(AG33>(PosPUDL2+LePUDL2),-PUDL2d*(AG33-PosPUDL2-LePUDL2),0)-IF(AG33>PosPLa1,PLa1d,0)-IF(AG33>PosPLb1,PLb1d,0) -> 8.19 | AH36: =RL1d-UDL1d*AH33-IF(AH33>PosPUDL1,PUDL1d*(AH33-PosPUDL1),0)-IF(AH33>(PosPUDL1+3),-PUDL1d*(AH33-PosPUDL1-3),0)-IF(AH33>PosPUDL2,PUDL2d*(AH33-PosPUDL2),0)-IF(AH33>(PosPUDL2+LePUDL2),-PUDL2d*(AH33-PosPUDL2-LePUDL2),0)-IF(AH33>PosPLa1,PLa1d,0)-IF(AH33>PosPLb1,PLb1d,0) -> 7.75 | AI36: =RL1d-UDL1d*AI33-IF(AI33>PosPUDL1,PUDL1d*(AI33-PosPUDL1),0)-IF(AI33>(PosPUDL1+3),-PUDL1d*(AI33-PosPUDL1-3),0)-IF(AI33>PosPUDL2,PUDL2d*(AI33-PosPUDL2),0)-IF(AI33>(PosPUDL2+LePUDL2),-PUDL2d*(AI33-PosPUDL2-LePUDL2),0)-IF(AI33>PosPLa1,PLa1d,0)-IF(AI33>PosPLb1,PLb1d,0) -> 7.31 | AJ36: =RL1d-UDL1d*AJ33-IF(AJ33>PosPUDL1,PUDL1d*(AJ33-PosPUDL1),0)-IF(AJ33>(PosPUDL1+3),-PUDL1d*(AJ33-PosPUDL1-3),0)-IF(AJ33>PosPUDL2,PUDL2d*(AJ33-PosPUDL2),0)-IF(AJ33>(PosPUDL2+LePUDL2),-PUDL2d*(AJ33-PosPUDL2-LePUDL2),0)-IF(AJ33>PosPLa1,PLa1d,0)-IF(AJ33>PosPLb1,PLb1d,0) -> 6.87 | AK36: =RL1d-UDL1d*AK33-IF(AK33>PosPUDL1,PUDL1d*(AK33-PosPUDL1),0)-IF(AK33>(PosPUDL1+3),-PUDL1d*(AK33-PosPUDL1-3),0)-IF(AK33>PosPUDL2,PUDL2d*(AK33-PosPUDL2),0)-IF(AK33>(PosPUDL2+LePUDL2),-PUDL2d*(AK33-PosPUDL2-LePUDL2),0)-IF(AK33>PosPLa1,PLa1d,0)-IF(AK33>PosPLb1,PLb1d,0) -> 6.43 | AL36: =RL1d-UDL1d*AL33-IF(AL33>PosPUDL1,PUDL1d*(AL33-PosPUDL1),0)-IF(AL33>(PosPUDL1+3),-PUDL1d*(AL33-PosPUDL1-3),0)-IF(AL33>PosPUDL2,PUDL2d*(AL33-PosPUDL2),0)-IF(AL33>(PosPUDL2+LePUDL2),-PUDL2d*(AL33-PosPUDL2-LePUDL2),0)-IF(AL33>PosPLa1,PLa1d,0)-IF(AL33>PosPLb1,PLb1d,0) -> 5.99 | AM36: =RL1d-UDL1d*AM33-IF(AM33>PosPUDL1,PUDL1d*(AM33-PosPUDL1),0)-IF(AM33>(PosPUDL1+3),-PUDL1d*(AM33-PosPUDL1-3),0)-IF(AM33>PosPUDL2,PUDL2d*(AM33-PosPUDL2),0)-IF(AM33>(PosPUDL2+LePUDL2),-PUDL2d*(AM33-PosPUDL2-LePUDL2),0)-IF(AM33>PosPLa1,PLa1d,0)-IF(AM33>PosPLb1,PLb1d,0) -> 5.55 | AN36: =RL1d-UDL1d*AN33-IF(AN33>PosPUDL1,PUDL1d*(AN33-PosPUDL1),0)-IF(AN33>(PosPUDL1+3),-PUDL1d*(AN33-PosPUDL1-3),0)-IF(AN33>PosPUDL2,PUDL2d*(AN33-PosPUDL2),0)-IF(AN33>(PosPUDL2+LePUDL2),-PUDL2d*(AN33-PosPUDL2-LePUDL2),0)-IF(AN33>PosPLa1,PLa1d,0)-IF(AN33>PosPLb1,PLb1d,0) -> 5.11 | AO36: =RL1d-UDL1d*AO33-IF(AO33>PosPUDL1,PUDL1d*(AO33-PosPUDL1),0)-IF(AO33>(PosPUDL1+3),-PUDL1d*(AO33-PosPUDL1-3),0)-IF(AO33>PosPUDL2,PUDL2d*(AO33-PosPUDL2),0)-IF(AO33>(PosPUDL2+LePUDL2),-PUDL2d*(AO33-PosPUDL2-LePUDL2),0)-IF(AO33>PosPLa1,PLa1d,0)-IF(AO33>PosPLb1,PLb1d,0) -> 2.66 | AP36: =RL1d-UDL1d*AP33-IF(AP33>PosPUDL1,PUDL1d*(AP33-PosPUDL1),0)-IF(AP33>(PosPUDL1+3),-PUDL1d*(AP33-PosPUDL1-3),0)-IF(AP33>PosPUDL2,PUDL2d*(AP33-PosPUDL2),0)-IF(AP33>(PosPUDL2+LePUDL2),-PUDL2d*(AP33-PosPUDL2-LePUDL2),0)-IF(AP33>PosPLa1,PLa1d,0)-IF(AP33>PosPLb1,PLb1d,0) -> 2.22 | AQ36: =RL1d-UDL1d*AQ33-IF(AQ33>PosPUDL1,PUDL1d*(AQ33-PosPUDL1),0)-IF(AQ33>(PosPUDL1+3),-PUDL1d*(AQ33-PosPUDL1-3),0)-IF(AQ33>PosPUDL2,PUDL2d*(AQ33-PosPUDL2),0)-IF(AQ33>(PosPUDL2+LePUDL2),-PUDL2d*(AQ33-PosPUDL2-LePUDL2),0)-IF(AQ33>PosPLa1,PLa1d,0)-IF(AQ33>PosPLb1,PLb1d,0) -> 1.78 | AR36: =RL1d-UDL1d*AR33-IF(AR33>PosPUDL1,PUDL1d*(AR33-PosPUDL1),0)-IF(AR33>(PosPUDL1+3),-PUDL1d*(AR33-PosPUDL1-3),0)-IF(AR33>PosPUDL2,PUDL2d*(AR33-PosPUDL2),0)-IF(AR33>(PosPUDL2+LePUDL2),-PUDL2d*(AR33-PosPUDL2-LePUDL2),0)-IF(AR33>PosPLa1,PLa1d,0)-IF(AR33>PosPLb1,PLb1d,0) -> 1.34 | AS36: =RL1d-UDL1d*AS33-IF(AS33>PosPUDL1,PUDL1d*(AS33-PosPUDL1),0)-IF(AS33>(PosPUDL1+3),-PUDL1d*(AS33-PosPUDL1-3),0)-IF(AS33>PosPUDL2,PUDL2d*(AS33-PosPUDL2),0)-IF(AS33>(PosPUDL2+LePUDL2),-PUDL2d*(AS33-PosPUDL2-LePUDL2),0)-IF(AS33>PosPLa1,PLa1d,0)-IF(AS33>PosPLb1,PLb1d,0) -> 0.90 | AT36: =RL1d-UDL1d*AT33-IF(AT33>PosPUDL1,PUDL1d*(AT33-PosPUDL1),0)-IF(AT33>(PosPUDL1+3),-PUDL1d*(AT33-PosPUDL1-3),0)-IF(AT33>PosPUDL2,PUDL2d*(AT33-PosPUDL2),0)-IF(AT33>(PosPUDL2+LePUDL2),-PUDL2d*(AT33-PosPUDL2-LePUDL2),0)-IF(AT33>PosPLa1,PLa1d,0)-IF(AT33>PosPLb1,PLb1d,0) -> 0.46 | AU36: =RL1d-UDL1d*AU33-IF(AU33>PosPUDL1,PUDL1d*(AU33-PosPUDL1),0)-IF(AU33>(PosPUDL1+3),-PUDL1d*(AU33-PosPUDL1-3),0)-IF(AU33>PosPUDL2,PUDL2d*(AU33-PosPUDL2),0)-IF(AU33>(PosPUDL2+LePUDL2),-PUDL2d*(AU33-PosPUDL2-LePUDL2),0)-IF(AU33>PosPLa1,PLa1d,0)-IF(AU33>PosPLb1,PLb1d,0) -> 0.02 | AV36: =RL1d-UDL1d*AV33-IF(AV33>PosPUDL1,PUDL1d*(AV33-PosPUDL1),0)-IF(AV33>(PosPUDL1+3),-PUDL1d*(AV33-PosPUDL1-3),0)-IF(AV33>PosPUDL2,PUDL2d*(AV33-PosPUDL2),0)-IF(AV33>(PosPUDL2+LePUDL2),-PUDL2d*(AV33-PosPUDL2-LePUDL2),0)-IF(AV33>PosPLa1,PLa1d,0)-IF(AV33>PosPLb1,PLb1d,0) -> -0.42 | AW36: =RL1d-UDL1d*AW33-IF(AW33>PosPUDL1,PUDL1d*(AW33-PosPUDL1),0)-IF(AW33>(PosPUDL1+3),-PUDL1d*(AW33-PosPUDL1-3),0)-IF(AW33>PosPUDL2,PUDL2d*(AW33-PosPUDL2),0)-IF(AW33>(PosPUDL2+LePUDL2),-PUDL2d*(AW33-PosPUDL2-LePUDL2),0)-IF(AW33>PosPLa1,PLa1d,0)-IF(AW33>PosPLb1,PLb1d,0) -> -0.86 | AX36: =RL1d-UDL1d*AX33-IF(AX33>PosPUDL1,PUDL1d*(AX33-PosPUDL1),0)-IF(AX33>(PosPUDL1+3),-PUDL1d*(AX33-PosPUDL1-3),0)-IF(AX33>PosPUDL2,PUDL2d*(AX33-PosPUDL2),0)-IF(AX33>(PosPUDL2+LePUDL2),-PUDL2d*(AX33-PosPUDL2-LePUDL2),0)-IF(AX33>PosPLa1,PLa1d,0)-IF(AX33>PosPLb1,PLb1d,0) -> -1.30 | AY36: =RL1d-UDL1d*AY33-IF(AY33>PosPUDL1,PUDL1d*(AY33-PosPUDL1),0)-IF(AY33>(PosPUDL1+3),-PUDL1d*(AY33-PosPUDL1-3),0)-IF(AY33>PosPUDL2,PUDL2d*(AY33-PosPUDL2),0)-IF(AY33>(PosPUDL2+LePUDL2),-PUDL2d*(AY33-PosPUDL2-LePUDL2),0)-IF(AY33>PosPLa1,PLa1d,0)-IF(AY33>PosPLb1,PLb1d,0) -> -1.74 | AZ36: =RL1d-UDL1d*AZ33-IF(AZ33>PosPUDL1,PUDL1d*(AZ33-PosPUDL1),0)-IF(AZ33>(PosPUDL1+3),-PUDL1d*(AZ33-PosPUDL1-3),0)-IF(AZ33>PosPUDL2,PUDL2d*(AZ33-PosPUDL2),0)-IF(AZ33>(PosPUDL2+LePUDL2),-PUDL2d*(AZ33-PosPUDL2-LePUDL2),0)-IF(AZ33>PosPLa1,PLa1d,0)-IF(AZ33>PosPLb1,PLb1d,0) -> -2.18 | BA36: =RL1d-UDL1d*BA33-IF(BA33>PosPUDL1,PUDL1d*(BA33-PosPUDL1),0)-IF(BA33>(PosPUDL1+3),-PUDL1d*(BA33-PosPUDL1-3),0)-IF(BA33>PosPUDL2,PUDL2d*(BA33-PosPUDL2),0)-IF(BA33>(PosPUDL2+LePUDL2),-PUDL2d*(BA33-PosPUDL2-LePUDL2),0)-IF(BA33>PosPLa1,PLa1d,0)-IF(BA33>PosPLb1,PLb1d,0) -> -2.63 | BB36: =RL1d-UDL1d*BB33-IF(BB33>PosPUDL1,PUDL1d*(BB33-PosPUDL1),0)-IF(BB33>(PosPUDL1+3),-PUDL1d*(BB33-PosPUDL1-3),0)-IF(BB33>PosPUDL2,PUDL2d*(BB33-PosPUDL2),0)-IF(BB33>(PosPUDL2+LePUDL2),-PUDL2d*(BB33-PosPUDL2-LePUDL2),0)-IF(BB33>PosPLa1,PLa1d,0)-IF(BB33>PosPLb1,PLb1d,0) -> -2.91 | BC36: =RL1d-UDL1d*BC33-IF(BC33>PosPUDL1,PUDL1d*(BC33-PosPUDL1),0)-IF(BC33>(PosPUDL1+3),-PUDL1d*(BC33-PosPUDL1-3),0)-IF(BC33>PosPUDL2,PUDL2d*(BC33-PosPUDL2),0)-IF(BC33>(PosPUDL2+LePUDL2),-PUDL2d*(BC33-PosPUDL2-LePUDL2),0)-IF(BC33>PosPLa1,PLa1d,0)-IF(BC33>PosPLb1,PLb1d,0) -> -3.19 | BD36: =RL1d-UDL1d*BD33-IF(BD33>PosPUDL1,PUDL1d*(BD33-PosPUDL1),0)-IF(BD33>(PosPUDL1+3),-PUDL1d*(BD33-PosPUDL1-3),0)-IF(BD33>PosPUDL2,PUDL2d*(BD33-PosPUDL2),0)-IF(BD33>(PosPUDL2+LePUDL2),-PUDL2d*(BD33-PosPUDL2-LePUDL2),0)-IF(BD33>PosPLa1,PLa1d,0)-IF(BD33>PosPLb1,PLb1d,0) -> -3.47 | BE36: =RL1d-UDL1d*BE33-IF(BE33>PosPUDL1,PUDL1d*(BE33-PosPUDL1),0)-IF(BE33>(PosPUDL1+3),-PUDL1d*(BE33-PosPUDL1-3),0)-IF(BE33>PosPUDL2,PUDL2d*(BE33-PosPUDL2),0)-IF(BE33>(PosPUDL2+LePUDL2),-PUDL2d*(BE33-PosPUDL2-LePUDL2),0)-IF(BE33>PosPLa1,PLa1d,0)-IF(BE33>PosPLb1,PLb1d,0) -> -3.75 | BF36: =RL1d-UDL1d*BF33-IF(BF33>PosPUDL1,PUDL1d*(BF33-PosPUDL1),0)-IF(BF33>(PosPUDL1+3),-PUDL1d*(BF33-PosPUDL1-3),0)-IF(BF33>PosPUDL2,PUDL2d*(BF33-PosPUDL2),0)-IF(BF33>(PosPUDL2+LePUDL2),-PUDL2d*(BF33-PosPUDL2-LePUDL2),0)-IF(BF33>PosPLa1,PLa1d,0)-IF(BF33>PosPLb1,PLb1d,0) -> -4.03 | BG36: =RL1d-UDL1d*BG33-IF(BG33>PosPUDL1,PUDL1d*(BG33-PosPUDL1),0)-IF(BG33>(PosPUDL1+3),-PUDL1d*(BG33-PosPUDL1-3),0)-IF(BG33>PosPUDL2,PUDL2d*(BG33-PosPUDL2),0)-IF(BG33>(PosPUDL2+LePUDL2),-PUDL2d*(BG33-PosPUDL2-LePUDL2),0)-IF(BG33>PosPLa1,PLa1d,0)-IF(BG33>PosPLb1,PLb1d,0) -> -4.31 | BH36: =RL1d-UDL1d*BH33-IF(BH33>PosPUDL1,PUDL1d*(BH33-PosPUDL1),0)-IF(BH33>(PosPUDL1+3),-PUDL1d*(BH33-PosPUDL1-3),0)-IF(BH33>PosPUDL2,PUDL2d*(BH33-PosPUDL2),0)-IF(BH33>(PosPUDL2+LePUDL2),-PUDL2d*(BH33-PosPUDL2-LePUDL2),0)-IF(BH33>PosPLa1,PLa1d,0)-IF(BH33>PosPLb1,PLb1d,0) -> -4.59 | BI36: =RL1d-UDL1d*BI33-IF(BI33>PosPUDL1,PUDL1d*(BI33-PosPUDL1),0)-IF(BI33>(PosPUDL1+3),-PUDL1d*(BI33-PosPUDL1-3),0)-IF(BI33>PosPUDL2,PUDL2d*(BI33-PosPUDL2),0)-IF(BI33>(PosPUDL2+LePUDL2),-PUDL2d*(BI33-PosPUDL2-LePUDL2),0)-IF(BI33>PosPLa1,PLa1d,0)-IF(BI33>PosPLb1,PLb1d,0) -> -4.87 | BJ36: =RL1d-UDL1d*BJ33-IF(BJ33>PosPUDL1,PUDL1d*(BJ33-PosPUDL1),0)-IF(BJ33>(PosPUDL1+3),-PUDL1d*(BJ33-PosPUDL1-3),0)-IF(BJ33>PosPUDL2,PUDL2d*(BJ33-PosPUDL2),0)-IF(BJ33>(PosPUDL2+LePUDL2),-PUDL2d*(BJ33-PosPUDL2-LePUDL2),0)-IF(BJ33>PosPLa1,PLa1d,0)-IF(BJ33>PosPLb1,PLb1d,0) -> -5.15 | BK36: =RL1d-UDL1d*BK33-IF(BK33>PosPUDL1,PUDL1d*(BK33-PosPUDL1),0)-IF(BK33>(PosPUDL1+3),-PUDL1d*(BK33-PosPUDL1-3),0)-IF(BK33>PosPUDL2,PUDL2d*(BK33-PosPUDL2),0)-IF(BK33>(PosPUDL2+LePUDL2),-PUDL2d*(BK33-PosPUDL2-LePUDL2),0)-IF(BK33>PosPLa1,PLa1d,0)-IF(BK33>PosPLb1,PLb1d,0) -> -5.43 | BL36: =RL1d-UDL1d*BL33-IF(BL33>PosPUDL1,PUDL1d*(BL33-PosPUDL1),0)-IF(BL33>(PosPUDL1+3),-PUDL1d*(BL33-PosPUDL1-3),0)-IF(BL33>PosPUDL2,PUDL2d*(BL33-PosPUDL2),0)-IF(BL33>(PosPUDL2+LePUDL2),-PUDL2d*(BL33-PosPUDL2-LePUDL2),0)-IF(BL33>PosPLa1,PLa1d,0)-IF(BL33>PosPLb1,PLb1d,0) -> -5.71 | BM36: =RL1d-UDL1d*BM33-IF(BM33>PosPUDL1,PUDL1d*(BM33-PosPUDL1),0)-IF(BM33>(PosPUDL1+3),-PUDL1d*(BM33-PosPUDL1-3),0)-IF(BM33>PosPUDL2,PUDL2d*(BM33-PosPUDL2),0)-IF(BM33>(PosPUDL2+LePUDL2),-PUDL2d*(BM33-PosPUDL2-LePUDL2),0)-IF(BM33>PosPLa1,PLa1d,0)-IF(BM33>PosPLb1,PLb1d,0) -> -5.99 | BN36: =RL1d-UDL1d*BN33-IF(BN33>PosPUDL1,PUDL1d*(BN33-PosPUDL1),0)-IF(BN33>(PosPUDL1+3),-PUDL1d*(BN33-PosPUDL1-3),0)-IF(BN33>PosPUDL2,PUDL2d*(BN33-PosPUDL2),0)-IF(BN33>(PosPUDL2+LePUDL2),-PUDL2d*(BN33-PosPUDL2-LePUDL2),0)-IF(BN33>PosPLa1,PLa1d,0)-IF(BN33>PosPLb1,PLb1d,0) -> -6.28 | BO36: =RL1d-UDL1d*BO33-IF(BO33>PosPUDL1,PUDL1d*(BO33-PosPUDL1),0)-IF(BO33>(PosPUDL1+3),-PUDL1d*(BO33-PosPUDL1-3),0)-IF(BO33>PosPUDL2,PUDL2d*(BO33-PosPUDL2),0)-IF(BO33>(PosPUDL2+LePUDL2),-PUDL2d*(BO33-PosPUDL2-LePUDL2),0)-IF(BO33>PosPLa1,PLa1d,0)-IF(BO33>PosPLb1,PLb1d,0) -> -6.56 | BP36: =RL1d-UDL1d*BP33-IF(BP33>PosPUDL1,PUDL1d*(BP33-PosPUDL1),0)-IF(BP33>(PosPUDL1+3),-PUDL1d*(BP33-PosPUDL1-3),0)-IF(BP33>PosPUDL2,PUDL2d*(BP33-PosPUDL2),0)-IF(BP33>(PosPUDL2+LePUDL2),-PUDL2d*(BP33-PosPUDL2-LePUDL2),0)-IF(BP33>PosPLa1,PLa1d,0)-IF(BP33>PosPLb1,PLb1d,0) -> -6.84 | BQ36: =RL1d-UDL1d*BQ33-IF(BQ33>PosPUDL1,PUDL1d*(BQ33-PosPUDL1),0)-IF(BQ33>(PosPUDL1+3),-PUDL1d*(BQ33-PosPUDL1-3),0)-IF(BQ33>PosPUDL2,PUDL2d*(BQ33-PosPUDL2),0)-IF(BQ33>(PosPUDL2+LePUDL2),-PUDL2d*(BQ33-PosPUDL2-LePUDL2),0)-IF(BQ33>PosPLa1,PLa1d,0)-IF(BQ33>PosPLb1,PLb1d,0) -> -7.12 | BR36: =RL1d-UDL1d*BR33-IF(BR33>PosPUDL1,PUDL1d*(BR33-PosPUDL1),0)-IF(BR33>(PosPUDL1+3),-PUDL1d*(BR33-PosPUDL1-3),0)-IF(BR33>PosPUDL2,PUDL2d*(BR33-PosPUDL2),0)-IF(BR33>(PosPUDL2+LePUDL2),-PUDL2d*(BR33-PosPUDL2-LePUDL2),0)-IF(BR33>PosPLa1,PLa1d,0)-IF(BR33>PosPLb1,PLb1d,0) -> -7.40 | BS36: =RL1d-UDL1d*BS33-IF(BS33>PosPUDL1,PUDL1d*(BS33-PosPUDL1),0)-IF(BS33>(PosPUDL1+3),-PUDL1d*(BS33-PosPUDL1-3),0)-IF(BS33>PosPUDL2,PUDL2d*(BS33-PosPUDL2),0)-IF(BS33>(PosPUDL2+LePUDL2),-PUDL2d*(BS33-PosPUDL2-LePUDL2),0)-IF(BS33>PosPLa1,PLa1d,0)-IF(BS33>PosPLb1,PLb1d,0) -> -7.68 | BT36: =RL1d-UDL1d*BT33-IF(BT33>PosPUDL1,PUDL1d*(BT33-PosPUDL1),0)-IF(BT33>(PosPUDL1+3),-PUDL1d*(BT33-PosPUDL1-3),0)-IF(BT33>PosPUDL2,PUDL2d*(BT33-PosPUDL2),0)-IF(BT33>(PosPUDL2+LePUDL2),-PUDL2d*(BT33-PosPUDL2-LePUDL2),0)-IF(BT33>PosPLa1,PLa1d,0)-IF(BT33>PosPLb1,PLb1d,0) -> -7.96 | BU36: =RL1d-UDL1d*BU33-IF(BU33>PosPUDL1,PUDL1d*(BU33-PosPUDL1),0)-IF(BU33>(PosPUDL1+3),-PUDL1d*(BU33-PosPUDL1-3),0)-IF(BU33>PosPUDL2,PUDL2d*(BU33-PosPUDL2),0)-IF(BU33>(PosPUDL2+LePUDL2),-PUDL2d*(BU33-PosPUDL2-LePUDL2),0)-IF(BU33>PosPLa1,PLa1d,0)-IF(BU33>PosPLb1,PLb1d,0) -> -8.24 | BV36: =RL1d-UDL1d*BV33-IF(BV33>PosPUDL1,PUDL1d*(BV33-PosPUDL1),0)-IF(BV33>(PosPUDL1+3),-PUDL1d*(BV33-PosPUDL1-3),0)-IF(BV33>PosPUDL2,PUDL2d*(BV33-PosPUDL2),0)-IF(BV33>(PosPUDL2+LePUDL2),-PUDL2d*(BV33-PosPUDL2-LePUDL2),0)-IF(BV33>PosPLa1,PLa1d,0)-IF(BV33>PosPLb1,PLb1d,0) -> -8.52 | BW36: =RL1d-UDL1d*BW33-IF(BW33>PosPUDL1,PUDL1d*(BW33-PosPUDL1),0)-IF(BW33>(PosPUDL1+3),-PUDL1d*(BW33-PosPUDL1-3),0)-IF(BW33>PosPUDL2,PUDL2d*(BW33-PosPUDL2),0)-IF(BW33>(PosPUDL2+LePUDL2),-PUDL2d*(BW33-PosPUDL2-LePUDL2),0)-IF(BW33>PosPLa1,PLa1d,0)-IF(BW33>PosPLb1,PLb1d,0) -> -8.80 | BX36: =RL1d-UDL1d*BX33-IF(BX33>PosPUDL1,PUDL1d*(BX33-PosPUDL1),0)-IF(BX33>(PosPUDL1+3),-PUDL1d*(BX33-PosPUDL1-3),0)-IF(BX33>PosPUDL2,PUDL2d*(BX33-PosPUDL2),0)-IF(BX33>(PosPUDL2+LePUDL2),-PUDL2d*(BX33-PosPUDL2-LePUDL2),0)-IF(BX33>PosPLa1,PLa1d,0)-IF(BX33>PosPLb1,PLb1d,0) -> -9.08 | BY36: =RL1d-UDL1d*BY33-IF(BY33>PosPUDL1,PUDL1d*(BY33-PosPUDL1),0)-IF(BY33>(PosPUDL1+3),-PUDL1d*(BY33-PosPUDL1-3),0)-IF(BY33>PosPUDL2,PUDL2d*(BY33-PosPUDL2),0)-IF(BY33>(PosPUDL2+LePUDL2),-PUDL2d*(BY33-PosPUDL2-LePUDL2),0)-IF(BY33>PosPLa1,PLa1d,0)-IF(BY33>PosPLb1,PLb1d,0) -> -9.36 | BZ36: =RL1d-UDL1d*BZ33-IF(BZ33>PosPUDL1,PUDL1d*(BZ33-PosPUDL1),0)-IF(BZ33>(PosPUDL1+3),-PUDL1d*(BZ33-PosPUDL1-3),0)-IF(BZ33>PosPUDL2,PUDL2d*(BZ33-PosPUDL2),0)-IF(BZ33>(PosPUDL2+LePUDL2),-PUDL2d*(BZ33-PosPUDL2-LePUDL2),0)-IF(BZ33>PosPLa1,PLa1d,0)-IF(BZ33>PosPLb1,PLb1d,0) -> -9.65 | CA36: =RL1d-UDL1d*CA33-IF(CA33>PosPUDL1,PUDL1d*(CA33-PosPUDL1),0)-IF(CA33>(PosPUDL1+3),-PUDL1d*(CA33-PosPUDL1-3),0)-IF(CA33>PosPUDL2,PUDL2d*(CA33-PosPUDL2),0)-IF(CA33>(PosPUDL2+LePUDL2),-PUDL2d*(CA33-PosPUDL2-LePUDL2),0)-IF(CA33>PosPLa1,PLa1d,0)-IF(CA33>PosPLb1,PLb1d,0) -> -9.93 | CB36: =RL1d-UDL1d*CB33-IF(CB33>PosPUDL1,PUDL1d*(CB33-PosPUDL1),0)-IF(CB33>(PosPUDL1+3),-PUDL1d*(CB33-PosPUDL1-3),0)-IF(CB33>PosPUDL2,PUDL2d*(CB33-PosPUDL2),0)-IF(CB33>(PosPUDL2+LePUDL2),-PUDL2d*(CB33-PosPUDL2-LePUDL2),0)-IF(CB33>PosPLa1,PLa1d,0)-IF(CB33>PosPLb1,PLb1d,0) -> -10.21 | CC36: =RL1d-UDL1d*CC33-IF(CC33>PosPUDL1,PUDL1d*(CC33-PosPUDL1),0)-IF(CC33>(PosPUDL1+3),-PUDL1d*(CC33-PosPUDL1-3),0)-IF(CC33>PosPUDL2,PUDL2d*(CC33-PosPUDL2),0)-IF(CC33>(PosPUDL2+LePUDL2),-PUDL2d*(CC33-PosPUDL2-LePUDL2),0)-IF(CC33>PosPLa1,PLa1d,0)-IF(CC33>PosPLb1,PLb1d,0) -> -10.49 | CD36: =RL1d-UDL1d*CD33-IF(CD33>PosPUDL1,PUDL1d*(CD33-PosPUDL1),0)-IF(CD33>(PosPUDL1+3),-PUDL1d*(CD33-PosPUDL1-3),0)-IF(CD33>PosPUDL2,PUDL2d*(CD33-PosPUDL2),0)-IF(CD33>(PosPUDL2+LePUDL2),-PUDL2d*(CD33-PosPUDL2-LePUDL2),0)-IF(CD33>PosPLa1,PLa1d,0)-IF(CD33>PosPLb1,PLb1d,0) -> -10.77 | CE36: =RL1d-UDL1d*CE33-IF(CE33>PosPUDL1,PUDL1d*(CE33-PosPUDL1),0)-IF(CE33>(PosPUDL1+3),-PUDL1d*(CE33-PosPUDL1-3),0)-IF(CE33>PosPUDL2,PUDL2d*(CE33-PosPUDL2),0)-IF(CE33>(PosPUDL2+LePUDL2),-PUDL2d*(CE33-PosPUDL2-LePUDL2),0)-IF(CE33>PosPLa1,PLa1d,0)-IF(CE33>PosPLb1,PLb1d,0) -> -11.05 | CF36: =RL1d-UDL1d*CF33-IF(CF33>PosPUDL1,PUDL1d*(CF33-PosPUDL1),0)-IF(CF33>(PosPUDL1+3),-PUDL1d*(CF33-PosPUDL1-3),0)-IF(CF33>PosPUDL2,PUDL2d*(CF33-PosPUDL2),0)-IF(CF33>(PosPUDL2+LePUDL2),-PUDL2d*(CF33-PosPUDL2-LePUDL2),0)-IF(CF33>PosPLa1,PLa1d,0)-IF(CF33>PosPLb1,PLb1d,0) -> -11.33 | CG36: =RL1d-UDL1d*CG33-IF(CG33>PosPUDL1,PUDL1d*(CG33-PosPUDL1),0)-IF(CG33>(PosPUDL1+3),-PUDL1d*(CG33-PosPUDL1-3),0)-IF(CG33>PosPUDL2,PUDL2d*(CG33-PosPUDL2),0)-IF(CG33>(PosPUDL2+LePUDL2),-PUDL2d*(CG33-PosPUDL2-LePUDL2),0)-IF(CG33>PosPLa1,PLa1d,0)-IF(CG33>PosPLb1,PLb1d,0) -> -11.61 | CH36: =RL1d-UDL1d*CH33-IF(CH33>PosPUDL1,PUDL1d*(CH33-PosPUDL1),0)-IF(CH33>(PosPUDL1+3),-PUDL1d*(CH33-PosPUDL1-3),0)-IF(CH33>PosPUDL2,PUDL2d*(CH33-PosPUDL2),0)-IF(CH33>(PosPUDL2+LePUDL2),-PUDL2d*(CH33-PosPUDL2-LePUDL2),0)-IF(CH33>PosPLa1,PLa1d,0)-IF(CH33>PosPLb1,PLb1d,0) -> -11.89 | CI36: =RL1d-UDL1d*CI33-IF(CI33>PosPUDL1,PUDL1d*(CI33-PosPUDL1),0)-IF(CI33>(PosPUDL1+3),-PUDL1d*(CI33-PosPUDL1-3),0)-IF(CI33>PosPUDL2,PUDL2d*(CI33-PosPUDL2),0)-IF(CI33>(PosPUDL2+LePUDL2),-PUDL2d*(CI33-PosPUDL2-LePUDL2),0)-IF(CI33>PosPLa1,PLa1d,0)-IF(CI33>PosPLb1,PLb1d,0) -> -12.17 | CJ36: =RL1d-UDL1d*CJ33-IF(CJ33>PosPUDL1,PUDL1d*(CJ33-PosPUDL1),0)-IF(CJ33>(PosPUDL1+3),-PUDL1d*(CJ33-PosPUDL1-3),0)-IF(CJ33>PosPUDL2,PUDL2d*(CJ33-PosPUDL2),0)-IF(CJ33>(PosPUDL2+LePUDL2),-PUDL2d*(CJ33-PosPUDL2-LePUDL2),0)-IF(CJ33>PosPLa1,PLa1d,0)-IF(CJ33>PosPLb1,PLb1d,0) -> -12.45 | CK36: =RL1d-UDL1d*CK33-IF(CK33>PosPUDL1,PUDL1d*(CK33-PosPUDL1),0)-IF(CK33>(PosPUDL1+3),-PUDL1d*(CK33-PosPUDL1-3),0)-IF(CK33>PosPUDL2,PUDL2d*(CK33-PosPUDL2),0)-IF(CK33>(PosPUDL2+LePUDL2),-PUDL2d*(CK33-PosPUDL2-LePUDL2),0)-IF(CK33>PosPLa1,PLa1d,0)-IF(CK33>PosPLb1,PLb1d,0) -> -12.73 | CL36: =RL1d-UDL1d*CL33-IF(CL33>PosPUDL1,PUDL1d*(CL33-PosPUDL1),0)-IF(CL33>(PosPUDL1+3),-PUDL1d*(CL33-PosPUDL1-3),0)-IF(CL33>PosPUDL2,PUDL2d*(CL33-PosPUDL2),0)-IF(CL33>(PosPUDL2+LePUDL2),-PUDL2d*(CL33-PosPUDL2-LePUDL2),0)-IF(CL33>PosPLa1,PLa1d,0)-IF(CL33>PosPLb1,PLb1d,0) -> -13.01 | CM36: =RL1d-UDL1d*CM33-IF(CM33>PosPUDL1,PUDL1d*(CM33-PosPUDL1),0)-IF(CM33>(PosPUDL1+3),-PUDL1d*(CM33-PosPUDL1-3),0)-IF(CM33>PosPUDL2,PUDL2d*(CM33-PosPUDL2),0)-IF(CM33>(PosPUDL2+LePUDL2),-PUDL2d*(CM33-PosPUDL2-LePUDL2),0)-IF(CM33>PosPLa1,PLa1d,0)-IF(CM33>PosPLb1,PLb1d,0) -> -13.30 | CN36: =RL1d-UDL1d*CN33-IF(CN33>PosPUDL1,PUDL1d*(CN33-PosPUDL1),0)-IF(CN33>(PosPUDL1+3),-PUDL1d*(CN33-PosPUDL1-3),0)-IF(CN33>PosPUDL2,PUDL2d*(CN33-PosPUDL2),0)-IF(CN33>(PosPUDL2+LePUDL2),-PUDL2d*(CN33-PosPUDL2-LePUDL2),0)-IF(CN33>PosPLa1,PLa1d,0)-IF(CN33>PosPLb1,PLb1d,0) -> -13.58 | CO36: =RL1d-UDL1d*CO33-IF(CO33>PosPUDL1,PUDL1d*(CO33-PosPUDL1),0)-IF(CO33>(PosPUDL1+3),-PUDL1d*(CO33-PosPUDL1-3),0)-IF(CO33>PosPUDL2,PUDL2d*(CO33-PosPUDL2),0)-IF(CO33>(PosPUDL2+LePUDL2),-PUDL2d*(CO33-PosPUDL2-LePUDL2),0)-IF(CO33>PosPLa1,PLa1d,0)-IF(CO33>PosPLb1,PLb1d,0) -> -13.86 | CP36: =RL1d-UDL1d*CP33-IF(CP33>PosPUDL1,PUDL1d*(CP33-PosPUDL1),0)-IF(CP33>(PosPUDL1+3),-PUDL1d*(CP33-PosPUDL1-3),0)-IF(CP33>PosPUDL2,PUDL2d*(CP33-PosPUDL2),0)-IF(CP33>(PosPUDL2+LePUDL2),-PUDL2d*(CP33-PosPUDL2-LePUDL2),0)-IF(CP33>PosPLa1,PLa1d,0)-IF(CP33>PosPLb1,PLb1d,0) -> -14.14 | CQ36: =RL1d-UDL1d*CQ33-IF(CQ33>PosPUDL1,PUDL1d*(CQ33-PosPUDL1),0)-IF(CQ33>(PosPUDL1+3),-PUDL1d*(CQ33-PosPUDL1-3),0)-IF(CQ33>PosPUDL2,PUDL2d*(CQ33-PosPUDL2),0)-IF(CQ33>(PosPUDL2+LePUDL2),-PUDL2d*(CQ33-PosPUDL2-LePUDL2),0)-IF(CQ33>PosPLa1,PLa1d,0)-IF(CQ33>PosPLb1,PLb1d,0) -> -14.42 | CR36: =RL1d-UDL1d*CR33-IF(CR33>PosPUDL1,PUDL1d*(CR33-PosPUDL1),0)-IF(CR33>(PosPUDL1+3),-PUDL1d*(CR33-PosPUDL1-3),0)-IF(CR33>PosPUDL2,PUDL2d*(CR33-PosPUDL2),0)-IF(CR33>(PosPUDL2+LePUDL2),-PUDL2d*(CR33-PosPUDL2-LePUDL2),0)-IF(CR33>PosPLa1,PLa1d,0)-IF(CR33>PosPLb1,PLb1d,0) -> -14.70 | CS36: =RL1d-UDL1d*CS33-IF(CS33>PosPUDL1,PUDL1d*(CS33-PosPUDL1),0)-IF(CS33>(PosPUDL1+3),-PUDL1d*(CS33-PosPUDL1-3),0)-IF(CS33>PosPUDL2,PUDL2d*(CS33-PosPUDL2),0)-IF(CS33>(PosPUDL2+LePUDL2),-PUDL2d*(CS33-PosPUDL2-LePUDL2),0)-IF(CS33>PosPLa1,PLa1d,0)-IF(CS33>PosPLb1,PLb1d,0) -> -14.98 | CT36: =RL1d-UDL1d*CT33-IF(CT33>PosPUDL1,PUDL1d*(CT33-PosPUDL1),0)-IF(CT33>(PosPUDL1+3),-PUDL1d*(CT33-PosPUDL1-3),0)-IF(CT33>PosPUDL2,PUDL2d*(CT33-PosPUDL2),0)-IF(CT33>(PosPUDL2+LePUDL2),-PUDL2d*(CT33-PosPUDL2-LePUDL2),0)-IF(CT33>PosPLa1,PLa1d,0)-IF(CT33>PosPLb1,PLb1d,0) -> -15.26 | CU36: =RL1d-UDL1d*CU33-IF(CU33>PosPUDL1,PUDL1d*(CU33-PosPUDL1),0)-IF(CU33>(PosPUDL1+3),-PUDL1d*(CU33-PosPUDL1-3),0)-IF(CU33>PosPUDL2,PUDL2d*(CU33-PosPUDL2),0)-IF(CU33>(PosPUDL2+LePUDL2),-PUDL2d*(CU33-PosPUDL2-LePUDL2),0)-IF(CU33>PosPLa1,PLa1d,0)-IF(CU33>PosPLb1,PLb1d,0) -> -15.54 | CV36: =RL1d-UDL1d*CV33-IF(CV33>PosPUDL1,PUDL1d*(CV33-PosPUDL1),0)-IF(CV33>(PosPUDL1+3),-PUDL1d*(CV33-PosPUDL1-3),0)-IF(CV33>PosPUDL2,PUDL2d*(CV33-PosPUDL2),0)-IF(CV33>(PosPUDL2+LePUDL2),-PUDL2d*(CV33-PosPUDL2-LePUDL2),0)-IF(CV33>PosPLa1,PLa1d,0)-IF(CV33>PosPLb1,PLb1d,0) -> -15.82 | CW36: =RL1d-UDL1d*CW33-IF(CW33>PosPUDL1,PUDL1d*(CW33-PosPUDL1),0)-IF(CW33>(PosPUDL1+3),-PUDL1d*(CW33-PosPUDL1-3),0)-IF(CW33>PosPUDL2,PUDL2d*(CW33-PosPUDL2),0)-IF(CW33>(PosPUDL2+LePUDL2),-PUDL2d*(CW33-PosPUDL2-LePUDL2),0)-IF(CW33>PosPLa1,PLa1d,0)-IF(CW33>PosPLb1,PLb1d,0) -> -16.10 | CX36: =RL1d-UDL1d*CX33-IF(CX33>PosPUDL1,PUDL1d*(CX33-PosPUDL1),0)-IF(CX33>(PosPUDL1+3),-PUDL1d*(CX33-PosPUDL1-3),0)-IF(CX33>PosPUDL2,PUDL2d*(CX33-PosPUDL2),0)-IF(CX33>(PosPUDL2+LePUDL2),-PUDL2d*(CX33-PosPUDL2-LePUDL2),0)-IF(CX33>PosPLa1,PLa1d,0)-IF(CX33>PosPLb1,PLb1d,0) -> -16.38 | CY36: =RL1d-UDL1d*CY33-IF(CY33>PosPUDL1,PUDL1d*(CY33-PosPUDL1),0)-IF(CY33>(PosPUDL1+3),-PUDL1d*(CY33-PosPUDL1-3),0)-IF(CY33>PosPUDL2,PUDL2d*(CY33-PosPUDL2),0)-IF(CY33>(PosPUDL2+LePUDL2),-PUDL2d*(CY33-PosPUDL2-LePUDL2),0)-IF(CY33>PosPLa1,PLa1d,0)-IF(CY33>PosPLb1,PLb1d,0) -> -16.67
B37: Shear live [kN] | C37: =RL1l -> 11.31 | D37: =RL1l-2*D33-IF(D33>PosPUDL1,PUDL1l*(D33-PosPUDL1),0)-IF(D33>(PosPUDL1+3),-PUDL1l*(D33-PosPUDL1-3),0)-IF(D33>PosPUDL2,PUDL2l*(D33-PosPUDL2),0)-IF(D33>(PosPUDL2+LePUDL2),-PUDL2l*(D33-PosPUDL2-LePUDL2),0)-IF(D33>PosPLa1,PLa1l,0)-IF(D33>PosPLb1,PLb1l,0) -> 11.15 | E37: =RL1l-2*E33-IF(E33>PosPUDL1,PUDL1l*(E33-PosPUDL1),0)-IF(E33>(PosPUDL1+3),-PUDL1l*(E33-PosPUDL1-3),0)-IF(E33>PosPUDL2,PUDL2l*(E33-PosPUDL2),0)-IF(E33>(PosPUDL2+LePUDL2),-PUDL2l*(E33-PosPUDL2-LePUDL2),0)-IF(E33>PosPLa1,PLa1l,0)-IF(E33>PosPLb1,PLb1l,0) -> 10.99 | F37: =RL1l-2*F33-IF(F33>PosPUDL1,PUDL1l*(F33-PosPUDL1),0)-IF(F33>(PosPUDL1+3),-PUDL1l*(F33-PosPUDL1-3),0)-IF(F33>PosPUDL2,PUDL2l*(F33-PosPUDL2),0)-IF(F33>(PosPUDL2+LePUDL2),-PUDL2l*(F33-PosPUDL2-LePUDL2),0)-IF(F33>PosPLa1,PLa1l,0)-IF(F33>PosPLb1,PLb1l,0) -> 10.83 | G37: =RL1l-2*G33-IF(G33>PosPUDL1,PUDL1l*(G33-PosPUDL1),0)-IF(G33>(PosPUDL1+3),-PUDL1l*(G33-PosPUDL1-3),0)-IF(G33>PosPUDL2,PUDL2l*(G33-PosPUDL2),0)-IF(G33>(PosPUDL2+LePUDL2),-PUDL2l*(G33-PosPUDL2-LePUDL2),0)-IF(G33>PosPLa1,PLa1l,0)-IF(G33>PosPLb1,PLb1l,0) -> 10.67 | H37: =RL1l-2*H33-IF(H33>PosPUDL1,PUDL1l*(H33-PosPUDL1),0)-IF(H33>(PosPUDL1+3),-PUDL1l*(H33-PosPUDL1-3),0)-IF(H33>PosPUDL2,PUDL2l*(H33-PosPUDL2),0)-IF(H33>(PosPUDL2+LePUDL2),-PUDL2l*(H33-PosPUDL2-LePUDL2),0)-IF(H33>PosPLa1,PLa1l,0)-IF(H33>PosPLb1,PLb1l,0) -> 10.51 | I37: =RL1l-2*I33-IF(I33>PosPUDL1,PUDL1l*(I33-PosPUDL1),0)-IF(I33>(PosPUDL1+3),-PUDL1l*(I33-PosPUDL1-3),0)-IF(I33>PosPUDL2,PUDL2l*(I33-PosPUDL2),0)-IF(I33>(PosPUDL2+LePUDL2),-PUDL2l*(I33-PosPUDL2-LePUDL2),0)-IF(I33>PosPLa1,PLa1l,0)-IF(I33>PosPLb1,PLb1l,0) -> 10.35 | J37: =RL1l-2*J33-IF(J33>PosPUDL1,PUDL1l*(J33-PosPUDL1),0)-IF(J33>(PosPUDL1+3),-PUDL1l*(J33-PosPUDL1-3),0)-IF(J33>PosPUDL2,PUDL2l*(J33-PosPUDL2),0)-IF(J33>(PosPUDL2+LePUDL2),-PUDL2l*(J33-PosPUDL2-LePUDL2),0)-IF(J33>PosPLa1,PLa1l,0)-IF(J33>PosPLb1,PLb1l,0) -> 10.19 | K37: =RL1l-2*K33-IF(K33>PosPUDL1,PUDL1l*(K33-PosPUDL1),0)-IF(K33>(PosPUDL1+3),-PUDL1l*(K33-PosPUDL1-3),0)-IF(K33>PosPUDL2,PUDL2l*(K33-PosPUDL2),0)-IF(K33>(PosPUDL2+LePUDL2),-PUDL2l*(K33-PosPUDL2-LePUDL2),0)-IF(K33>PosPLa1,PLa1l,0)-IF(K33>PosPLb1,PLb1l,0) -> 10.03 | L37: =RL1l-2*L33-IF(L33>PosPUDL1,PUDL1l*(L33-PosPUDL1),0)-IF(L33>(PosPUDL1+3),-PUDL1l*(L33-PosPUDL1-3),0)-IF(L33>PosPUDL2,PUDL2l*(L33-PosPUDL2),0)-IF(L33>(PosPUDL2+LePUDL2),-PUDL2l*(L33-PosPUDL2-LePUDL2),0)-IF(L33>PosPLa1,PLa1l,0)-IF(L33>PosPLb1,PLb1l,0) -> 9.87 | M37: =RL1l-2*M33-IF(M33>PosPUDL1,PUDL1l*(M33-PosPUDL1),0)-IF(M33>(PosPUDL1+3),-PUDL1l*(M33-PosPUDL1-3),0)-IF(M33>PosPUDL2,PUDL2l*(M33-PosPUDL2),0)-IF(M33>(PosPUDL2+LePUDL2),-PUDL2l*(M33-PosPUDL2-LePUDL2),0)-IF(M33>PosPLa1,PLa1l,0)-IF(M33>PosPLb1,PLb1l,0) -> 9.71 | N37: =RL1l-2*N33-IF(N33>PosPUDL1,PUDL1l*(N33-PosPUDL1),0)-IF(N33>(PosPUDL1+3),-PUDL1l*(N33-PosPUDL1-3),0)-IF(N33>PosPUDL2,PUDL2l*(N33-PosPUDL2),0)-IF(N33>(PosPUDL2+LePUDL2),-PUDL2l*(N33-PosPUDL2-LePUDL2),0)-IF(N33>PosPLa1,PLa1l,0)-IF(N33>PosPLb1,PLb1l,0) -> 9.55 | O37: =RL1l-2*O33-IF(O33>PosPUDL1,PUDL1l*(O33-PosPUDL1),0)-IF(O33>(PosPUDL1+3),-PUDL1l*(O33-PosPUDL1-3),0)-IF(O33>PosPUDL2,PUDL2l*(O33-PosPUDL2),0)-IF(O33>(PosPUDL2+LePUDL2),-PUDL2l*(O33-PosPUDL2-LePUDL2),0)-IF(O33>PosPLa1,PLa1l,0)-IF(O33>PosPLb1,PLb1l,0) -> 9.39 | P37: =RL1l-2*P33-IF(P33>PosPUDL1,PUDL1l*(P33-PosPUDL1),0)-IF(P33>(PosPUDL1+3),-PUDL1l*(P33-PosPUDL1-3),0)-IF(P33>PosPUDL2,PUDL2l*(P33-PosPUDL2),0)-IF(P33>(PosPUDL2+LePUDL2),-PUDL2l*(P33-PosPUDL2-LePUDL2),0)-IF(P33>PosPLa1,PLa1l,0)-IF(P33>PosPLb1,PLb1l,0) -> 9.19 | Q37: =RL1l-2*Q33-IF(Q33>PosPUDL1,PUDL1l*(Q33-PosPUDL1),0)-IF(Q33>(PosPUDL1+3),-PUDL1l*(Q33-PosPUDL1-3),0)-IF(Q33>PosPUDL2,PUDL2l*(Q33-PosPUDL2),0)-IF(Q33>(PosPUDL2+LePUDL2),-PUDL2l*(Q33-PosPUDL2-LePUDL2),0)-IF(Q33>PosPLa1,PLa1l,0)-IF(Q33>PosPLb1,PLb1l,0) -> 8.95 | R37: =RL1l-2*R33-IF(R33>PosPUDL1,PUDL1l*(R33-PosPUDL1),0)-IF(R33>(PosPUDL1+3),-PUDL1l*(R33-PosPUDL1-3),0)-IF(R33>PosPUDL2,PUDL2l*(R33-PosPUDL2),0)-IF(R33>(PosPUDL2+LePUDL2),-PUDL2l*(R33-PosPUDL2-LePUDL2),0)-IF(R33>PosPLa1,PLa1l,0)-IF(R33>PosPLb1,PLb1l,0) -> 8.71 | S37: =RL1l-2*S33-IF(S33>PosPUDL1,PUDL1l*(S33-PosPUDL1),0)-IF(S33>(PosPUDL1+3),-PUDL1l*(S33-PosPUDL1-3),0)-IF(S33>PosPUDL2,PUDL2l*(S33-PosPUDL2),0)-IF(S33>(PosPUDL2+LePUDL2),-PUDL2l*(S33-PosPUDL2-LePUDL2),0)-IF(S33>PosPLa1,PLa1l,0)-IF(S33>PosPLb1,PLb1l,0) -> 8.47 | T37: =RL1l-2*T33-IF(T33>PosPUDL1,PUDL1l*(T33-PosPUDL1),0)-IF(T33>(PosPUDL1+3),-PUDL1l*(T33-PosPUDL1-3),0)-IF(T33>PosPUDL2,PUDL2l*(T33-PosPUDL2),0)-IF(T33>(PosPUDL2+LePUDL2),-PUDL2l*(T33-PosPUDL2-LePUDL2),0)-IF(T33>PosPLa1,PLa1l,0)-IF(T33>PosPLb1,PLb1l,0) -> 8.23 | U37: =RL1l-2*U33-IF(U33>PosPUDL1,PUDL1l*(U33-PosPUDL1),0)-IF(U33>(PosPUDL1+3),-PUDL1l*(U33-PosPUDL1-3),0)-IF(U33>PosPUDL2,PUDL2l*(U33-PosPUDL2),0)-IF(U33>(PosPUDL2+LePUDL2),-PUDL2l*(U33-PosPUDL2-LePUDL2),0)-IF(U33>PosPLa1,PLa1l,0)-IF(U33>PosPLb1,PLb1l,0) -> 7.99 | V37: =RL1l-2*V33-IF(V33>PosPUDL1,PUDL1l*(V33-PosPUDL1),0)-IF(V33>(PosPUDL1+3),-PUDL1l*(V33-PosPUDL1-3),0)-IF(V33>PosPUDL2,PUDL2l*(V33-PosPUDL2),0)-IF(V33>(PosPUDL2+LePUDL2),-PUDL2l*(V33-PosPUDL2-LePUDL2),0)-IF(V33>PosPLa1,PLa1l,0)-IF(V33>PosPLb1,PLb1l,0) -> 7.75 | W37: =RL1l-2*W33-IF(W33>PosPUDL1,PUDL1l*(W33-PosPUDL1),0)-IF(W33>(PosPUDL1+3),-PUDL1l*(W33-PosPUDL1-3),0)-IF(W33>PosPUDL2,PUDL2l*(W33-PosPUDL2),0)-IF(W33>(PosPUDL2+LePUDL2),-PUDL2l*(W33-PosPUDL2-LePUDL2),0)-IF(W33>PosPLa1,PLa1l,0)-IF(W33>PosPLb1,PLb1l,0) -> 7.51 | X37: =RL1l-2*X33-IF(X33>PosPUDL1,PUDL1l*(X33-PosPUDL1),0)-IF(X33>(PosPUDL1+3),-PUDL1l*(X33-PosPUDL1-3),0)-IF(X33>PosPUDL2,PUDL2l*(X33-PosPUDL2),0)-IF(X33>(PosPUDL2+LePUDL2),-PUDL2l*(X33-PosPUDL2-LePUDL2),0)-IF(X33>PosPLa1,PLa1l,0)-IF(X33>PosPLb1,PLb1l,0) -> 7.27 | Y37: =RL1l-2*Y33-IF(Y33>PosPUDL1,PUDL1l*(Y33-PosPUDL1),0)-IF(Y33>(PosPUDL1+3),-PUDL1l*(Y33-PosPUDL1-3),0)-IF(Y33>PosPUDL2,PUDL2l*(Y33-PosPUDL2),0)-IF(Y33>(PosPUDL2+LePUDL2),-PUDL2l*(Y33-PosPUDL2-LePUDL2),0)-IF(Y33>PosPLa1,PLa1l,0)-IF(Y33>PosPLb1,PLb1l,0) -> 7.03 | Z37: =RL1l-2*Z33-IF(Z33>PosPUDL1,PUDL1l*(Z33-PosPUDL1),0)-IF(Z33>(PosPUDL1+3),-PUDL1l*(Z33-PosPUDL1-3),0)-IF(Z33>PosPUDL2,PUDL2l*(Z33-PosPUDL2),0)-IF(Z33>(PosPUDL2+LePUDL2),-PUDL2l*(Z33-PosPUDL2-LePUDL2),0)-IF(Z33>PosPLa1,PLa1l,0)-IF(Z33>PosPLb1,PLb1l,0) -> 6.79 | AA37: =RL1l-2*AA33-IF(AA33>PosPUDL1,PUDL1l*(AA33-PosPUDL1),0)-IF(AA33>(PosPUDL1+3),-PUDL1l*(AA33-PosPUDL1-3),0)-IF(AA33>PosPUDL2,PUDL2l*(AA33-PosPUDL2),0)-IF(AA33>(PosPUDL2+LePUDL2),-PUDL2l*(AA33-PosPUDL2-LePUDL2),0)-IF(AA33>PosPLa1,PLa1l,0)-IF(AA33>PosPLb1,PLb1l,0) -> 6.55 | AB37: =RL1l-2*AB33-IF(AB33>PosPUDL1,PUDL1l*(AB33-PosPUDL1),0)-IF(AB33>(PosPUDL1+3),-PUDL1l*(AB33-PosPUDL1-3),0)-IF(AB33>PosPUDL2,PUDL2l*(AB33-PosPUDL2),0)-IF(AB33>(PosPUDL2+LePUDL2),-PUDL2l*(AB33-PosPUDL2-LePUDL2),0)-IF(AB33>PosPLa1,PLa1l,0)-IF(AB33>PosPLb1,PLb1l,0) -> 6.31 | AC37: =RL1l-2*AC33-IF(AC33>PosPUDL1,PUDL1l*(AC33-PosPUDL1),0)-IF(AC33>(PosPUDL1+3),-PUDL1l*(AC33-PosPUDL1-3),0)-IF(AC33>PosPUDL2,PUDL2l*(AC33-PosPUDL2),0)-IF(AC33>(PosPUDL2+LePUDL2),-PUDL2l*(AC33-PosPUDL2-LePUDL2),0)-IF(AC33>PosPLa1,PLa1l,0)-IF(AC33>PosPLb1,PLb1l,0) -> 6.07 | AD37: =RL1l-2*AD33-IF(AD33>PosPUDL1,PUDL1l*(AD33-PosPUDL1),0)-IF(AD33>(PosPUDL1+3),-PUDL1l*(AD33-PosPUDL1-3),0)-IF(AD33>PosPUDL2,PUDL2l*(AD33-PosPUDL2),0)-IF(AD33>(PosPUDL2+LePUDL2),-PUDL2l*(AD33-PosPUDL2-LePUDL2),0)-IF(AD33>PosPLa1,PLa1l,0)-IF(AD33>PosPLb1,PLb1l,0) -> 5.83 | AE37: =RL1l-2*AE33-IF(AE33>PosPUDL1,PUDL1l*(AE33-PosPUDL1),0)-IF(AE33>(PosPUDL1+3),-PUDL1l*(AE33-PosPUDL1-3),0)-IF(AE33>PosPUDL2,PUDL2l*(AE33-PosPUDL2),0)-IF(AE33>(PosPUDL2+LePUDL2),-PUDL2l*(AE33-PosPUDL2-LePUDL2),0)-IF(AE33>PosPLa1,PLa1l,0)-IF(AE33>PosPLb1,PLb1l,0) -> 5.59 | AF37: =RL1l-2*AF33-IF(AF33>PosPUDL1,PUDL1l*(AF33-PosPUDL1),0)-IF(AF33>(PosPUDL1+3),-PUDL1l*(AF33-PosPUDL1-3),0)-IF(AF33>PosPUDL2,PUDL2l*(AF33-PosPUDL2),0)-IF(AF33>(PosPUDL2+LePUDL2),-PUDL2l*(AF33-PosPUDL2-LePUDL2),0)-IF(AF33>PosPLa1,PLa1l,0)-IF(AF33>PosPLb1,PLb1l,0) -> 5.35 | AG37: =RL1l-2*AG33-IF(AG33>PosPUDL1,PUDL1l*(AG33-PosPUDL1),0)-IF(AG33>(PosPUDL1+3),-PUDL1l*(AG33-PosPUDL1-3),0)-IF(AG33>PosPUDL2,PUDL2l*(AG33-PosPUDL2),0)-IF(AG33>(PosPUDL2+LePUDL2),-PUDL2l*(AG33-PosPUDL2-LePUDL2),0)-IF(AG33>PosPLa1,PLa1l,0)-IF(AG33>PosPLb1,PLb1l,0) -> 5.11 | AH37: =RL1l-2*AH33-IF(AH33>PosPUDL1,PUDL1l*(AH33-PosPUDL1),0)-IF(AH33>(PosPUDL1+3),-PUDL1l*(AH33-PosPUDL1-3),0)-IF(AH33>PosPUDL2,PUDL2l*(AH33-PosPUDL2),0)-IF(AH33>(PosPUDL2+LePUDL2),-PUDL2l*(AH33-PosPUDL2-LePUDL2),0)-IF(AH33>PosPLa1,PLa1l,0)-IF(AH33>PosPLb1,PLb1l,0) -> 4.87 | AI37: =RL1l-2*AI33-IF(AI33>PosPUDL1,PUDL1l*(AI33-PosPUDL1),0)-IF(AI33>(PosPUDL1+3),-PUDL1l*(AI33-PosPUDL1-3),0)-IF(AI33>PosPUDL2,PUDL2l*(AI33-PosPUDL2),0)-IF(AI33>(PosPUDL2+LePUDL2),-PUDL2l*(AI33-PosPUDL2-LePUDL2),0)-IF(AI33>PosPLa1,PLa1l,0)-IF(AI33>PosPLb1,PLb1l,0) -> 4.63 | AJ37: =RL1l-2*AJ33-IF(AJ33>PosPUDL1,PUDL1l*(AJ33-PosPUDL1),0)-IF(AJ33>(PosPUDL1+3),-PUDL1l*(AJ33-PosPUDL1-3),0)-IF(AJ33>PosPUDL2,PUDL2l*(AJ33-PosPUDL2),0)-IF(AJ33>(PosPUDL2+LePUDL2),-PUDL2l*(AJ33-PosPUDL2-LePUDL2),0)-IF(AJ33>PosPLa1,PLa1l,0)-IF(AJ33>PosPLb1,PLb1l,0) -> 4.39 | AK37: =RL1l-2*AK33-IF(AK33>PosPUDL1,PUDL1l*(AK33-PosPUDL1),0)-IF(AK33>(PosPUDL1+3),-PUDL1l*(AK33-PosPUDL1-3),0)-IF(AK33>PosPUDL2,PUDL2l*(AK33-PosPUDL2),0)-IF(AK33>(PosPUDL2+LePUDL2),-PUDL2l*(AK33-PosPUDL2-LePUDL2),0)-IF(AK33>PosPLa1,PLa1l,0)-IF(AK33>PosPLb1,PLb1l,0) -> 4.15 | AL37: =RL1l-2*AL33-IF(AL33>PosPUDL1,PUDL1l*(AL33-PosPUDL1),0)-IF(AL33>(PosPUDL1+3),-PUDL1l*(AL33-PosPUDL1-3),0)-IF(AL33>PosPUDL2,PUDL2l*(AL33-PosPUDL2),0)-IF(AL33>(PosPUDL2+LePUDL2),-PUDL2l*(AL33-PosPUDL2-LePUDL2),0)-IF(AL33>PosPLa1,PLa1l,0)-IF(AL33>PosPLb1,PLb1l,0) -> 3.91 | AM37: =RL1l-2*AM33-IF(AM33>PosPUDL1,PUDL1l*(AM33-PosPUDL1),0)-IF(AM33>(PosPUDL1+3),-PUDL1l*(AM33-PosPUDL1-3),0)-IF(AM33>PosPUDL2,PUDL2l*(AM33-PosPUDL2),0)-IF(AM33>(PosPUDL2+LePUDL2),-PUDL2l*(AM33-PosPUDL2-LePUDL2),0)-IF(AM33>PosPLa1,PLa1l,0)-IF(AM33>PosPLb1,PLb1l,0) -> 3.67 | AN37: =RL1l-2*AN33-IF(AN33>PosPUDL1,PUDL1l*(AN33-PosPUDL1),0)-IF(AN33>(PosPUDL1+3),-PUDL1l*(AN33-PosPUDL1-3),0)-IF(AN33>PosPUDL2,PUDL2l*(AN33-PosPUDL2),0)-IF(AN33>(PosPUDL2+LePUDL2),-PUDL2l*(AN33-PosPUDL2-LePUDL2),0)-IF(AN33>PosPLa1,PLa1l,0)-IF(AN33>PosPLb1,PLb1l,0) -> 3.43 | AO37: =RL1l-2*AO33-IF(AO33>PosPUDL1,PUDL1l*(AO33-PosPUDL1),0)-IF(AO33>(PosPUDL1+3),-PUDL1l*(AO33-PosPUDL1-3),0)-IF(AO33>PosPUDL2,PUDL2l*(AO33-PosPUDL2),0)-IF(AO33>(PosPUDL2+LePUDL2),-PUDL2l*(AO33-PosPUDL2-LePUDL2),0)-IF(AO33>PosPLa1,PLa1l,0)-IF(AO33>PosPLb1,PLb1l,0) -> 1.19 | AP37: =RL1l-2*AP33-IF(AP33>PosPUDL1,PUDL1l*(AP33-PosPUDL1),0)-IF(AP33>(PosPUDL1+3),-PUDL1l*(AP33-PosPUDL1-3),0)-IF(AP33>PosPUDL2,PUDL2l*(AP33-PosPUDL2),0)-IF(AP33>(PosPUDL2+LePUDL2),-PUDL2l*(AP33-PosPUDL2-LePUDL2),0)-IF(AP33>PosPLa1,PLa1l,0)-IF(AP33>PosPLb1,PLb1l,0) -> 0.95 | AQ37: =RL1l-2*AQ33-IF(AQ33>PosPUDL1,PUDL1l*(AQ33-PosPUDL1),0)-IF(AQ33>(PosPUDL1+3),-PUDL1l*(AQ33-PosPUDL1-3),0)-IF(AQ33>PosPUDL2,PUDL2l*(AQ33-PosPUDL2),0)-IF(AQ33>(PosPUDL2+LePUDL2),-PUDL2l*(AQ33-PosPUDL2-LePUDL2),0)-IF(AQ33>PosPLa1,PLa1l,0)-IF(AQ33>PosPLb1,PLb1l,0) -> 0.71 | AR37: =RL1l-2*AR33-IF(AR33>PosPUDL1,PUDL1l*(AR33-PosPUDL1),0)-IF(AR33>(PosPUDL1+3),-PUDL1l*(AR33-PosPUDL1-3),0)-IF(AR33>PosPUDL2,PUDL2l*(AR33-PosPUDL2),0)-IF(AR33>(PosPUDL2+LePUDL2),-PUDL2l*(AR33-PosPUDL2-LePUDL2),0)-IF(AR33>PosPLa1,PLa1l,0)-IF(AR33>PosPLb1,PLb1l,0) -> 0.47 | AS37: =RL1l-2*AS33-IF(AS33>PosPUDL1,PUDL1l*(AS33-PosPUDL1),0)-IF(AS33>(PosPUDL1+3),-PUDL1l*(AS33-PosPUDL1-3),0)-IF(AS33>PosPUDL2,PUDL2l*(AS33-PosPUDL2),0)-IF(AS33>(PosPUDL2+LePUDL2),-PUDL2l*(AS33-PosPUDL2-LePUDL2),0)-IF(AS33>PosPLa1,PLa1l,0)-IF(AS33>PosPLb1,PLb1l,0) -> 0.23 | AT37: =RL1l-2*AT33-IF(AT33>PosPUDL1,PUDL1l*(AT33-PosPUDL1),0)-IF(AT33>(PosPUDL1+3),-PUDL1l*(AT33-PosPUDL1-3),0)-IF(AT33>PosPUDL2,PUDL2l*(AT33-PosPUDL2),0)-IF(AT33>(PosPUDL2+LePUDL2),-PUDL2l*(AT33-PosPUDL2-LePUDL2),0)-IF(AT33>PosPLa1,PLa1l,0)-IF(AT33>PosPLb1,PLb1l,0) -> -0.01 | AU37: =RL1l-2*AU33-IF(AU33>PosPUDL1,PUDL1l*(AU33-PosPUDL1),0)-IF(AU33>(PosPUDL1+3),-PUDL1l*(AU33-PosPUDL1-3),0)-IF(AU33>PosPUDL2,PUDL2l*(AU33-PosPUDL2),0)-IF(AU33>(PosPUDL2+LePUDL2),-PUDL2l*(AU33-PosPUDL2-LePUDL2),0)-IF(AU33>PosPLa1,PLa1l,0)-IF(AU33>PosPLb1,PLb1l,0) -> -0.25 | AV37: =RL1l-2*AV33-IF(AV33>PosPUDL1,PUDL1l*(AV33-PosPUDL1),0)-IF(AV33>(PosPUDL1+3),-PUDL1l*(AV33-PosPUDL1-3),0)-IF(AV33>PosPUDL2,PUDL2l*(AV33-PosPUDL2),0)-IF(AV33>(PosPUDL2+LePUDL2),-PUDL2l*(AV33-PosPUDL2-LePUDL2),0)-IF(AV33>PosPLa1,PLa1l,0)-IF(AV33>PosPLb1,PLb1l,0) -> -0.49 | AW37: =RL1l-2*AW33-IF(AW33>PosPUDL1,PUDL1l*(AW33-PosPUDL1),0)-IF(AW33>(PosPUDL1+3),-PUDL1l*(AW33-PosPUDL1-3),0)-IF(AW33>PosPUDL2,PUDL2l*(AW33-PosPUDL2),0)-IF(AW33>(PosPUDL2+LePUDL2),-PUDL2l*(AW33-PosPUDL2-LePUDL2),0)-IF(AW33>PosPLa1,PLa1l,0)-IF(AW33>PosPLb1,PLb1l,0) -> -0.73 | AX37: =RL1l-2*AX33-IF(AX33>PosPUDL1,PUDL1l*(AX33-PosPUDL1),0)-IF(AX33>(PosPUDL1+3),-PUDL1l*(AX33-PosPUDL1-3),0)-IF(AX33>PosPUDL2,PUDL2l*(AX33-PosPUDL2),0)-IF(AX33>(PosPUDL2+LePUDL2),-PUDL2l*(AX33-PosPUDL2-LePUDL2),0)-IF(AX33>PosPLa1,PLa1l,0)-IF(AX33>PosPLb1,PLb1l,0) -> -0.97 | AY37: =RL1l-2*AY33-IF(AY33>PosPUDL1,PUDL1l*(AY33-PosPUDL1),0)-IF(AY33>(PosPUDL1+3),-PUDL1l*(AY33-PosPUDL1-3),0)-IF(AY33>PosPUDL2,PUDL2l*(AY33-PosPUDL2),0)-IF(AY33>(PosPUDL2+LePUDL2),-PUDL2l*(AY33-PosPUDL2-LePUDL2),0)-IF(AY33>PosPLa1,PLa1l,0)-IF(AY33>PosPLb1,PLb1l,0) -> -1.21 | AZ37: =RL1l-2*AZ33-IF(AZ33>PosPUDL1,PUDL1l*(AZ33-PosPUDL1),0)-IF(AZ33>(PosPUDL1+3),-PUDL1l*(AZ33-PosPUDL1-3),0)-IF(AZ33>PosPUDL2,PUDL2l*(AZ33-PosPUDL2),0)-IF(AZ33>(PosPUDL2+LePUDL2),-PUDL2l*(AZ33-PosPUDL2-LePUDL2),0)-IF(AZ33>PosPLa1,PLa1l,0)-IF(AZ33>PosPLb1,PLb1l,0) -> -1.45 | BA37: =RL1l-2*BA33-IF(BA33>PosPUDL1,PUDL1l*(BA33-PosPUDL1),0)-IF(BA33>(PosPUDL1+3),-PUDL1l*(BA33-PosPUDL1-3),0)-IF(BA33>PosPUDL2,PUDL2l*(BA33-PosPUDL2),0)-IF(BA33>(PosPUDL2+LePUDL2),-PUDL2l*(BA33-PosPUDL2-LePUDL2),0)-IF(BA33>PosPLa1,PLa1l,0)-IF(BA33>PosPLb1,PLb1l,0) -> -1.69 | BB37: =RL1l-2*BB33-IF(BB33>PosPUDL1,PUDL1l*(BB33-PosPUDL1),0)-IF(BB33>(PosPUDL1+3),-PUDL1l*(BB33-PosPUDL1-3),0)-IF(BB33>PosPUDL2,PUDL2l*(BB33-PosPUDL2),0)-IF(BB33>(PosPUDL2+LePUDL2),-PUDL2l*(BB33-PosPUDL2-LePUDL2),0)-IF(BB33>PosPLa1,PLa1l,0)-IF(BB33>PosPLb1,PLb1l,0) -> -1.85 | BC37: =RL1l-2*BC33-IF(BC33>PosPUDL1,PUDL1l*(BC33-PosPUDL1),0)-IF(BC33>(PosPUDL1+3),-PUDL1l*(BC33-PosPUDL1-3),0)-IF(BC33>PosPUDL2,PUDL2l*(BC33-PosPUDL2),0)-IF(BC33>(PosPUDL2+LePUDL2),-PUDL2l*(BC33-PosPUDL2-LePUDL2),0)-IF(BC33>PosPLa1,PLa1l,0)-IF(BC33>PosPLb1,PLb1l,0) -> -2.01 | BD37: =RL1l-2*BD33-IF(BD33>PosPUDL1,PUDL1l*(BD33-PosPUDL1),0)-IF(BD33>(PosPUDL1+3),-PUDL1l*(BD33-PosPUDL1-3),0)-IF(BD33>PosPUDL2,PUDL2l*(BD33-PosPUDL2),0)-IF(BD33>(PosPUDL2+LePUDL2),-PUDL2l*(BD33-PosPUDL2-LePUDL2),0)-IF(BD33>PosPLa1,PLa1l,0)-IF(BD33>PosPLb1,PLb1l,0) -> -2.17 | BE37: =RL1l-2*BE33-IF(BE33>PosPUDL1,PUDL1l*(BE33-PosPUDL1),0)-IF(BE33>(PosPUDL1+3),-PUDL1l*(BE33-PosPUDL1-3),0)-IF(BE33>PosPUDL2,PUDL2l*(BE33-PosPUDL2),0)-IF(BE33>(PosPUDL2+LePUDL2),-PUDL2l*(BE33-PosPUDL2-LePUDL2),0)-IF(BE33>PosPLa1,PLa1l,0)-IF(BE33>PosPLb1,PLb1l,0) -> -2.33 | BF37: =RL1l-2*BF33-IF(BF33>PosPUDL1,PUDL1l*(BF33-PosPUDL1),0)-IF(BF33>(PosPUDL1+3),-PUDL1l*(BF33-PosPUDL1-3),0)-IF(BF33>PosPUDL2,PUDL2l*(BF33-PosPUDL2),0)-IF(BF33>(PosPUDL2+LePUDL2),-PUDL2l*(BF33-PosPUDL2-LePUDL2),0)-IF(BF33>PosPLa1,PLa1l,0)-IF(BF33>PosPLb1,PLb1l,0) -> -2.49 | BG37: =RL1l-2*BG33-IF(BG33>PosPUDL1,PUDL1l*(BG33-PosPUDL1),0)-IF(BG33>(PosPUDL1+3),-PUDL1l*(BG33-PosPUDL1-3),0)-IF(BG33>PosPUDL2,PUDL2l*(BG33-PosPUDL2),0)-IF(BG33>(PosPUDL2+LePUDL2),-PUDL2l*(BG33-PosPUDL2-LePUDL2),0)-IF(BG33>PosPLa1,PLa1l,0)-IF(BG33>PosPLb1,PLb1l,0) -> -2.65 | BH37: =RL1l-2*BH33-IF(BH33>PosPUDL1,PUDL1l*(BH33-PosPUDL1),0)-IF(BH33>(PosPUDL1+3),-PUDL1l*(BH33-PosPUDL1-3),0)-IF(BH33>PosPUDL2,PUDL2l*(BH33-PosPUDL2),0)-IF(BH33>(PosPUDL2+LePUDL2),-PUDL2l*(BH33-PosPUDL2-LePUDL2),0)-IF(BH33>PosPLa1,PLa1l,0)-IF(BH33>PosPLb1,PLb1l,0) -> -2.81 | BI37: =RL1l-2*BI33-IF(BI33>PosPUDL1,PUDL1l*(BI33-PosPUDL1),0)-IF(BI33>(PosPUDL1+3),-PUDL1l*(BI33-PosPUDL1-3),0)-IF(BI33>PosPUDL2,PUDL2l*(BI33-PosPUDL2),0)-IF(BI33>(PosPUDL2+LePUDL2),-PUDL2l*(BI33-PosPUDL2-LePUDL2),0)-IF(BI33>PosPLa1,PLa1l,0)-IF(BI33>PosPLb1,PLb1l,0) -> -2.97 | BJ37: =RL1l-2*BJ33-IF(BJ33>PosPUDL1,PUDL1l*(BJ33-PosPUDL1),0)-IF(BJ33>(PosPUDL1+3),-PUDL1l*(BJ33-PosPUDL1-3),0)-IF(BJ33>PosPUDL2,PUDL2l*(BJ33-PosPUDL2),0)-IF(BJ33>(PosPUDL2+LePUDL2),-PUDL2l*(BJ33-PosPUDL2-LePUDL2),0)-IF(BJ33>PosPLa1,PLa1l,0)-IF(BJ33>PosPLb1,PLb1l,0) -> -3.13 | BK37: =RL1l-2*BK33-IF(BK33>PosPUDL1,PUDL1l*(BK33-PosPUDL1),0)-IF(BK33>(PosPUDL1+3),-PUDL1l*(BK33-PosPUDL1-3),0)-IF(BK33>PosPUDL2,PUDL2l*(BK33-PosPUDL2),0)-IF(BK33>(PosPUDL2+LePUDL2),-PUDL2l*(BK33-PosPUDL2-LePUDL2),0)-IF(BK33>PosPLa1,PLa1l,0)-IF(BK33>PosPLb1,PLb1l,0) -> -3.29 | BL37: =RL1l-2*BL33-IF(BL33>PosPUDL1,PUDL1l*(BL33-PosPUDL1),0)-IF(BL33>(PosPUDL1+3),-PUDL1l*(BL33-PosPUDL1-3),0)-IF(BL33>PosPUDL2,PUDL2l*(BL33-PosPUDL2),0)-IF(BL33>(PosPUDL2+LePUDL2),-PUDL2l*(BL33-PosPUDL2-LePUDL2),0)-IF(BL33>PosPLa1,PLa1l,0)-IF(BL33>PosPLb1,PLb1l,0) -> -3.45 | BM37: =RL1l-2*BM33-IF(BM33>PosPUDL1,PUDL1l*(BM33-PosPUDL1),0)-IF(BM33>(PosPUDL1+3),-PUDL1l*(BM33-PosPUDL1-3),0)-IF(BM33>PosPUDL2,PUDL2l*(BM33-PosPUDL2),0)-IF(BM33>(PosPUDL2+LePUDL2),-PUDL2l*(BM33-PosPUDL2-LePUDL2),0)-IF(BM33>PosPLa1,PLa1l,0)-IF(BM33>PosPLb1,PLb1l,0) -> -3.61 | BN37: =RL1l-2*BN33-IF(BN33>PosPUDL1,PUDL1l*(BN33-PosPUDL1),0)-IF(BN33>(PosPUDL1+3),-PUDL1l*(BN33-PosPUDL1-3),0)-IF(BN33>PosPUDL2,PUDL2l*(BN33-PosPUDL2),0)-IF(BN33>(PosPUDL2+LePUDL2),-PUDL2l*(BN33-PosPUDL2-LePUDL2),0)-IF(BN33>PosPLa1,PLa1l,0)-IF(BN33>PosPLb1,PLb1l,0) -> -3.77 | BO37: =RL1l-2*BO33-IF(BO33>PosPUDL1,PUDL1l*(BO33-PosPUDL1),0)-IF(BO33>(PosPUDL1+3),-PUDL1l*(BO33-PosPUDL1-3),0)-IF(BO33>PosPUDL2,PUDL2l*(BO33-PosPUDL2),0)-IF(BO33>(PosPUDL2+LePUDL2),-PUDL2l*(BO33-PosPUDL2-LePUDL2),0)-IF(BO33>PosPLa1,PLa1l,0)-IF(BO33>PosPLb1,PLb1l,0) -> -3.93 | BP37: =RL1l-2*BP33-IF(BP33>PosPUDL1,PUDL1l*(BP33-PosPUDL1),0)-IF(BP33>(PosPUDL1+3),-PUDL1l*(BP33-PosPUDL1-3),0)-IF(BP33>PosPUDL2,PUDL2l*(BP33-PosPUDL2),0)-IF(BP33>(PosPUDL2+LePUDL2),-PUDL2l*(BP33-PosPUDL2-LePUDL2),0)-IF(BP33>PosPLa1,PLa1l,0)-IF(BP33>PosPLb1,PLb1l,0) -> -4.09 | BQ37: =RL1l-2*BQ33-IF(BQ33>PosPUDL1,PUDL1l*(BQ33-PosPUDL1),0)-IF(BQ33>(PosPUDL1+3),-PUDL1l*(BQ33-PosPUDL1-3),0)-IF(BQ33>PosPUDL2,PUDL2l*(BQ33-PosPUDL2),0)-IF(BQ33>(PosPUDL2+LePUDL2),-PUDL2l*(BQ33-PosPUDL2-LePUDL2),0)-IF(BQ33>PosPLa1,PLa1l,0)-IF(BQ33>PosPLb1,PLb1l,0) -> -4.25 | BR37: =RL1l-2*BR33-IF(BR33>PosPUDL1,PUDL1l*(BR33-PosPUDL1),0)-IF(BR33>(PosPUDL1+3),-PUDL1l*(BR33-PosPUDL1-3),0)-IF(BR33>PosPUDL2,PUDL2l*(BR33-PosPUDL2),0)-IF(BR33>(PosPUDL2+LePUDL2),-PUDL2l*(BR33-PosPUDL2-LePUDL2),0)-IF(BR33>PosPLa1,PLa1l,0)-IF(BR33>PosPLb1,PLb1l,0) -> -4.41 | BS37: =RL1l-2*BS33-IF(BS33>PosPUDL1,PUDL1l*(BS33-PosPUDL1),0)-IF(BS33>(PosPUDL1+3),-PUDL1l*(BS33-PosPUDL1-3),0)-IF(BS33>PosPUDL2,PUDL2l*(BS33-PosPUDL2),0)-IF(BS33>(PosPUDL2+LePUDL2),-PUDL2l*(BS33-PosPUDL2-LePUDL2),0)-IF(BS33>PosPLa1,PLa1l,0)-IF(BS33>PosPLb1,PLb1l,0) -> -4.57 | BT37: =RL1l-2*BT33-IF(BT33>PosPUDL1,PUDL1l*(BT33-PosPUDL1),0)-IF(BT33>(PosPUDL1+3),-PUDL1l*(BT33-PosPUDL1-3),0)-IF(BT33>PosPUDL2,PUDL2l*(BT33-PosPUDL2),0)-IF(BT33>(PosPUDL2+LePUDL2),-PUDL2l*(BT33-PosPUDL2-LePUDL2),0)-IF(BT33>PosPLa1,PLa1l,0)-IF(BT33>PosPLb1,PLb1l,0) -> -4.73 | BU37: =RL1l-2*BU33-IF(BU33>PosPUDL1,PUDL1l*(BU33-PosPUDL1),0)-IF(BU33>(PosPUDL1+3),-PUDL1l*(BU33-PosPUDL1-3),0)-IF(BU33>PosPUDL2,PUDL2l*(BU33-PosPUDL2),0)-IF(BU33>(PosPUDL2+LePUDL2),-PUDL2l*(BU33-PosPUDL2-LePUDL2),0)-IF(BU33>PosPLa1,PLa1l,0)-IF(BU33>PosPLb1,PLb1l,0) -> -4.89 | BV37: =RL1l-2*BV33-IF(BV33>PosPUDL1,PUDL1l*(BV33-PosPUDL1),0)-IF(BV33>(PosPUDL1+3),-PUDL1l*(BV33-PosPUDL1-3),0)-IF(BV33>PosPUDL2,PUDL2l*(BV33-PosPUDL2),0)-IF(BV33>(PosPUDL2+LePUDL2),-PUDL2l*(BV33-PosPUDL2-LePUDL2),0)-IF(BV33>PosPLa1,PLa1l,0)-IF(BV33>PosPLb1,PLb1l,0) -> -5.05 | BW37: =RL1l-2*BW33-IF(BW33>PosPUDL1,PUDL1l*(BW33-PosPUDL1),0)-IF(BW33>(PosPUDL1+3),-PUDL1l*(BW33-PosPUDL1-3),0)-IF(BW33>PosPUDL2,PUDL2l*(BW33-PosPUDL2),0)-IF(BW33>(PosPUDL2+LePUDL2),-PUDL2l*(BW33-PosPUDL2-LePUDL2),0)-IF(BW33>PosPLa1,PLa1l,0)-IF(BW33>PosPLb1,PLb1l,0) -> -5.21 | BX37: =RL1l-2*BX33-IF(BX33>PosPUDL1,PUDL1l*(BX33-PosPUDL1),0)-IF(BX33>(PosPUDL1+3),-PUDL1l*(BX33-PosPUDL1-3),0)-IF(BX33>PosPUDL2,PUDL2l*(BX33-PosPUDL2),0)-IF(BX33>(PosPUDL2+LePUDL2),-PUDL2l*(BX33-PosPUDL2-LePUDL2),0)-IF(BX33>PosPLa1,PLa1l,0)-IF(BX33>PosPLb1,PLb1l,0) -> -5.37 | BY37: =RL1l-2*BY33-IF(BY33>PosPUDL1,PUDL1l*(BY33-PosPUDL1),0)-IF(BY33>(PosPUDL1+3),-PUDL1l*(BY33-PosPUDL1-3),0)-IF(BY33>PosPUDL2,PUDL2l*(BY33-PosPUDL2),0)-IF(BY33>(PosPUDL2+LePUDL2),-PUDL2l*(BY33-PosPUDL2-LePUDL2),0)-IF(BY33>PosPLa1,PLa1l,0)-IF(BY33>PosPLb1,PLb1l,0) -> -5.53 | BZ37: =RL1l-2*BZ33-IF(BZ33>PosPUDL1,PUDL1l*(BZ33-PosPUDL1),0)-IF(BZ33>(PosPUDL1+3),-PUDL1l*(BZ33-PosPUDL1-3),0)-IF(BZ33>PosPUDL2,PUDL2l*(BZ33-PosPUDL2),0)-IF(BZ33>(PosPUDL2+LePUDL2),-PUDL2l*(BZ33-PosPUDL2-LePUDL2),0)-IF(BZ33>PosPLa1,PLa1l,0)-IF(BZ33>PosPLb1,PLb1l,0) -> -5.69 | CA37: =RL1l-2*CA33-IF(CA33>PosPUDL1,PUDL1l*(CA33-PosPUDL1),0)-IF(CA33>(PosPUDL1+3),-PUDL1l*(CA33-PosPUDL1-3),0)-IF(CA33>PosPUDL2,PUDL2l*(CA33-PosPUDL2),0)-IF(CA33>(PosPUDL2+LePUDL2),-PUDL2l*(CA33-PosPUDL2-LePUDL2),0)-IF(CA33>PosPLa1,PLa1l,0)-IF(CA33>PosPLb1,PLb1l,0) -> -5.85 | CB37: =RL1l-2*CB33-IF(CB33>PosPUDL1,PUDL1l*(CB33-PosPUDL1),0)-IF(CB33>(PosPUDL1+3),-PUDL1l*(CB33-PosPUDL1-3),0)-IF(CB33>PosPUDL2,PUDL2l*(CB33-PosPUDL2),0)-IF(CB33>(PosPUDL2+LePUDL2),-PUDL2l*(CB33-PosPUDL2-LePUDL2),0)-IF(CB33>PosPLa1,PLa1l,0)-IF(CB33>PosPLb1,PLb1l,0) -> -6.01 | CC37: =RL1l-2*CC33-IF(CC33>PosPUDL1,PUDL1l*(CC33-PosPUDL1),0)-IF(CC33>(PosPUDL1+3),-PUDL1l*(CC33-PosPUDL1-3),0)-IF(CC33>PosPUDL2,PUDL2l*(CC33-PosPUDL2),0)-IF(CC33>(PosPUDL2+LePUDL2),-PUDL2l*(CC33-PosPUDL2-LePUDL2),0)-IF(CC33>PosPLa1,PLa1l,0)-IF(CC33>PosPLb1,PLb1l,0) -> -6.17 | CD37: =RL1l-2*CD33-IF(CD33>PosPUDL1,PUDL1l*(CD33-PosPUDL1),0)-IF(CD33>(PosPUDL1+3),-PUDL1l*(CD33-PosPUDL1-3),0)-IF(CD33>PosPUDL2,PUDL2l*(CD33-PosPUDL2),0)-IF(CD33>(PosPUDL2+LePUDL2),-PUDL2l*(CD33-PosPUDL2-LePUDL2),0)-IF(CD33>PosPLa1,PLa1l,0)-IF(CD33>PosPLb1,PLb1l,0) -> -6.33 | CE37: =RL1l-2*CE33-IF(CE33>PosPUDL1,PUDL1l*(CE33-PosPUDL1),0)-IF(CE33>(PosPUDL1+3),-PUDL1l*(CE33-PosPUDL1-3),0)-IF(CE33>PosPUDL2,PUDL2l*(CE33-PosPUDL2),0)-IF(CE33>(PosPUDL2+LePUDL2),-PUDL2l*(CE33-PosPUDL2-LePUDL2),0)-IF(CE33>PosPLa1,PLa1l,0)-IF(CE33>PosPLb1,PLb1l,0) -> -6.49 | CF37: =RL1l-2*CF33-IF(CF33>PosPUDL1,PUDL1l*(CF33-PosPUDL1),0)-IF(CF33>(PosPUDL1+3),-PUDL1l*(CF33-PosPUDL1-3),0)-IF(CF33>PosPUDL2,PUDL2l*(CF33-PosPUDL2),0)-IF(CF33>(PosPUDL2+LePUDL2),-PUDL2l*(CF33-PosPUDL2-LePUDL2),0)-IF(CF33>PosPLa1,PLa1l,0)-IF(CF33>PosPLb1,PLb1l,0) -> -6.65 | CG37: =RL1l-2*CG33-IF(CG33>PosPUDL1,PUDL1l*(CG33-PosPUDL1),0)-IF(CG33>(PosPUDL1+3),-PUDL1l*(CG33-PosPUDL1-3),0)-IF(CG33>PosPUDL2,PUDL2l*(CG33-PosPUDL2),0)-IF(CG33>(PosPUDL2+LePUDL2),-PUDL2l*(CG33-PosPUDL2-LePUDL2),0)-IF(CG33>PosPLa1,PLa1l,0)-IF(CG33>PosPLb1,PLb1l,0) -> -6.81 | CH37: =RL1l-2*CH33-IF(CH33>PosPUDL1,PUDL1l*(CH33-PosPUDL1),0)-IF(CH33>(PosPUDL1+3),-PUDL1l*(CH33-PosPUDL1-3),0)-IF(CH33>PosPUDL2,PUDL2l*(CH33-PosPUDL2),0)-IF(CH33>(PosPUDL2+LePUDL2),-PUDL2l*(CH33-PosPUDL2-LePUDL2),0)-IF(CH33>PosPLa1,PLa1l,0)-IF(CH33>PosPLb1,PLb1l,0) -> -6.97 | CI37: =RL1l-2*CI33-IF(CI33>PosPUDL1,PUDL1l*(CI33-PosPUDL1),0)-IF(CI33>(PosPUDL1+3),-PUDL1l*(CI33-PosPUDL1-3),0)-IF(CI33>PosPUDL2,PUDL2l*(CI33-PosPUDL2),0)-IF(CI33>(PosPUDL2+LePUDL2),-PUDL2l*(CI33-PosPUDL2-LePUDL2),0)-IF(CI33>PosPLa1,PLa1l,0)-IF(CI33>PosPLb1,PLb1l,0) -> -7.13 | CJ37: =RL1l-2*CJ33-IF(CJ33>PosPUDL1,PUDL1l*(CJ33-PosPUDL1),0)-IF(CJ33>(PosPUDL1+3),-PUDL1l*(CJ33-PosPUDL1-3),0)-IF(CJ33>PosPUDL2,PUDL2l*(CJ33-PosPUDL2),0)-IF(CJ33>(PosPUDL2+LePUDL2),-PUDL2l*(CJ33-PosPUDL2-LePUDL2),0)-IF(CJ33>PosPLa1,PLa1l,0)-IF(CJ33>PosPLb1,PLb1l,0) -> -7.29 | CK37: =RL1l-2*CK33-IF(CK33>PosPUDL1,PUDL1l*(CK33-PosPUDL1),0)-IF(CK33>(PosPUDL1+3),-PUDL1l*(CK33-PosPUDL1-3),0)-IF(CK33>PosPUDL2,PUDL2l*(CK33-PosPUDL2),0)-IF(CK33>(PosPUDL2+LePUDL2),-PUDL2l*(CK33-PosPUDL2-LePUDL2),0)-IF(CK33>PosPLa1,PLa1l,0)-IF(CK33>PosPLb1,PLb1l,0) -> -7.45 | CL37: =RL1l-2*CL33-IF(CL33>PosPUDL1,PUDL1l*(CL33-PosPUDL1),0)-IF(CL33>(PosPUDL1+3),-PUDL1l*(CL33-PosPUDL1-3),0)-IF(CL33>PosPUDL2,PUDL2l*(CL33-PosPUDL2),0)-IF(CL33>(PosPUDL2+LePUDL2),-PUDL2l*(CL33-PosPUDL2-LePUDL2),0)-IF(CL33>PosPLa1,PLa1l,0)-IF(CL33>PosPLb1,PLb1l,0) -> -7.61 | CM37: =RL1l-2*CM33-IF(CM33>PosPUDL1,PUDL1l*(CM33-PosPUDL1),0)-IF(CM33>(PosPUDL1+3),-PUDL1l*(CM33-PosPUDL1-3),0)-IF(CM33>PosPUDL2,PUDL2l*(CM33-PosPUDL2),0)-IF(CM33>(PosPUDL2+LePUDL2),-PUDL2l*(CM33-PosPUDL2-LePUDL2),0)-IF(CM33>PosPLa1,PLa1l,0)-IF(CM33>PosPLb1,PLb1l,0) -> -7.77 | CN37: =RL1l-2*CN33-IF(CN33>PosPUDL1,PUDL1l*(CN33-PosPUDL1),0)-IF(CN33>(PosPUDL1+3),-PUDL1l*(CN33-PosPUDL1-3),0)-IF(CN33>PosPUDL2,PUDL2l*(CN33-PosPUDL2),0)-IF(CN33>(PosPUDL2+LePUDL2),-PUDL2l*(CN33-PosPUDL2-LePUDL2),0)-IF(CN33>PosPLa1,PLa1l,0)-IF(CN33>PosPLb1,PLb1l,0) -> -7.93 | CO37: =RL1l-2*CO33-IF(CO33>PosPUDL1,PUDL1l*(CO33-PosPUDL1),0)-IF(CO33>(PosPUDL1+3),-PUDL1l*(CO33-PosPUDL1-3),0)-IF(CO33>PosPUDL2,PUDL2l*(CO33-PosPUDL2),0)-IF(CO33>(PosPUDL2+LePUDL2),-PUDL2l*(CO33-PosPUDL2-LePUDL2),0)-IF(CO33>PosPLa1,PLa1l,0)-IF(CO33>PosPLb1,PLb1l,0) -> -8.09 | CP37: =RL1l-2*CP33-IF(CP33>PosPUDL1,PUDL1l*(CP33-PosPUDL1),0)-IF(CP33>(PosPUDL1+3),-PUDL1l*(CP33-PosPUDL1-3),0)-IF(CP33>PosPUDL2,PUDL2l*(CP33-PosPUDL2),0)-IF(CP33>(PosPUDL2+LePUDL2),-PUDL2l*(CP33-PosPUDL2-LePUDL2),0)-IF(CP33>PosPLa1,PLa1l,0)-IF(CP33>PosPLb1,PLb1l,0) -> -8.25 | CQ37: =RL1l-2*CQ33-IF(CQ33>PosPUDL1,PUDL1l*(CQ33-PosPUDL1),0)-IF(CQ33>(PosPUDL1+3),-PUDL1l*(CQ33-PosPUDL1-3),0)-IF(CQ33>PosPUDL2,PUDL2l*(CQ33-PosPUDL2),0)-IF(CQ33>(PosPUDL2+LePUDL2),-PUDL2l*(CQ33-PosPUDL2-LePUDL2),0)-IF(CQ33>PosPLa1,PLa1l,0)-IF(CQ33>PosPLb1,PLb1l,0) -> -8.41 | CR37: =RL1l-2*CR33-IF(CR33>PosPUDL1,PUDL1l*(CR33-PosPUDL1),0)-IF(CR33>(PosPUDL1+3),-PUDL1l*(CR33-PosPUDL1-3),0)-IF(CR33>PosPUDL2,PUDL2l*(CR33-PosPUDL2),0)-IF(CR33>(PosPUDL2+LePUDL2),-PUDL2l*(CR33-PosPUDL2-LePUDL2),0)-IF(CR33>PosPLa1,PLa1l,0)-IF(CR33>PosPLb1,PLb1l,0) -> -8.57 | CS37: =RL1l-2*CS33-IF(CS33>PosPUDL1,PUDL1l*(CS33-PosPUDL1),0)-IF(CS33>(PosPUDL1+3),-PUDL1l*(CS33-PosPUDL1-3),0)-IF(CS33>PosPUDL2,PUDL2l*(CS33-PosPUDL2),0)-IF(CS33>(PosPUDL2+LePUDL2),-PUDL2l*(CS33-PosPUDL2-LePUDL2),0)-IF(CS33>PosPLa1,PLa1l,0)-IF(CS33>PosPLb1,PLb1l,0) -> -8.73 | CT37: =RL1l-2*CT33-IF(CT33>PosPUDL1,PUDL1l*(CT33-PosPUDL1),0)-IF(CT33>(PosPUDL1+3),-PUDL1l*(CT33-PosPUDL1-3),0)-IF(CT33>PosPUDL2,PUDL2l*(CT33-PosPUDL2),0)-IF(CT33>(PosPUDL2+LePUDL2),-PUDL2l*(CT33-PosPUDL2-LePUDL2),0)-IF(CT33>PosPLa1,PLa1l,0)-IF(CT33>PosPLb1,PLb1l,0) -> -8.89 | CU37: =RL1l-2*CU33-IF(CU33>PosPUDL1,PUDL1l*(CU33-PosPUDL1),0)-IF(CU33>(PosPUDL1+3),-PUDL1l*(CU33-PosPUDL1-3),0)-IF(CU33>PosPUDL2,PUDL2l*(CU33-PosPUDL2),0)-IF(CU33>(PosPUDL2+LePUDL2),-PUDL2l*(CU33-PosPUDL2-LePUDL2),0)-IF(CU33>PosPLa1,PLa1l,0)-IF(CU33>PosPLb1,PLb1l,0) -> -9.05 | CV37: =RL1l-2*CV33-IF(CV33>PosPUDL1,PUDL1l*(CV33-PosPUDL1),0)-IF(CV33>(PosPUDL1+3),-PUDL1l*(CV33-PosPUDL1-3),0)-IF(CV33>PosPUDL2,PUDL2l*(CV33-PosPUDL2),0)-IF(CV33>(PosPUDL2+LePUDL2),-PUDL2l*(CV33-PosPUDL2-LePUDL2),0)-IF(CV33>PosPLa1,PLa1l,0)-IF(CV33>PosPLb1,PLb1l,0) -> -9.21 | CW37: =RL1l-2*CW33-IF(CW33>PosPUDL1,PUDL1l*(CW33-PosPUDL1),0)-IF(CW33>(PosPUDL1+3),-PUDL1l*(CW33-PosPUDL1-3),0)-IF(CW33>PosPUDL2,PUDL2l*(CW33-PosPUDL2),0)-IF(CW33>(PosPUDL2+LePUDL2),-PUDL2l*(CW33-PosPUDL2-LePUDL2),0)-IF(CW33>PosPLa1,PLa1l,0)-IF(CW33>PosPLb1,PLb1l,0) -> -9.37 | CX37: =RL1l-2*CX33-IF(CX33>PosPUDL1,PUDL1l*(CX33-PosPUDL1),0)-IF(CX33>(PosPUDL1+3),-PUDL1l*(CX33-PosPUDL1-3),0)-IF(CX33>PosPUDL2,PUDL2l*(CX33-PosPUDL2),0)-IF(CX33>(PosPUDL2+LePUDL2),-PUDL2l*(CX33-PosPUDL2-LePUDL2),0)-IF(CX33>PosPLa1,PLa1l,0)-IF(CX33>PosPLb1,PLb1l,0) -> -9.53 | CY37: =RL1l-2*CY33-IF(CY33>PosPUDL1,PUDL1l*(CY33-PosPUDL1),0)-IF(CY33>(PosPUDL1+3),-PUDL1l*(CY33-PosPUDL1-3),0)-IF(CY33>PosPUDL2,PUDL2l*(CY33-PosPUDL2),0)-IF(CY33>(PosPUDL2+LePUDL2),-PUDL2l*(CY33-PosPUDL2-LePUDL2),0)-IF(CY33>PosPLa1,PLa1l,0)-IF(CY33>PosPLb1,PLb1l,0) -> -9.69
C40: DEFLECTION: MACAULAY'S METHOD
B42: RULES | C42: EIw'" = -M
C43: rotation: EIw' = Eiφ = -ʃMdx+A
C44: deflection: EIw = -ʃʃMdx+Ax+B
C46: DEAD (2nd integral)
B47: Step | C47: 0.0 | D47: =8/100 -> 0.1 | E47: =D47+8/100 -> 0.2 | F47: =E47+8/100 -> 0.2 | G47: =F47+8/100 -> 0.3 | H47: =G47+8/100 -> 0.4 | I47: =H47+8/100 -> 0.5 | J47: =I47+8/100 -> 0.6 | K47: =J47+8/100 -> 0.6 | L47: =K47+8/100 -> 0.7 | M47: =L47+8/100 -> 0.8 | N47: =M47+8/100 -> 0.9 | O47: =N47+8/100 -> 1.0 | P47: =O47+8/100 -> 1.0 | Q47: =P47+8/100 -> 1.1 | R47: =Q47+8/100 -> 1.2 | S47: =R47+8/100 -> 1.3 | T47: =S47+8/100 -> 1.4 | U47: =T47+8/100 -> 1.4 | V47: =U47+8/100 -> 1.5 | W47: =V47+8/100 -> 1.6 | X47: =W47+8/100 -> 1.7 | Y47: =X47+8/100 -> 1.8 | Z47: =Y47+8/100 -> 1.8 | AA47: =Z47+8/100 -> 1.9 | AB47: =AA47+8/100 -> 2.0 | AC47: =AB47+8/100 -> 2.1 | AD47: =AC47+8/100 -> 2.2 | AE47: =AD47+8/100 -> 2.2 | AF47: =AE47+8/100 -> 2.3 | AG47: =AF47+8/100 -> 2.4 | AH47: =AG47+8/100 -> 2.5 | AI47: =AH47+8/100 -> 2.6 | AJ47: =AI47+8/100 -> 2.6 | AK47: =AJ47+8/100 -> 2.7 | AL47: =AK47+8/100 -> 2.8 | AM47: =AL47+8/100 -> 2.9 | AN47: =AM47+8/100 -> 3.0 | AO47: =AN47+8/100 -> 3.0 | AP47: =AO47+8/100 -> 3.1 | AQ47: =AP47+8/100 -> 3.2 | AR47: =AQ47+8/100 -> 3.3 | AS47: =AR47+8/100 -> 3.4 | AT47: =AS47+8/100 -> 3.4 | AU47: =AT47+8/100 -> 3.5 | AV47: =AU47+8/100 -> 3.6 | AW47: =AV47+8/100 -> 3.7 | AX47: =AW47+8/100 -> 3.8 | AY47: =AX47+8/100 -> 3.8 | AZ47: =AY47+8/100 -> 3.9 | BA47: =AZ47+8/100 -> 4.0 | BB47: =BA47+8/100 -> 4.1 | BC47: =BB47+8/100 -> 4.2 | BD47: =BC47+8/100 -> 4.2 | BE47: =BD47+8/100 -> 4.3 | BF47: =BE47+8/100 -> 4.4 | BG47: =BF47+8/100 -> 4.5 | BH47: =BG47+8/100 -> 4.6 | BI47: =BH47+8/100 -> 4.6 | BJ47: =BI47+8/100 -> 4.7 | BK47: =BJ47+8/100 -> 4.8 | BL47: =BK47+8/100 -> 4.9 | BM47: =BL47+8/100 -> 5.0 | BN47: =BM47+8/100 -> 5.0 | BO47: =BN47+8/100 -> 5.1 | BP47: =BO47+8/100 -> 5.2 | BQ47: =BP47+8/100 -> 5.3 | BR47: =BQ47+8/100 -> 5.4 | BS47: =BR47+8/100 -> 5.4 | BT47: =BS47+8/100 -> 5.5 | BU47: =BT47+8/100 -> 5.6 | BV47: =BU47+8/100 -> 5.7 | BW47: =BV47+8/100 -> 5.8 | BX47: =BW47+8/100 -> 5.8 | BY47: =BX47+8/100 -> 5.9 | BZ47: =BY47+8/100 -> 6.0 | CA47: =BZ47+8/100 -> 6.1 | CB47: =CA47+8/100 -> 6.2 | CC47: =CB47+8/100 -> 6.2 | CD47: =CC47+8/100 -> 6.3 | CE47: =CD47+8/100 -> 6.4 | CF47: =CE47+8/100 -> 6.5 | CG47: =CF47+8/100 -> 6.6 | CH47: =CG47+8/100 -> 6.6 | CI47: =CH47+8/100 -> 6.7 | CJ47: =CI47+8/100 -> 6.8 | CK47: =CJ47+8/100 -> 6.9 | CL47: =CK47+8/100 -> 7.0 | CM47: =CL47+8/100 -> 7.0 | CN47: =CM47+8/100 -> 7.1 | CO47: =CN47+8/100 -> 7.2 | CP47: =CO47+8/100 -> 7.3 | CQ47: =CP47+8/100 -> 7.4 | CR47: =CQ47+8/100 -> 7.4 | CS47: =CR47+8/100 -> 7.5 | CT47: =CS47+8/100 -> 7.6 | CU47: =CT47+8/100 -> 7.7 | CV47: =CU47+8/100 -> 7.8 | CW47: =CV47+8/100 -> 7.8 | CX47: =CW47+8/100 -> 7.9 | CY47: =CX47+8/100 -> 8.0
B48: Reaction | C48: =-RL1d*C47^3/6 -> 0.0 | D48: -0.0 | E48: -0.0 | F48: -0.0 | G48: -0.1 | H48: -0.2 | I48: -0.4 | J48: -0.6 | K48: -0.8 | L48: -1.2 | M48: -1.7 | N48: -2.2 | O48: -2.9 | P48: -3.6 | Q48: -4.5 | R48: -5.6 | S48: -6.8 | T48: -8.1 | U48: -9.7 | V48: -11.4 | W48: -13.3 | X48: -15.3 | Y48: -17.6 | Z48: -20.2 | AA48: -22.9 | AB48: -25.9 | AC48: -29.1 | AD48: -32.6 | AE48: -36.4 | AF48: -40.4 | AG48: -44.7 | AH48: -49.4 | AI48: =-RL1d*AI47^3/6 -> -54.3 | AJ48: -59.5 | AK48: -65.1 | AL48: -71.0 | AM48: -77.3 | AN48: -83.9 | AO48: -90.9 | AP48: -98.3 | AQ48: -106.0 | AR48: -114.2 | AS48: -122.7 | AT48: -131.7 | AU48: -141.1 | AV48: -151.0 | AW48: -161.3 | AX48: -172.0 | AY48: -183.2 | AZ48: -194.9 | BA48: -207.1 | BB48: -219.8 | BC48: -233.0 | BD48: -246.7 | BE48: -260.9 | BF48: -275.6 | BG48: -291.0 | BH48: -306.8 | BI48: -323.3 | BJ48: -340.3 | BK48: -357.9 | BL48: -376.1 | BM48: -394.8 | BN48: -414.3 | BO48: =-RL1d*BO47^3/6 -> -434.3 | BP48: -455.0 | BQ48: -476.3 | BR48: -498.3 | BS48: -520.9 | BT48: -544.3 | BU48: -568.3 | BV48: -593.0 | BW48: -618.4 | BX48: -644.5 | BY48: -671.4 | BZ48: -698.9 | CA48: -727.3 | CB48: -756.4 | CC48: -786.2 | CD48: -816.8 | CE48: -848.3 | CF48: -880.5 | CG48: -913.5 | CH48: -947.3 | CI48: -982.0 | CJ48: -1017.4 | CK48: -1053.8 | CL48: -1091.0 | CM48: -1129.0 | CN48: -1168.0 | CO48: -1207.8 | CP48: -1248.5 | CQ48: -1290.1 | CR48: -1332.6 | CS48: -1376.1 | CT48: -1420.5 | CU48: =-RL1d*CU47^3/6 -> -1465.8 | CV48: =-RL1d*CV47^3/6 -> -1512.1 | CW48: =-RL1d*CW47^3/6 -> -1559.3 | CX48: =-RL1d*CX47^3/6 -> -1607.5 | CY48: =-RL1d*CY47^3/6 -> -1656.7
B49: UDL | C49: =UDL1d*C47^4/24 -> 0.0 | D49: 0.0 | E49: 0.0 | F49: 0.0 | G49: 0.0 | H49: 0.0 | I49: 0.0 | J49: 0.0 | K49: 0.0 | L49: 0.0 | M49: 0.1 | N49: 0.1 | O49: 0.1 | P49: 0.2 | Q49: 0.2 | R49: 0.3 | S49: 0.4 | T49: 0.5 | U49: 0.6 | V49: 0.8 | W49: 1.0 | X49: 1.2 | Y49: 1.4 | Z49: 1.7 | AA49: 2.0 | AB49: 2.3 | AC49: 2.7 | AD49: 3.2 | AE49: 3.7 | AF49: 4.2 | AG49: 4.9 | AH49: 5.5 | AI49: =UDL1d*AI47^4/24 -> 6.3 | AJ49: 7.1 | AK49: 8.0 | AL49: 9.0 | AM49: 10.1 | AN49: 11.2 | AO49: 12.5 | AP49: 13.9 | AQ49: 15.3 | AR49: 16.9 | AS49: 18.6 | AT49: 20.5 | AU49: 22.5 | AV49: 24.6 | AW49: 26.8 | AX49: 29.2 | AY49: 31.8 | AZ49: 34.5 | BA49: 37.4 | BB49: 40.5 | BC49: 43.8 | BD49: 47.3 | BE49: 50.9 | BF49: 54.8 | BG49: 58.9 | BH49: 63.2 | BI49: 67.8 | BJ49: 72.6 | BK49: 77.6 | BL49: 82.9 | BM49: 88.5 | BN49: 94.4 | BO49: =UDL1d*BO47^4/24 -> 100.5 | BP49: 106.9 | BQ49: 113.7 | BR49: 120.7 | BS49: 128.1 | BT49: 135.8 | BU49: 143.8 | BV49: 152.2 | BW49: 161.0 | BX49: 170.1 | BY49: 179.6 | BZ49: 189.5 | CA49: 199.9 | CB49: 210.6 | CC49: 221.7 | CD49: 233.3 | CE49: 245.4 | CF49: 257.9 | CG49: 270.8 | CH49: 284.3 | CI49: 298.2 | CJ49: 312.7 | CK49: 327.7 | CL49: 343.2 | CM49: 359.2 | CN49: 375.9 | CO49: 393.0 | CP49: 410.8 | CQ49: 429.1 | CR49: 448.1 | CS49: 467.7 | CT49: 487.9 | CU49: 508.8 | CV49: 530.3 | CW49: 552.5 | CX49: 575.4 | CY49: 599.0
B50: PUDL a | C50: =IF(PosPUDL1<C47,PUDL1d*(C47-PosPUDL1)^4/24,0) -> 0.0 | D50: 0.0 | E50: 0.0 | F50: 0.0 | G50: 0.0 | H50: 0.0 | I50: 0.0 | J50: 0.0 | K50: 0.0 | L50: 0.0 | M50: 0.0 | N50: 0.0 | O50: 0.0 | P50: 0.0 | Q50: 0.0 | R50: 0.0 | S50: 0.0 | T50: 0.0 | U50: 0.0 | V50: 0.0 | W50: 0.0 | X50: 0.0 | Y50: 0.0 | Z50: 0.0 | AA50: 0.1 | AB50: 0.1 | AC50: 0.1 | AD50: 0.2 | AE50: 0.2 | AF50: 0.3 | AG50: 0.3 | AH50: 0.4 | AI50: =IF(PosPUDL1<AI47,PUDL1d*(AI47-PosPUDL1)^4/24,0) -> 0.5 | AJ50: 0.6 | AK50: 0.7 | AL50: 0.9 | AM50: 1.0 | AN50: 1.2 | AO50: 1.4 | AP50: 1.7 | AQ50: 2.0 | AR50: 2.3 | AS50: 2.6 | AT50: 3.0 | AU50: 3.4 | AV50: 3.8 | AW50: 4.3 | AX50: 4.8 | AY50: 5.4 | AZ50: 6.1 | BA50: 6.8 | BB50: 7.5 | BC50: 8.3 | BD50: 9.2 | BE50: 10.1 | BF50: 11.1 | BG50: 12.2 | BH50: 13.4 | BI50: 14.6 | BJ50: 16.0 | BK50: 17.4 | BL50: 18.9 | BM50: 20.5 | BN50: 22.2 | BO50: =IF(PosPUDL1<BO47,PUDL1d*(BO47-PosPUDL1)^4/24,0) -> 24.0 | BP50: 25.9 | BQ50: 28.0 | BR50: 30.1 | BS50: 32.4 | BT50: 34.8 | BU50: 37.3 | BV50: 40.0 | BW50: 42.8 | BX50: 45.7 | BY50: 48.8 | BZ50: 52.1 | CA50: 55.5 | CB50: 59.1 | CC50: 62.8 | CD50: 66.8 | CE50: 70.9 | CF50: 75.2 | CG50: 79.6 | CH50: 84.3 | CI50: 89.2 | CJ50: 94.3 | CK50: 99.6 | CL50: 105.1 | CM50: 110.9 | CN50: 116.9 | CO50: 123.1 | CP50: 129.6 | CQ50: 136.3 | CR50: 143.3 | CS50: 150.6 | CT50: 158.1 | CU50: 165.9 | CV50: 174.0 | CW50: 182.4 | CX50: 191.1 | CY50: 200.1
B51: PUDL a contra | C51: =-IF(C47>(PosPUDL1+3),PUDL1d*(C47-PosPUDL1-3)^4/24,0) -> 0.0 | D51: =-IF(D47>(PosPUDL1+3),PUDL1d*(D47-PosPUDL1-3)^4/24,0) -> 0.0 | E51: =-IF(E47>(PosPUDL1+3),PUDL1d*(E47-PosPUDL1-3)^4/24,0) -> 0.0 | F51: =-IF(F47>(PosPUDL1+3),PUDL1d*(F47-PosPUDL1-3)^4/24,0) -> 0.0 | G51: =-IF(G47>(PosPUDL1+3),PUDL1d*(G47-PosPUDL1-3)^4/24,0) -> 0.0 | H51: =-IF(H47>(PosPUDL1+3),PUDL1d*(H47-PosPUDL1-3)^4/24,0) -> 0.0 | I51: =-IF(I47>(PosPUDL1+3),PUDL1d*(I47-PosPUDL1-3)^4/24,0) -> 0.0 | J51: =-IF(J47>(PosPUDL1+3),PUDL1d*(J47-PosPUDL1-3)^4/24,0) -> 0.0 | K51: =-IF(K47>(PosPUDL1+3),PUDL1d*(K47-PosPUDL1-3)^4/24,0) -> 0.0 | L51: =-IF(L47>(PosPUDL1+3),PUDL1d*(L47-PosPUDL1-3)^4/24,0) -> 0.0 | M51: =-IF(M47>(PosPUDL1+3),PUDL1d*(M47-PosPUDL1-3)^4/24,0) -> 0.0 | N51: =-IF(N47>(PosPUDL1+3),PUDL1d*(N47-PosPUDL1-3)^4/24,0) -> 0.0 | O51: =-IF(O47>(PosPUDL1+3),PUDL1d*(O47-PosPUDL1-3)^4/24,0) -> 0.0 | P51: =-IF(P47>(PosPUDL1+3),PUDL1d*(P47-PosPUDL1-3)^4/24,0) -> 0.0 | Q51: =-IF(Q47>(PosPUDL1+3),PUDL1d*(Q47-PosPUDL1-3)^4/24,0) -> 0.0 | R51: =-IF(R47>(PosPUDL1+3),PUDL1d*(R47-PosPUDL1-3)^4/24,0) -> 0.0 | S51: =-IF(S47>(PosPUDL1+3),PUDL1d*(S47-PosPUDL1-3)^4/24,0) -> 0.0 | T51: =-IF(T47>(PosPUDL1+3),PUDL1d*(T47-PosPUDL1-3)^4/24,0) -> 0.0 | U51: =-IF(U47>(PosPUDL1+3),PUDL1d*(U47-PosPUDL1-3)^4/24,0) -> 0.0 | V51: =-IF(V47>(PosPUDL1+3),PUDL1d*(V47-PosPUDL1-3)^4/24,0) -> 0.0 | W51: =-IF(W47>(PosPUDL1+3),PUDL1d*(W47-PosPUDL1-3)^4/24,0) -> 0.0 | X51: =-IF(X47>(PosPUDL1+3),PUDL1d*(X47-PosPUDL1-3)^4/24,0) -> 0.0 | Y51: =-IF(Y47>(PosPUDL1+3),PUDL1d*(Y47-PosPUDL1-3)^4/24,0) -> 0.0 | Z51: =-IF(Z47>(PosPUDL1+3),PUDL1d*(Z47-PosPUDL1-3)^4/24,0) -> 0.0 | AA51: =-IF(AA47>(PosPUDL1+3),PUDL1d*(AA47-PosPUDL1-3)^4/24,0) -> 0.0 | AB51: =-IF(AB47>(PosPUDL1+3),PUDL1d*(AB47-PosPUDL1-3)^4/24,0) -> 0.0 | AC51: =-IF(AC47>(PosPUDL1+3),PUDL1d*(AC47-PosPUDL1-3)^4/24,0) -> 0.0 | AD51: =-IF(AD47>(PosPUDL1+3),PUDL1d*(AD47-PosPUDL1-3)^4/24,0) -> 0.0 | AE51: =-IF(AE47>(PosPUDL1+3),PUDL1d*(AE47-PosPUDL1-3)^4/24,0) -> 0.0 | AF51: =-IF(AF47>(PosPUDL1+3),PUDL1d*(AF47-PosPUDL1-3)^4/24,0) -> 0.0 | AG51: =-IF(AG47>(PosPUDL1+3),PUDL1d*(AG47-PosPUDL1-3)^4/24,0) -> 0.0 | AH51: =-IF(AH47>(PosPUDL1+3),PUDL1d*(AH47-PosPUDL1-3)^4/24,0) -> 0.0 | AI51: =-IF(AI47>(PosPUDL1+3),PUDL1d*(AI47-PosPUDL1-3)^4/24,0) -> 0.0 | AJ51: =-IF(AJ47>(PosPUDL1+3),PUDL1d*(AJ47-PosPUDL1-3)^4/24,0) -> 0.0 | AK51: =-IF(AK47>(PosPUDL1+3),PUDL1d*(AK47-PosPUDL1-3)^4/24,0) -> 0.0 | AL51: =-IF(AL47>(PosPUDL1+3),PUDL1d*(AL47-PosPUDL1-3)^4/24,0) -> 0.0 | AM51: =-IF(AM47>(PosPUDL1+3),PUDL1d*(AM47-PosPUDL1-3)^4/24,0) -> 0.0 | AN51: =-IF(AN47>(PosPUDL1+3),PUDL1d*(AN47-PosPUDL1-3)^4/24,0) -> 0.0 | AO51: =-IF(AO47>(PosPUDL1+3),PUDL1d*(AO47-PosPUDL1-3)^4/24,0) -> 0.0 | AP51: =-IF(AP47>(PosPUDL1+3),PUDL1d*(AP47-PosPUDL1-3)^4/24,0) -> 0.0 | AQ51: =-IF(AQ47>(PosPUDL1+3),PUDL1d*(AQ47-PosPUDL1-3)^4/24,0) -> 0.0 | AR51: =-IF(AR47>(PosPUDL1+3),PUDL1d*(AR47-PosPUDL1-3)^4/24,0) -> 0.0 | AS51: =-IF(AS47>(PosPUDL1+3),PUDL1d*(AS47-PosPUDL1-3)^4/24,0) -> 0.0 | AT51: =-IF(AT47>(PosPUDL1+3),PUDL1d*(AT47-PosPUDL1-3)^4/24,0) -> 0.0 | AU51: =-IF(AU47>(PosPUDL1+3),PUDL1d*(AU47-PosPUDL1-3)^4/24,0) -> 0.0 | AV51: =-IF(AV47>(PosPUDL1+3),PUDL1d*(AV47-PosPUDL1-3)^4/24,0) -> 0.0 | AW51: =-IF(AW47>(PosPUDL1+3),PUDL1d*(AW47-PosPUDL1-3)^4/24,0) -> 0.0 | AX51: =-IF(AX47>(PosPUDL1+3),PUDL1d*(AX47-PosPUDL1-3)^4/24,0) -> 0.0 | AY51: =-IF(AY47>(PosPUDL1+3),PUDL1d*(AY47-PosPUDL1-3)^4/24,0) -> 0.0 | AZ51: =-IF(AZ47>(PosPUDL1+3),PUDL1d*(AZ47-PosPUDL1-3)^4/24,0) -> 0.0 | BA51: =-IF(BA47>(PosPUDL1+3),PUDL1d*(BA47-PosPUDL1-3)^4/24,0) -> 0.0 | BB51: =-IF(BB47>(PosPUDL1+3),PUDL1d*(BB47-PosPUDL1-3)^4/24,0) -> -0.0 | BC51: =-IF(BC47>(PosPUDL1+3),PUDL1d*(BC47-PosPUDL1-3)^4/24,0) -> -0.0 | BD51: =-IF(BD47>(PosPUDL1+3),PUDL1d*(BD47-PosPUDL1-3)^4/24,0) -> -0.0 | BE51: =-IF(BE47>(PosPUDL1+3),PUDL1d*(BE47-PosPUDL1-3)^4/24,0) -> -0.0 | BF51: =-IF(BF47>(PosPUDL1+3),PUDL1d*(BF47-PosPUDL1-3)^4/24,0) -> -0.0 | BG51: =-IF(BG47>(PosPUDL1+3),PUDL1d*(BG47-PosPUDL1-3)^4/24,0) -> -0.0 | BH51: =-IF(BH47>(PosPUDL1+3),PUDL1d*(BH47-PosPUDL1-3)^4/24,0) -> -0.0 | BI51: =-IF(BI47>(PosPUDL1+3),PUDL1d*(BI47-PosPUDL1-3)^4/24,0) -> -0.0 | BJ51: =-IF(BJ47>(PosPUDL1+3),PUDL1d*(BJ47-PosPUDL1-3)^4/24,0) -> -0.0 | BK51: =-IF(BK47>(PosPUDL1+3),PUDL1d*(BK47-PosPUDL1-3)^4/24,0) -> -0.0 | BL51: =-IF(BL47>(PosPUDL1+3),PUDL1d*(BL47-PosPUDL1-3)^4/24,0) -> -0.0 | BM51: =-IF(BM47>(PosPUDL1+3),PUDL1d*(BM47-PosPUDL1-3)^4/24,0) -> -0.1 | BN51: =-IF(BN47>(PosPUDL1+3),PUDL1d*(BN47-PosPUDL1-3)^4/24,0) -> -0.1 | BO51: =-IF(BO47>(PosPUDL1+3),PUDL1d*(BO47-PosPUDL1-3)^4/24,0) -> -0.1 | BP51: =-IF(BP47>(PosPUDL1+3),PUDL1d*(BP47-PosPUDL1-3)^4/24,0) -> -0.2 | BQ51: =-IF(BQ47>(PosPUDL1+3),PUDL1d*(BQ47-PosPUDL1-3)^4/24,0) -> -0.2 | BR51: =-IF(BR47>(PosPUDL1+3),PUDL1d*(BR47-PosPUDL1-3)^4/24,0) -> -0.3 | BS51: =-IF(BS47>(PosPUDL1+3),PUDL1d*(BS47-PosPUDL1-3)^4/24,0) -> -0.4 | BT51: =-IF(BT47>(PosPUDL1+3),PUDL1d*(BT47-PosPUDL1-3)^4/24,0) -> -0.4 | BU51: =-IF(BU47>(PosPUDL1+3),PUDL1d*(BU47-PosPUDL1-3)^4/24,0) -> -0.5 | BV51: =-IF(BV47>(PosPUDL1+3),PUDL1d*(BV47-PosPUDL1-3)^4/24,0) -> -0.7 | BW51: =-IF(BW47>(PosPUDL1+3),PUDL1d*(BW47-PosPUDL1-3)^4/24,0) -> -0.8 | BX51: =-IF(BX47>(PosPUDL1+3),PUDL1d*(BX47-PosPUDL1-3)^4/24,0) -> -1.0 | BY51: =-IF(BY47>(PosPUDL1+3),PUDL1d*(BY47-PosPUDL1-3)^4/24,0) -> -1.1 | BZ51: =-IF(BZ47>(PosPUDL1+3),PUDL1d*(BZ47-PosPUDL1-3)^4/24,0) -> -1.3 | CA51: =-IF(CA47>(PosPUDL1+3),PUDL1d*(CA47-PosPUDL1-3)^4/24,0) -> -1.6 | CB51: =-IF(CB47>(PosPUDL1+3),PUDL1d*(CB47-PosPUDL1-3)^4/24,0) -> -1.8 | CC51: =-IF(CC47>(PosPUDL1+3),PUDL1d*(CC47-PosPUDL1-3)^4/24,0) -> -2.1 | CD51: =-IF(CD47>(PosPUDL1+3),PUDL1d*(CD47-PosPUDL1-3)^4/24,0) -> -2.4 | CE51: =-IF(CE47>(PosPUDL1+3),PUDL1d*(CE47-PosPUDL1-3)^4/24,0) -> -2.8 | CF51: =-IF(CF47>(PosPUDL1+3),PUDL1d*(CF47-PosPUDL1-3)^4/24,0) -> -3.2 | CG51: =-IF(CG47>(PosPUDL1+3),PUDL1d*(CG47-PosPUDL1-3)^4/24,0) -> -3.6 | CH51: =-IF(CH47>(PosPUDL1+3),PUDL1d*(CH47-PosPUDL1-3)^4/24,0) -> -4.0 | CI51: =-IF(CI47>(PosPUDL1+3),PUDL1d*(CI47-PosPUDL1-3)^4/24,0) -> -4.6 | CJ51: =-IF(CJ47>(PosPUDL1+3),PUDL1d*(CJ47-PosPUDL1-3)^4/24,0) -> -5.1 | CK51: =-IF(CK47>(PosPUDL1+3),PUDL1d*(CK47-PosPUDL1-3)^4/24,0) -> -5.7 | CL51: =-IF(CL47>(PosPUDL1+3),PUDL1d*(CL47-PosPUDL1-3)^4/24,0) -> -6.4 | CM51: =-IF(CM47>(PosPUDL1+3),PUDL1d*(CM47-PosPUDL1-3)^4/24,0) -> -7.1 | CN51: =-IF(CN47>(PosPUDL1+3),PUDL1d*(CN47-PosPUDL1-3)^4/24,0) -> -7.9 | CO51: =-IF(CO47>(PosPUDL1+3),PUDL1d*(CO47-PosPUDL1-3)^4/24,0) -> -8.7 | CP51: =-IF(CP47>(PosPUDL1+3),PUDL1d*(CP47-PosPUDL1-3)^4/24,0) -> -9.6 | CQ51: =-IF(CQ47>(PosPUDL1+3),PUDL1d*(CQ47-PosPUDL1-3)^4/24,0) -> -10.6 | CR51: =-IF(CR47>(PosPUDL1+3),PUDL1d*(CR47-PosPUDL1-3)^4/24,0) -> -11.7 | CS51: =-IF(CS47>(PosPUDL1+3),PUDL1d*(CS47-PosPUDL1-3)^4/24,0) -> -12.8 | CT51: =-IF(CT47>(PosPUDL1+3),PUDL1d*(CT47-PosPUDL1-3)^4/24,0) -> -14.0 | CU51: =-IF(CU47>(PosPUDL1+3),PUDL1d*(CU47-PosPUDL1-3)^4/24,0) -> -15.3 | CV51: =-IF(CV47>(PosPUDL1+3),PUDL1d*(CV47-PosPUDL1-3)^4/24,0) -> -16.7 | CW51: =-IF(CW47>(PosPUDL1+3),PUDL1d*(CW47-PosPUDL1-3)^4/24,0) -> -18.1 | CX51: =-IF(CX47>(PosPUDL1+3),PUDL1d*(CX47-PosPUDL1-3)^4/24,0) -> -19.7 | CY51: =-IF(CY47>(PosPUDL1+3),PUDL1d*(CY47-PosPUDL1-3)^4/24,0) -> -21.3
B52: PUDL b | C52: =IF(PosPUDL2<C47,PUDL2d*(C47-PosPUDL2)^4/24,0) -> 0.0 | D52: 0.0 | E52: 0.0 | F52: 0.0 | G52: 0.0 | H52: 0.0 | I52: 0.0 | J52: 0.0 | K52: 0.0 | L52: 0.0 | M52: 0.0 | N52: 0.0 | O52: 0.0 | P52: 0.0 | Q52: 0.0 | R52: 0.0 | S52: 0.0 | T52: 0.0 | U52: 0.0 | V52: 0.0 | W52: 0.0 | X52: 0.0 | Y52: 0.0 | Z52: 0.0 | AA52: 0.0 | AB52: 0.0 | AC52: 0.0 | AD52: 0.0 | AE52: 0.0 | AF52: 0.0 | AG52: 0.0 | AH52: 0.0 | AI52: =IF(PosPUDL2<AI47,PUDL2d*(AI47-PosPUDL2)^4/24,0) -> 0.0 | AJ52: 0.0 | AK52: 0.0 | AL52: 0.0 | AM52: 0.0 | AN52: 0.0 | AO52: 0.0 | AP52: 0.0 | AQ52: 0.0 | AR52: 0.0 | AS52: 0.0 | AT52: 0.0 | AU52: 0.0 | AV52: 0.0 | AW52: 0.0 | AX52: 0.0 | AY52: 0.0 | AZ52: 0.0 | BA52: 0.0 | BB52: 0.0 | BC52: 0.0 | BD52: 0.0 | BE52: 0.0 | BF52: 0.0 | BG52: 0.0 | BH52: 0.0 | BI52: 0.0 | BJ52: 0.0 | BK52: 0.0 | BL52: 0.0 | BM52: 0.0 | BN52: 0.0 | BO52: =IF(PosPUDL2<BO47,PUDL2d*(BO47-PosPUDL2)^4/24,0) -> 0.0 | BP52: 0.0 | BQ52: 0.0 | BR52: 0.0 | BS52: 0.0 | BT52: 0.0 | BU52: 0.0 | BV52: 0.0 | BW52: 0.0 | BX52: 0.0 | BY52: 0.0 | BZ52: 0.0 | CA52: 0.0 | CB52: 0.0 | CC52: 0.0 | CD52: 0.0 | CE52: 0.0 | CF52: 0.0 | CG52: 0.0 | CH52: 0.0 | CI52: 0.0 | CJ52: 0.0 | CK52: 0.0 | CL52: 0.0 | CM52: 0.0 | CN52: 0.0 | CO52: 0.0 | CP52: 0.0 | CQ52: 0.0 | CR52: 0.0 | CS52: 0.0 | CT52: 0.0 | CU52: 0.0 | CV52: 0.0 | CW52: 0.0 | CX52: 0.0 | CY52: 0.0
B53: PUDL b contra | C53: =-IF(C47>(PosPUDL2+LePUDL2),PUDL2d*(C47-PosPUDL2-LePUDL2)^4/24,0) -> 0.0 | D53: 0.0 | E53: 0.0 | F53: 0.0 | G53: 0.0 | H53: 0.0 | I53: 0.0 | J53: 0.0 | K53: 0.0 | L53: 0.0 | M53: 0.0 | N53: 0.0 | O53: 0.0 | P53: 0.0 | Q53: 0.0 | R53: 0.0 | S53: 0.0 | T53: 0.0 | U53: 0.0 | V53: 0.0 | W53: 0.0 | X53: 0.0 | Y53: 0.0 | Z53: 0.0 | AA53: 0.0 | AB53: 0.0 | AC53: 0.0 | AD53: 0.0 | AE53: 0.0 | AF53: 0.0 | AG53: 0.0 | AH53: 0.0 | AI53: =-IF(AI47>(PosPUDL2+LePUDL2),PUDL2d*(AI47-PosPUDL2-LePUDL2)^4/24,0) -> 0.0 | AJ53: 0.0 | AK53: 0.0 | AL53: 0.0 | AM53: 0.0 | AN53: 0.0 | AO53: 0.0 | AP53: 0.0 | AQ53: 0.0 | AR53: 0.0 | AS53: 0.0 | AT53: 0.0 | AU53: 0.0 | AV53: 0.0 | AW53: 0.0 | AX53: 0.0 | AY53: 0.0 | AZ53: 0.0 | BA53: 0.0 | BB53: 0.0 | BC53: 0.0 | BD53: 0.0 | BE53: 0.0 | BF53: 0.0 | BG53: 0.0 | BH53: 0.0 | BI53: 0.0 | BJ53: 0.0 | BK53: 0.0 | BL53: 0.0 | BM53: 0.0 | BN53: 0.0 | BO53: =-IF(BO47>(PosPUDL2+LePUDL2),PUDL2d*(BO47-PosPUDL2-LePUDL2)^4/24,0) -> 0.0 | BP53: 0.0 | BQ53: 0.0 | BR53: 0.0 | BS53: 0.0 | BT53: 0.0 | BU53: 0.0 | BV53: 0.0 | BW53: 0.0 | BX53: 0.0 | BY53: 0.0 | BZ53: 0.0 | CA53: 0.0 | CB53: 0.0 | CC53: 0.0 | CD53: 0.0 | CE53: 0.0 | CF53: 0.0 | CG53: 0.0 | CH53: 0.0 | CI53: 0.0 | CJ53: 0.0 | CK53: 0.0 | CL53: 0.0 | CM53: 0.0 | CN53: 0.0 | CO53: 0.0 | CP53: 0.0 | CQ53: 0.0 | CR53: 0.0 | CS53: 0.0 | CT53: 0.0 | CU53: 0.0 | CV53: 0.0 | CW53: 0.0 | CX53: 0.0 | CY53: 0.0
B54: PLa | C54: =IF(C47>PosPLa1,PLa1d*(C47-PosPLa1)^3/6,0) -> 0.0 | D54: 0.0 | E54: 0.0 | F54: 0.0 | G54: 0.0 | H54: 0.0 | I54: 0.0 | J54: 0.0 | K54: 0.0 | L54: 0.0 | M54: 0.0 | N54: 0.0 | O54: 0.0 | P54: 0.0 | Q54: 0.0 | R54: 0.0 | S54: 0.0 | T54: 0.0 | U54: 0.0 | V54: 0.0 | W54: 0.0 | X54: 0.0 | Y54: 0.0 | Z54: 0.0 | AA54: 0.0 | AB54: 0.0 | AC54: 0.0 | AD54: 0.0 | AE54: 0.0 | AF54: 0.0 | AG54: 0.0 | AH54: 0.0 | AI54: =IF(AI47>PosPLa1,PLa1d*(AI47-PosPLa1)^3/6,0) -> 0.0 | AJ54: 0.0 | AK54: 0.0 | AL54: 0.0 | AM54: 0.0 | AN54: 0.0 | AO54: 0.0 | AP54: 0.0 | AQ54: 0.0 | AR54: 0.0 | AS54: 0.0 | AT54: 0.0 | AU54: 0.0 | AV54: 0.1 | AW54: 0.1 | AX54: 0.1 | AY54: 0.2 | AZ54: 0.3 | BA54: 0.3 | BB54: 0.4 | BC54: 0.5 | BD54: 0.6 | BE54: 0.8 | BF54: 0.9 | BG54: 1.1 | BH54: 1.3 | BI54: 1.5 | BJ54: 1.7 | BK54: 1.9 | BL54: 2.2 | BM54: 2.5 | BN54: 2.8 | BO54: =IF(BO47>PosPLa1,PLa1d*(BO47-PosPLa1)^3/6,0) -> 3.2 | BP54: 3.5 | BQ54: 4.0 | BR54: 4.4 | BS54: 4.8 | BT54: 5.3 | BU54: 5.9 | BV54: 6.4 | BW54: 7.0 | BX54: 7.6 | BY54: 8.3 | BZ54: 9.0 | CA54: 9.7 | CB54: 10.5 | CC54: 11.3 | CD54: 12.2 | CE54: 13.1 | CF54: 14.0 | CG54: 15.0 | CH54: 16.1 | CI54: 17.2 | CJ54: 18.3 | CK54: 19.5 | CL54: 20.7 | CM54: 22.0 | CN54: 23.3 | CO54: 24.7 | CP54: 26.1 | CQ54: 27.6 | CR54: 29.2 | CS54: 30.8 | CT54: 32.4 | CU54: 34.2 | CV54: 36.0 | CW54: 37.8 | CX54: 39.7 | CY54: 41.7
B55: PLb | C55: =IF(C47>PosPLb1,PLb1d*(C47-PosPLb1)^3/6,0) -> 0.0 | D55: 0.0 | E55: 0.0 | F55: 0.0 | G55: 0.0 | H55: 0.0 | I55: 0.0 | J55: 0.0 | K55: 0.0 | L55: 0.0 | M55: 0.0 | N55: 0.0 | O55: 0.0 | P55: 0.0 | Q55: 0.0 | R55: 0.0 | S55: 0.0 | T55: 0.0 | U55: 0.0 | V55: 0.0 | W55: 0.0 | X55: 0.0 | Y55: 0.0 | Z55: 0.0 | AA55: 0.0 | AB55: 0.0 | AC55: 0.0 | AD55: 0.0 | AE55: 0.0 | AF55: 0.0 | AG55: 0.0 | AH55: 0.0 | AI55: =IF(AI47>PosPLb1,PLb1d*(AI47-PosPLb1)^3/6,0) -> 0.0 | AJ55: 0.0 | AK55: 0.0 | AL55: 0.0 | AM55: 0.0 | AN55: 0.0 | AO55: 0.0 | AP55: 0.0 | AQ55: 0.0 | AR55: 0.0 | AS55: 0.0 | AT55: 0.0 | AU55: 0.0 | AV55: 0.0 | AW55: 0.0 | AX55: 0.0 | AY55: 0.0 | AZ55: 0.0 | BA55: 0.0 | BB55: 0.0 | BC55: 0.0 | BD55: 0.0 | BE55: 0.0 | BF55: 0.0 | BG55: 0.0 | BH55: 0.0 | BI55: 0.0 | BJ55: 0.0 | BK55: 0.0 | BL55: 0.0 | BM55: 0.0 | BN55: 0.0 | BO55: =IF(BO47>PosPLb1,PLb1d*(BO47-PosPLb1)^3/6,0) -> 0.0 | BP55: 0.0 | BQ55: 0.0 | BR55: 0.0 | BS55: 0.0 | BT55: 0.0 | BU55: 0.0 | BV55: 0.0 | BW55: 0.0 | BX55: 0.0 | BY55: 0.0 | BZ55: 0.0 | CA55: 0.0 | CB55: 0.0 | CC55: 0.0 | CD55: 0.0 | CE55: 0.0 | CF55: 0.0 | CG55: 0.0 | CH55: 0.0 | CI55: 0.0 | CJ55: 0.0 | CK55: 0.0 | CL55: 0.0 | CM55: 0.0 | CN55: 0.0 | CO55: 0.0 | CP55: 0.0 | CQ55: 0.0 | CR55: 0.0 | CS55: 0.0 | CT55: 0.0 | CU55: 0.0 | CV55: 0.0 | CW55: 0.0 | CX55: 0.0 | CY55: 0.0
B56: Ax+B | C56: =$D$58*C47+$D$59 -> 0.0 | D56: =$D$58*D47+$D$59 -> 8.4 | E56: 16.7 | F56: 25.1 | G56: 33.5 | H56: 41.9 | I56: 50.2 | J56: 58.6 | K56: 67.0 | L56: 75.4 | M56: 83.7 | N56: 92.1 | O56: 100.5 | P56: 108.8 | Q56: 117.2 | R56: 125.6 | S56: 134.0 | T56: 142.3 | U56: 150.7 | V56: 159.1 | W56: 167.5 | X56: 175.8 | Y56: 184.2 | Z56: 192.6 | AA56: 200.9 | AB56: 209.3 | AC56: 217.7 | AD56: 226.1 | AE56: 234.4 | AF56: 242.8 | AG56: 251.2 | AH56: 259.6 | AI56: 267.9 | AJ56: 276.3 | AK56: 284.7 | AL56: 293.1 | AM56: 301.4 | AN56: 309.8 | AO56: 318.2 | AP56: 326.5 | AQ56: 334.9 | AR56: 343.3 | AS56: 351.7 | AT56: 360.0 | AU56: 368.4 | AV56: 376.8 | AW56: 385.2 | AX56: 393.5 | AY56: 401.9 | AZ56: 410.3 | BA56: 418.6 | BB56: 427.0 | BC56: 435.4 | BD56: 443.8 | BE56: 452.1 | BF56: 460.5 | BG56: 468.9 | BH56: 477.3 | BI56: 485.6 | BJ56: 494.0 | BK56: 502.4 | BL56: 510.7 | BM56: 519.1 | BN56: 527.5 | BO56: 535.9 | BP56: =$D$58*BP47+$D$59 -> 544.2 | BQ56: 552.6 | BR56: 561.0 | BS56: 569.4 | BT56: 577.7 | BU56: 586.1 | BV56: 594.5 | BW56: 602.8 | BX56: 611.2 | BY56: 619.6 | BZ56: 628.0 | CA56: 636.3 | CB56: 644.7 | CC56: 653.1 | CD56: 661.5 | CE56: 669.8 | CF56: 678.2 | CG56: 686.6 | CH56: 695.0 | CI56: 703.3 | CJ56: 711.7 | CK56: 720.1 | CL56: 728.4 | CM56: 736.8 | CN56: 745.2 | CO56: 753.6 | CP56: 761.9 | CQ56: 770.3 | CR56: 778.7 | CS56: 787.1 | CT56: 795.4 | CU56: 803.8 | CV56: 812.2 | CW56: 820.5 | CX56: 828.9 | CY56: 837.3 | DA56: =SUM(CY48:CY55) -> -837.3
C58: Constant A | D58: =-DA56/8 -> 104.7
C59: Constant B | D59: 0.0
C61: LIVE (2nd integral)
B62: Step | C62: 0.0 | D62: =8/100 -> 0.1 | E62: =D62+8/100 -> 0.2 | F62: =E62+8/100 -> 0.2 | G62: =F62+8/100 -> 0.3 | H62: =G62+8/100 -> 0.4 | I62: =H62+8/100 -> 0.5 | J62: =I62+8/100 -> 0.6 | K62: =J62+8/100 -> 0.6 | L62: =K62+8/100 -> 0.7 | M62: =L62+8/100 -> 0.8 | N62: =M62+8/100 -> 0.9 | O62: =N62+8/100 -> 1.0 | P62: =O62+8/100 -> 1.0 | Q62: =P62+8/100 -> 1.1 | R62: =Q62+8/100 -> 1.2 | S62: =R62+8/100 -> 1.3 | T62: =S62+8/100 -> 1.4 | U62: =T62+8/100 -> 1.4 | V62: =U62+8/100 -> 1.5 | W62: =V62+8/100 -> 1.6 | X62: =W62+8/100 -> 1.7 | Y62: =X62+8/100 -> 1.8 | Z62: =Y62+8/100 -> 1.8 | AA62: =Z62+8/100 -> 1.9 | AB62: =AA62+8/100 -> 2.0 | AC62: =AB62+8/100 -> 2.1 | AD62: =AC62+8/100 -> 2.2 | AE62: =AD62+8/100 -> 2.2 | AF62: =AE62+8/100 -> 2.3 | AG62: =AF62+8/100 -> 2.4 | AH62: =AG62+8/100 -> 2.5 | AI62: =AH62+8/100 -> 2.6 | AJ62: =AI62+8/100 -> 2.6 | AK62: =AJ62+8/100 -> 2.7 | AL62: =AK62+8/100 -> 2.8 | AM62: =AL62+8/100 -> 2.9 | AN62: =AM62+8/100 -> 3.0 | AO62: =AN62+8/100 -> 3.0 | AP62: =AO62+8/100 -> 3.1 | AQ62: =AP62+8/100 -> 3.2 | AR62: =AQ62+8/100 -> 3.3 | AS62: =AR62+8/100 -> 3.4 | AT62: =AS62+8/100 -> 3.4 | AU62: =AT62+8/100 -> 3.5 | AV62: =AU62+8/100 -> 3.6 | AW62: =AV62+8/100 -> 3.7 | AX62: =AW62+8/100 -> 3.8 | AY62: =AX62+8/100 -> 3.8 | AZ62: =AY62+8/100 -> 3.9 | BA62: =AZ62+8/100 -> 4.0 | BB62: =BA62+8/100 -> 4.1 | BC62: =BB62+8/100 -> 4.2 | BD62: =BC62+8/100 -> 4.2 | BE62: =BD62+8/100 -> 4.3 | BF62: =BE62+8/100 -> 4.4 | BG62: =BF62+8/100 -> 4.5 | BH62: =BG62+8/100 -> 4.6 | BI62: =BH62+8/100 -> 4.6 | BJ62: =BI62+8/100 -> 4.7 | BK62: =BJ62+8/100 -> 4.8 | BL62: =BK62+8/100 -> 4.9 | BM62: =BL62+8/100 -> 5.0 | BN62: =BM62+8/100 -> 5.0 | BO62: =BN62+8/100 -> 5.1 | BP62: =BO62+8/100 -> 5.2 | BQ62: =BP62+8/100 -> 5.3 | BR62: =BQ62+8/100 -> 5.4 | BS62: =BR62+8/100 -> 5.4 | BT62: =BS62+8/100 -> 5.5 | BU62: =BT62+8/100 -> 5.6 | BV62: =BU62+8/100 -> 5.7 | BW62: =BV62+8/100 -> 5.8 | BX62: =BW62+8/100 -> 5.8 | BY62: =BX62+8/100 -> 5.9 | BZ62: =BY62+8/100 -> 6.0 | CA62: =BZ62+8/100 -> 6.1 | CB62: =CA62+8/100 -> 6.2 | CC62: =CB62+8/100 -> 6.2 | CD62: =CC62+8/100 -> 6.3 | CE62: =CD62+8/100 -> 6.4 | CF62: =CE62+8/100 -> 6.5 | CG62: =CF62+8/100 -> 6.6 | CH62: =CG62+8/100 -> 6.6 | CI62: =CH62+8/100 -> 6.7 | CJ62: =CI62+8/100 -> 6.8 | CK62: =CJ62+8/100 -> 6.9 | CL62: =CK62+8/100 -> 7.0 | CM62: =CL62+8/100 -> 7.0 | CN62: =CM62+8/100 -> 7.1 | CO62: =CN62+8/100 -> 7.2 | CP62: =CO62+8/100 -> 7.3 | CQ62: =CP62+8/100 -> 7.4 | CR62: =CQ62+8/100 -> 7.4 | CS62: =CR62+8/100 -> 7.5 | CT62: =CS62+8/100 -> 7.6 | CU62: =CT62+8/100 -> 7.7 | CV62: =CU62+8/100 -> 7.8 | CW62: =CV62+8/100 -> 7.8 | CX62: =CW62+8/100 -> 7.9 | CY62: =CX62+8/100 -> 8.0
B63: Reaction | C63: =-RL1l*C62^3/6 -> 0.0 | D63: -0.0 | E63: -0.0 | F63: -0.0 | G63: -0.1 | H63: -0.1 | I63: -0.2 | J63: -0.3 | K63: -0.5 | L63: -0.7 | M63: -1.0 | N63: -1.3 | O63: -1.7 | P63: -2.1 | Q63: -2.6 | R63: -3.3 | S63: -4.0 | T63: -4.7 | U63: -5.6 | V63: -6.6 | W63: -7.7 | X63: -8.9 | Y63: -10.3 | Z63: -11.7 | AA63: -13.3 | AB63: -15.1 | AC63: -17.0 | AD63: -19.0 | AE63: -21.2 | AF63: -23.5 | AG63: -26.1 | AH63: -28.8 | AI63: =-RL1l*AI62^3/6 -> -31.6 | AJ63: -34.7 | AK63: -37.9 | AL63: -41.4 | AM63: -45.0 | AN63: -48.9 | AO63: -53.0 | AP63: -57.3 | AQ63: -61.8 | AR63: -66.5 | AS63: -71.5 | AT63: -76.8 | AU63: -82.2 | AV63: -88.0 | AW63: -94.0 | AX63: -100.2 | AY63: -106.8 | AZ63: -113.6 | BA63: -120.7 | BB63: -128.1 | BC63: -135.7 | BD63: -143.7 | BE63: -152.0 | BF63: -160.6 | BG63: -169.5 | BH63: -178.8 | BI63: -188.3 | BJ63: -198.3 | BK63: -208.5 | BL63: -219.1 | BM63: -230.1 | BN63: -241.4 | BO63: =-RL1l*BO62^3/6 -> -253.1 | BP63: -265.1 | BQ63: -277.5 | BR63: -290.3 | BS63: -303.5 | BT63: -317.1 | BU63: -331.1 | BV63: -345.5 | BW63: -360.3 | BX63: -375.5 | BY63: -391.2 | BZ63: -407.3 | CA63: -423.8 | CB63: -440.7 | CC63: -458.1 | CD63: -475.9 | CE63: -494.3 | CF63: -513.0 | CG63: -532.3 | CH63: -552.0 | CI63: -572.2 | CJ63: -592.8 | CK63: -614.0 | CL63: -635.7 | CM63: -657.8 | CN63: -680.5 | CO63: -703.7 | CP63: -727.4 | CQ63: -751.7 | CR63: -776.5 | CS63: -801.8 | CT63: -827.7 | CU63: =-RL1l*CU62^3/6 -> -854.1 | CV63: =-RL1l*CV62^3/6 -> -881.0 | CW63: =-RL1l*CW62^3/6 -> -908.6 | CX63: =-RL1l*CX62^3/6 -> -936.7 | CY63: =-RL1l*CY62^3/6 -> -965.3
B64: UDL | C64: =2*C62^4/24 -> 0.0 | D64: =2*D62^4/24 -> 0.0 | E64: =2*E62^4/24 -> 0.0 | F64: =2*F62^4/24 -> 0.0 | G64: =2*G62^4/24 -> 0.0 | H64: =2*H62^4/24 -> 0.0 | I64: =2*I62^4/24 -> 0.0 | J64: =2*J62^4/24 -> 0.0 | K64: =2*K62^4/24 -> 0.0 | L64: =2*L62^4/24 -> 0.0 | M64: =2*M62^4/24 -> 0.0 | N64: =2*N62^4/24 -> 0.0 | O64: =2*O62^4/24 -> 0.1 | P64: =2*P62^4/24 -> 0.1 | Q64: =2*Q62^4/24 -> 0.1 | R64: =2*R62^4/24 -> 0.2 | S64: =2*S62^4/24 -> 0.2 | T64: =2*T62^4/24 -> 0.3 | U64: =2*U62^4/24 -> 0.4 | V64: =2*V62^4/24 -> 0.4 | W64: =2*W62^4/24 -> 0.5 | X64: =2*X62^4/24 -> 0.7 | Y64: =2*Y62^4/24 -> 0.8 | Z64: =2*Z62^4/24 -> 1.0 | AA64: =2*AA62^4/24 -> 1.1 | AB64: =2*AB62^4/24 -> 1.3 | AC64: =2*AC62^4/24 -> 1.6 | AD64: =2*AD62^4/24 -> 1.8 | AE64: =2*AE62^4/24 -> 2.1 | AF64: =2*AF62^4/24 -> 2.4 | AG64: =2*AG62^4/24 -> 2.8 | AH64: =2*AH62^4/24 -> 3.2 | AI64: =2*AI62^4/24 -> 3.6 | AJ64: =2*AJ62^4/24 -> 4.0 | AK64: =2*AK62^4/24 -> 4.6 | AL64: =2*AL62^4/24 -> 5.1 | AM64: =2*AM62^4/24 -> 5.7 | AN64: =2*AN62^4/24 -> 6.4 | AO64: =2*AO62^4/24 -> 7.1 | AP64: =2*AP62^4/24 -> 7.9 | AQ64: =2*AQ62^4/24 -> 8.7 | AR64: =2*AR62^4/24 -> 9.6 | AS64: =2*AS62^4/24 -> 10.6 | AT64: =2*AT62^4/24 -> 11.7 | AU64: =2*AU62^4/24 -> 12.8 | AV64: =2*AV62^4/24 -> 14.0 | AW64: =2*AW62^4/24 -> 15.3 | AX64: =2*AX62^4/24 -> 16.7 | AY64: =2*AY62^4/24 -> 18.1 | AZ64: =2*AZ62^4/24 -> 19.7 | BA64: =2*BA62^4/24 -> 21.3 | BB64: =2*BB62^4/24 -> 23.1 | BC64: =2*BC62^4/24 -> 25.0 | BD64: =2*BD62^4/24 -> 26.9 | BE64: =2*BE62^4/24 -> 29.0 | BF64: =2*BF62^4/24 -> 31.2 | BG64: =2*BG62^4/24 -> 33.6 | BH64: =2*BH62^4/24 -> 36.0 | BI64: =2*BI62^4/24 -> 38.6 | BJ64: =2*BJ62^4/24 -> 41.4 | BK64: =2*BK62^4/24 -> 44.2 | BL64: =2*BL62^4/24 -> 47.3 | BM64: =2*BM62^4/24 -> 50.4 | BN64: =2*BN62^4/24 -> 53.8 | BO64: =2*BO62^4/24 -> 57.3 | BP64: =2*BP62^4/24 -> 60.9 | BQ64: =2*BQ62^4/24 -> 64.8 | BR64: =2*BR62^4/24 -> 68.8 | BS64: =2*BS62^4/24 -> 73.0 | BT64: =2*BT62^4/24 -> 77.4 | BU64: =2*BU62^4/24 -> 82.0 | BV64: =2*BV62^4/24 -> 86.7 | BW64: =2*BW62^4/24 -> 91.7 | BX64: =2*BX62^4/24 -> 96.9 | BY64: =2*BY62^4/24 -> 102.4 | BZ64: =2*BZ62^4/24 -> 108.0 | CA64: =2*CA62^4/24 -> 113.9 | CB64: =2*CB62^4/24 -> 120.0 | CC64: =2*CC62^4/24 -> 126.3 | CD64: =2*CD62^4/24 -> 132.9 | CE64: =2*CE62^4/24 -> 139.8 | CF64: =2*CF62^4/24 -> 146.9 | CG64: =2*CG62^4/24 -> 154.3 | CH64: =2*CH62^4/24 -> 162.0 | CI64: =2*CI62^4/24 -> 169.9 | CJ64: =2*CJ62^4/24 -> 178.2 | CK64: =2*CK62^4/24 -> 186.7 | CL64: =2*CL62^4/24 -> 195.5 | CM64: =2*CM62^4/24 -> 204.7 | CN64: =2*CN62^4/24 -> 214.2 | CO64: =2*CO62^4/24 -> 223.9 | CP64: =2*CP62^4/24 -> 234.1 | CQ64: =2*CQ62^4/24 -> 244.5 | CR64: =2*CR62^4/24 -> 255.3 | CS64: =2*CS62^4/24 -> 266.5 | CT64: =2*CT62^4/24 -> 278.0 | CU64: =2*CU62^4/24 -> 289.9 | CV64: =2*CV62^4/24 -> 302.2 | CW64: =2*CW62^4/24 -> 314.8 | CX64: =2*CX62^4/24 -> 327.9 | CY64: =2*CY62^4/24 -> 341.3
B65: PUDL a | C65: =IF(PosPUDL1<C62,PUDL1l*(C62-PosPUDL1)^4/24,0) -> 0.0 | D65: 0.0 | E65: 0.0 | F65: 0.0 | G65: 0.0 | H65: 0.0 | I65: 0.0 | J65: 0.0 | K65: 0.0 | L65: 0.0 | M65: 0.0 | N65: 0.0 | O65: 0.0 | P65: 0.0 | Q65: 0.0 | R65: 0.0 | S65: 0.0 | T65: 0.0 | U65: 0.0 | V65: 0.0 | W65: 0.0 | X65: 0.0 | Y65: 0.0 | Z65: 0.0 | AA65: 0.0 | AB65: 0.0 | AC65: 0.1 | AD65: 0.1 | AE65: 0.1 | AF65: 0.1 | AG65: 0.2 | AH65: 0.2 | AI65: =IF(PosPUDL1<AI62,PUDL1l*(AI62-PosPUDL1)^4/24,0) -> 0.2 | AJ65: 0.3 | AK65: 0.4 | AL65: 0.4 | AM65: 0.5 | AN65: 0.6 | AO65: 0.7 | AP65: 0.8 | AQ65: 1.0 | AR65: 1.1 | AS65: 1.3 | AT65: 1.5 | AU65: 1.7 | AV65: 1.9 | AW65: 2.1 | AX65: 2.4 | AY65: 2.7 | AZ65: 3.0 | BA65: 3.4 | BB65: 3.7 | BC65: 4.2 | BD65: 4.6 | BE65: 5.1 | BF65: 5.6 | BG65: 6.1 | BH65: 6.7 | BI65: 7.3 | BJ65: 8.0 | BK65: 8.7 | BL65: 9.4 | BM65: 10.2 | BN65: 11.1 | BO65: =IF(PosPUDL1<BO62,PUDL1l*(BO62-PosPUDL1)^4/24,0) -> 12.0 | BP65: 13.0 | BQ65: 14.0 | BR65: 15.1 | BS65: 16.2 | BT65: 17.4 | BU65: 18.7 | BV65: 20.0 | BW65: 21.4 | BX65: 22.9 | BY65: 24.4 | BZ65: 26.0 | CA65: 27.7 | CB65: 29.5 | CC65: 31.4 | CD65: 33.4 | CE65: 35.4 | CF65: 37.6 | CG65: 39.8 | CH65: 42.2 | CI65: 44.6 | CJ65: 47.2 | CK65: 49.8 | CL65: 52.6 | CM65: 55.5 | CN65: 58.5 | CO65: 61.6 | CP65: 64.8 | CQ65: 68.2 | CR65: 71.7 | CS65: 75.3 | CT65: 79.1 | CU65: 83.0 | CV65: 87.0 | CW65: 91.2 | CX65: 95.5 | CY65: 100.0
B66: PUDL a contra | C66: =-IF(C62>(PosPUDL1+3),PUDL1l*(C62-PosPUDL1-3)^4/24,0) -> 0.0 | D66: =-IF(D62>(PosPUDL1+3),PUDL1l*(D62-PosPUDL1-3)^4/24,0) -> 0.0 | E66: =-IF(E62>(PosPUDL1+3),PUDL1l*(E62-PosPUDL1-3)^4/24,0) -> 0.0 | F66: =-IF(F62>(PosPUDL1+3),PUDL1l*(F62-PosPUDL1-3)^4/24,0) -> 0.0 | G66: =-IF(G62>(PosPUDL1+3),PUDL1l*(G62-PosPUDL1-3)^4/24,0) -> 0.0 | H66: =-IF(H62>(PosPUDL1+3),PUDL1l*(H62-PosPUDL1-3)^4/24,0) -> 0.0 | I66: =-IF(I62>(PosPUDL1+3),PUDL1l*(I62-PosPUDL1-3)^4/24,0) -> 0.0 | J66: =-IF(J62>(PosPUDL1+3),PUDL1l*(J62-PosPUDL1-3)^4/24,0) -> 0.0 | K66: =-IF(K62>(PosPUDL1+3),PUDL1l*(K62-PosPUDL1-3)^4/24,0) -> 0.0 | L66: =-IF(L62>(PosPUDL1+3),PUDL1l*(L62-PosPUDL1-3)^4/24,0) -> 0.0 | M66: =-IF(M62>(PosPUDL1+3),PUDL1l*(M62-PosPUDL1-3)^4/24,0) -> 0.0 | N66: =-IF(N62>(PosPUDL1+3),PUDL1l*(N62-PosPUDL1-3)^4/24,0) -> 0.0 | O66: =-IF(O62>(PosPUDL1+3),PUDL1l*(O62-PosPUDL1-3)^4/24,0) -> 0.0 | P66: =-IF(P62>(PosPUDL1+3),PUDL1l*(P62-PosPUDL1-3)^4/24,0) -> 0.0 | Q66: =-IF(Q62>(PosPUDL1+3),PUDL1l*(Q62-PosPUDL1-3)^4/24,0) -> 0.0 | R66: =-IF(R62>(PosPUDL1+3),PUDL1l*(R62-PosPUDL1-3)^4/24,0) -> 0.0 | S66: =-IF(S62>(PosPUDL1+3),PUDL1l*(S62-PosPUDL1-3)^4/24,0) -> 0.0 | T66: =-IF(T62>(PosPUDL1+3),PUDL1l*(T62-PosPUDL1-3)^4/24,0) -> 0.0 | U66: =-IF(U62>(PosPUDL1+3),PUDL1l*(U62-PosPUDL1-3)^4/24,0) -> 0.0 | V66: =-IF(V62>(PosPUDL1+3),PUDL1l*(V62-PosPUDL1-3)^4/24,0) -> 0.0 | W66: =-IF(W62>(PosPUDL1+3),PUDL1l*(W62-PosPUDL1-3)^4/24,0) -> 0.0 | X66: =-IF(X62>(PosPUDL1+3),PUDL1l*(X62-PosPUDL1-3)^4/24,0) -> 0.0 | Y66: =-IF(Y62>(PosPUDL1+3),PUDL1l*(Y62-PosPUDL1-3)^4/24,0) -> 0.0 | Z66: =-IF(Z62>(PosPUDL1+3),PUDL1l*(Z62-PosPUDL1-3)^4/24,0) -> 0.0 | AA66: =-IF(AA62>(PosPUDL1+3),PUDL1l*(AA62-PosPUDL1-3)^4/24,0) -> 0.0 | AB66: =-IF(AB62>(PosPUDL1+3),PUDL1l*(AB62-PosPUDL1-3)^4/24,0) -> 0.0 | AC66: =-IF(AC62>(PosPUDL1+3),PUDL1l*(AC62-PosPUDL1-3)^4/24,0) -> 0.0 | AD66: =-IF(AD62>(PosPUDL1+3),PUDL1l*(AD62-PosPUDL1-3)^4/24,0) -> 0.0 | AE66: =-IF(AE62>(PosPUDL1+3),PUDL1l*(AE62-PosPUDL1-3)^4/24,0) -> 0.0 | AF66: =-IF(AF62>(PosPUDL1+3),PUDL1l*(AF62-PosPUDL1-3)^4/24,0) -> 0.0 | AG66: =-IF(AG62>(PosPUDL1+3),PUDL1l*(AG62-PosPUDL1-3)^4/24,0) -> 0.0 | AH66: =-IF(AH62>(PosPUDL1+3),PUDL1l*(AH62-PosPUDL1-3)^4/24,0) -> 0.0 | AI66: =-IF(AI62>(PosPUDL1+3),PUDL1l*(AI62-PosPUDL1-3)^4/24,0) -> 0.0 | AJ66: =-IF(AJ62>(PosPUDL1+3),PUDL1l*(AJ62-PosPUDL1-3)^4/24,0) -> 0.0 | AK66: =-IF(AK62>(PosPUDL1+3),PUDL1l*(AK62-PosPUDL1-3)^4/24,0) -> 0.0 | AL66: =-IF(AL62>(PosPUDL1+3),PUDL1l*(AL62-PosPUDL1-3)^4/24,0) -> 0.0 | AM66: =-IF(AM62>(PosPUDL1+3),PUDL1l*(AM62-PosPUDL1-3)^4/24,0) -> 0.0 | AN66: =-IF(AN62>(PosPUDL1+3),PUDL1l*(AN62-PosPUDL1-3)^4/24,0) -> 0.0 | AO66: =-IF(AO62>(PosPUDL1+3),PUDL1l*(AO62-PosPUDL1-3)^4/24,0) -> 0.0 | AP66: =-IF(AP62>(PosPUDL1+3),PUDL1l*(AP62-PosPUDL1-3)^4/24,0) -> 0.0 | AQ66: =-IF(AQ62>(PosPUDL1+3),PUDL1l*(AQ62-PosPUDL1-3)^4/24,0) -> 0.0 | AR66: =-IF(AR62>(PosPUDL1+3),PUDL1l*(AR62-PosPUDL1-3)^4/24,0) -> 0.0 | AS66: =-IF(AS62>(PosPUDL1+3),PUDL1l*(AS62-PosPUDL1-3)^4/24,0) -> 0.0 | AT66: =-IF(AT62>(PosPUDL1+3),PUDL1l*(AT62-PosPUDL1-3)^4/24,0) -> 0.0 | AU66: =-IF(AU62>(PosPUDL1+3),PUDL1l*(AU62-PosPUDL1-3)^4/24,0) -> 0.0 | AV66: =-IF(AV62>(PosPUDL1+3),PUDL1l*(AV62-PosPUDL1-3)^4/24,0) -> 0.0 | AW66: =-IF(AW62>(PosPUDL1+3),PUDL1l*(AW62-PosPUDL1-3)^4/24,0) -> 0.0 | AX66: =-IF(AX62>(PosPUDL1+3),PUDL1l*(AX62-PosPUDL1-3)^4/24,0) -> 0.0 | AY66: =-IF(AY62>(PosPUDL1+3),PUDL1l*(AY62-PosPUDL1-3)^4/24,0) -> 0.0 | AZ66: =-IF(AZ62>(PosPUDL1+3),PUDL1l*(AZ62-PosPUDL1-3)^4/24,0) -> 0.0 | BA66: =-IF(BA62>(PosPUDL1+3),PUDL1l*(BA62-PosPUDL1-3)^4/24,0) -> 0.0 | BB66: =-IF(BB62>(PosPUDL1+3),PUDL1l*(BB62-PosPUDL1-3)^4/24,0) -> -0.0 | BC66: =-IF(BC62>(PosPUDL1+3),PUDL1l*(BC62-PosPUDL1-3)^4/24,0) -> -0.0 | BD66: =-IF(BD62>(PosPUDL1+3),PUDL1l*(BD62-PosPUDL1-3)^4/24,0) -> -0.0 | BE66: =-IF(BE62>(PosPUDL1+3),PUDL1l*(BE62-PosPUDL1-3)^4/24,0) -> -0.0 | BF66: =-IF(BF62>(PosPUDL1+3),PUDL1l*(BF62-PosPUDL1-3)^4/24,0) -> -0.0 | BG66: =-IF(BG62>(PosPUDL1+3),PUDL1l*(BG62-PosPUDL1-3)^4/24,0) -> -0.0 | BH66: =-IF(BH62>(PosPUDL1+3),PUDL1l*(BH62-PosPUDL1-3)^4/24,0) -> -0.0 | BI66: =-IF(BI62>(PosPUDL1+3),PUDL1l*(BI62-PosPUDL1-3)^4/24,0) -> -0.0 | BJ66: =-IF(BJ62>(PosPUDL1+3),PUDL1l*(BJ62-PosPUDL1-3)^4/24,0) -> -0.0 | BK66: =-IF(BK62>(PosPUDL1+3),PUDL1l*(BK62-PosPUDL1-3)^4/24,0) -> -0.0 | BL66: =-IF(BL62>(PosPUDL1+3),PUDL1l*(BL62-PosPUDL1-3)^4/24,0) -> -0.0 | BM66: =-IF(BM62>(PosPUDL1+3),PUDL1l*(BM62-PosPUDL1-3)^4/24,0) -> -0.0 | BN66: =-IF(BN62>(PosPUDL1+3),PUDL1l*(BN62-PosPUDL1-3)^4/24,0) -> -0.0 | BO66: =-IF(BO62>(PosPUDL1+3),PUDL1l*(BO62-PosPUDL1-3)^4/24,0) -> -0.1 | BP66: =-IF(BP62>(PosPUDL1+3),PUDL1l*(BP62-PosPUDL1-3)^4/24,0) -> -0.1 | BQ66: =-IF(BQ62>(PosPUDL1+3),PUDL1l*(BQ62-PosPUDL1-3)^4/24,0) -> -0.1 | BR66: =-IF(BR62>(PosPUDL1+3),PUDL1l*(BR62-PosPUDL1-3)^4/24,0) -> -0.1 | BS66: =-IF(BS62>(PosPUDL1+3),PUDL1l*(BS62-PosPUDL1-3)^4/24,0) -> -0.2 | BT66: =-IF(BT62>(PosPUDL1+3),PUDL1l*(BT62-PosPUDL1-3)^4/24,0) -> -0.2 | BU66: =-IF(BU62>(PosPUDL1+3),PUDL1l*(BU62-PosPUDL1-3)^4/24,0) -> -0.3 | BV66: =-IF(BV62>(PosPUDL1+3),PUDL1l*(BV62-PosPUDL1-3)^4/24,0) -> -0.3 | BW66: =-IF(BW62>(PosPUDL1+3),PUDL1l*(BW62-PosPUDL1-3)^4/24,0) -> -0.4 | BX66: =-IF(BX62>(PosPUDL1+3),PUDL1l*(BX62-PosPUDL1-3)^4/24,0) -> -0.5 | BY66: =-IF(BY62>(PosPUDL1+3),PUDL1l*(BY62-PosPUDL1-3)^4/24,0) -> -0.6 | BZ66: =-IF(BZ62>(PosPUDL1+3),PUDL1l*(BZ62-PosPUDL1-3)^4/24,0) -> -0.7 | CA66: =-IF(CA62>(PosPUDL1+3),PUDL1l*(CA62-PosPUDL1-3)^4/24,0) -> -0.8 | CB66: =-IF(CB62>(PosPUDL1+3),PUDL1l*(CB62-PosPUDL1-3)^4/24,0) -> -0.9 | CC66: =-IF(CC62>(PosPUDL1+3),PUDL1l*(CC62-PosPUDL1-3)^4/24,0) -> -1.0 | CD66: =-IF(CD62>(PosPUDL1+3),PUDL1l*(CD62-PosPUDL1-3)^4/24,0) -> -1.2 | CE66: =-IF(CE62>(PosPUDL1+3),PUDL1l*(CE62-PosPUDL1-3)^4/24,0) -> -1.4 | CF66: =-IF(CF62>(PosPUDL1+3),PUDL1l*(CF62-PosPUDL1-3)^4/24,0) -> -1.6 | CG66: =-IF(CG62>(PosPUDL1+3),PUDL1l*(CG62-PosPUDL1-3)^4/24,0) -> -1.8 | CH66: =-IF(CH62>(PosPUDL1+3),PUDL1l*(CH62-PosPUDL1-3)^4/24,0) -> -2.0 | CI66: =-IF(CI62>(PosPUDL1+3),PUDL1l*(CI62-PosPUDL1-3)^4/24,0) -> -2.3 | CJ66: =-IF(CJ62>(PosPUDL1+3),PUDL1l*(CJ62-PosPUDL1-3)^4/24,0) -> -2.6 | CK66: =-IF(CK62>(PosPUDL1+3),PUDL1l*(CK62-PosPUDL1-3)^4/24,0) -> -2.9 | CL66: =-IF(CL62>(PosPUDL1+3),PUDL1l*(CL62-PosPUDL1-3)^4/24,0) -> -3.2 | CM66: =-IF(CM62>(PosPUDL1+3),PUDL1l*(CM62-PosPUDL1-3)^4/24,0) -> -3.6 | CN66: =-IF(CN62>(PosPUDL1+3),PUDL1l*(CN62-PosPUDL1-3)^4/24,0) -> -3.9 | CO66: =-IF(CO62>(PosPUDL1+3),PUDL1l*(CO62-PosPUDL1-3)^4/24,0) -> -4.4 | CP66: =-IF(CP62>(PosPUDL1+3),PUDL1l*(CP62-PosPUDL1-3)^4/24,0) -> -4.8 | CQ66: =-IF(CQ62>(PosPUDL1+3),PUDL1l*(CQ62-PosPUDL1-3)^4/24,0) -> -5.3 | CR66: =-IF(CR62>(PosPUDL1+3),PUDL1l*(CR62-PosPUDL1-3)^4/24,0) -> -5.8 | CS66: =-IF(CS62>(PosPUDL1+3),PUDL1l*(CS62-PosPUDL1-3)^4/24,0) -> -6.4 | CT66: =-IF(CT62>(PosPUDL1+3),PUDL1l*(CT62-PosPUDL1-3)^4/24,0) -> -7.0 | CU66: =-IF(CU62>(PosPUDL1+3),PUDL1l*(CU62-PosPUDL1-3)^4/24,0) -> -7.6 | CV66: =-IF(CV62>(PosPUDL1+3),PUDL1l*(CV62-PosPUDL1-3)^4/24,0) -> -8.3 | CW66: =-IF(CW62>(PosPUDL1+3),PUDL1l*(CW62-PosPUDL1-3)^4/24,0) -> -9.1 | CX66: =-IF(CX62>(PosPUDL1+3),PUDL1l*(CX62-PosPUDL1-3)^4/24,0) -> -9.8 | CY66: =-IF(CY62>(PosPUDL1+3),PUDL1l*(CY62-PosPUDL1-3)^4/24,0) -> -10.7
B67: PUDL b | C67: =IF(PosPUDL2<C62,PUDL2l*(C62-PosPUDL2)^4/24,0) -> 0.0 | D67: 0.0 | E67: 0.0 | F67: 0.0 | G67: 0.0 | H67: 0.0 | I67: 0.0 | J67: 0.0 | K67: 0.0 | L67: 0.0 | M67: 0.0 | N67: 0.0 | O67: 0.0 | P67: 0.0 | Q67: 0.0 | R67: 0.0 | S67: 0.0 | T67: 0.0 | U67: 0.0 | V67: 0.0 | W67: 0.0 | X67: 0.0 | Y67: 0.0 | Z67: 0.0 | AA67: 0.0 | AB67: 0.0 | AC67: 0.0 | AD67: 0.0 | AE67: 0.0 | AF67: 0.0 | AG67: 0.0 | AH67: 0.0 | AI67: =IF(PosPUDL2<AI62,PUDL2l*(AI62-PosPUDL2)^4/24,0) -> 0.0 | AJ67: 0.0 | AK67: 0.0 | AL67: 0.0 | AM67: 0.0 | AN67: 0.0 | AO67: 0.0 | AP67: 0.0 | AQ67: 0.0 | AR67: 0.0 | AS67: 0.0 | AT67: 0.0 | AU67: 0.0 | AV67: 0.0 | AW67: 0.0 | AX67: 0.0 | AY67: 0.0 | AZ67: 0.0 | BA67: 0.0 | BB67: 0.0 | BC67: 0.0 | BD67: 0.0 | BE67: 0.0 | BF67: 0.0 | BG67: 0.0 | BH67: 0.0 | BI67: 0.0 | BJ67: 0.0 | BK67: 0.0 | BL67: 0.0 | BM67: 0.0 | BN67: 0.0 | BO67: =IF(PosPUDL2<BO62,PUDL2l*(BO62-PosPUDL2)^4/24,0) -> 0.0 | BP67: 0.0 | BQ67: 0.0 | BR67: 0.0 | BS67: 0.0 | BT67: 0.0 | BU67: 0.0 | BV67: 0.0 | BW67: 0.0 | BX67: 0.0 | BY67: 0.0 | BZ67: 0.0 | CA67: 0.0 | CB67: 0.0 | CC67: 0.0 | CD67: 0.0 | CE67: 0.0 | CF67: 0.0 | CG67: 0.0 | CH67: 0.0 | CI67: 0.0 | CJ67: 0.0 | CK67: 0.0 | CL67: 0.0 | CM67: 0.0 | CN67: 0.0 | CO67: 0.0 | CP67: 0.0 | CQ67: 0.0 | CR67: 0.0 | CS67: 0.0 | CT67: 0.0 | CU67: 0.0 | CV67: 0.0 | CW67: 0.0 | CX67: 0.0 | CY67: 0.0
B68: PUDL b contra | C68: =-IF(C62>(PosPUDL2+LePUDL2),PUDL2l*(C62-PosPUDL2-LePUDL2)^4/24,0) -> 0.0 | D68: 0.0 | E68: 0.0 | F68: 0.0 | G68: 0.0 | H68: 0.0 | I68: 0.0 | J68: 0.0 | K68: 0.0 | L68: 0.0 | M68: 0.0 | N68: 0.0 | O68: 0.0 | P68: 0.0 | Q68: 0.0 | R68: 0.0 | S68: 0.0 | T68: 0.0 | U68: 0.0 | V68: 0.0 | W68: 0.0 | X68: 0.0 | Y68: 0.0 | Z68: 0.0 | AA68: 0.0 | AB68: 0.0 | AC68: 0.0 | AD68: 0.0 | AE68: 0.0 | AF68: 0.0 | AG68: 0.0 | AH68: 0.0 | AI68: =-IF(AI62>(PosPUDL2+LePUDL2),PUDL2l*(AI62-PosPUDL2-LePUDL2)^4/24,0) -> 0.0 | AJ68: 0.0 | AK68: 0.0 | AL68: 0.0 | AM68: 0.0 | AN68: 0.0 | AO68: 0.0 | AP68: 0.0 | AQ68: 0.0 | AR68: 0.0 | AS68: 0.0 | AT68: 0.0 | AU68: 0.0 | AV68: 0.0 | AW68: 0.0 | AX68: 0.0 | AY68: 0.0 | AZ68: 0.0 | BA68: 0.0 | BB68: 0.0 | BC68: 0.0 | BD68: 0.0 | BE68: 0.0 | BF68: 0.0 | BG68: 0.0 | BH68: 0.0 | BI68: 0.0 | BJ68: 0.0 | BK68: 0.0 | BL68: 0.0 | BM68: 0.0 | BN68: 0.0 | BO68: =-IF(BO62>(PosPUDL2+LePUDL2),PUDL2l*(BO62-PosPUDL2-LePUDL2)^4/24,0) -> 0.0 | BP68: 0.0 | BQ68: 0.0 | BR68: 0.0 | BS68: 0.0 | BT68: 0.0 | BU68: 0.0 | BV68: 0.0 | BW68: 0.0 | BX68: 0.0 | BY68: 0.0 | BZ68: 0.0 | CA68: 0.0 | CB68: 0.0 | CC68: 0.0 | CD68: 0.0 | CE68: 0.0 | CF68: 0.0 | CG68: 0.0 | CH68: 0.0 | CI68: 0.0 | CJ68: 0.0 | CK68: 0.0 | CL68: 0.0 | CM68: 0.0 | CN68: 0.0 | CO68: 0.0 | CP68: 0.0 | CQ68: 0.0 | CR68: 0.0 | CS68: 0.0 | CT68: 0.0 | CU68: 0.0 | CV68: 0.0 | CW68: 0.0 | CX68: 0.0 | CY68: 0.0
B69: PLa | C69: =IF(C62>PosPLa1,PLa1l*(C62-PosPLa1)^3/6,0) -> 0.0 | D69: 0.0 | E69: 0.0 | F69: 0.0 | G69: 0.0 | H69: 0.0 | I69: 0.0 | J69: 0.0 | K69: 0.0 | L69: 0.0 | M69: 0.0 | N69: 0.0 | O69: 0.0 | P69: 0.0 | Q69: 0.0 | R69: 0.0 | S69: 0.0 | T69: 0.0 | U69: 0.0 | V69: 0.0 | W69: 0.0 | X69: 0.0 | Y69: 0.0 | Z69: 0.0 | AA69: 0.0 | AB69: 0.0 | AC69: 0.0 | AD69: 0.0 | AE69: 0.0 | AF69: 0.0 | AG69: 0.0 | AH69: 0.0 | AI69: =IF(AI62>PosPLa1,PLa1l*(AI62-PosPLa1)^3/6,0) -> 0.0 | AJ69: 0.0 | AK69: 0.0 | AL69: 0.0 | AM69: 0.0 | AN69: 0.0 | AO69: 0.0 | AP69: 0.0 | AQ69: 0.0 | AR69: 0.0 | AS69: 0.0 | AT69: 0.0 | AU69: 0.0 | AV69: 0.1 | AW69: 0.1 | AX69: 0.1 | AY69: 0.2 | AZ69: 0.3 | BA69: 0.3 | BB69: 0.4 | BC69: 0.5 | BD69: 0.6 | BE69: 0.8 | BF69: 0.9 | BG69: 1.1 | BH69: 1.3 | BI69: 1.5 | BJ69: 1.7 | BK69: 1.9 | BL69: 2.2 | BM69: 2.5 | BN69: 2.8 | BO69: =IF(BO62>PosPLa1,PLa1l*(BO62-PosPLa1)^3/6,0) -> 3.2 | BP69: 3.5 | BQ69: 4.0 | BR69: 4.4 | BS69: 4.8 | BT69: 5.3 | BU69: 5.9 | BV69: 6.4 | BW69: 7.0 | BX69: 7.6 | BY69: 8.3 | BZ69: 9.0 | CA69: 9.7 | CB69: 10.5 | CC69: 11.3 | CD69: 12.2 | CE69: 13.1 | CF69: 14.0 | CG69: 15.0 | CH69: 16.1 | CI69: 17.2 | CJ69: 18.3 | CK69: 19.5 | CL69: 20.7 | CM69: 22.0 | CN69: 23.3 | CO69: 24.7 | CP69: 26.1 | CQ69: 27.6 | CR69: 29.2 | CS69: 30.8 | CT69: 32.4 | CU69: 34.2 | CV69: 36.0 | CW69: 37.8 | CX69: 39.7 | CY69: 41.7
B70: PLb | C70: =IF(C62>PosPLb1,PLb1l*(C62-PosPLb1)^3/6,0) -> 0.0 | D70: 0.0 | E70: 0.0 | F70: 0.0 | G70: 0.0 | H70: 0.0 | I70: 0.0 | J70: 0.0 | K70: 0.0 | L70: 0.0 | M70: 0.0 | N70: 0.0 | O70: 0.0 | P70: 0.0 | Q70: 0.0 | R70: 0.0 | S70: 0.0 | T70: 0.0 | U70: 0.0 | V70: 0.0 | W70: 0.0 | X70: 0.0 | Y70: 0.0 | Z70: 0.0 | AA70: 0.0 | AB70: 0.0 | AC70: 0.0 | AD70: 0.0 | AE70: 0.0 | AF70: 0.0 | AG70: 0.0 | AH70: 0.0 | AI70: =IF(AI62>PosPLb1,PLb1l*(AI62-PosPLb1)^3/6,0) -> 0.0 | AJ70: 0.0 | AK70: 0.0 | AL70: 0.0 | AM70: 0.0 | AN70: 0.0 | AO70: 0.0 | AP70: 0.0 | AQ70: 0.0 | AR70: 0.0 | AS70: 0.0 | AT70: 0.0 | AU70: 0.0 | AV70: 0.0 | AW70: 0.0 | AX70: 0.0 | AY70: 0.0 | AZ70: 0.0 | BA70: 0.0 | BB70: 0.0 | BC70: 0.0 | BD70: 0.0 | BE70: 0.0 | BF70: 0.0 | BG70: 0.0 | BH70: 0.0 | BI70: 0.0 | BJ70: 0.0 | BK70: 0.0 | BL70: 0.0 | BM70: 0.0 | BN70: 0.0 | BO70: =IF(BO62>PosPLb1,PLb1l*(BO62-PosPLb1)^3/6,0) -> 0.0 | BP70: 0.0 | BQ70: 0.0 | BR70: 0.0 | BS70: 0.0 | BT70: 0.0 | BU70: 0.0 | BV70: 0.0 | BW70: 0.0 | BX70: 0.0 | BY70: 0.0 | BZ70: 0.0 | CA70: 0.0 | CB70: 0.0 | CC70: 0.0 | CD70: 0.0 | CE70: 0.0 | CF70: 0.0 | CG70: 0.0 | CH70: 0.0 | CI70: 0.0 | CJ70: 0.0 | CK70: 0.0 | CL70: 0.0 | CM70: 0.0 | CN70: 0.0 | CO70: 0.0 | CP70: 0.0 | CQ70: 0.0 | CR70: 0.0 | CS70: 0.0 | CT70: 0.0 | CU70: 0.0 | CV70: 0.0 | CW70: 0.0 | CX70: 0.0 | CY70: 0.0
B71: Ax+B | C71: =$D$73*C62+$D$74 -> 0.0 | D71: =$D$73*D62+$D$74 -> 4.9 | E71: 9.9 | F71: 14.8 | G71: 19.7 | H71: 24.6 | I71: 29.6 | J71: 34.5 | K71: 39.4 | L71: 44.4 | M71: 49.3 | N71: 54.2 | O71: 59.2 | P71: 64.1 | Q71: 69.0 | R71: 73.9 | S71: 78.9 | T71: 83.8 | U71: 88.7 | V71: 93.7 | W71: 98.6 | X71: 103.5 | Y71: 108.5 | Z71: 113.4 | AA71: 118.3 | AB71: 123.2 | AC71: 128.2 | AD71: 133.1 | AE71: 138.0 | AF71: 143.0 | AG71: 147.9 | AH71: 152.8 | AI71: 157.7 | AJ71: 162.7 | AK71: 167.6 | AL71: 172.5 | AM71: 177.5 | AN71: 182.4 | AO71: 187.3 | AP71: 192.3 | AQ71: 197.2 | AR71: 202.1 | AS71: 207.0 | AT71: 212.0 | AU71: 216.9 | AV71: 221.8 | AW71: 226.8 | AX71: 231.7 | AY71: 236.6 | AZ71: 241.5 | BA71: 246.5 | BB71: 251.4 | BC71: 256.3 | BD71: 261.3 | BE71: 266.2 | BF71: 271.1 | BG71: 276.1 | BH71: 281.0 | BI71: 285.9 | BJ71: 290.8 | BK71: 295.8 | BL71: 300.7 | BM71: 305.6 | BN71: 310.6 | BO71: 315.5 | BP71: =$D$73*BP62+$D$74 -> 320.4 | BQ71: 325.4 | BR71: 330.3 | BS71: 335.2 | BT71: 340.1 | BU71: 345.1 | BV71: 350.0 | BW71: 354.9 | BX71: 359.9 | BY71: 364.8 | BZ71: 369.7 | CA71: 374.6 | CB71: 379.6 | CC71: 384.5 | CD71: 389.4 | CE71: 394.4 | CF71: 399.3 | CG71: 404.2 | CH71: 409.2 | CI71: 414.1 | CJ71: 419.0 | CK71: 423.9 | CL71: 428.9 | CM71: 433.8 | CN71: 438.7 | CO71: 443.7 | CP71: 448.6 | CQ71: 453.5 | CR71: 458.5 | CS71: 463.4 | CT71: 468.3 | CU71: 473.2 | CV71: 478.2 | CW71: 483.1 | CX71: 488.0 | CY71: 493.0 | DA71: =SUM(CY63:CY70) -> -493.0
C73: Constant A | D73: =-DA71/8 -> 61.6
C74: Constant B | D74: 0.0
C77: DIAGRAMS
B79: Step | C79: 0.0 | D79: =8/100 -> 0.1 | E79: =D79+8/100 -> 0.2 | F79: =E79+8/100 -> 0.2 | G79: =F79+8/100 -> 0.3 | H79: =G79+8/100 -> 0.4 | I79: =H79+8/100 -> 0.5 | J79: =I79+8/100 -> 0.6 | K79: =J79+8/100 -> 0.6 | L79: =K79+8/100 -> 0.7 | M79: =L79+8/100 -> 0.8 | N79: =M79+8/100 -> 0.9 | O79: =N79+8/100 -> 1.0 | P79: =O79+8/100 -> 1.0 | Q79: =P79+8/100 -> 1.1 | R79: =Q79+8/100 -> 1.2 | S79: =R79+8/100 -> 1.3 | T79: =S79+8/100 -> 1.4 | U79: =T79+8/100 -> 1.4 | V79: =U79+8/100 -> 1.5 | W79: =V79+8/100 -> 1.6 | X79: =W79+8/100 -> 1.7 | Y79: =X79+8/100 -> 1.8 | Z79: =Y79+8/100 -> 1.8 | AA79: =Z79+8/100 -> 1.9 | AB79: =AA79+8/100 -> 2.0 | AC79: =AB79+8/100 -> 2.1 | AD79: =AC79+8/100 -> 2.2 | AE79: =AD79+8/100 -> 2.2 | AF79: =AE79+8/100 -> 2.3 | AG79: =AF79+8/100 -> 2.4 | AH79: =AG79+8/100 -> 2.5 | AI79: =AH79+8/100 -> 2.6 | AJ79: =AI79+8/100 -> 2.6 | AK79: =AJ79+8/100 -> 2.7 | AL79: =AK79+8/100 -> 2.8 | AM79: =AL79+8/100 -> 2.9 | AN79: =AM79+8/100 -> 3.0 | AO79: =AN79+8/100 -> 3.0 | AP79: =AO79+8/100 -> 3.1 | AQ79: =AP79+8/100 -> 3.2 | AR79: =AQ79+8/100 -> 3.3 | AS79: =AR79+8/100 -> 3.4 | AT79: =AS79+8/100 -> 3.4 | AU79: =AT79+8/100 -> 3.5 | AV79: =AU79+8/100 -> 3.6 | AW79: =AV79+8/100 -> 3.7 | AX79: =AW79+8/100 -> 3.8 | AY79: =AX79+8/100 -> 3.8 | AZ79: =AY79+8/100 -> 3.9 | BA79: =AZ79+8/100 -> 4.0 | BB79: =BA79+8/100 -> 4.1 | BC79: =BB79+8/100 -> 4.2 | BD79: =BC79+8/100 -> 4.2 | BE79: =BD79+8/100 -> 4.3 | BF79: =BE79+8/100 -> 4.4 | BG79: =BF79+8/100 -> 4.5 | BH79: =BG79+8/100 -> 4.6 | BI79: =BH79+8/100 -> 4.6 | BJ79: =BI79+8/100 -> 4.7 | BK79: =BJ79+8/100 -> 4.8 | BL79: =BK79+8/100 -> 4.9 | BM79: =BL79+8/100 -> 5.0 | BN79: =BM79+8/100 -> 5.0 | BO79: =BN79+8/100 -> 5.1 | BP79: =BO79+8/100 -> 5.2 | BQ79: =BP79+8/100 -> 5.3 | BR79: =BQ79+8/100 -> 5.4 | BS79: =BR79+8/100 -> 5.4 | BT79: =BS79+8/100 -> 5.5 | BU79: =BT79+8/100 -> 5.6 | BV79: =BU79+8/100 -> 5.7 | BW79: =BV79+8/100 -> 5.8 | BX79: =BW79+8/100 -> 5.8 | BY79: =BX79+8/100 -> 5.9 | BZ79: =BY79+8/100 -> 6.0 | CA79: =BZ79+8/100 -> 6.1 | CB79: =CA79+8/100 -> 6.2 | CC79: =CB79+8/100 -> 6.2 | CD79: =CC79+8/100 -> 6.3 | CE79: =CD79+8/100 -> 6.4 | CF79: =CE79+8/100 -> 6.5 | CG79: =CF79+8/100 -> 6.6 | CH79: =CG79+8/100 -> 6.6 | CI79: =CH79+8/100 -> 6.7 | CJ79: =CI79+8/100 -> 6.8 | CK79: =CJ79+8/100 -> 6.9 | CL79: =CK79+8/100 -> 7.0 | CM79: =CL79+8/100 -> 7.0 | CN79: =CM79+8/100 -> 7.1 | CO79: =CN79+8/100 -> 7.2 | CP79: =CO79+8/100 -> 7.3 | CQ79: =CP79+8/100 -> 7.4 | CR79: =CQ79+8/100 -> 7.4 | CS79: =CR79+8/100 -> 7.5 | CT79: =CS79+8/100 -> 7.6 | CU79: =CT79+8/100 -> 7.7 | CV79: =CU79+8/100 -> 7.8 | CW79: =CV79+8/100 -> 7.8 | CX79: =CW79+8/100 -> 7.9 | CY79: =CX79+8/100 -> 8.0
B80: Moment | C80: =C34+C35 -> 0.00 | D80: =D34+D35 -> -2.44 | E80: -4.85 | F80: -7.22 | G80: -9.55 | H80: -11.85 | I80: -14.11 | J80: -16.34 | K80: -18.54 | L80: -20.70 | M80: -22.82 | N80: -24.91 | O80: -26.96 | P80: -28.97 | Q80: -30.94 | R80: -32.85 | S80: -34.70 | T80: -36.50 | U80: -38.24 | V80: -39.94 | W80: -41.57 | X80: -43.15 | Y80: -44.68 | Z80: -46.15 | AA80: -47.57 | AB80: -48.94 | AC80: -50.24 | AD80: -51.50 | AE80: -52.70 | AF80: -53.85 | AG80: -54.94 | AH80: -55.97 | AI80: -56.96 | AJ80: -57.88 | AK80: -58.76 | AL80: -59.58 | AM80: -60.34 | AN80: -61.05 | AO80: -61.55 | AP80: -61.83 | AQ80: -62.06 | AR80: -62.23 | AS80: -62.35 | AT80: -62.41 | AU80: -62.42 | AV80: -62.37 | AW80: -62.27 | AX80: -62.12 | AY80: -61.91 | AZ80: -61.65 | BA80: -61.33 | BB80: -60.97 | BC80: -60.57 | BD80: -60.14 | BE80: -59.67 | BF80: -59.16 | BG80: -58.63 | BH80: -58.05 | BI80: -57.44 | BJ80: -56.80 | BK80: -56.12 | BL80: -55.40 | BM80: -54.65 | BN80: -53.87 | BO80: -53.04 | BP80: =BP34+BP35 -> -52.19 | BQ80: -51.30 | BR80: -50.37 | BS80: -49.41 | BT80: -48.41 | BU80: -47.38 | BV80: -46.31 | BW80: -45.21 | BX80: -44.07 | BY80: -42.89 | BZ80: -41.68 | CA80: -40.44 | CB80: -39.16 | CC80: -37.85 | CD80: -36.50 | CE80: -35.11 | CF80: -33.69 | CG80: -32.23 | CH80: -30.74 | CI80: -29.22 | CJ80: -27.66 | CK80: -26.06 | CL80: -24.43 | CM80: -22.76 | CN80: -21.06 | CO80: -19.32 | CP80: -17.55 | CQ80: -15.74 | CR80: -13.89 | CS80: -12.01 | CT80: -10.10 | CU80: -8.15 | CV80: -6.17 | CW80: -4.15 | CX80: -2.09 | CY80: 0.00
B81: Moment (factored) | C81: =C34*steel!$K$17+calculations!C35*steel!$K$16 -> 0.00 | D81: =D34*steel!$K$17+calculations!D35*steel!$K$16 -> -3.60 | E81: =E34*steel!$K$17+calculations!E35*steel!$K$16 -> -7.14 | F81: =F34*steel!$K$17+calculations!F35*steel!$K$16 -> -10.63 | G81: =G34*steel!$K$17+calculations!G35*steel!$K$16 -> -14.07 | H81: =H34*steel!$K$17+calculations!H35*steel!$K$16 -> -17.46 | I81: =I34*steel!$K$17+calculations!I35*steel!$K$16 -> -20.80 | J81: =J34*steel!$K$17+calculations!J35*steel!$K$16 -> -24.09 | K81: =K34*steel!$K$17+calculations!K35*steel!$K$16 -> -27.32 | L81: =L34*steel!$K$17+calculations!L35*steel!$K$16 -> -30.50 | M81: =M34*steel!$K$17+calculations!M35*steel!$K$16 -> -33.63 | N81: =N34*steel!$K$17+calculations!N35*steel!$K$16 -> -36.71 | O81: =O34*steel!$K$17+calculations!O35*steel!$K$16 -> -39.73 | P81: =P34*steel!$K$17+calculations!P35*steel!$K$16 -> -42.70 | Q81: =Q34*steel!$K$17+calculations!Q35*steel!$K$16 -> -45.59 | R81: =R34*steel!$K$17+calculations!R35*steel!$K$16 -> -48.41 | S81: =S34*steel!$K$17+calculations!S35*steel!$K$16 -> -51.14 | T81: =T34*steel!$K$17+calculations!T35*steel!$K$16 -> -53.79 | U81: =U34*steel!$K$17+calculations!U35*steel!$K$16 -> -56.37 | V81: =V34*steel!$K$17+calculations!V35*steel!$K$16 -> -58.86 | W81: =W34*steel!$K$17+calculations!W35*steel!$K$16 -> -61.27 | X81: =X34*steel!$K$17+calculations!X35*steel!$K$16 -> -63.60 | Y81: =Y34*steel!$K$17+calculations!Y35*steel!$K$16 -> -65.86 | Z81: =Z34*steel!$K$17+calculations!Z35*steel!$K$16 -> -68.03 | AA81: =AA34*steel!$K$17+calculations!AA35*steel!$K$16 -> -70.12 | AB81: =AB34*steel!$K$17+calculations!AB35*steel!$K$16 -> -72.13 | AC81: =AC34*steel!$K$17+calculations!AC35*steel!$K$16 -> -74.07 | AD81: =AD34*steel!$K$17+calculations!AD35*steel!$K$16 -> -75.92 | AE81: =AE34*steel!$K$17+calculations!AE35*steel!$K$16 -> -77.69 | AF81: =AF34*steel!$K$17+calculations!AF35*steel!$K$16 -> -79.38 | AG81: =AG34*steel!$K$17+calculations!AG35*steel!$K$16 -> -80.99 | AH81: =AH34*steel!$K$17+calculations!AH35*steel!$K$16 -> -82.53 | AI81: =AI34*steel!$K$17+calculations!AI35*steel!$K$16 -> -83.98 | AJ81: =AJ34*steel!$K$17+calculations!AJ35*steel!$K$16 -> -85.35 | AK81: =AK34*steel!$K$17+calculations!AK35*steel!$K$16 -> -86.64 | AL81: =AL34*steel!$K$17+calculations!AL35*steel!$K$16 -> -87.85 | AM81: =AM34*steel!$K$17+calculations!AM35*steel!$K$16 -> -88.98 | AN81: =AN34*steel!$K$17+calculations!AN35*steel!$K$16 -> -90.03 | AO81: =AO34*steel!$K$17+calculations!AO35*steel!$K$16 -> -90.77 | AP81: =AP34*steel!$K$17+calculations!AP35*steel!$K$16 -> -91.18 | AQ81: =AQ34*steel!$K$17+calculations!AQ35*steel!$K$16 -> -91.51 | AR81: =AR34*steel!$K$17+calculations!AR35*steel!$K$16 -> -91.76 | AS81: =AS34*steel!$K$17+calculations!AS35*steel!$K$16 -> -91.93 | AT81: =AT34*steel!$K$17+calculations!AT35*steel!$K$16 -> -92.02 | AU81: =AU34*steel!$K$17+calculations!AU35*steel!$K$16 -> -92.03 | AV81: =AV34*steel!$K$17+calculations!AV35*steel!$K$16 -> -91.96 | AW81: =AW34*steel!$K$17+calculations!AW35*steel!$K$16 -> -91.81 | AX81: =AX34*steel!$K$17+calculations!AX35*steel!$K$16 -> -91.58 | AY81: =AY34*steel!$K$17+calculations!AY35*steel!$K$16 -> -91.27 | AZ81: =AZ34*steel!$K$17+calculations!AZ35*steel!$K$16 -> -90.88 | BA81: =BA34*steel!$K$17+calculations!BA35*steel!$K$16 -> -90.41 | BB81: =BB34*steel!$K$17+calculations!BB35*steel!$K$16 -> -89.88 | BC81: =BC34*steel!$K$17+calculations!BC35*steel!$K$16 -> -89.29 | BD81: =BD34*steel!$K$17+calculations!BD35*steel!$K$16 -> -88.65 | BE81: =BE34*steel!$K$17+calculations!BE35*steel!$K$16 -> -87.96 | BF81: =BF34*steel!$K$17+calculations!BF35*steel!$K$16 -> -87.21 | BG81: =BG34*steel!$K$17+calculations!BG35*steel!$K$16 -> -86.42 | BH81: =BH34*steel!$K$17+calculations!BH35*steel!$K$16 -> -85.57 | BI81: =BI34*steel!$K$17+calculations!BI35*steel!$K$16 -> -84.67 | BJ81: =BJ34*steel!$K$17+calculations!BJ35*steel!$K$16 -> -83.72 | BK81: =BK34*steel!$K$17+calculations!BK35*steel!$K$16 -> -82.72 | BL81: =BL34*steel!$K$17+calculations!BL35*steel!$K$16 -> -81.66 | BM81: =BM34*steel!$K$17+calculations!BM35*steel!$K$16 -> -80.55 | BN81: =BN34*steel!$K$17+calculations!BN35*steel!$K$16 -> -79.39 | BO81: =BO34*steel!$K$17+calculations!BO35*steel!$K$16 -> -78.18 | BP81: =BP34*steel!$K$17+calculations!BP35*steel!$K$16 -> -76.92 | BQ81: =BQ34*steel!$K$17+calculations!BQ35*steel!$K$16 -> -75.61 | BR81: =BR34*steel!$K$17+calculations!BR35*steel!$K$16 -> -74.24 | BS81: =BS34*steel!$K$17+calculations!BS35*steel!$K$16 -> -72.82 | BT81: =BT34*steel!$K$17+calculations!BT35*steel!$K$16 -> -71.35 | BU81: =BU34*steel!$K$17+calculations!BU35*steel!$K$16 -> -69.83 | BV81: =BV34*steel!$K$17+calculations!BV35*steel!$K$16 -> -68.25 | BW81: =BW34*steel!$K$17+calculations!BW35*steel!$K$16 -> -66.63 | BX81: =BX34*steel!$K$17+calculations!BX35*steel!$K$16 -> -64.95 | BY81: =BY34*steel!$K$17+calculations!BY35*steel!$K$16 -> -63.22 | BZ81: =BZ34*steel!$K$17+calculations!BZ35*steel!$K$16 -> -61.43 | CA81: =CA34*steel!$K$17+calculations!CA35*steel!$K$16 -> -59.60 | CB81: =CB34*steel!$K$17+calculations!CB35*steel!$K$16 -> -57.71 | CC81: =CC34*steel!$K$17+calculations!CC35*steel!$K$16 -> -55.78 | CD81: =CD34*steel!$K$17+calculations!CD35*steel!$K$16 -> -53.79 | CE81: =CE34*steel!$K$17+calculations!CE35*steel!$K$16 -> -51.74 | CF81: =CF34*steel!$K$17+calculations!CF35*steel!$K$16 -> -49.65 | CG81: =CG34*steel!$K$17+calculations!CG35*steel!$K$16 -> -47.50 | CH81: =CH34*steel!$K$17+calculations!CH35*steel!$K$16 -> -45.31 | CI81: =CI34*steel!$K$17+calculations!CI35*steel!$K$16 -> -43.06 | CJ81: =CJ34*steel!$K$17+calculations!CJ35*steel!$K$16 -> -40.76 | CK81: =CK34*steel!$K$17+calculations!CK35*steel!$K$16 -> -38.40 | CL81: =CL34*steel!$K$17+calculations!CL35*steel!$K$16 -> -36.00 | CM81: =CM34*steel!$K$17+calculations!CM35*steel!$K$16 -> -33.54 | CN81: =CN34*steel!$K$17+calculations!CN35*steel!$K$16 -> -31.03 | CO81: =CO34*steel!$K$17+calculations!CO35*steel!$K$16 -> -28.47 | CP81: =CP34*steel!$K$17+calculations!CP35*steel!$K$16 -> -25.86 | CQ81: =CQ34*steel!$K$17+calculations!CQ35*steel!$K$16 -> -23.19 | CR81: =CR34*steel!$K$17+calculations!CR35*steel!$K$16 -> -20.47 | CS81: =CS34*steel!$K$17+calculations!CS35*steel!$K$16 -> -17.70 | CT81: =CT34*steel!$K$17+calculations!CT35*steel!$K$16 -> -14.88 | CU81: =CU34*steel!$K$17+calculations!CU35*steel!$K$16 -> -12.01 | CV81: =CV34*steel!$K$17+calculations!CV35*steel!$K$16 -> -9.09 | CW81: =CW34*steel!$K$17+calculations!CW35*steel!$K$16 -> -6.11 | CX81: =CX34*steel!$K$17+calculations!CX35*steel!$K$16 -> -3.08 | CY81: =CY34*steel!$K$17+calculations!CY35*steel!$K$16 -> 0.00
B82: Shear | C82: =C36+C37 -> 30.73 | D82: =D36+D37 -> 30.29 | E82: 29.85 | F82: 29.41 | G82: 28.96 | H82: 28.52 | I82: 28.08 | J82: 27.64 | K82: 27.20 | L82: 26.76 | M82: 26.32 | N82: 25.88 | O82: 25.44 | P82: 24.88 | Q82: 24.20 | R82: 23.52 | S82: 22.83 | T82: 22.15 | U82: 21.47 | V82: 20.79 | W82: 20.11 | X82: 19.43 | Y82: 18.75 | Z82: 18.07 | AA82: 17.39 | AB82: 16.71 | AC82: 16.03 | AD82: 15.35 | AE82: 14.67 | AF82: 13.98 | AG82: 13.30 | AH82: 12.62 | AI82: 11.94 | AJ82: 11.26 | AK82: 10.58 | AL82: 9.90 | AM82: 9.22 | AN82: 8.54 | AO82: 3.86 | AP82: 3.18 | AQ82: 2.50 | AR82: 1.81 | AS82: 1.13 | AT82: 0.45 | AU82: -0.23 | AV82: -0.91 | AW82: -1.59 | AX82: -2.27 | AY82: -2.95 | AZ82: -3.63 | BA82: -4.31 | BB82: -4.75 | BC82: -5.19 | BD82: -5.63 | BE82: -6.08 | BF82: -6.52 | BG82: -6.96 | BH82: -7.40 | BI82: -7.84 | BJ82: -8.28 | BK82: -8.72 | BL82: -9.16 | BM82: -9.60 | BN82: -10.04 | BO82: -10.48 | BP82: =BP36+BP37 -> -10.92 | BQ82: -11.37 | BR82: -11.81 | BS82: -12.25 | BT82: -12.69 | BU82: -13.13 | BV82: -13.57 | BW82: -14.01 | BX82: -14.45 | BY82: -14.89 | BZ82: -15.33 | CA82: -15.77 | CB82: -16.21 | CC82: -16.65 | CD82: -17.10 | CE82: -17.54 | CF82: -17.98 | CG82: -18.42 | CH82: -18.86 | CI82: -19.30 | CJ82: -19.74 | CK82: -20.18 | CL82: -20.62 | CM82: -21.06 | CN82: -21.50 | CO82: -21.94 | CP82: -22.39 | CQ82: -22.83 | CR82: -23.27 | CS82: -23.71 | CT82: -24.15 | CU82: -24.59 | CV82: -25.03 | CW82: -25.47 | CX82: -25.91 | CY82: -26.35
B83: Shear (factored) | C83: =C36*steel!$K$17+calculations!C37*steel!$K$16 -> 45.28 | D83: =D36*steel!$K$17+calculations!D37*steel!$K$16 -> 44.63 | E83: =E36*steel!$K$17+calculations!E37*steel!$K$16 -> 43.98 | F83: =F36*steel!$K$17+calculations!F37*steel!$K$16 -> 43.33 | G83: =G36*steel!$K$17+calculations!G37*steel!$K$16 -> 42.68 | H83: =H36*steel!$K$17+calculations!H37*steel!$K$16 -> 42.04 | I83: =I36*steel!$K$17+calculations!I37*steel!$K$16 -> 41.39 | J83: =J36*steel!$K$17+calculations!J37*steel!$K$16 -> 40.74 | K83: =K36*steel!$K$17+calculations!K37*steel!$K$16 -> 40.09 | L83: =L36*steel!$K$17+calculations!L37*steel!$K$16 -> 39.44 | M83: =M36*steel!$K$17+calculations!M37*steel!$K$16 -> 38.79 | N83: =N36*steel!$K$17+calculations!N37*steel!$K$16 -> 38.14 | O83: =O36*steel!$K$17+calculations!O37*steel!$K$16 -> 37.49 | P83: =P36*steel!$K$17+calculations!P37*steel!$K$16 -> 36.67 | Q83: =Q36*steel!$K$17+calculations!Q37*steel!$K$16 -> 35.67 | R83: =R36*steel!$K$17+calculations!R37*steel!$K$16 -> 34.66 | S83: =S36*steel!$K$17+calculations!S37*steel!$K$16 -> 33.66 | T83: =T36*steel!$K$17+calculations!T37*steel!$K$16 -> 32.66 | U83: =U36*steel!$K$17+calculations!U37*steel!$K$16 -> 31.66 | V83: =V36*steel!$K$17+calculations!V37*steel!$K$16 -> 30.66 | W83: =W36*steel!$K$17+calculations!W37*steel!$K$16 -> 29.66 | X83: =X36*steel!$K$17+calculations!X37*steel!$K$16 -> 28.66 | Y83: =Y36*steel!$K$17+calculations!Y37*steel!$K$16 -> 27.66 | Z83: =Z36*steel!$K$17+calculations!Z37*steel!$K$16 -> 26.66 | AA83: =AA36*steel!$K$17+calculations!AA37*steel!$K$16 -> 25.65 | AB83: =AB36*steel!$K$17+calculations!AB37*steel!$K$16 -> 24.65 | AC83: =AC36*steel!$K$17+calculations!AC37*steel!$K$16 -> 23.65 | AD83: =AD36*steel!$K$17+calculations!AD37*steel!$K$16 -> 22.65 | AE83: =AE36*steel!$K$17+calculations!AE37*steel!$K$16 -> 21.65 | AF83: =AF36*steel!$K$17+calculations!AF37*steel!$K$16 -> 20.65 | AG83: =AG36*steel!$K$17+calculations!AG37*steel!$K$16 -> 19.65 | AH83: =AH36*steel!$K$17+calculations!AH37*steel!$K$16 -> 18.65 | AI83: =AI36*steel!$K$17+calculations!AI37*steel!$K$16 -> 17.65 | AJ83: =AJ36*steel!$K$17+calculations!AJ37*steel!$K$16 -> 16.64 | AK83: =AK36*steel!$K$17+calculations!AK37*steel!$K$16 -> 15.64 | AL83: =AL36*steel!$K$17+calculations!AL37*steel!$K$16 -> 14.64 | AM83: =AM36*steel!$K$17+calculations!AM37*steel!$K$16 -> 13.64 | AN83: =AN36*steel!$K$17+calculations!AN37*steel!$K$16 -> 12.64 | AO83: =AO36*steel!$K$17+calculations!AO37*steel!$K$16 -> 5.64 | AP83: =AP36*steel!$K$17+calculations!AP37*steel!$K$16 -> 4.64 | AQ83: =AQ36*steel!$K$17+calculations!AQ37*steel!$K$16 -> 3.64 | AR83: =AR36*steel!$K$17+calculations!AR37*steel!$K$16 -> 2.64 | AS83: =AS36*steel!$K$17+calculations!AS37*steel!$K$16 -> 1.63 | AT83: =AT36*steel!$K$17+calculations!AT37*steel!$K$16 -> 0.63 | AU83: =AU36*steel!$K$17+calculations!AU37*steel!$K$16 -> -0.37 | AV83: =AV36*steel!$K$17+calculations!AV37*steel!$K$16 -> -1.37 | AW83: =AW36*steel!$K$17+calculations!AW37*steel!$K$16 -> -2.37 | AX83: =AX36*steel!$K$17+calculations!AX37*steel!$K$16 -> -3.37 | AY83: =AY36*steel!$K$17+calculations!AY37*steel!$K$16 -> -4.37 | AZ83: =AZ36*steel!$K$17+calculations!AZ37*steel!$K$16 -> -5.37 | BA83: =BA36*steel!$K$17+calculations!BA37*steel!$K$16 -> -6.38 | BB83: =BB36*steel!$K$17+calculations!BB37*steel!$K$16 -> -7.02 | BC83: =BC36*steel!$K$17+calculations!BC37*steel!$K$16 -> -7.67 | BD83: =BD36*steel!$K$17+calculations!BD37*steel!$K$16 -> -8.32 | BE83: =BE36*steel!$K$17+calculations!BE37*steel!$K$16 -> -8.97 | BF83: =BF36*steel!$K$17+calculations!BF37*steel!$K$16 -> -9.62 | BG83: =BG36*steel!$K$17+calculations!BG37*steel!$K$16 -> -10.27 | BH83: =BH36*steel!$K$17+calculations!BH37*steel!$K$16 -> -10.92 | BI83: =BI36*steel!$K$17+calculations!BI37*steel!$K$16 -> -11.57 | BJ83: =BJ36*steel!$K$17+calculations!BJ37*steel!$K$16 -> -12.22 | BK83: =BK36*steel!$K$17+calculations!BK37*steel!$K$16 -> -12.87 | BL83: =BL36*steel!$K$17+calculations!BL37*steel!$K$16 -> -13.52 | BM83: =BM36*steel!$K$17+calculations!BM37*steel!$K$16 -> -14.16 | BN83: =BN36*steel!$K$17+calculations!BN37*steel!$K$16 -> -14.81 | BO83: =BO36*steel!$K$17+calculations!BO37*steel!$K$16 -> -15.46 | BP83: =BP36*steel!$K$17+calculations!BP37*steel!$K$16 -> -16.11 | BQ83: =BQ36*steel!$K$17+calculations!BQ37*steel!$K$16 -> -16.76 | BR83: =BR36*steel!$K$17+calculations!BR37*steel!$K$16 -> -17.41 | BS83: =BS36*steel!$K$17+calculations!BS37*steel!$K$16 -> -18.06 | BT83: =BT36*steel!$K$17+calculations!BT37*steel!$K$16 -> -18.71 | BU83: =BU36*steel!$K$17+calculations!BU37*steel!$K$16 -> -19.36 | BV83: =BV36*steel!$K$17+calculations!BV37*steel!$K$16 -> -20.01 | BW83: =BW36*steel!$K$17+calculations!BW37*steel!$K$16 -> -20.66 | BX83: =BX36*steel!$K$17+calculations!BX37*steel!$K$16 -> -21.30 | BY83: =BY36*steel!$K$17+calculations!BY37*steel!$K$16 -> -21.95 | BZ83: =BZ36*steel!$K$17+calculations!BZ37*steel!$K$16 -> -22.60 | CA83: =CA36*steel!$K$17+calculations!CA37*steel!$K$16 -> -23.25 | CB83: =CB36*steel!$K$17+calculations!CB37*steel!$K$16 -> -23.90 | CC83: =CC36*steel!$K$17+calculations!CC37*steel!$K$16 -> -24.55 | CD83: =CD36*steel!$K$17+calculations!CD37*steel!$K$16 -> -25.20 | CE83: =CE36*steel!$K$17+calculations!CE37*steel!$K$16 -> -25.85 | CF83: =CF36*steel!$K$17+calculations!CF37*steel!$K$16 -> -26.50 | CG83: =CG36*steel!$K$17+calculations!CG37*steel!$K$16 -> -27.15 | CH83: =CH36*steel!$K$17+calculations!CH37*steel!$K$16 -> -27.80 | CI83: =CI36*steel!$K$17+calculations!CI37*steel!$K$16 -> -28.45 | CJ83: =CJ36*steel!$K$17+calculations!CJ37*steel!$K$16 -> -29.09 | CK83: =CK36*steel!$K$17+calculations!CK37*steel!$K$16 -> -29.74 | CL83: =CL36*steel!$K$17+calculations!CL37*steel!$K$16 -> -30.39 | CM83: =CM36*steel!$K$17+calculations!CM37*steel!$K$16 -> -31.04 | CN83: =CN36*steel!$K$17+calculations!CN37*steel!$K$16 -> -31.69 | CO83: =CO36*steel!$K$17+calculations!CO37*steel!$K$16 -> -32.34 | CP83: =CP36*steel!$K$17+calculations!CP37*steel!$K$16 -> -32.99 | CQ83: =CQ36*steel!$K$17+calculations!CQ37*steel!$K$16 -> -33.64 | CR83: =CR36*steel!$K$17+calculations!CR37*steel!$K$16 -> -34.29 | CS83: =CS36*steel!$K$17+calculations!CS37*steel!$K$16 -> -34.94 | CT83: =CT36*steel!$K$17+calculations!CT37*steel!$K$16 -> -35.59 | CU83: =CU36*steel!$K$17+calculations!CU37*steel!$K$16 -> -36.23 | CV83: =CV36*steel!$K$17+calculations!CV37*steel!$K$16 -> -36.88 | CW83: =CW36*steel!$K$17+calculations!CW37*steel!$K$16 -> -37.53 | CX83: =CX36*steel!$K$17+calculations!CX37*steel!$K$16 -> -38.18 | CY83: =CY36*steel!$K$17+calculations!CY37*steel!$K$16 -> -38.83
B84: Deflection LL | C84: =(-SUM(C63:C71))/(E*Ix/100000) -> 0.00 | D84: -0.17 | E84: -0.34 | F84: -0.51 | G84: -0.68 | H84: -0.85 | I84: -1.02 | J84: -1.18 | K84: -1.35 | L84: -1.51 | M84: -1.67 | N84: -1.83 | O84: -1.99 | P84: -2.15 | Q84: -2.30 | R84: -2.45 | S84: -2.60 | T84: -2.75 | U84: -2.89 | V84: -3.03 | W84: -3.16 | X84: -3.30 | Y84: -3.42 | Z84: -3.55 | AA84: -3.67 | AB84: -3.79 | AC84: -3.90 | AD84: -4.01 | AE84: -4.12 | AF84: -4.22 | AG84: -4.32 | AH84: -4.41 | AI84: =(-SUM(AI63:AI71))/(E*Ix/100000) -> -4.50 | AJ84: -4.58 | AK84: -4.66 | AL84: -4.73 | AM84: -4.80 | AN84: -4.86 | AO84: -4.92 | AP84: -4.97 | AQ84: -5.02 | AR84: -5.06 | AS84: -5.10 | AT84: -5.13 | AU84: -5.16 | AV84: -5.18 | AW84: -5.20 | AX84: -5.21 | AY84: -5.22 | AZ84: -5.22 | BA84: -5.22 | BB84: -5.21 | BC84: -5.20 | BD84: -5.18 | BE84: -5.16 | BF84: -5.13 | BG84: -5.10 | BH84: -5.06 | BI84: -5.02 | BJ84: -4.97 | BK84: -4.92 | BL84: -4.86 | BM84: -4.80 | BN84: -4.73 | BO84: =(-SUM(BO63:BO71))/(E*Ix/100000) -> -4.66 | BP84: -4.59 | BQ84: -4.51 | BR84: -4.43 | BS84: -4.34 | BT84: -4.25 | BU84: -4.16 | BV84: -4.06 | BW84: -3.96 | BX84: -3.85 | BY84: -3.74 | BZ84: -3.63 | CA84: -3.51 | CB84: -3.39 | CC84: -3.27 | CD84: -3.14 | CE84: -3.01 | CF84: -2.88 | CG84: -2.75 | CH84: -2.61 | CI84: -2.47 | CJ84: -2.33 | CK84: -2.18 | CL84: -2.04 | CM84: -1.89 | CN84: -1.74 | CO84: -1.58 | CP84: -1.43 | CQ84: -1.27 | CR84: -1.12 | CS84: -0.96 | CT84: -0.80 | CU84: -0.64 | CV84: -0.48 | CW84: -0.32 | CX84: -0.16 | CY84: 0.00
B85: Deflection LL + DL | C85: =(-SUM(C48:C56)-SUM(C63:C71))/(E*Ix/100000) -> 0.00 | D85: -0.46 | E85: -0.92 | F85: -1.38 | G85: -1.84 | H85: -2.29 | I85: -2.74 | J85: -3.19 | K85: -3.64 | L85: -4.08 | M85: -4.51 | N85: -4.95 | O85: -5.37 | P85: -5.79 | Q85: -6.21 | R85: -6.61 | S85: -7.01 | T85: -7.41 | U85: -7.79 | V85: -8.16 | W85: -8.53 | X85: -8.89 | Y85: -9.24 | Z85: -9.57 | AA85: -9.90 | AB85: -10.22 | AC85: -10.53 | AD85: -10.82 | AE85: -11.10 | AF85: -11.38 | AG85: -11.64 | AH85: -11.89 | AI85: =(-SUM(AI48:AI56)-SUM(AI63:AI71))/(E*Ix/100000) -> -12.12 | AJ85: -12.34 | AK85: -12.55 | AL85: -12.75 | AM85: -12.94 | AN85: -13.11 | AO85: -13.26 | AP85: -13.41 | AQ85: -13.54 | AR85: -13.65 | AS85: -13.76 | AT85: -13.84 | AU85: -13.92 | AV85: -13.98 | AW85: -14.03 | AX85: -14.06 | AY85: -14.08 | AZ85: -14.09 | BA85: -14.08 | BB85: -14.06 | BC85: -14.02 | BD85: -13.97 | BE85: -13.91 | BF85: -13.84 | BG85: -13.75 | BH85: -13.65 | BI85: -13.53 | BJ85: -13.41 | BK85: -13.27 | BL85: -13.12 | BM85: -12.95 | BN85: -12.78 | BO85: =(-SUM(BO48:BO56)-SUM(BO63:BO71))/(E*Ix/100000) -> -12.59 | BP85: -12.39 | BQ85: -12.18 | BR85: -11.96 | BS85: -11.72 | BT85: -11.48 | BU85: -11.22 | BV85: -10.96 | BW85: -10.68 | BX85: -10.40 | BY85: -10.10 | BZ85: -9.80 | CA85: -9.48 | CB85: -9.16 | CC85: -8.83 | CD85: -8.49 | CE85: -8.14 | CF85: -7.78 | CG85: -7.42 | CH85: -7.05 | CI85: -6.67 | CJ85: -6.28 | CK85: -5.89 | CL85: -5.50 | CM85: -5.10 | CN85: -4.69 | CO85: -4.28 | CP85: -3.86 | CQ85: -3.44 | CR85: -3.02 | CS85: -2.60 | CT85: -2.17 | CU85: -1.74 | CV85: -1.30 | CW85: -0.87 | CX85: -0.44 | CY85: 0.00
B86: Deflection diagram | C86: =IF(steel!$AH$64=0,calculations!C84,calculations!C85) -> 0.00 | D86: =IF(steel!$AH$64=0,calculations!D84,calculations!D85) -> -0.46 | E86: =IF(steel!$AH$64=0,calculations!E84,calculations!E85) -> -0.92 | F86: =IF(steel!$AH$64=0,calculations!F84,calculations!F85) -> -1.38 | G86: =IF(steel!$AH$64=0,calculations!G84,calculations!G85) -> -1.84 | H86: =IF(steel!$AH$64=0,calculations!H84,calculations!H85) -> -2.29 | I86: =IF(steel!$AH$64=0,calculations!I84,calculations!I85) -> -2.74 | J86: =IF(steel!$AH$64=0,calculations!J84,calculations!J85) -> -3.19 | K86: =IF(steel!$AH$64=0,calculations!K84,calculations!K85) -> -3.64 | L86: =IF(steel!$AH$64=0,calculations!L84,calculations!L85) -> -4.08 | M86: =IF(steel!$AH$64=0,calculations!M84,calculations!M85) -> -4.51 | N86: =IF(steel!$AH$64=0,calculations!N84,calculations!N85) -> -4.95 | O86: =IF(steel!$AH$64=0,calculations!O84,calculations!O85) -> -5.37 | P86: =IF(steel!$AH$64=0,calculations!P84,calculations!P85) -> -5.79 | Q86: =IF(steel!$AH$64=0,calculations!Q84,calculations!Q85) -> -6.21 | R86: =IF(steel!$AH$64=0,calculations!R84,calculations!R85) -> -6.61 | S86: =IF(steel!$AH$64=0,calculations!S84,calculations!S85) -> -7.01 | T86: =IF(steel!$AH$64=0,calculations!T84,calculations!T85) -> -7.41 | U86: =IF(steel!$AH$64=0,calculations!U84,calculations!U85) -> -7.79 | V86: =IF(steel!$AH$64=0,calculations!V84,calculations!V85) -> -8.16 | W86: =IF(steel!$AH$64=0,calculations!W84,calculations!W85) -> -8.53 | X86: =IF(steel!$AH$64=0,calculations!X84,calculations!X85) -> -8.89 | Y86: =IF(steel!$AH$64=0,calculations!Y84,calculations!Y85) -> -9.24 | Z86: =IF(steel!$AH$64=0,calculations!Z84,calculations!Z85) -> -9.57 | AA86: =IF(steel!$AH$64=0,calculations!AA84,calculations!AA85) -> -9.90 | AB86: =IF(steel!$AH$64=0,calculations!AB84,calculations!AB85) -> -10.22 | AC86: =IF(steel!$AH$64=0,calculations!AC84,calculations!AC85) -> -10.53 | AD86: =IF(steel!$AH$64=0,calculations!AD84,calculations!AD85) -> -10.82 | AE86: =IF(steel!$AH$64=0,calculations!AE84,calculations!AE85) -> -11.10 | AF86: =IF(steel!$AH$64=0,calculations!AF84,calculations!AF85) -> -11.38 | AG86: =IF(steel!$AH$64=0,calculations!AG84,calculations!AG85) -> -11.64 | AH86: =IF(steel!$AH$64=0,calculations!AH84,calculations!AH85) -> -11.89 | AI86: =IF(steel!$AH$64=0,calculations!AI84,calculations!AI85) -> -12.12 | AJ86: =IF(steel!$AH$64=0,calculations!AJ84,calculations!AJ85) -> -12.34 | AK86: =IF(steel!$AH$64=0,calculations!AK84,calculations!AK85) -> -12.55 | AL86: =IF(steel!$AH$64=0,calculations!AL84,calculations!AL85) -> -12.75 | AM86: =IF(steel!$AH$64=0,calculations!AM84,calculations!AM85) -> -12.94 | AN86: =IF(steel!$AH$64=0,calculations!AN84,calculations!AN85) -> -13.11 | AO86: =IF(steel!$AH$64=0,calculations!AO84,calculations!AO85) -> -13.26 | AP86: =IF(steel!$AH$64=0,calculations!AP84,calculations!AP85) -> -13.41 | AQ86: =IF(steel!$AH$64=0,calculations!AQ84,calculations!AQ85) -> -13.54 | AR86: =IF(steel!$AH$64=0,calculations!AR84,calculations!AR85) -> -13.65 | AS86: =IF(steel!$AH$64=0,calculations!AS84,calculations!AS85) -> -13.76 | AT86: =IF(steel!$AH$64=0,calculations!AT84,calculations!AT85) -> -13.84 | AU86: =IF(steel!$AH$64=0,calculations!AU84,calculations!AU85) -> -13.92 | AV86: =IF(steel!$AH$64=0,calculations!AV84,calculations!AV85) -> -13.98 | AW86: =IF(steel!$AH$64=0,calculations!AW84,calculations!AW85) -> -14.03 | AX86: =IF(steel!$AH$64=0,calculations!AX84,calculations!AX85) -> -14.06 | AY86: =IF(steel!$AH$64=0,calculations!AY84,calculations!AY85) -> -14.08 | AZ86: =IF(steel!$AH$64=0,calculations!AZ84,calculations!AZ85) -> -14.09 | BA86: =IF(steel!$AH$64=0,calculations!BA84,calculations!BA85) -> -14.08 | BB86: =IF(steel!$AH$64=0,calculations!BB84,calculations!BB85) -> -14.06 | BC86: =IF(steel!$AH$64=0,calculations!BC84,calculations!BC85) -> -14.02 | BD86: =IF(steel!$AH$64=0,calculations!BD84,calculations!BD85) -> -13.97 | BE86: =IF(steel!$AH$64=0,calculations!BE84,calculations!BE85) -> -13.91 | BF86: =IF(steel!$AH$64=0,calculations!BF84,calculations!BF85) -> -13.84 | BG86: =IF(steel!$AH$64=0,calculations!BG84,calculations!BG85) -> -13.75 | BH86: =IF(steel!$AH$64=0,calculations!BH84,calculations!BH85) -> -13.65 | BI86: =IF(steel!$AH$64=0,calculations!BI84,calculations!BI85) -> -13.53 | BJ86: =IF(steel!$AH$64=0,calculations!BJ84,calculations!BJ85) -> -13.41 | BK86: =IF(steel!$AH$64=0,calculations!BK84,calculations!BK85) -> -13.27 | BL86: =IF(steel!$AH$64=0,calculations!BL84,calculations!BL85) -> -13.12 | BM86: =IF(steel!$AH$64=0,calculations!BM84,calculations!BM85) -> -12.95 | BN86: =IF(steel!$AH$64=0,calculations!BN84,calculations!BN85) -> -12.78 | BO86: =IF(steel!$AH$64=0,calculations!BO84,calculations!BO85) -> -12.59 | BP86: =IF(steel!$AH$64=0,calculations!BP84,calculations!BP85) -> -12.39 | BQ86: =IF(steel!$AH$64=0,calculations!BQ84,calculations!BQ85) -> -12.18 | BR86: =IF(steel!$AH$64=0,calculations!BR84,calculations!BR85) -> -11.96 | BS86: =IF(steel!$AH$64=0,calculations!BS84,calculations!BS85) -> -11.72 | BT86: =IF(steel!$AH$64=0,calculations!BT84,calculations!BT85) -> -11.48 | BU86: =IF(steel!$AH$64=0,calculations!BU84,calculations!BU85) -> -11.22 | BV86: =IF(steel!$AH$64=0,calculations!BV84,calculations!BV85) -> -10.96 | BW86: =IF(steel!$AH$64=0,calculations!BW84,calculations!BW85) -> -10.68 | BX86: =IF(steel!$AH$64=0,calculations!BX84,calculations!BX85) -> -10.40 | BY86: =IF(steel!$AH$64=0,calculations!BY84,calculations!BY85) -> -10.10 | BZ86: =IF(steel!$AH$64=0,calculations!BZ84,calculations!BZ85) -> -9.80 | CA86: =IF(steel!$AH$64=0,calculations!CA84,calculations!CA85) -> -9.48 | CB86: =IF(steel!$AH$64=0,calculations!CB84,calculations!CB85) -> -9.16 | CC86: =IF(steel!$AH$64=0,calculations!CC84,calculations!CC85) -> -8.83 | CD86: =IF(steel!$AH$64=0,calculations!CD84,calculations!CD85) -> -8.49 | CE86: =IF(steel!$AH$64=0,calculations!CE84,calculations!CE85) -> -8.14 | CF86: =IF(steel!$AH$64=0,calculations!CF84,calculations!CF85) -> -7.78 | CG86: =IF(steel!$AH$64=0,calculations!CG84,calculations!CG85) -> -7.42 | CH86: =IF(steel!$AH$64=0,calculations!CH84,calculations!CH85) -> -7.05 | CI86: =IF(steel!$AH$64=0,calculations!CI84,calculations!CI85) -> -6.67 | CJ86: =IF(steel!$AH$64=0,calculations!CJ84,calculations!CJ85) -> -6.28 | CK86: =IF(steel!$AH$64=0,calculations!CK84,calculations!CK85) -> -5.89 | CL86: =IF(steel!$AH$64=0,calculations!CL84,calculations!CL85) -> -5.50 | CM86: =IF(steel!$AH$64=0,calculations!CM84,calculations!CM85) -> -5.10 | CN86: =IF(steel!$AH$64=0,calculations!CN84,calculations!CN85) -> -4.69 | CO86: =IF(steel!$AH$64=0,calculations!CO84,calculations!CO85) -> -4.28 | CP86: =IF(steel!$AH$64=0,calculations!CP84,calculations!CP85) -> -3.86 | CQ86: =IF(steel!$AH$64=0,calculations!CQ84,calculations!CQ85) -> -3.44 | CR86: =IF(steel!$AH$64=0,calculations!CR84,calculations!CR85) -> -3.02 | CS86: =IF(steel!$AH$64=0,calculations!CS84,calculations!CS85) -> -2.60 | CT86: =IF(steel!$AH$64=0,calculations!CT84,calculations!CT85) -> -2.17 | CU86: =IF(steel!$AH$64=0,calculations!CU84,calculations!CU85) -> -1.74 | CV86: =IF(steel!$AH$64=0,calculations!CV84,calculations!CV85) -> -1.30 | CW86: =IF(steel!$AH$64=0,calculations!CW84,calculations!CW85) -> -0.87 | CX86: =IF(steel!$AH$64=0,calculations!CX84,calculations!CX85) -> -0.44 | CY86: =IF(steel!$AH$64=0,calculations!CY84,calculations!CY85) -> 0.00
C89: SECTIONS
B91: Lp | C91: Section | D91: Mass | E91: Depth | F91: Width | G91: t | H91: T | I91: r | J91: d | K91: b/T | L91: d/t | M91: Ixx | N91: Iyy | O91: rx | P91: ry | Q91: Zx | R91: Zy | S91: Sx | T91: Sy | U91: u | V91: x | W91: H | X91: J | Y91: A
A92: UB | B92: 1 | C92: 1016x305x584 | D92: 584.00 | E92: 1056.00 | F92: 314.00 | G92: 36.00 | H92: 64.00 | I92: 30.00 | J92: 868.10 | K92: 2.45 | L92: 24.11 | M92: 1246000.00 | N92: 33400.00 | O92: 40.90 | P92: 6.70 | Q92: 23600.00 | R92: 2130.00 | S92: 28000.00 | T92: 3480.00 | U92: 0.87 | V92: 18.00 | W92: 81.20 | X92: 7150.00 | Y92: 744.00
B93: 2 | C93: 1016x305x494 | D93: 494.00 | E93: 1036.00 | F93: 309.00 | G93: 31.00 | H93: 54.00 | I93: 30.00 | J93: 868.10 | K93: 2.86 | L93: 28.00 | M93: 1028000.00 | N93: 26800.00 | O93: 40.40 | P93: 6.53 | Q93: 19800.00 | R93: 1740.00 | S93: 23400.00 | T93: 2820.00 | U93: 0.87 | V93: 20.90 | W93: 64.00 | X93: 4400.00 | Y93: 629.00
B94: 3 | C94: 1016x305x438 | D94: 438.00 | E94: 1026.00 | F94: 305.00 | G94: 26.90 | H94: 49.00 | I94: 30.00 | J94: 868.10 | K94: 3.11 | L94: 32.27 | M94: 910000.00 | N94: 23400.00 | O94: 40.40 | P94: 6.49 | Q94: 17700.00 | R94: 1540.00 | S94: 20800.00 | T94: 2470.00 | U94: 0.87 | V94: 23.10 | W94: 56.00 | X94: 3190.00 | Y94: 556.00
B95: 4 | C95: 1016x305x415 | D95: 415.00 | E95: 1020.00 | F95: 304.00 | G95: 26.00 | H95: 46.00 | I95: 30.00 | J95: 868.10 | K95: 3.30 | L95: 33.39 | M95: 853000.00 | N95: 21700.00 | O95: 40.20 | P95: 6.41 | Q95: 16700.00 | R95: 1430.00 | S95: 19600.00 | T95: 2300.00 | U95: 0.87 | V95: 24.30 | W95: 51.10 | X95: 2700.00 | Y95: 529.00
B96: 5 | C96: 1016x305x393 | D96: 392.70 | E96: 1015.90 | F96: 303.00 | G96: 24.40 | H96: 43.90 | I96: 30.00 | J96: 868.10 | K96: 3.45 | L96: 35.58 | M96: 808000.00 | N96: 20500.00 | O96: 40.20 | P96: 6.40 | Q96: 15900.00 | R96: 1350.00 | S96: 18500.00 | T96: 2170.00 | U96: 0.87 | V96: 25.50 | W96: 48.40 | X96: 2330.00 | Y96: 500.00
B97: 6 | C97: 1016x305x350 | D97: 350.00 | E97: 1008.00 | F97: 302.00 | G97: 21.10 | H97: 40.00 | I97: 30.00 | J97: 868.10 | K97: 3.78 | L97: 41.14 | M97: 723000.00 | N97: 18500.00 | O97: 40.30 | P97: 6.44 | Q97: 14300.00 | R97: 1220.00 | S97: 16600.00 | T97: 1940.00 | U97: 0.87 | V97: 27.80 | W97: 43.30 | X97: 1720.00 | Y97: 445.00
B98: 7 | C98: 1016x305x314 | D98: 314.30 | E98: 999.90 | F98: 300.00 | G98: 19.10 | H98: 35.90 | I98: 30.00 | J98: 868.10 | K98: 4.18 | L98: 45.45 | M98: 644000.00 | N98: 16200.00 | O98: 40.10 | P98: 6.37 | Q98: 12900.00 | R98: 1080.00 | S98: 14800.00 | T98: 1710.00 | U98: 0.87 | V98: 30.70 | W98: 37.70 | X98: 1260.00 | Y98: 400.00
B99: 8 | C99: 1016x305x272 | D99: 272.30 | E99: 990.10 | F99: 300.00 | G99: 16.50 | H99: 31.00 | I99: 30.00 | J99: 868.10 | K99: 4.84 | L99: 52.61 | M99: 554000.00 | N99: 14000.00 | O99: 40.00 | P99: 6.35 | Q99: 11200.00 | R99: 934.00 | S99: 12800.00 | T99: 1470.00 | U99: 0.87 | V99: 35.00 | W99: 32.20 | X99: 835.00 | Y99: 347.00
B100: 9 | C100: 1016x305x249 | D100: 248.70 | E100: 980.10 | F100: 300.00 | G100: 16.50 | H100: 26.00 | I100: 30.00 | J100: 868.10 | K100: 5.77 | L100: 52.61 | M100: 481000.00 | N100: 11800.00 | O100: 39.00 | P100: 6.09 | Q100: 9820.00 | R100: 784.00 | S100: 11300.00 | T100: 1240.00 | U100: 0.86 | V100: 39.80 | W100: 26.80 | X100: 582.00 | Y100: 317.00
B101: 10 | C101: 1016x305x222 | D101: 222.00 | E101: 970.30 | F101: 300.00 | G101: 16.00 | H101: 21.10 | I101: 30.00 | J101: 868.10 | K101: 7.11 | L101: 54.26 | M101: 408000.00 | N101: 9550.00 | O101: 38.00 | P101: 5.81 | Q101: 8410.00 | R101: 636.00 | S101: 9810.00 | T101: 1020.00 | U101: 0.85 | V101: 45.70 | W101: 21.50 | X101: 390.00 | Y101: 283.00
B102: 11 | C102: 914x419x388 | D102: 388.00 | E102: 921.00 | F102: 420.50 | G102: 21.40 | H102: 36.60 | I102: 24.10 | J102: 799.60 | K102: 5.74 | L102: 37.36 | M102: 720000.00 | N102: 45400.00 | O102: 38.20 | P102: 9.59 | Q102: 15600.00 | R102: 2160.00 | S102: 17700.00 | T102: 3340.00 | U102: 0.89 | V102: 26.70 | W102: 88.90 | X102: 1730.00 | Y102: 494.00
B103: 12 | C103: 914x419x343 | D103: 343.30 | E103: 911.80 | F103: 418.50 | G103: 19.40 | H103: 32.00 | I103: 24.10 | J103: 799.60 | K103: 6.54 | L103: 41.22 | M103: 626000.00 | N103: 39200.00 | O103: 37.80 | P103: 9.46 | Q103: 13700.00 | R103: 1870.00 | S103: 15500.00 | T103: 2890.00 | U103: 0.88 | V103: 30.10 | W103: 75.80 | X103: 1190.00 | Y103: 437.00
B104: 13 | C104: 914x305x576 | D104: 576.00 | E104: 993.00 | F104: 322.00 | G104: 36.10 | H104: 65.00 | I104: 19.00 | J104: 824.80 | K104: 2.48 | L104: 22.85 | M104: 1102000.00 | N104: 36500.00 | O104: 38.80 | P104: 7.06 | Q104: 22200.00 | R104: 2270.00 | S104: 26300.00 | T104: 3660.00 | U104: 0.87 | V104: 16.80 | W104: 77.90 | X104: 7130.00 | Y104: 733.00
B105: 14 | C105: 914x305x521 | D105: 521.00 | E105: 981.00 | F105: 319.00 | G105: 33.00 | H105: 58.90 | I105: 19.00 | J105: 824.80 | K105: 2.71 | L105: 24.99 | M105: 982000.00 | N105: 32100.00 | O105: 38.50 | P105: 6.96 | Q105: 20000.00 | R105: 2020.00 | S105: 23600.00 | T105: 3240.00 | U105: 0.87 | V105: 18.30 | W105: 67.70 | X105: 5340.00 | Y105: 664.00
B106: 15 | C106: 914x305x474 | D106: 474.00 | E106: 971.00 | F106: 316.00 | G106: 30.00 | H106: 54.10 | I106: 19.00 | J106: 824.80 | K106: 2.92 | L106: 27.49 | M106: 886000.00 | N106: 28700.00 | O106: 38.30 | P106: 6.89 | Q106: 18200.00 | R106: 1810.00 | S106: 21400.00 | T106: 2900.00 | U106: 0.87 | V106: 19.80 | W106: 59.80 | X106: 4100.00 | Y106: 604.00
B107: 16 | C107: 914x305x425 | D107: 425.00 | E107: 961.00 | F107: 313.00 | G107: 26.90 | H107: 49.00 | I107: 19.00 | J107: 824.80 | K107: 3.19 | L107: 30.66 | M107: 788000.00 | N107: 25200.00 | O107: 38.10 | P107: 6.82 | Q107: 16400.00 | R107: 1610.00 | S107: 19100.00 | T107: 2560.00 | U107: 0.87 | V107: 21.80 | W107: 52.10 | X107: 3030.00 | Y107: 542.00
B108: 17 | C108: 914x305x381 | D108: 381.00 | E108: 951.00 | F108: 310.00 | G108: 24.40 | H108: 43.90 | I108: 19.00 | J108: 824.80 | K108: 3.53 | L108: 33.80 | M108: 697000.00 | N108: 21900.00 | O108: 37.90 | P108: 6.72 | Q108: 14600.00 | R108: 1410.00 | S108: 17000.00 | T108: 2240.00 | U108: 0.87 | V108: 24.10 | W108: 44.80 | X108: 2200.00 | Y108: 486.00
B109: 18 | C109: 914x305x345 | D109: 345.00 | E109: 943.00 | F109: 308.00 | G109: 22.10 | H109: 39.90 | I109: 19.00 | J109: 824.80 | K109: 3.86 | L109: 37.32 | M109: 626000.00 | N109: 19500.00 | O109: 37.70 | P109: 6.66 | Q109: 13300.00 | R109: 1270.00 | S109: 15400.00 | T109: 2000.00 | U109: 0.87 | V109: 26.30 | W109: 39.60 | X109: 1650.00 | Y109: 440.00
B110: 19 | C110: 914x305x313 | D110: 313.00 | E110: 932.00 | F110: 309.00 | G110: 21.10 | H110: 34.50 | I110: 19.00 | J110: 824.80 | K110: 4.48 | L110: 39.09 | M110: 548000.00 | N110: 17000.00 | O110: 37.10 | P110: 6.54 | Q110: 11800.00 | R110: 1100.00 | S110: 13600.00 | T110: 1750.00 | U110: 0.87 | V110: 29.70 | W110: 34.20 | X110: 1160.00 | Y110: 398.00
B111: 20 | C111: 914x305x289 | D111: 289.10 | E111: 926.60 | F111: 307.70 | G111: 19.50 | H111: 32.00 | I111: 19.10 | J111: 824.40 | K111: 4.81 | L111: 42.28 | M111: 504000.00 | N111: 15600.00 | O111: 37.00 | P111: 6.51 | Q111: 10900.00 | R111: 1010.00 | S111: 12600.00 | T111: 1600.00 | U111: 0.87 | V111: 31.90 | W111: 31.20 | X111: 926.00 | Y111: 368.00
B112: 21 | C112: 914x305x271 | D112: 271.00 | E112: 923.00 | F112: 307.00 | G112: 18.40 | H112: 30.00 | I112: 19.00 | J112: 824.80 | K112: 5.12 | L112: 44.83 | M112: 472000.00 | N112: 14500.00 | O112: 36.90 | P112: 6.48 | Q112: 10200.00 | R112: 946.00 | S112: 11800.00 | T112: 1490.00 | U112: 0.87 | V112: 33.80 | W112: 28.80 | X112: 769.00 | Y112: 346.00
B113: 22 | C113: 914x305x253 | D113: 253.40 | E113: 918.40 | F113: 305.50 | G113: 17.30 | H113: 27.90 | I113: 19.10 | J113: 824.40 | K113: 5.47 | L113: 47.65 | M113: 436000.00 | N113: 13300.00 | O113: 36.80 | P113: 6.42 | Q113: 9500.00 | R113: 871.00 | S113: 10900.00 | T113: 1370.00 | U113: 0.86 | V113: 36.20 | W113: 26.40 | X113: 626.00 | Y113: 323.00
B114: 23 | C114: 914x305x238 | D114: 238.00 | E114: 915.00 | F114: 305.00 | G114: 16.50 | H114: 25.90 | I114: 19.00 | J114: 824.80 | K114: 5.89 | L114: 49.99 | M114: 406000.00 | N114: 12300.00 | O114: 36.60 | P114: 6.36 | Q114: 8880.00 | R114: 806.00 | S114: 10200.00 | T114: 1270.00 | U114: 0.87 | V114: 38.60 | W114: 24.20 | X114: 514.00 | Y114: 304.00
B115: 24 | C115: 914x305x224 | D115: 224.20 | E115: 910.40 | F115: 304.10 | G115: 15.90 | H115: 23.90 | I115: 19.10 | J115: 824.40 | K115: 6.36 | L115: 51.85 | M115: 376000.00 | N115: 11200.00 | O115: 36.30 | P115: 6.27 | Q115: 8270.00 | R115: 739.00 | S115: 9530.00 | T115: 1160.00 | U115: 0.86 | V115: 41.40 | W115: 22.10 | X115: 422.00 | Y115: 286.00
B116: 25 | C116: 914x305x201 | D116: 200.90 | E116: 903.00 | F116: 303.30 | G116: 15.10 | H116: 20.20 | I116: 19.10 | J116: 824.40 | K116: 7.51 | L116: 54.60 | M116: 325000.00 | N116: 9420.00 | O116: 35.70 | P116: 6.07 | Q116: 7200.00 | R116: 621.00 | S116: 8350.00 | T116: 982.00 | U116: 0.85 | V116: 46.90 | W116: 18.40 | X116: 291.00 | Y116: 256.00
B117: 26 | C117: 838x292x226 | D117: 226.50 | E117: 850.90 | F117: 293.80 | G117: 16.10 | H117: 26.80 | I117: 17.80 | J117: 761.70 | K117: 5.48 | L117: 47.31 | M117: 340000.00 | N117: 11400.00 | O117: 34.30 | P117: 6.27 | Q117: 7980.00 | R117: 773.00 | S117: 9160.00 | T117: 1210.00 | U117: 0.87 | V117: 34.90 | W117: 19.30 | X117: 514.00 | Y117: 289.00
B118: 27 | C118: 838x292x194 | D118: 193.80 | E118: 840.70 | F118: 292.40 | G118: 14.70 | H118: 21.70 | I118: 17.80 | J118: 761.70 | K118: 6.74 | L118: 51.82 | M118: 279000.00 | N118: 9070.00 | O118: 33.60 | P118: 6.06 | Q118: 6640.00 | R118: 620.00 | S118: 7640.00 | T118: 974.00 | U118: 0.86 | V118: 41.60 | W118: 15.20 | X118: 306.00 | Y118: 247.00
B119: 28 | C119: 838x292x176 | D119: 175.90 | E119: 834.90 | F119: 291.70 | G119: 14.00 | H119: 18.80 | I119: 17.80 | J119: 761.70 | K119: 7.76 | L119: 54.41 | M119: 246000.00 | N119: 7800.00 | O119: 33.10 | P119: 5.90 | Q119: 5890.00 | R119: 535.00 | S119: 6810.00 | T119: 842.00 | U119: 0.86 | V119: 46.50 | W119: 13.00 | X119: 221.00 | Y119: 224.00
B120: 29 | C120: 762x267x197 | D120: 196.80 | E120: 769.80 | F120: 268.00 | G120: 15.60 | H120: 25.40 | I120: 16.50 | J120: 686.00 | K120: 5.28 | L120: 43.97 | M120: 240000.00 | N120: 8170.00 | O120: 30.90 | P120: 5.71 | Q120: 6230.00 | R120: 610.00 | S120: 7170.00 | T120: 958.00 | U120: 0.87 | V120: 33.20 | W120: 11.30 | X120: 404.00 | Y120: 251.00
B121: 30 | C121: 762x267x173 | D121: 173.00 | E121: 762.20 | F121: 266.70 | G121: 14.30 | H121: 21.60 | I121: 16.50 | J121: 686.00 | K121: 6.17 | L121: 47.97 | M121: 205000.00 | N121: 6850.00 | O121: 30.50 | P121: 5.58 | Q121: 5390.00 | R121: 514.00 | S121: 6200.00 | T121: 807.00 | U121: 0.87 | V121: 38.00 | W121: 9.39 | X121: 267.00 | Y121: 220.00
B122: 31 | C122: 762x267x147 | D122: 146.90 | E122: 754.00 | F122: 265.20 | G122: 12.80 | H122: 17.50 | I122: 16.50 | J122: 686.00 | K122: 7.58 | L122: 53.59 | M122: 169000.00 | N122: 5460.00 | O122: 30.00 | P122: 5.40 | Q122: 4470.00 | R122: 411.00 | S122: 5160.00 | T122: 647.00 | U122: 0.86 | V122: 45.20 | W122: 7.40 | X122: 159.00 | Y122: 187.00
B123: 32 | C123: 762x267x134 | D123: 133.90 | E123: 750.00 | F123: 264.40 | G123: 12.00 | H123: 15.50 | I123: 16.50 | J123: 686.00 | K123: 8.53 | L123: 57.17 | M123: 151000.00 | N123: 4790.00 | O123: 29.70 | P123: 5.30 | Q123: 4020.00 | R123: 362.00 | S123: 4640.00 | T123: 570.00 | U123: 0.85 | V123: 49.80 | W123: 6.46 | X123: 119.00 | Y123: 171.00
B124: 33 | C124: 686x254x170 | D124: 170.20 | E124: 692.90 | F124: 255.80 | G124: 14.50 | H124: 23.70 | I124: 15.20 | J124: 615.10 | K124: 5.40 | L124: 42.42 | M124: 170000.00 | N124: 6630.00 | O124: 28.00 | P124: 5.53 | Q124: 4920.00 | R124: 518.00 | S124: 5630.00 | T124: 811.00 | U124: 0.87 | V124: 31.80 | W124: 7.42 | X124: 308.00 | Y124: 217.00
B125: 34 | C125: 686x254x152 | D125: 152.40 | E125: 687.50 | F125: 254.50 | G125: 13.20 | H125: 21.00 | I125: 15.20 | J125: 615.10 | K125: 6.06 | L125: 46.60 | M125: 150000.00 | N125: 5780.00 | O125: 27.80 | P125: 5.46 | Q125: 4370.00 | R125: 455.00 | S125: 5000.00 | T125: 710.00 | U125: 0.87 | V125: 35.40 | W125: 6.42 | X125: 220.00 | Y125: 194.00
B126: 35 | C126: 686x254x140 | D126: 140.10 | E126: 683.50 | F126: 253.70 | G126: 12.40 | H126: 19.00 | I126: 15.20 | J126: 615.10 | K126: 6.68 | L126: 49.60 | M126: 136000.00 | N126: 5180.00 | O126: 27.60 | P126: 5.39 | Q126: 3990.00 | R126: 409.00 | S126: 4560.00 | T126: 638.00 | U126: 0.87 | V126: 38.60 | W126: 5.72 | X126: 169.00 | Y126: 178.00
B127: 36 | C127: 686x254x125 | D127: 125.20 | E127: 677.90 | F127: 253.00 | G127: 11.70 | H127: 16.20 | I127: 15.20 | J127: 615.10 | K127: 7.81 | L127: 52.57 | M127: 118000.00 | N127: 4380.00 | O127: 27.20 | P127: 5.24 | Q127: 3480.00 | R127: 346.00 | S127: 3990.00 | T127: 542.00 | U127: 0.86 | V127: 43.80 | W127: 4.80 | X127: 116.00 | Y127: 159.00
B128: 37 | C128: 610x305x238 | D128: 238.10 | E128: 635.80 | F128: 311.40 | G128: 18.40 | H128: 31.40 | I128: 16.50 | J128: 540.00 | K128: 4.96 | L128: 29.35 | M128: 209000.00 | N128: 15800.00 | O128: 26.30 | P128: 7.23 | Q128: 6590.00 | R128: 1020.00 | S128: 7490.00 | T128: 1570.00 | U128: 0.89 | V128: 21.30 | W128: 14.50 | X128: 785.00 | Y128: 303.00
B129: 38 | C129: 610x305x179 | D129: 179.00 | E129: 620.20 | F129: 307.10 | G129: 14.10 | H129: 23.60 | I129: 16.50 | J129: 540.00 | K129: 6.51 | L129: 38.30 | M129: 153000.00 | N129: 11400.00 | O129: 25.90 | P129: 7.07 | Q129: 4930.00 | R129: 743.00 | S129: 5550.00 | T129: 1140.00 | U129: 0.89 | V129: 27.70 | W129: 10.20 | X129: 340.00 | Y129: 228.00
B130: 39 | C130: 610x305x149 | D130: 149.20 | E130: 612.40 | F130: 304.80 | G130: 11.80 | H130: 19.70 | I130: 16.50 | J130: 540.00 | K130: 7.74 | L130: 45.76 | M130: 126000.00 | N130: 9310.00 | O130: 25.70 | P130: 7.00 | Q130: 4110.00 | R130: 611.00 | S130: 4590.00 | T130: 937.00 | U130: 0.89 | V130: 32.70 | W130: 8.17 | X130: 200.00 | Y130: 190.00
B131: 40 | C131: 610x229x140 | D131: 139.90 | E131: 617.20 | F131: 230.20 | G131: 13.10 | H131: 22.10 | I131: 12.70 | J131: 547.60 | K131: 5.21 | L131: 41.80 | M131: 112000.00 | N131: 4510.00 | O131: 25.00 | P131: 5.03 | Q131: 3620.00 | R131: 391.00 | S131: 4140.00 | T131: 611.00 | U131: 0.88 | V131: 30.50 | W131: 3.99 | X131: 216.00 | Y131: 178.00
B132: 41 | C132: 610x229x125 | D132: 125.10 | E132: 612.20 | F132: 229.00 | G132: 11.90 | H132: 19.60 | I132: 12.70 | J132: 547.60 | K132: 5.84 | L132: 46.02 | M132: 98600.00 | N132: 3930.00 | O132: 24.90 | P132: 4.97 | Q132: 3220.00 | R132: 343.00 | S132: 3680.00 | T132: 535.00 | U132: 0.88 | V132: 34.10 | W132: 3.45 | X132: 154.00 | Y132: 159.00
B133: 42 | C133: 610x229x113 | D133: 113.00 | E133: 607.60 | F133: 228.20 | G133: 11.10 | H133: 17.30 | I133: 12.70 | J133: 547.60 | K133: 6.60 | L133: 49.33 | M133: 87300.00 | N133: 3430.00 | O133: 24.60 | P133: 4.88 | Q133: 2870.00 | R133: 301.00 | S133: 3280.00 | T133: 469.00 | U133: 0.87 | V133: 38.00 | W133: 2.99 | X133: 111.00 | Y133: 144.00
B134: 43 | C134: 610x229x101 | D134: 101.20 | E134: 602.60 | F134: 227.60 | G134: 10.50 | H134: 14.80 | I134: 12.70 | J134: 547.60 | K134: 7.69 | L134: 52.15 | M134: 75800.00 | N134: 2910.00 | O134: 24.20 | P134: 4.75 | Q134: 2520.00 | R134: 256.00 | S134: 2880.00 | T134: 400.00 | U134: 0.86 | V134: 43.10 | W134: 2.52 | X134: 77.00 | Y134: 129.00
B135: 44 | C135: 610x178x100 | D135: 100.30 | E135: 607.40 | F135: 179.20 | G135: 11.30 | H135: 17.20 | I135: 12.70 | J135: 547.60 | K135: 5.21 | L135: 48.46 | M135: 72500.00 | N135: 1660.00 | O135: 23.80 | P135: 3.60 | Q135: 2390.00 | R135: 185.00 | S135: 2790.00 | T135: 296.00 | U135: 0.86 | V135: 38.70 | W135: 1.44 | X135: 95.00 | Y135: 128.00
B136: 45 | C136: 610x178x92 | D136: 92.20 | E136: 603.00 | F136: 178.80 | G136: 10.90 | H136: 15.00 | I136: 12.70 | J136: 547.60 | K136: 5.96 | L136: 50.24 | M136: 64600.00 | N136: 1440.00 | O136: 23.40 | P136: 3.50 | Q136: 2140.00 | R136: 161.00 | S136: 2510.00 | T136: 258.00 | U136: 0.85 | V136: 42.60 | W136: 1.24 | X136: 71.00 | Y136: 117.00
B137: 46 | C137: 610x178x82 | D137: 81.80 | E137: 598.60 | F137: 177.90 | G137: 10.00 | H137: 12.80 | I137: 12.70 | J137: 547.60 | K137: 6.95 | L137: 54.76 | M137: 55900.00 | N137: 1210.00 | O137: 23.20 | P137: 3.40 | Q137: 1870.00 | R137: 136.00 | S137: 2190.00 | T137: 218.00 | U137: 0.84 | V137: 48.40 | W137: 1.04 | X137: 48.80 | Y137: 104.00
B138: 47 | C138: 533x312x273 | D138: 273.30 | E138: 577.10 | F138: 320.20 | G138: 21.10 | H138: 37.60 | I138: 12.70 | J138: 476.50 | K138: 4.26 | L138: 22.58 | M138: 199000.00 | N138: 20600.00 | O138: 23.90 | P138: 7.69 | Q138: 6890.00 | R138: 1290.00 | S138: 7870.00 | T138: 1990.00 | U138: 0.89 | V138: 15.90 | W138: 15.00 | X138: 1290.00 | Y138: 348.00
B139: 48 | C139: 533x312x219 | D139: 218.80 | E139: 560.30 | F139: 317.40 | G139: 18.30 | H139: 29.20 | I139: 12.70 | J139: 476.50 | K139: 5.43 | L139: 26.00 | M139: 151000.00 | N139: 15600.00 | O139: 23.30 | P139: 7.48 | Q139: 5400.00 | R139: 982.00 | S139: 6120.00 | T139: 1510.00 | U139: 0.88 | V139: 19.80 | W139: 11.00 | X139: 642.00 | Y139: 279.00
B140: 49 | C140: 533x312x182 | D140: 181.50 | E140: 550.70 | F140: 314.50 | G140: 15.20 | H140: 24.40 | I140: 12.70 | J140: 476.50 | K140: 6.44 | L140: 31.30 | M140: 123000.00 | N140: 12700.00 | O140: 23.10 | P140: 7.40 | Q140: 4480.00 | R140: 806.00 | S140: 5040.00 | T140: 1240.00 | U140: 0.89 | V140: 23.40 | W140: 8.77 | X140: 373.00 | Y140: 231.00
B141: 50 | C141: 533x312x151 | D141: 150.60 | E141: 542.50 | F141: 312.00 | G141: 12.70 | H141: 20.30 | I141: 12.70 | J141: 476.50 | K141: 7.68 | L141: 37.50 | M141: 101000.00 | N141: 10300.00 | O141: 22.90 | P141: 7.32 | Q141: 3710.00 | R141: 659.00 | S141: 4150.00 | T141: 1010.00 | U141: 0.89 | V141: 27.80 | W141: 7.01 | X141: 216.00 | Y141: 192.00
B142: 51 | C142: 533x210x138 | D142: 138.30 | E142: 549.10 | F142: 213.90 | G142: 14.70 | H142: 23.60 | I142: 12.70 | J142: 476.50 | K142: 4.53 | L142: 32.40 | M142: 86100.00 | N142: 3860.00 | O142: 22.10 | P142: 4.68 | Q142: 3140.00 | R142: 361.00 | S142: 3610.00 | T142: 568.00 | U142: 0.87 | V142: 25.00 | W142: 2.67 | X142: 250.00 | Y142: 176.00
B143: 52 | C143: 533x210x122 | D143: 122.00 | E143: 544.50 | F143: 211.90 | G143: 12.70 | H143: 21.30 | I143: 12.70 | J143: 476.50 | K143: 4.97 | L143: 37.50 | M143: 76000.00 | N143: 3390.00 | O143: 22.10 | P143: 4.67 | Q143: 2790.00 | R143: 320.00 | S143: 3200.00 | T143: 500.00 | U143: 0.88 | V143: 27.60 | W143: 2.32 | X143: 178.00 | Y143: 155.00
B144: 53 | C144: 533x210x109 | D144: 109.00 | E144: 539.50 | F144: 210.80 | G144: 11.60 | H144: 18.80 | I144: 12.70 | J144: 476.50 | K144: 5.61 | L144: 41.10 | M144: 66800.00 | N144: 2940.00 | O144: 21.90 | P144: 4.60 | Q144: 2480.00 | R144: 279.00 | S144: 2830.00 | T144: 436.00 | U144: 0.88 | V144: 30.90 | W144: 1.99 | X144: 126.00 | Y144: 139.00
B145: 54 | C145: 533x210x101 | D145: 101.00 | E145: 536.70 | F145: 210.00 | G145: 10.80 | H145: 17.40 | I145: 12.70 | J145: 476.50 | K145: 6.03 | L145: 44.10 | M145: 61500.00 | N145: 2690.00 | O145: 21.90 | P145: 4.57 | Q145: 2290.00 | R145: 256.00 | S145: 2610.00 | T145: 399.00 | U145: 0.87 | V145: 33.20 | W145: 1.81 | X145: 101.00 | Y145: 129.00
B146: 55 | C146: 533x210x92 | D146: 92.10 | E146: 533.10 | F146: 209.30 | G146: 10.10 | H146: 15.60 | I146: 12.70 | J146: 476.50 | K146: 6.71 | L146: 47.20 | M146: 55200.00 | N146: 2390.00 | O146: 21.70 | P146: 4.51 | Q146: 2070.00 | R146: 228.00 | S146: 2360.00 | T146: 355.00 | U146: 0.87 | V146: 36.40 | W146: 1.60 | X146: 75.70 | Y146: 117.00
B147: 56 | C147: 533x210x82 | D147: 82.20 | E147: 528.30 | F147: 208.80 | G147: 9.60 | H147: 13.20 | I147: 12.70 | J147: 476.50 | K147: 7.91 | L147: 49.60 | M147: 47500.00 | N147: 2010.00 | O147: 21.30 | P147: 4.38 | Q147: 1800.00 | R147: 192.00 | S147: 2060.00 | T147: 300.00 | U147: 0.86 | V147: 41.50 | W147: 1.33 | X147: 51.50 | Y147: 105.00
B148: 57 | C148: 533x165x85 | D148: 84.80 | E148: 534.90 | F148: 166.50 | G148: 10.30 | H148: 16.50 | I148: 12.70 | J148: 476.50 | K148: 5.05 | L148: 46.30 | M148: 48500.00 | N148: 1270.00 | O148: 21.20 | P148: 3.44 | Q148: 1820.00 | R148: 153.00 | S148: 2100.00 | T148: 243.00 | U148: 0.86 | V148: 35.50 | W148: 0.86 | X148: 73.80 | Y148: 108.00
B149: 58 | C149: 533x165x75 | D149: 74.70 | E149: 529.10 | F149: 165.90 | G149: 9.70 | H149: 13.60 | I149: 12.70 | J149: 476.50 | K149: 6.10 | L149: 49.10 | M149: 41100.00 | N149: 1040.00 | O149: 20.80 | P149: 3.30 | Q149: 1550.00 | R149: 125.00 | S149: 1810.00 | T149: 200.00 | U149: 0.85 | V149: 41.10 | W149: 0.69 | X149: 47.90 | Y149: 95.20
B150: 59 | C150: 533x165x66 | D150: 65.70 | E150: 524.70 | F150: 165.10 | G150: 8.90 | H150: 11.40 | I150: 12.70 | J150: 476.50 | K150: 7.24 | L150: 53.50 | M150: 35000.00 | N150: 859.00 | O150: 20.50 | P150: 3.20 | Q150: 1340.00 | R150: 104.00 | S150: 1560.00 | T150: 166.00 | U150: 0.85 | V150: 47.00 | W150: 0.57 | X150: 32.00 | Y150: 83.70
B151: 60 | C151: 457x191x161 | D151: 161.40 | E151: 492.00 | F151: 199.40 | G151: 18.00 | H151: 32.00 | I151: 10.20 | J151: 407.60 | K151: 3.12 | L151: 22.60 | M151: 79800.00 | N151: 4250.00 | O151: 19.70 | P151: 4.55 | Q151: 3240.00 | R151: 426.00 | S151: 3780.00 | T151: 672.00 | U151: 0.88 | V151: 16.50 | W151: 2.25 | X151: 515.00 | Y151: 206.00
B152: 61 | C152: 457x191x133 | D152: 133.30 | E152: 480.60 | F152: 196.70 | G152: 15.30 | H152: 26.30 | I152: 10.20 | J152: 407.60 | K152: 3.74 | L152: 26.60 | M152: 63800.00 | N152: 3350.00 | O152: 19.40 | P152: 4.44 | Q152: 2660.00 | R152: 341.00 | S152: 3070.00 | T152: 535.00 | U152: 0.88 | V152: 19.60 | W152: 1.73 | X152: 292.00 | Y152: 170.00
B153: 62 | C153: 457x191x106 | D153: 105.80 | E153: 469.20 | F153: 194.00 | G153: 12.60 | H153: 20.60 | I153: 10.20 | J153: 407.60 | K153: 4.71 | L153: 32.30 | M153: 48900.00 | N153: 2510.00 | O153: 19.00 | P153: 4.32 | Q153: 2080.00 | R153: 259.00 | S153: 2390.00 | T153: 405.00 | U153: 0.88 | V153: 24.50 | W153: 1.27 | X153: 146.00 | Y153: 135.00
B154: 63 | C154: 457x191x98 | D154: 98.30 | E154: 467.20 | F154: 192.80 | G154: 11.40 | H154: 19.60 | I154: 10.20 | J154: 407.60 | K154: 4.92 | L154: 35.80 | M154: 45700.00 | N154: 2350.00 | O154: 19.10 | P154: 4.33 | Q154: 1960.00 | R154: 243.00 | S154: 2230.00 | T154: 379.00 | U154: 0.88 | V154: 25.80 | W154: 1.18 | X154: 121.00 | Y154: 125.00
B155: 64 | C155: 457x191x89 | D155: 89.30 | E155: 463.40 | F155: 191.90 | G155: 10.50 | H155: 17.70 | I155: 10.20 | J155: 407.60 | K155: 5.42 | L155: 38.80 | M155: 41000.00 | N155: 2090.00 | O155: 19.00 | P155: 4.29 | Q155: 1770.00 | R155: 218.00 | S155: 2010.00 | T155: 338.00 | U155: 0.88 | V155: 28.30 | W155: 1.04 | X155: 90.70 | Y155: 114.00
B156: 65 | C156: 457x191x82 | D156: 82.00 | E156: 460.00 | F156: 191.30 | G156: 9.90 | H156: 16.00 | I156: 10.20 | J156: 407.60 | K156: 5.98 | L156: 41.20 | M156: 37100.00 | N156: 1870.00 | O156: 18.80 | P156: 4.23 | Q156: 1610.00 | R156: 196.00 | S156: 1830.00 | T156: 304.00 | U156: 0.88 | V156: 30.80 | W156: 0.92 | X156: 69.20 | Y156: 104.00
B157: 66 | C157: 457x191x74 | D157: 74.30 | E157: 457.00 | F157: 190.40 | G157: 9.00 | H157: 14.50 | I157: 10.20 | J157: 407.60 | K157: 6.57 | L157: 45.30 | M157: 33300.00 | N157: 1670.00 | O157: 18.80 | P157: 4.20 | Q157: 1460.00 | R157: 176.00 | S157: 1650.00 | T157: 272.00 | U157: 0.88 | V157: 33.80 | W157: 0.82 | X157: 51.80 | Y157: 94.60
B158: 67 | C158: 457x191x67 | D158: 67.10 | E158: 453.40 | F158: 189.90 | G158: 8.50 | H158: 12.70 | I158: 10.20 | J158: 407.60 | K158: 7.48 | L158: 48.00 | M158: 29400.00 | N158: 1450.00 | O158: 18.50 | P158: 4.12 | Q158: 1300.00 | R158: 153.00 | S158: 1470.00 | T158: 237.00 | U158: 0.87 | V158: 37.90 | W158: 0.71 | X158: 37.10 | Y158: 85.50
B159: 68 | C159: 457x152x82 | D159: 82.10 | E159: 465.80 | F159: 155.30 | G159: 10.50 | H159: 18.90 | I159: 10.20 | J159: 407.60 | K159: 4.11 | L159: 38.80 | M159: 36600.00 | N159: 1180.00 | O159: 18.70 | P159: 3.37 | Q159: 1570.00 | R159: 153.00 | S159: 1810.00 | T159: 240.00 | U159: 0.87 | V159: 27.50 | W159: 0.59 | X159: 89.20 | Y159: 105.00
B160: 69 | C160: 457x152x74 | D160: 74.20 | E160: 462.00 | F160: 154.40 | G160: 9.60 | H160: 17.00 | I160: 10.20 | J160: 407.60 | K160: 4.54 | L160: 42.50 | M160: 32700.00 | N160: 1050.00 | O160: 18.60 | P160: 3.33 | Q160: 1410.00 | R160: 136.00 | S160: 1630.00 | T160: 213.00 | U160: 0.87 | V160: 30.10 | W160: 0.52 | X160: 65.90 | Y160: 94.50
B161: 70 | C161: 457x152x67 | D161: 67.20 | E161: 458.00 | F161: 153.80 | G161: 9.00 | H161: 15.00 | I161: 10.20 | J161: 407.60 | K161: 5.13 | L161: 45.30 | M161: 28900.00 | N161: 913.00 | O161: 18.40 | P161: 3.27 | Q161: 1260.00 | R161: 119.00 | S161: 1450.00 | T161: 187.00 | U161: 0.87 | V161: 33.60 | W161: 0.45 | X161: 47.70 | Y161: 85.60
B162: 71 | C162: 457x152x60 | D162: 59.80 | E162: 454.60 | F162: 152.90 | G162: 8.10 | H162: 13.30 | I162: 10.20 | J162: 407.60 | K162: 5.75 | L162: 50.30 | M162: 25500.00 | N162: 795.00 | O162: 18.30 | P162: 3.23 | Q162: 1120.00 | R162: 104.00 | S162: 1290.00 | T162: 163.00 | U162: 0.87 | V162: 37.50 | W162: 0.39 | X162: 33.80 | Y162: 76.20
B163: 72 | C163: 457x152x52 | D163: 52.30 | E163: 449.80 | F163: 152.40 | G163: 7.60 | H163: 10.90 | I163: 10.20 | J163: 407.60 | K163: 6.99 | L163: 53.60 | M163: 21400.00 | N163: 645.00 | O163: 17.90 | P163: 3.11 | Q163: 950.00 | R163: 84.60 | S163: 1100.00 | T163: 133.00 | U163: 0.86 | V163: 43.80 | W163: 0.31 | X163: 21.40 | Y163: 66.60
B164: 73 | C164: 406x178x85 | D164: 85.30 | E164: 417.20 | F164: 181.90 | G164: 10.90 | H164: 18.20 | I164: 10.20 | J164: 360.40 | K164: 5.00 | L164: 33.10 | M164: 31700.00 | N164: 1830.00 | O164: 17.10 | P164: 4.11 | Q164: 1520.00 | R164: 201.00 | S164: 1730.00 | T164: 313.00 | U164: 0.88 | V164: 24.40 | W164: 0.73 | X164: 93.00 | Y164: 109.00
B165: 74 | C165: 406x178x74 | D165: 74.20 | E165: 412.80 | F165: 179.50 | G165: 9.50 | H165: 16.00 | I165: 10.20 | J165: 360.40 | K165: 5.61 | L165: 37.90 | M165: 27300.00 | N165: 1550.00 | O165: 17.00 | P165: 4.04 | Q165: 1320.00 | R165: 172.00 | S165: 1500.00 | T165: 267.00 | U165: 0.88 | V165: 27.50 | W165: 0.61 | X165: 62.80 | Y165: 94.50
B166: 75 | C166: 406x178x67 | D166: 67.10 | E166: 409.40 | F166: 178.80 | G166: 8.80 | H166: 14.30 | I166: 10.20 | J166: 360.40 | K166: 6.25 | L166: 41.00 | M166: 24300.00 | N166: 1360.00 | O166: 16.90 | P166: 3.99 | Q166: 1190.00 | R166: 153.00 | S166: 1350.00 | T166: 237.00 | U166: 0.88 | V166: 30.50 | W166: 0.53 | X166: 46.10 | Y166: 85.50
B167: 76 | C167: 406x178x60 | D167: 60.10 | E167: 406.40 | F167: 177.90 | G167: 7.90 | H167: 12.80 | I167: 10.20 | J167: 360.40 | K167: 6.95 | L167: 45.60 | M167: 21600.00 | N167: 1200.00 | O167: 16.80 | P167: 3.97 | Q167: 1060.00 | R167: 135.00 | S167: 1200.00 | T167: 209.00 | U167: 0.88 | V167: 33.80 | W167: 0.47 | X167: 33.30 | Y167: 76.50
B168: 77 | C168: 406x178x54 | D168: 54.10 | E168: 402.60 | F168: 177.70 | G168: 7.70 | H168: 10.90 | I168: 10.20 | J168: 360.40 | K168: 8.15 | L168: 46.80 | M168: 18700.00 | N168: 1020.00 | O168: 16.50 | P168: 3.85 | Q168: 930.00 | R168: 115.00 | S168: 1050.00 | T168: 178.00 | U168: 0.87 | V168: 38.30 | W168: 0.39 | X168: 23.10 | Y168: 69.00
B169: 78 | C169: 406x140x53 | D169: 53.30 | E169: 406.60 | F169: 143.30 | G169: 7.90 | H169: 12.90 | I169: 10.20 | J169: 360.40 | K169: 5.55 | L169: 45.60 | M169: 18300.00 | N169: 635.00 | O169: 16.40 | P169: 3.06 | Q169: 899.00 | R169: 88.60 | S169: 1030.00 | T169: 139.00 | U169: 0.87 | V169: 34.10 | W169: 0.25 | X169: 29.00 | Y169: 67.90
B170: 79 | C170: 406x140x46 | D170: 46.00 | E170: 403.20 | F170: 142.20 | G170: 6.80 | H170: 11.20 | I170: 10.20 | J170: 360.40 | K170: 6.35 | L170: 53.00 | M170: 15700.00 | N170: 538.00 | O170: 16.40 | P170: 3.03 | Q170: 778.00 | R170: 75.70 | S170: 888.00 | T170: 118.00 | U170: 0.87 | V170: 39.00 | W170: 0.21 | X170: 19.00 | Y170: 58.60
B171: 80 | C171: 406x140x39 | D171: 39.00 | E171: 398.00 | F171: 141.80 | G171: 6.40 | H171: 8.60 | I171: 10.20 | J171: 360.40 | K171: 8.24 | L171: 56.30 | M171: 12500.00 | N171: 410.00 | O171: 15.90 | P171: 2.87 | Q171: 629.00 | R171: 57.80 | S171: 724.00 | T171: 90.80 | U171: 0.86 | V171: 47.40 | W171: 0.16 | X171: 10.70 | Y171: 49.70
B172: 81 | C172: 356x171x67 | D172: 67.10 | E172: 363.40 | F172: 173.20 | G172: 9.10 | H172: 15.70 | I172: 10.20 | J172: 311.60 | K172: 5.52 | L172: 34.20 | M172: 19500.00 | N172: 1360.00 | O172: 15.10 | P172: 3.99 | Q172: 1070.00 | R172: 157.00 | S172: 1210.00 | T172: 243.00 | U172: 0.89 | V172: 24.40 | W172: 0.41 | X172: 55.70 | Y172: 85.50
B173: 82 | C173: 356x171x57 | D173: 57.00 | E173: 358.00 | F173: 172.20 | G173: 8.10 | H173: 13.00 | I173: 10.20 | J173: 311.60 | K173: 6.62 | L173: 38.50 | M173: 16000.00 | N173: 1110.00 | O173: 14.90 | P173: 3.91 | Q173: 896.00 | R173: 129.00 | S173: 1010.00 | T173: 199.00 | U173: 0.88 | V173: 28.80 | W173: 0.33 | X173: 33.40 | Y173: 72.60
B174: 83 | C174: 356x171x51 | D174: 51.00 | E174: 355.00 | F174: 171.50 | G174: 7.40 | H174: 11.50 | I174: 10.20 | J174: 311.60 | K174: 7.46 | L174: 42.10 | M174: 14100.00 | N174: 968.00 | O174: 14.80 | P174: 3.86 | Q174: 796.00 | R174: 113.00 | S174: 896.00 | T174: 174.00 | U174: 0.88 | V174: 32.10 | W174: 0.29 | X174: 23.80 | Y174: 64.90
B175: 84 | C175: 356x171x45 | D175: 45.00 | E175: 351.40 | F175: 171.10 | G175: 7.00 | H175: 9.70 | I175: 10.20 | J175: 311.60 | K175: 8.82 | L175: 44.50 | M175: 12100.00 | N175: 811.00 | O175: 14.50 | P175: 3.76 | Q175: 687.00 | R175: 94.80 | S175: 775.00 | T175: 147.00 | U175: 0.87 | V175: 36.80 | W175: 0.24 | X175: 15.80 | Y175: 57.30
B176: 85 | C176: 356x127x39 | D176: 39.10 | E176: 353.40 | F176: 126.00 | G176: 6.60 | H176: 10.70 | I176: 10.20 | J176: 311.60 | K176: 5.89 | L176: 47.20 | M176: 10200.00 | N176: 358.00 | O176: 14.30 | P176: 2.68 | Q176: 576.00 | R176: 56.80 | S176: 659.00 | T176: 89.00 | U176: 0.87 | V176: 35.20 | W176: 0.11 | X176: 15.10 | Y176: 49.80
B177: 86 | C177: 356x127x33 | D177: 33.10 | E177: 349.00 | F177: 125.40 | G177: 6.00 | H177: 8.50 | I177: 10.20 | J177: 311.60 | K177: 7.38 | L177: 51.90 | M177: 8250.00 | N177: 280.00 | O177: 14.00 | P177: 2.58 | Q177: 473.00 | R177: 44.70 | S177: 543.00 | T177: 70.20 | U177: 0.86 | V177: 42.10 | W177: 0.08 | X177: 8.79 | Y177: 42.10
B178: 87 | C178: 305x165x54 | D178: 54.00 | E178: 310.40 | F178: 166.90 | G178: 7.90 | H178: 13.70 | I178: 8.90 | J178: 265.20 | K178: 6.09 | L178: 33.60 | M178: 11700.00 | N178: 1060.00 | O178: 13.00 | P178: 3.93 | Q178: 754.00 | R178: 127.00 | S178: 846.00 | T178: 196.00 | U178: 0.89 | V178: 23.60 | W178: 0.23 | X178: 34.80 | Y178: 68.80
B179: 88 | C179: 305x165x46 | D179: 46.10 | E179: 306.60 | F179: 165.70 | G179: 6.70 | H179: 11.80 | I179: 8.90 | J179: 265.20 | K179: 7.02 | L179: 39.60 | M179: 9900.00 | N179: 896.00 | O179: 13.00 | P179: 3.90 | Q179: 646.00 | R179: 108.00 | S179: 720.00 | T179: 166.00 | U179: 0.89 | V179: 27.10 | W179: 0.20 | X179: 22.20 | Y179: 58.70
B180: 89 | C180: 305x165x40 | D180: 40.30 | E180: 303.40 | F180: 165.00 | G180: 6.00 | H180: 10.20 | I180: 8.90 | J180: 265.20 | K180: 8.09 | L180: 44.20 | M180: 8500.00 | N180: 764.00 | O180: 12.90 | P180: 3.86 | Q180: 560.00 | R180: 92.60 | S180: 623.00 | T180: 142.00 | U180: 0.89 | V180: 31.00 | W180: 0.16 | X180: 14.70 | Y180: 51.30
B181: 90 | C181: 305x127x48 | D181: 48.10 | E181: 311.00 | F181: 125.30 | G181: 9.00 | H181: 14.00 | I181: 8.90 | J181: 265.20 | K181: 4.48 | L181: 29.50 | M181: 9570.00 | N181: 461.00 | O181: 12.50 | P181: 2.74 | Q181: 616.00 | R181: 73.60 | S181: 711.00 | T181: 116.00 | U181: 0.87 | V181: 23.30 | W181: 0.10 | X181: 31.80 | Y181: 61.20
B182: 91 | C182: 305x127x42 | D182: 41.90 | E182: 307.20 | F182: 124.30 | G182: 8.00 | H182: 12.10 | I182: 8.90 | J182: 265.20 | K182: 5.14 | L182: 33.20 | M182: 8200.00 | N182: 389.00 | O182: 12.40 | P182: 2.70 | Q182: 534.00 | R182: 62.60 | S182: 614.00 | T182: 98.40 | U182: 0.87 | V182: 26.50 | W182: 0.08 | X182: 21.10 | Y182: 53.40
B183: 92 | C183: 305x127x37 | D183: 37.00 | E183: 304.40 | F183: 123.40 | G183: 7.10 | H183: 10.70 | I183: 8.90 | J183: 265.20 | K183: 5.77 | L183: 37.40 | M183: 7170.00 | N183: 336.00 | O183: 12.30 | P183: 2.67 | Q183: 471.00 | R183: 54.50 | S183: 539.00 | T183: 85.40 | U183: 0.87 | V183: 29.70 | W183: 0.07 | X183: 14.80 | Y183: 47.20
B184: 93 | C184: 305x102x33 | D184: 32.80 | E184: 312.70 | F184: 102.40 | G184: 6.60 | H184: 10.80 | I184: 7.60 | J184: 275.90 | K184: 4.74 | L184: 41.80 | M184: 6500.00 | N184: 194.00 | O184: 12.50 | P184: 2.15 | Q184: 416.00 | R184: 37.90 | S184: 481.00 | T184: 60.00 | U184: 0.87 | V184: 31.60 | W184: 0.04 | X184: 12.20 | Y184: 41.80
B185: 94 | C185: 305x102x28 | D185: 28.20 | E185: 308.70 | F185: 101.80 | G185: 6.00 | H185: 8.80 | I185: 7.60 | J185: 275.90 | K185: 5.78 | L185: 46.00 | M185: 5370.00 | N185: 155.00 | O185: 12.20 | P185: 2.08 | Q185: 348.00 | R185: 30.50 | S185: 403.00 | T185: 48.40 | U185: 0.86 | V185: 37.40 | W185: 0.03 | X185: 7.40 | Y185: 35.90
B186: 95 | C186: 305x102x25 | D186: 24.80 | E186: 305.10 | F186: 101.60 | G186: 5.80 | H186: 7.00 | I186: 7.60 | J186: 275.90 | K186: 7.26 | L186: 47.60 | M186: 4460.00 | N186: 123.00 | O186: 11.90 | P186: 1.97 | Q186: 292.00 | R186: 24.20 | S186: 342.00 | T186: 38.80 | U186: 0.85 | V186: 43.10 | W186: 0.03 | X186: 4.77 | Y186: 31.60
B187: 96 | C187: 254x146x43 | D187: 43.00 | E187: 259.60 | F187: 147.30 | G187: 7.20 | H187: 12.70 | I187: 7.60 | J187: 219.00 | K187: 5.80 | L187: 30.40 | M187: 6540.00 | N187: 677.00 | O187: 10.90 | P187: 3.52 | Q187: 504.00 | R187: 92.00 | S187: 566.00 | T187: 141.00 | U187: 0.89 | V187: 21.10 | W187: 0.10 | X187: 23.90 | Y187: 54.80
B188: 97 | C188: 254x146x37 | D188: 37.00 | E188: 256.00 | F188: 146.40 | G188: 6.30 | H188: 10.90 | I188: 7.60 | J188: 219.00 | K188: 6.72 | L188: 34.80 | M188: 5540.00 | N188: 571.00 | O188: 10.80 | P188: 3.48 | Q188: 433.00 | R188: 78.00 | S188: 483.00 | T188: 119.00 | U188: 0.89 | V188: 24.30 | W188: 0.09 | X188: 15.30 | Y188: 47.20
B189: 98 | C189: 254x146x31 | D189: 31.10 | E189: 251.40 | F189: 146.10 | G189: 6.00 | H189: 8.60 | I189: 7.60 | J189: 219.00 | K189: 8.49 | L189: 36.50 | M189: 4410.00 | N189: 448.00 | O189: 10.50 | P189: 3.36 | Q189: 351.00 | R189: 61.30 | S189: 393.00 | T189: 94.10 | U189: 0.88 | V189: 29.60 | W189: 0.07 | X189: 8.55 | Y189: 39.70
B190: 99 | C190: 254x102x28 | D190: 28.30 | E190: 260.40 | F190: 102.20 | G190: 6.30 | H190: 10.00 | I190: 7.60 | J190: 225.20 | K190: 5.11 | L190: 35.70 | M190: 4000.00 | N190: 179.00 | O190: 10.50 | P190: 2.22 | Q190: 308.00 | R190: 34.90 | S190: 353.00 | T190: 54.80 | U190: 0.87 | V190: 27.50 | W190: 0.03 | X190: 9.57 | Y190: 36.10
B191: 100 | C191: 254x102x25 | D191: 25.20 | E191: 257.20 | F191: 101.90 | G191: 6.00 | H191: 8.40 | I191: 7.60 | J191: 225.20 | K191: 6.07 | L191: 37.50 | M191: 3410.00 | N191: 149.00 | O191: 10.30 | P191: 2.15 | Q191: 266.00 | R191: 29.20 | S191: 306.00 | T191: 46.00 | U191: 0.87 | V191: 31.40 | W191: 0.02 | X191: 6.42 | Y191: 32.00
B192: 101 | C192: 254x102x22 | D192: 22.00 | E192: 254.00 | F192: 101.60 | G192: 5.70 | H192: 6.80 | I192: 7.60 | J192: 225.20 | K192: 7.47 | L192: 39.50 | M192: 2840.00 | N192: 119.00 | O192: 10.10 | P192: 2.06 | Q192: 224.00 | R192: 23.50 | S192: 259.00 | T192: 37.30 | U192: 0.86 | V192: 36.30 | W192: 0.02 | X192: 4.15 | Y192: 28.00
B193: 102 | C193: 203x133x30 | D193: 30.00 | E193: 206.80 | F193: 133.90 | G193: 6.40 | H193: 9.60 | I193: 7.60 | J193: 172.40 | K193: 6.97 | L193: 26.90 | M193: 2900.00 | N193: 385.00 | O193: 8.71 | P193: 3.17 | Q193: 280.00 | R193: 57.50 | S193: 314.00 | T193: 88.20 | U193: 0.88 | V193: 21.50 | W193: 0.04 | X193: 10.30 | Y193: 38.20
B194: 103 | C194: 203x133x25 | D194: 25.10 | E194: 203.20 | F194: 133.20 | G194: 5.70 | H194: 7.80 | I194: 7.60 | J194: 172.40 | K194: 8.54 | L194: 30.20 | M194: 2340.00 | N194: 308.00 | O194: 8.56 | P194: 3.10 | Q194: 230.00 | R194: 46.20 | S194: 258.00 | T194: 70.90 | U194: 0.88 | V194: 25.60 | W194: 0.03 | X194: 5.96 | Y194: 32.00
B195: 104 | C195: 203x102x23 | D195: 23.10 | E195: 203.20 | F195: 101.80 | G195: 5.40 | H195: 9.30 | I195: 7.60 | J195: 169.40 | K195: 5.47 | L195: 31.40 | M195: 2100.00 | N195: 164.00 | O195: 8.46 | P195: 2.36 | Q195: 207.00 | R195: 32.20 | S195: 234.00 | T195: 49.70 | U195: 0.89 | V195: 22.40 | W195: 0.02 | X195: 7.02 | Y195: 29.40
B196: 105 | C196: 178x102x19 | D196: 19.00 | E196: 177.80 | F196: 101.20 | G196: 4.80 | H196: 7.90 | I196: 7.60 | J196: 146.80 | K196: 6.41 | L196: 30.60 | M196: 1360.00 | N196: 137.00 | O196: 7.48 | P196: 2.37 | Q196: 153.00 | R196: 27.00 | S196: 171.00 | T196: 41.60 | U196: 0.89 | V196: 22.60 | W196: 0.01 | X196: 4.41 | Y196: 24.30
B197: 106 | C197: 152x89x16 | D197: 16.00 | E197: 152.40 | F197: 88.70 | G197: 4.50 | H197: 7.70 | I197: 7.60 | J197: 121.80 | K197: 5.76 | L197: 27.10 | M197: 834.00 | N197: 89.80 | O197: 6.41 | P197: 2.10 | Q197: 109.00 | R197: 20.20 | S197: 123.00 | T197: 31.20 | U197: 0.89 | V197: 19.50 | W197: 0.00 | X197: 3.56 | Y197: 20.30
B198: 107 | C198: 127x76x13 | D198: 13.00 | E198: 127.00 | F198: 76.00 | G198: 4.00 | H198: 7.60 | I198: 7.60 | J198: 96.60 | K198: 5.00 | L198: 24.20 | M198: 473.00 | N198: 55.70 | O198: 5.35 | P198: 1.84 | Q198: 74.60 | R198: 14.70 | S198: 84.20 | T198: 22.60 | U198: 0.89 | V198: 16.30 | W198: 0.00 | X198: 2.85 | Y198: 16.50
B199: 108
A200: UC | B200: 109 | C200: 356x406x1299 | D200: 1299.00 | E200: 600.00 | F200: 476.00 | G200: 100.00 | H200: 140.00 | I200: 15.40 | J200: 290.00 | K200: 1.70 | L200: 2.90 | M200: 755000.00 | N200: 254000.00 | O200: 21.40 | P200: 12.40 | Q200: 25200.00 | R200: 10700.00 | S200: 33200.00 | T200: 16700.00 | U200: 0.85 | V200: 3.42 | W200: 133.10 | X200: 94500.00 | Y200: 1655.00
B201: 110 | C201: 356x406x1202 | D201: 1202.00 | E201: 580.00 | F201: 471.00 | G201: 95.00 | H201: 130.00 | I201: 15.40 | J201: 290.00 | K201: 1.81 | L201: 3.05 | M201: 664000.00 | N201: 229000.00 | O201: 20.80 | P201: 12.20 | Q201: 22900.00 | R201: 9710.00 | S201: 30000.00 | T201: 15200.00 | U201: 0.84 | V201: 3.59 | W201: 114.60 | X201: 76300.00 | Y201: 1531.00
B202: 111 | C202: 356x406x1086 | D202: 1086.00 | E202: 569.00 | F202: 454.00 | G202: 78.00 | H202: 125.00 | I202: 15.00 | J202: 290.00 | K202: 1.82 | L202: 3.72 | M202: 596000.00 | N202: 196000.00 | O202: 20.70 | P202: 11.90 | Q202: 20900.00 | R202: 8640.00 | S202: 27200.00 | T202: 13400.00 | U202: 0.85 | V202: 3.79 | W202: 96.10 | X202: 60500.00 | Y202: 1386.00
B203: 112 | C203: 356x406x990 | D203: 990.00 | E203: 550.00 | F203: 448.00 | G203: 71.90 | H203: 115.00 | I203: 15.00 | J203: 290.00 | K203: 1.95 | L203: 4.03 | M203: 519000.00 | N203: 173000.00 | O203: 20.30 | P203: 11.70 | Q203: 18900.00 | R203: 7740.00 | S203: 24300.00 | T203: 12000.00 | U203: 0.85 | V203: 4.02 | W203: 81.50 | X203: 46900.00 | Y203: 1262.00
B204: 113 | C204: 356x406x900 | D204: 900.00 | E204: 531.00 | F204: 442.00 | G204: 65.90 | H204: 106.00 | I204: 15.00 | J204: 290.00 | K204: 2.08 | L204: 4.40 | M204: 450000.00 | N204: 153000.00 | O204: 19.80 | P204: 11.60 | Q204: 17000.00 | R204: 6940.00 | S204: 21600.00 | T204: 10700.00 | U204: 0.85 | V204: 4.26 | W204: 68.90 | X204: 36400.00 | Y204: 1149.00
B205: 114 | C205: 356x406x818 | D205: 818.00 | E205: 514.00 | F205: 437.00 | G205: 60.50 | H205: 97.00 | I205: 15.00 | J205: 290.00 | K205: 2.25 | L205: 4.79 | M205: 392000.00 | N205: 136000.00 | O205: 19.40 | P205: 11.40 | Q205: 15300.00 | R205: 6200.00 | S205: 19300.00 | T205: 9560.00 | U205: 0.85 | V205: 4.55 | W205: 58.60 | X205: 27800.00 | Y205: 1043.00
B206: 115 | C206: 356x406x744 | D206: 744.00 | E206: 498.00 | F206: 432.00 | G206: 55.60 | H206: 88.90 | I206: 15.00 | J206: 290.00 | K206: 2.43 | L206: 5.22 | M206: 342000.00 | N206: 120000.00 | O206: 19.00 | P206: 11.30 | Q206: 13700.00 | R206: 5550.00 | S206: 17200.00 | T206: 8550.00 | U206: 0.85 | V206: 4.86 | W206: 50.00 | X206: 21400.00 | Y206: 948.00
B207: 116 | C207: 356x406x677 | D207: 677.00 | E207: 483.00 | F207: 428.00 | G207: 51.20 | H207: 81.50 | I207: 15.00 | J207: 290.00 | K207: 2.63 | L207: 5.66 | M207: 300000.00 | N207: 107000.00 | O207: 18.60 | P207: 11.10 | Q207: 12400.00 | R207: 4990.00 | S207: 15400.00 | T207: 7680.00 | U207: 0.84 | V207: 5.19 | W207: 42.90 | X207: 16400.00 | Y207: 863.00
B208: 117 | C208: 356x406x634 | D208: 633.90 | E208: 474.60 | F208: 424.00 | G208: 47.60 | H208: 77.00 | I208: 15.20 | J208: 290.20 | K208: 2.75 | L208: 6.10 | M208: 275000.00 | N208: 98100.00 | O208: 18.40 | P208: 11.00 | Q208: 11600.00 | R208: 4630.00 | S208: 14200.00 | T208: 7110.00 | U208: 0.84 | V208: 5.46 | W208: 38.80 | X208: 13700.00 | Y208: 808.00
B209: 118 | C209: 356x406x592 | D209: 592.00 | E209: 465.00 | F209: 421.00 | G209: 45.00 | H209: 72.30 | I209: 15.00 | J209: 290.00 | K209: 2.91 | L209: 6.44 | M209: 250000.00 | N209: 90200.00 | O209: 18.20 | P209: 10.90 | Q209: 10800.00 | R209: 4280.00 | S209: 13100.00 | T209: 6570.00 | U209: 0.84 | V209: 5.72 | W209: 34.70 | X209: 11400.00 | Y209: 755.00
B210: 119 | C210: 356x406x551 | D210: 551.00 | E210: 455.60 | F210: 418.50 | G210: 42.10 | H210: 67.50 | I210: 15.20 | J210: 290.20 | K210: 3.10 | L210: 6.89 | M210: 227000.00 | N210: 82700.00 | O210: 18.00 | P210: 10.90 | Q210: 9960.00 | R210: 3950.00 | S210: 12100.00 | T210: 6060.00 | U210: 0.84 | V210: 6.05 | W210: 31.10 | X210: 9240.00 | Y210: 702.00
B211: 120 | C211: 356x406x509 | D211: 509.00 | E211: 446.00 | F211: 416.00 | G211: 39.10 | H211: 62.70 | I211: 15.00 | J211: 290.00 | K211: 3.32 | L211: 7.42 | M211: 204000.00 | N211: 75400.00 | O211: 17.80 | P211: 10.80 | Q211: 9170.00 | R211: 3620.00 | S211: 11000.00 | T211: 5550.00 | U211: 0.84 | V211: 6.42 | W211: 27.60 | X211: 7390.00 | Y211: 649.00
B212: 121 | C212: 356x406x467 | D212: 467.00 | E212: 436.60 | F212: 412.20 | G212: 35.80 | H212: 58.00 | I212: 15.20 | J212: 290.20 | K212: 3.55 | L212: 8.11 | M212: 183000.00 | N212: 67800.00 | O212: 17.50 | P212: 10.70 | Q212: 8380.00 | R212: 3290.00 | S212: 10000.00 | T212: 5030.00 | U212: 0.84 | V212: 6.85 | W212: 24.30 | X212: 5810.00 | Y212: 595.00
B213: 122 | C213: 356x406x393 | D213: 393.00 | E213: 419.00 | F213: 407.00 | G213: 30.60 | H213: 49.20 | I213: 15.20 | J213: 290.20 | K213: 4.14 | L213: 9.48 | M213: 147000.00 | N213: 55400.00 | O213: 17.10 | P213: 10.50 | Q213: 7000.00 | R213: 2720.00 | S213: 8220.00 | T213: 4150.00 | U213: 0.84 | V213: 7.85 | W213: 18.90 | X213: 3550.00 | Y213: 501.00
B214: 123 | C214: 356x406x340 | D214: 339.90 | E214: 406.40 | F214: 403.00 | G214: 26.60 | H214: 42.90 | I214: 15.20 | J214: 290.20 | K214: 4.70 | L214: 10.91 | M214: 123000.00 | N214: 46900.00 | O214: 16.80 | P214: 10.40 | Q214: 6030.00 | R214: 2330.00 | S214: 7000.00 | T214: 3540.00 | U214: 0.84 | V214: 8.85 | W214: 15.50 | X214: 2340.00 | Y214: 433.00
B215: 124 | C215: 356x406x287 | D215: 287.10 | E215: 393.60 | F215: 399.00 | G215: 22.60 | H215: 36.50 | I215: 15.20 | J215: 290.20 | K215: 5.47 | L215: 12.84 | M215: 99900.00 | N215: 38700.00 | O215: 16.50 | P215: 10.30 | Q215: 5070.00 | R215: 1940.00 | S215: 5810.00 | T215: 2950.00 | U215: 0.84 | V215: 10.20 | W215: 12.30 | X215: 1440.00 | Y215: 366.00
B216: 125 | C216: 356x406x235 | D216: 235.10 | E216: 381.00 | F216: 394.80 | G216: 18.40 | H216: 30.20 | I216: 15.20 | J216: 290.20 | K216: 6.54 | L216: 15.77 | M216: 79100.00 | N216: 31000.00 | O216: 16.30 | P216: 10.20 | Q216: 4150.00 | R216: 1570.00 | S216: 4690.00 | T216: 2380.00 | U216: 0.84 | V216: 12.00 | W216: 9.54 | X216: 812.00 | Y216: 299.00
B217: 126 | C217: 356x368x202 | D217: 201.90 | E217: 374.60 | F217: 374.70 | G217: 16.50 | H217: 27.00 | I217: 15.20 | J217: 290.20 | K217: 6.94 | L217: 17.59 | M217: 66300.00 | N217: 23700.00 | O217: 16.10 | P217: 9.60 | Q217: 3540.00 | R217: 1260.00 | S217: 3970.00 | T217: 1920.00 | U217: 0.84 | V217: 13.30 | W217: 7.16 | X217: 558.00 | Y217: 257.00
B218: 127 | C218: 356x368x177 | D218: 177.00 | E218: 368.20 | F218: 372.60 | G218: 14.40 | H218: 23.80 | I218: 15.20 | J218: 290.20 | K218: 7.83 | L218: 20.15 | M218: 57100.00 | N218: 20500.00 | O218: 15.90 | P218: 9.54 | Q218: 3100.00 | R218: 1100.00 | S218: 3460.00 | T218: 1670.00 | U218: 0.84 | V218: 15.00 | W218: 6.09 | X218: 381.00 | Y218: 226.00
B219: 128 | C219: 356x368x153 | D219: 152.90 | E219: 362.00 | F219: 370.50 | G219: 12.30 | H219: 20.70 | I219: 15.20 | J219: 290.20 | K219: 8.95 | L219: 23.59 | M219: 48600.00 | N219: 17600.00 | O219: 15.80 | P219: 9.49 | Q219: 2680.00 | R219: 948.00 | S219: 2960.00 | T219: 1430.00 | U219: 0.84 | V219: 17.00 | W219: 5.11 | X219: 251.00 | Y219: 195.00
B220: 129 | C220: 356x368x129 | D220: 129.00 | E220: 355.60 | F220: 368.60 | G220: 10.40 | H220: 17.50 | I220: 15.20 | J220: 290.20 | K220: 10.53 | L220: 27.90 | M220: 40200.00 | N220: 14600.00 | O220: 15.60 | P220: 9.43 | Q220: 2260.00 | R220: 793.00 | S220: 2480.00 | T220: 1200.00 | U220: 0.85 | V220: 19.80 | W220: 4.18 | X220: 153.00 | Y220: 164.00
B221: 130 | C221: 305x305x283 | D221: 282.90 | E221: 365.30 | F221: 322.20 | G221: 26.80 | H221: 44.10 | I221: 15.20 | J221: 246.70 | K221: 3.65 | L221: 9.21 | M221: 78900.00 | N221: 24600.00 | O221: 14.80 | P221: 8.27 | Q221: 4320.00 | R221: 1530.00 | S221: 5110.00 | T221: 2340.00 | U221: 0.86 | V221: 7.65 | W221: 6.35 | X221: 2030.00 | Y221: 360.00
B222: 131 | C222: 305x305x240 | D222: 240.00 | E222: 352.50 | F222: 318.40 | G222: 23.00 | H222: 37.70 | I222: 15.20 | J222: 246.70 | K222: 4.22 | L222: 10.73 | M222: 64200.00 | N222: 20300.00 | O222: 14.50 | P222: 8.15 | Q222: 3640.00 | R222: 1280.00 | S222: 4250.00 | T222: 1950.00 | U222: 0.85 | V222: 8.74 | W222: 5.03 | X222: 1270.00 | Y222: 306.00
B223: 132 | C223: 305x305x198 | D223: 198.10 | E223: 339.90 | F223: 314.50 | G223: 19.10 | H223: 31.40 | I223: 15.20 | J223: 246.70 | K223: 5.01 | L223: 12.92 | M223: 50900.00 | N223: 16300.00 | O223: 14.20 | P223: 8.04 | Q223: 3000.00 | R223: 1040.00 | S223: 3440.00 | T223: 1580.00 | U223: 0.85 | V223: 10.20 | W223: 3.88 | X223: 734.00 | Y223: 252.00
... 39 more rows

Sheet from author
B1: version: 2.2. - FREE LITE VERSION | K1: © 2010-2019 Damian Janicki
C3: For latest updates and news visit: | G3: Contact me at:
C4: www.YourSpreadsheets.co.uk | G4: info@yourspreadsheets.co.uk
C7: General information: Note: This spreadsheet contains macros. To change company logo: right click it and select 'change picture'.
C13: The Author takes no liability for use of this spreadsheet and gives no guarantee that it is error free. In no event shall the Author be responsible for any special, incidental or consequential damages whatsoever arising from the use of this spreadsheet, even if the Author has been advised of the possibility of such damage. This spreadsheet is a freeware and can be distributed freely but only in its original form. Reverse-engineering, decompiling or disassembling of this spreadsheet is not allowable. A full list of terms and conditions can be found here:
C24: www.yourspreadsheets.co.uk/checkout.html
C25: By using this spreadsheet you understand and agree with the terms and conditions. You also acknowledge that you do not become an owner of this spreadsheet. Damian Janicki
C32: This is a Free Lite Version. The full version of the spreadsheet allows to: - Input your company information and change logo; - Change beam span. - Change loading.
C39: This spreadsheet is based on BS 5950:1 2000. Changelog: 26.08.2019 - v.2.2. - updated steel section sizes database. Added in-spreadsheet help pop-up messages. Also a few extra calculation steps are now visible on the print out. 14.08.2011 - v.2.1. - assigned to a new domain: www.YourSpreadsheets.co.uk. 27.11.2010 - v.1.6. - cell protection revised to work on Excel 97 and older. 29.09.2010 - v.1.5. - added option to change mLT between stabilizing and destabilizing load. Activation is now requierd. 05.08.2010 - v.1.4. - added option to limit allowable deflection to L/200; L/250 or 25mm (good practise for long spans). 03.06.2010 - v.1.3. - minor cosmetic changes. Note from the Author revised. 02.05.2010 - v.1.2. - official release of the spreadsheet.
